Workbook

Sheet Data (hidden)
A1: 1 | B1: 2 | C1: 3 | D1: 4 | E1: 5 | F1: 6 | G1: 7 | H1: 8 | I1: 9 | J1: 10 | K1: 11 | L1: 12 | M1: 13 | N1: 14 | O1: 15 | P1: 16 | Q1: 17 | R1: 18 | S1: 19 | T1: 20 | U1: 21 | V1: 22 | W1: 23 | X1: 24 | Y1: 25 | Z1: 26 | AA1: 27 | AB1: 28 | AC1: 29 | AD1: 30 | AE1: 31 | AF1: 32 | AG1: 33 | AH1: 34 | AI1: 35 | AJ1: 36 | AK1: 37 | AL1: 38 | AM1: 39 | AN1: 40 | AO1: 41 | AP1: 42 | AQ1: 43 | AR1: 44 | AS1: 45 | AT1: 46 | AU1: 47 | AV1: 48 | AW1: 49 | AX1: 50 | AY1: 51 | AZ1: 52 | BA1: 53 | BB1: 54 | BC1: 55 | BD1: 56 | BE1: 57 | BF1: 58 | BG1: 59 | BH1: 60 | BI1: 61 | BJ1: 62 | BK1: 63 | BL1: 64 | BM1: 65 | BN1: 66 | BO1: 67 | BP1: 68 | BQ1: 69 | BR1: 70 | BS1: 71 | BT1: 72 | BU1: 73 | BV1: 74 | BW1: 75 | BX1: 76 | BY1: 77 | BZ1: 78 | CA1: 79 | CB1: 80
A2: final list | B2: School Name | C2: Phase | D2: F1 - Pri | E2: F1 -KS3 | F2: F1 - KS4 | G2: F2 - FSM Pri | H2: F2 - FSM Sec | I2: F2 - E6FSM Pri | J2: F2 - E6FSM Sec | K2: F2 - IDACI F - Pri | L2: F2 - IDACI E - Pri | M2: F2 - IDACI D - Pri | N2: F2 - IDACI C - Pri | O2: F2 - IDACI B - Pri | P2: F2 - IDACI A - Pri | Q2: F2 - IDACI F - Sec | R2: F2 - IDACI E - Sec | S2: F2 - IDACI D - Sec | T2: F2 - IDACI C - Sec | U2: F2 - IDACI B - Sec | V2: F2 - IDACI A - Sec | W2: F4 - EAL Pri | X2: F4 - EAL Sec | Y2: F6 - EYFS Pri | Z2: F6 - EYFS Sec | AA2: F7 - Lump Sum 19/20 | AB2: F8 - Sparsity Pri | AC2: F8 - Sparsity Sec | AD2: F9 - ACA | AE2: F10 - Split Site | AF2: F11 - Rates | AG2: F12 - PFI | AH2: F13 - Exceptional Circumstances | AI2: MFL Rate | AJ2: SBS - 2019/20 | AK2: Lump Sum - 2019-20 | AL2: Sparsity - 2019-20 | AM2: Split Site - 2019-20 | AN2: Rates - 2019-20 | AO2: Pupils - Oct 18 | AP2: PFI Funding - Future Year? | AR2: Early Years - Base Rate | AS2: Early Years - QTS | AT2: Early Years - Disadvantage | AV2: SRP Des1 Pre | AW2: SRP Des2 Pre | AX2: SRP Des1 Post | AY2: SRP Des2 Post | AZ2: SRP Places Apr - Aug PRE | BA2: SRP Places Apr - Aug POST | BB2: SRP Places Sep - Mar PRE | BC2: SRP Places Sep - Mar Post | BD2: SRP actuals PRE (OCT) | BE2: SRP actuals POST (OCT) | BF2: Teachers Pay Grant Primary Pupils | BG2: Teachers Pay Grant Secondary Pupils | BI2: 20/21 MPPL | BJ2: MFG Baseline
A3: 1001 | B3: Northfleet Nursery | C3: 6 | D3: 0 | E3: 0 | F3: 0 | G3: 0 | H3: 0 | I3: 0 | J3: 0 | K3: 0 | L3: 0 | M3: 0 | N3: 0 | O3: 0 | P3: 0 | Q3: 0 | R3: 0 | S3: 0 | T3: 0 | U3: 0 | V3: 0 | W3: 0 | X3: 0 | Y3: 0 | Z3: 0 | AA3: 0 | AB3: 0 | AC3: 0 | AD3: 0 | AE3: 0 | AF3: 0 | AG3: 0 | AH3: 0 | AI3: 0 | AJ3: 0 | AK3: 0 | AL3: 0 | AM3: 0 | AN3: 0 | AO3: 0 | AP3: 0 | AR3: 4.08 | AS3: 0 | AT3: 0.2 | AV3: 0 | AX3: 0 | AZ3: 0 | BA3: 0 | BB3: 0 | BC3: 0 | BD3: 0 | BE3: 0 | BF3: 100 | BG3: 0 | BI3: 0 | BJ3: 0 | BK3: 0
A4: 2000 | B4: St Johns C of E Primary School | C4: 1 | D4: 349 | E4: 0 | F4: 0 | G4: 149 | H4: 0 | I4: 184.2546584 | J4: 0 | K4: 11 | L4: 3 | M4: 34 | N4: 110 | O4: 67 | P4: 0 | Q4: 0 | R4: 0 | S4: 0 | T4: 0 | U4: 0 | V4: 0 | W4: 58.16666667 | X4: 0 | Y4: 127.2991803 | Z4: 0 | AA4: 120084 | AB4: 0 | AC4: 0 | AD4: 1 | AE4: 0 | AF4: 24576 | AG4: 0 | AH4: 0 | AI4: 3750 | AJ4: 1337876.337 | AK4: 120082.8 | AL4: 0 | AM4: 0 | AN4: 24182 | AO4: 318 | AP4: 0 | AR4: 4.08 | AS4: 0 | AT4: 0.16 | AV4: 0 | AX4: 0 | AZ4: 0 | BA4: 0 | BB4: 0 | BC4: 0 | BD4: 0 | BE4: 0 | BF4: 346 | BG4: 0 | BI4: 4280.81 | BJ4: 3936.73 | BK4: =IF(AND(C4=1,BI4<3883.495),4000-BI4,0) -> 0 | BL4: =BK4/BJ4 -> 0
A5: 2002 | B5: Repton Manor Primary School | C5: 1 | D5: 480 | E5: 0 | F5: 0 | G5: 34 | H5: 0 | I5: 68.14196242 | J5: 0 | K5: 33.06889353 | L5: 11.02296451 | M5: 5.010438413 | N5: 16.03340292 | O5: 12.02505219 | P5: 0 | Q5: 0 | R5: 0 | S5: 0 | T5: 0 | U5: 0 | V5: 0 | W5: 45.71428571 | X5: 0 | Y5: 96.94581281 | Z5: 0 | AA5: 120084 | AB5: 0 | AC5: 0 | AD5: 1 | AE5: 0 | AF5: 10650 | AG5: 0 | AH5: 0 | AI5: 3750 | AJ5: 1649634 | AK5: 120082.8 | AL5: 0 | AM5: 0 | AN5: 14234 | AO5: 481 | AP5: 0 | AR5: 0 | AS5: 0 | AT5: 0 | AV5: 0 | AX5: 0 | AZ5: 0 | BA5: 0 | BB5: 0 | BC5: 0 | BD5: 0 | BE5: 0 | BF5: 481 | BG5: 0 | BI5: 3750 | BJ5: 3750 | BK5: =IF(AND(C5=1,BI5<3883.495),4000-BI5,0) -> 250 | BL5: =BK5/BJ5 -> 0.06666666667
A6: 2065 | B6: Discovery School, The | C6: 1 | D6: 608 | E6: 0 | F6: 0 | G6: 23 | H6: 0 | I6: 29.46688207 | J6: 0 | K6: 8 | L6: 7 | M6: 0 | N6: 1 | O6: 3 | P6: 0 | Q6: 0 | R6: 0 | S6: 0 | T6: 0 | U6: 0 | V6: 0 | W6: 27.27476636 | X6: 0 | Y6: 111.6969697 | Z6: 0 | AA6: 120084 | AB6: 0 | AC6: 0 | AD6: 1 | AE6: 0 | AF6: 75264 | AG6: 0 | AH6: 0 | AI6: 3750 | AJ6: 2188861 | AK6: 120082.8 | AL6: 0 | AM6: 0 | AN6: 77461 | AO6: 621 | AP6: 0 | AR6: 0 | AS6: 0 | AT6: 0 | AV6: 0 | AX6: 0 | AZ6: 0 | BA6: 0 | BB6: 0 | BC6: 0 | BD6: 0 | BE6: 0 | BF6: 621 | BG6: 0 | BI6: 3750 | BJ6: 3750 | BK6: =IF(AND(C6=1,BI6<3883.495),4000-BI6,0) -> 250 | BL6: 0.06666666667
A7: 2066 | B7: Maypole Primary School | C7: 1 | D7: 409 | E7: 0 | F7: 0 | G7: 49 | H7: 0 | I7: 66.51213592 | J7: 0 | K7: 42 | L7: 17 | M7: 4 | N7: 10 | O7: 8 | P7: 0 | Q7: 0 | R7: 0 | S7: 0 | T7: 0 | U7: 0 | V7: 0 | W7: 18.59090909 | X7: 0 | Y7: 112.4152047 | Z7: 0 | AA7: 120084 | AB7: 0 | AC7: 0 | AD7: 1.0364 | AE7: 0 | AF7: 38144 | AG7: 0 | AH7: 0 | AI7: 3750 | AJ7: 1493096.57 | AK7: 124453.8139 | AL7: 0 | AM7: 0 | AN7: 40919 | AO7: 406 | AP7: 0 | AR7: 0 | AS7: 0 | AT7: 0 | AV7: 0 | AX7: 0 | AZ7: 0 | BA7: 0 | BB7: 0 | BC7: 0 | BD7: 0 | BE7: 0 | BF7: 406 | BG7: 0 | BI7: 3750 | BJ7: 3750 | BK7: 250 | BL7: 0.06666666667
A8: 2079 | B8: Woodlands Primary School | C8: 1 | D8: 643 | E8: 0 | F8: 0 | G8: 65 | H8: 0 | I8: 81.87267081 | J8: 0 | K8: 89 | L8: 9 | M8: 0 | N8: 28 | O8: 0 | P8: 0 | Q8: 0 | R8: 0 | S8: 0 | T8: 0 | U8: 0 | V8: 0 | W8: 19.51964286 | X8: 0 | Y8: 142.2358318 | Z8: 0 | AA8: 120084 | AB8: 0 | AC8: 0 | AD8: 1 | AE8: 0 | AF8: 57856 | AG8: 0 | AH8: 0 | AI8: 3750 | AJ8: 2249925 | AK8: 120082.8 | AL8: 0 | AM8: 0 | AN8: 60325 | AO8: 644 | AP8: 0 | AR8: 0 | AS8: 0 | AT8: 0 | AV8: 0 | AX8: 0 | AZ8: 0 | BA8: 0 | BB8: 0 | BC8: 0 | BD8: 0 | BE8: 0 | BF8: 644 | BG8: 0 | BI8: 3750 | BJ8: 3750 | BK8: 250 | BL8: 0.06666666667
A9: 2088 | B9: Crockenhill Primary School | C9: 1 | D9: 207 | E9: 0 | F9: 0 | G9: 32 | H9: 0 | I9: 32 | J9: 0 | K9: 0 | L9: 3 | M9: 6 | N9: 7 | O9: 20 | P9: 0 | Q9: 0 | R9: 0 | S9: 0 | T9: 0 | U9: 0 | V9: 0 | W9: 2.338983051 | X9: 0 | Y9: 34.10795455 | Z9: 0 | AA9: 120084 | AB9: 0 | AC9: 0 | AD9: 1.0364 | AE9: 0 | AF9: 24116 | AG9: 0 | AH9: 0 | AI9: 3750 | AJ9: 780755.9382 | AK9: 124453.8139 | AL9: 0 | AM9: 0 | AN9: 23730 | AO9: 202 | AP9: 0 | AR9: 0 | AS9: 0 | AT9: 0 | AV9: 0 | AX9: 0 | AZ9: 0 | BA9: 0 | BB9: 0 | BC9: 0 | BD9: 0 | BE9: 0 | BF9: 202 | BG9: 0 | BI9: 3928.44 | BJ9: 3327.21 | BK9: 0 | BL9: 0
A10: 2089 | B10: Anthony Roper Primary School, The | C10: 1 | D10: 301 | E10: 0 | F10: 0 | G10: 20 | H10: 0 | I10: 24.75328947 | J10: 0 | K10: 1 | L10: 7 | M10: 2 | N10: 0 | O10: 3 | P10: 0 | Q10: 0 | R10: 0 | S10: 0 | T10: 0 | U10: 0 | V10: 0 | W10: 3.5 | X10: 0 | Y10: 58.7890625 | Z10: 0 | AA10: 120084 | AB10: 0 | AC10: 0 | AD10: 1.0364 | AE10: 0 | AF10: 6656 | AG10: 0 | AH10: 0 | AI10: 3750 | AJ10: 1076264.847 | AK10: 124453.8139 | AL10: 0 | AM10: 0 | AN10: 6552 | AO10: 304 | AP10: 0 | AR10: 0 | AS10: 0 | AT10: 0 | AV10: 0 | AX10: 0 | AZ10: 0 | BA10: 0 | BB10: 0 | BC10: 0 | BD10: 0 | BE10: 0 | BF10: 304 | BG10: 0 | BI10: 3750 | BJ10: 3750 | BK10: 250 | BL10: 0.06666666667
A11: 2094 | B11: Cobham Primary School | C11: 1 | D11: 218 | E11: 0 | F11: 0 | G11: 8 | H11: 0 | I11: 9.909090909 | J11: 0 | K11: 12 | L11: 1 | M11: 3 | N11: 0 | O11: 1 | P11: 0 | Q11: 0 | R11: 0 | S11: 0 | T11: 0 | U11: 0 | V11: 0 | W11: 1.159574468 | X11: 0 | Y11: 31.47593583 | Z11: 0 | AA11: 120084 | AB11: 0 | AC11: 0 | AD11: 1 | AE11: 0 | AF11: 17216 | AG11: 0 | AH11: 0 | AI11: 3750 | AJ11: 780859.1361 | AK11: 120082.8 | AL11: 0 | AM11: 0 | AN11: 16940 | AO11: 220 | AP11: 0 | AR11: 0 | AS11: 0 | AT11: 0 | AV11: 0 | AX11: 0 | AZ11: 0 | BA11: 0 | BB11: 0 | BC11: 0 | BD11: 0 | BE11: 0 | BF11: 220 | BG11: 0 | BI11: 3750 | BJ11: 3750 | BK11: 250 | BL11: 0.06666666667
A12: 2095 | B12: Cecil Road Primary and Nursery School | C12: 1 | D12: 376 | E12: 0 | F12: 0 | G12: 50 | H12: 0 | I12: 57.5408971 | J12: 0 | K12: 198.5844504 | L12: 18.14477212 | M12: 5.040214477 | N12: 2.016085791 | O12: 1.008042895 | P12: 0 | Q12: 0 | R12: 0 | S12: 0 | T12: 0 | U12: 0 | V12: 0 | W12: 94.87850467 | X12: 0 | Y12: 96.99363057 | Z12: 0 | AA12: 120084 | AB12: 0 | AC12: 0 | AD12: 1 | AE12: 0 | AF12: 34048 | AG12: 0 | AH12: 0 | AI12: 3750 | AJ12: 1416178.43 | AK12: 120082.8 | AL12: 0 | AM12: 0 | AN12: 33516 | AO12: 381 | AP12: 0 | AR12: 4.08 | AS12: 0 | AT12: 0 | AV12: 0 | AX12: 0 | AZ12: 0 | BA12: 0 | BB12: 0 | BC12: 0 | BD12: 0 | BE12: 0 | BF12: 444 | BG12: 0 | BI12: 3809.02 | BJ12: 3489.64 | BK12: 190.98 | BL12: 0.0547277083
A13: 2109 | B13: Higham Primary School | C13: 1 | D13: 207 | E13: 0 | F13: 0 | G13: 17 | H13: 0 | I13: 18.72857143 | J13: 0 | K13: 3 | L13: 2 | M13: 1 | N13: 0 | O13: 0 | P13: 0 | Q13: 0 | R13: 0 | S13: 0 | T13: 0 | U13: 0 | V13: 0 | W13: 0 | X13: 0 | Y13: 49.96551724 | Z13: 0 | AA13: 120084 | AB13: 0 | AC13: 0 | AD13: 1 | AE13: 0 | AF13: 22330 | AG13: 0 | AH13: 0 | AI13: 3750 | AJ13: 775383.1167 | AK13: 120082.8 | AL13: 0 | AM13: 0 | AN13: 21972 | AO13: 211 | AP13: 0 | AR13: 0 | AS13: 0 | AT13: 0 | AV13: 0 | AX13: 0 | AZ13: 0 | BA13: 0 | BB13: 0 | BC13: 0 | BD13: 0 | BE13: 0 | BF13: 211 | BG13: 0 | BI13: 3750 | BJ13: 3750 | BK13: 250 | BL13: 0.06666666667
A14: 2116 | B14: Lawn Primary School | C14: 1 | D14: 206 | E14: 0 | F14: 0 | G14: 105 | H14: 0 | I14: 118.2970297 | J14: 0 | K14: 11 | L14: 7 | M14: 7 | N14: 28 | O14: 138 | P14: 0 | Q14: 0 | R14: 0 | S14: 0 | T14: 0 | U14: 0 | V14: 0 | W14: 35.72254335 | X14: 0 | Y14: 94.47133758 | Z14: 0 | AA14: 120084 | AB14: 0 | AC14: 0 | AD14: 1 | AE14: 0 | AF14: 20709 | AG14: 0 | AH14: 0 | AI14: 3750 | AJ14: 919317.914 | AK14: 120082.8 | AL14: 0 | AM14: 0 | AN14: 20377 | AO14: 195 | AP14: 0 | AR14: 4.08 | AS14: 0.3 | AT14: 0.86 | AV14: 0 | AX14: 0 | AZ14: 0 | BA14: 0 | BB14: 0 | BC14: 0 | BD14: 0 | BE14: 0 | BF14: 232 | BG14: 0 | BI14: 4798.11 | BJ14: 4215.18 | BK14: 0 | BL14: 0
A15: 2119 | B15: Shears Green Infant School | C15: 1 | D15: 358 | E15: 0 | F15: 0 | G15: 30 | H15: 0 | I15: 40.77222222 | J15: 0 | K15: 84.23529412 | L15: 79.22128852 | M15: 6.016806723 | N15: 7.019607843 | O15: 13.03641457 | P15: 0 | Q15: 0 | R15: 0 | S15: 0 | T15: 0 | U15: 0 | V15: 0 | W15: 51.14285714 | X15: 0 | Y15: 51.14285714 | Z15: 0 | AA15: 120084 | AB15: 0 | AC15: 0 | AD15: 1 | AE15: 0 | AF15: 21760 | AG15: 0 | AH15: 0 | AI15: 3750 | AJ15: 1280091.964 | AK15: 120082.8 | AL15: 0 | AM15: 0 | AN15: 21420 | AO15: 359 | AP15: 0 | AR15: 0 | AS15: 0 | AT15: 0 | AV15: 0 | AX15: 0 | AZ15: 0 | BA15: 0 | BB15: 0 | BC15: 0 | BD15: 0 | BE15: 0 | BF15: 359 | BG15: 0 | BI15: 3750 | BJ15: 3750 | BK15: 250 | BL15: 0.06666666667
A16: 2120 | B16: Bean Primary School | C16: 1 | D16: 202 | E16: 0 | F16: 0 | G16: 29 | H16: 0 | I16: 33.83251232 | J16: 0 | K16: 115 | L16: 14 | M16: 0 | N16: 0 | O16: 3 | P16: 0 | Q16: 0 | R16: 0 | S16: 0 | T16: 0 | U16: 0 | V16: 0 | W16: 13.46666667 | X16: 0 | Y16: 55.19767442 | Z16: 0 | AA16: 120084 | AB16: 0 | AC16: 0 | AD16: 1.0364 | AE16: 0 | AF16: 16093 | AG16: 0 | AH16: 0 | AI16: 3750 | AJ16: 800190.0855 | AK16: 124453.8139 | AL16: 0 | AM16: 0 | AN16: 14028 | AO16: 197 | AP16: 0 | AR16: 0 | AS16: 0 | AT16: 0 | AV16: 0 | AX16: 0 | AZ16: 0 | BA16: 0 | BB16: 0 | BC16: 0 | BD16: 0 | BE16: 0 | BF16: 197 | BG16: 0 | BI16: 4168.9 | BJ16: 3552.78 | BK16: 0 | BL16: 0
A17: 2128 | B17: Capel Primary School | C17: 1 | D17: 208 | E17: 0 | F17: 0 | G17: 25 | H17: 0 | I17: 25.75238095 | J17: 0 | K17: 6 | L17: 6 | M17: 2 | N17: 0 | O17: 0 | P17: 0 | Q17: 0 | R17: 0 | S17: 0 | T17: 0 | U17: 0 | V17: 0 | W17: 4.622222222 | X17: 0 | Y17: 36.84571429 | Z17: 0 | AA17: 120084 | AB17: 0 | AC17: 0 | AD17: 1 | AE17: 0 | AF17: 21457 | AG17: 0 | AH17: 0 | AI17: 3750 | AJ17: 761366.8934 | AK17: 120082.8 | AL17: 0 | AM17: 0 | AN17: 20422 | AO17: 209 | AP17: 0 | AR17: 0 | AS17: 0 | AT17: 0 | AV17: 0 | AX17: 0 | AZ17: 0 | BA17: 0 | BB17: 0 | BC17: 0 | BD17: 0 | BE17: 0 | BF17: 209 | BG17: 0 | BI17: 3750 | BJ17: 3750 | BK17: 250 | BL17: 0.06666666667
A18: 2130 | B18: Dunton Green Primary School | C18: 1 | D18: 159 | E18: 0 | F18: 0 | G18: 35 | H18: 0 | I18: 48.55688623 | J18: 0 | K18: 2 | L18: 0 | M18: 0 | N18: 0 | O18: 0 | P18: 0 | Q18: 0 | R18: 0 | S18: 0 | T18: 0 | U18: 0 | V18: 0 | W18: 15.42537313 | X18: 0 | Y18: 38.5078125 | Z18: 0 | AA18: 120084 | AB18: 0 | AC18: 0 | AD18: 1.0364 | AE18: 0 | AF18: 24576 | AG18: 0 | AH18: 0 | AI18: 3750 | AJ18: 709041.0245 | AK18: 124453.8139 | AL18: 0 | AM18: 0 | AN18: 24182 | AO18: 168 | AP18: 0 | AR18: 0 | AS18: 0 | AT18: 0 | AV18: 0 | AX18: 0 | AZ18: 0 | BA18: 0 | BB18: 0 | BC18: 0 | BD18: 0 | BE18: 0 | BF18: 168 | BG18: 0 | BI18: 4254.19 | BJ18: 3471.45 | BK18: 0 | BL18: 0
A19: 2132 | B19: Hadlow Primary School | C19: 1 | D19: 197 | E19: 0 | F19: 0 | G19: 31 | H19: 0 | I19: 45.3872549 | J19: 0 | K19: 1 | L19: 99 | M19: 1 | N19: 1 | O19: 0 | P19: 0 | Q19: 0 | R19: 0 | S19: 0 | T19: 0 | U19: 0 | V19: 0 | W19: 2.345238095 | X19: 0 | Y19: 48.36526946 | Z19: 0 | AA19: 120084 | AB19: 0 | AC19: 0 | AD19: 1 | AE19: 0 | AF19: 24326 | AG19: 0 | AH19: 0 | AI19: 3750 | AJ19: 796056.1825 | AK19: 120082.8 | AL19: 0 | AM19: 0 | AN19: 25237 | AO19: 202 | AP19: 0 | AR19: 0 | AS19: 0 | AT19: 0 | AV19: 0 | AX19: 0 | AZ19: 0 | BA19: 0 | BB19: 0 | BC19: 0 | BD19: 0 | BE19: 0 | BF19: 202 | BG19: 0 | BI19: 3992.59 | BJ19: 3383.03 | BK19: 0 | BL19: 0
A20: 2133 | B20: Halstead Community Primary School | C20: 1 | D20: 80 | E20: 0 | F20: 0 | G20: 18 | H20: 0 | I20: 23.41463415 | J20: 0 | K20: 0 | L20: 3 | M20: 4 | N20: 1 | O20: 0 | P20: 0 | Q20: 0 | R20: 0 | S20: 0 | T20: 0 | U20: 0 | V20: 0 | W20: 1.126760563 | X20: 0 | Y20: 24.78873239 | Z20: 0 | AA20: 120084 | AB20: 0 | AC20: 0 | AD20: 1.0364 | AE20: 0 | AF20: 9481 | AG20: 0 | AH20: 0 | AI20: 3750 | AJ20: 411494.7097 | AK20: 124453.8139 | AL20: 0 | AM20: 0 | AN20: 9329 | AO20: 83 | AP20: 0 | AR20: 0 | AS20: 0 | AT20: 0 | AV20: 0 | AX20: 0 | AZ20: 0 | BA20: 0 | BB20: 0 | BC20: 0 | BD20: 0 | BE20: 0 | BF20: 100 | BG20: 0 | BI20: 5085.56 | BJ20: 3529.87 | BK20: 0 | BL20: 0
A21: 2134 | B21: Four Elms Primary School | C21: 1 | D21: 108 | E21: 0 | F21: 0 | G21: 7 | H21: 0 | I21: 11.67567568 | J21: 0 | K21: 19 | L21: 9 | M21: 0 | N21: 0 | O21: 0 | P21: 0 | Q21: 0 | R21: 0 | S21: 0 | T21: 0 | U21: 0 | V21: 0 | W21: 1.173913043 | X21: 0 | Y21: 29.67032967 | Z21: 0 | AA21: 120084 | AB21: 0 | AC21: 0 | AD21: 1.0364 | AE21: 0 | AF21: 13348 | AG21: 0 | AH21: 0 | AI21: 3750 | AJ21: 490355.1718 | AK21: 124453.8139 | AL21: 0 | AM21: 0 | AN21: 13134 | AO21: 110 | AP21: 0 | AR21: 0 | AS21: 0 | AT21: 0 | AV21: 0 | AX21: 0 | AZ21: 0 | BA21: 0 | BB21: 0 | BC21: 0 | BD21: 0 | BE21: 0 | BF21: 110 | BG21: 0 | BI21: 4530.36 | BJ21: 3378 | BK21: 0 | BL21: 0
A22: 2136 | B22: Kemsing Primary School | C22: 1 | D22: 197 | E22: 0 | F22: 0 | G22: 22 | H22: 0 | I22: 22 | J22: 0 | K22: 2.020512821 | L22: 2.020512821 | M22: 1.01025641 | N22: 0 | O22: 0 | P22: 0 | Q22: 0 | R22: 0 | S22: 0 | T22: 0 | U22: 0 | V22: 0 | W22: 2.359281437 | X22: 0 | Y22: 63.27878788 | Z22: 0 | AA22: 120084 | AB22: 0 | AC22: 0 | AD22: 1.0364 | AE22: 0 | AF22: 21956 | AG22: 0 | AH22: 0 | AI22: 3750 | AJ22: 772841.4537 | AK22: 124453.8139 | AL22: 0 | AM22: 0 | AN22: 21604 | AO22: 198 | AP22: 0 | AR22: 0 | AS22: 0 | AT22: 0 | AV22: 0 | AX22: 0 | AZ22: 0 | BA22: 0 | BB22: 0 | BC22: 0 | BD22: 0 | BE22: 0 | BF22: 198 | BG22: 0 | BI22: 4031.74 | BJ22: 3399.99 | BK22: 0 | BL22: 0
A23: 2137 | B23: Leigh Primary School | C23: 1 | D23: 167 | E23: 0 | F23: 0 | G23: 9 | H23: 0 | I23: 14.47976879 | J23: 0 | K23: 1 | L23: 3 | M23: 0 | N23: 0 | O23: 0 | P23: 0 | Q23: 0 | R23: 0 | S23: 0 | T23: 0 | U23: 0 | V23: 0 | W23: 0 | X23: 0 | Y23: 35.03496503 | Z23: 0 | AA23: 120084 | AB23: 0 | AC23: 0 | AD23: 1.0364 | AE23: 0 | AF23: 12200 | AG23: 0 | AH23: 0 | AI23: 3750 | AJ23: 666095.0729 | AK23: 124453.8139 | AL23: 0 | AM23: 0 | AN23: 12005 | AO23: 172 | AP23: 0 | AR23: 0 | AS23: 0 | AT23: 0 | AV23: 0 | AX23: 0 | AZ23: 0 | BA23: 0 | BB23: 0 | BC23: 0 | BD23: 0 | BE23: 0 | BF23: 172 | BG23: 0 | BI23: 3979.23 | BJ23: 3233.99 | BK23: 0 | BL23: 0
A24: 2138 | B24: Otford Primary School | C24: 1 | D24: 396 | E24: 0 | F24: 0 | G24: 25 | H24: 0 | I24: 32.67 | J24: 0 | K24: 2 | L24: 0 | M24: 1 | N24: 6 | O24: 1 | P24: 0 | Q24: 0 | R24: 0 | S24: 0 | T24: 0 | U24: 0 | V24: 0 | W24: 3.473684211 | X24: 0 | Y24: 56.4 | Z24: 0 | AA24: 120084 | AB24: 0 | AC24: 0 | AD24: 1.0364 | AE24: 0 | AF24: 29440 | AG24: 0 | AH24: 0 | AI24: 3750 | AJ24: 1354980 | AK24: 124453.8139 | AL24: 0 | AM24: 0 | AN24: 28980 | AO24: 390 | AP24: 0 | AR24: 0 | AS24: 0 | AT24: 0 | AV24: 0 | AX24: 0 | AZ24: 0 | BA24: 0 | BB24: 0 | BC24: 0 | BD24: 0 | BE24: 0 | BF24: 390 | BG24: 0 | BI24: 3750 | BJ24: 3750 | BK24: 250 | BL24: 0.06666666667
A25: 2139 | B25: Pembury School | C25: 1 | D25: 415 | E25: 0 | F25: 0 | G25: 20 | H25: 0 | I25: 26.83602771 | J25: 0 | K25: 14 | L25: 0 | M25: 1 | N25: 5 | O25: 0 | P25: 0 | Q25: 0 | R25: 0 | S25: 0 | T25: 0 | U25: 0 | V25: 0 | W25: 24.48033708 | X25: 0 | Y25: 78.25714286 | Z25: 0 | AA25: 120084 | AB25: 0 | AC25: 0 | AD25: 1 | AE25: 0 | AF25: 42496 | AG25: 0 | AH25: 0 | AI25: 3750 | AJ25: 1544632 | AK25: 120082.8 | AL25: 0 | AM25: 0 | AN25: 41832 | AO25: 442 | AP25: 0 | AR25: 0 | AS25: 0 | AT25: 0 | AV25: 0 | AX25: 0 | AZ25: 0 | BA25: 0 | BB25: 0 | BC25: 0 | BD25: 0 | BE25: 0 | BF25: 442 | BG25: 0 | BI25: 3750 | BJ25: 3750 | BK25: 250 | BL25: 0.06666666667
A26: 2142 | B26: Sandhurst Primary School | C26: 1 | D26: 148 | E26: 0 | F26: 0 | G26: 25 | H26: 0 | I26: 28.77777778 | J26: 0 | K26: 20 | L26: 1 | M26: 0 | N26: 0 | O26: 1 | P26: 0 | Q26: 0 | R26: 0 | S26: 0 | T26: 0 | U26: 0 | V26: 0 | W26: 3.363636364 | X26: 0 | Y26: 37 | Z26: 0 | AA26: 120084 | AB26: 0 | AC26: 0 | AD26: 1 | AE26: 0 | AF26: 21582 | AG26: 0 | AH26: 0 | AI26: 3750 | AJ26: 584244.8127 | AK26: 120082.8 | AL26: 0 | AM26: 0 | AN26: 21236 | AO26: 143 | AP26: 0 | AR26: 0 | AS26: 0 | AT26: 0 | AV26: 0 | AX26: 0 | AZ26: 0 | BA26: 0 | BB26: 0 | BC26: 0 | BD26: 0 | BE26: 0 | BF26: 143 | BG26: 0 | BI26: 4100.82 | BJ26: 3289.44 | BK26: 0 | BL26: 0
A27: 2147 | B27: Weald Community Primary School | C27: 1 | D27: 148 | E27: 0 | F27: 0 | G27: 13 | H27: 0 | I27: 13 | J27: 0 | K27: 1 | L27: 0 | M27: 4 | N27: 0 | O27: 0 | P27: 0 | Q27: 0 | R27: 0 | S27: 0 | T27: 0 | U27: 0 | V27: 0 | W27: 8.288 | X27: 0 | Y27: 40.82758621 | Z27: 0 | AA27: 120084 | AB27: 625.2642457 | AC27: 0 | AD27: 1.0364 | AE27: 0 | AF27: 15220 | AG27: 0 | AH27: 0 | AI27: 3750 | AJ27: 666921.2753 | AK27: 124453.8139 | AL27: 0 | AM27: 0 | AN27: 14976 | AO27: 170 | AP27: 0 | AR27: 0 | AS27: 0 | AT27: 0 | AV27: 0 | AX27: 0 | AZ27: 0 | BA27: 0 | BB27: 0 | BC27: 0 | BD27: 0 | BE27: 0 | BF27: 170 | BG27: 0 | BI27: 4205.58 | BJ27: 3360.44 | BK27: 0 | BL27: 0
A28: 2148 | B28: Shoreham Village School | C28: 1 | D28: 99 | E28: 0 | F28: 0 | G28: 16 | H28: 0 | I28: 26.8125 | J28: 0 | K28: 3 | L28: 0 | M28: 0 | N28: 1 | O28: 0 | P28: 0 | Q28: 0 | R28: 0 | S28: 0 | T28: 0 | U28: 0 | V28: 0 | W28: 3.535714286 | X28: 0 | Y28: 26.3164557 | Z28: 0 | AA28: 120084 | AB28: 0 | AC28: 0 | AD28: 1.0364 | AE28: 0 | AF28: 14097 | AG28: 0 | AH28: 0 | AI28: 3750 | AJ28: 443556.6941 | AK28: 124453.8139 | AL28: 0 | AM28: 0 | AN28: 13871 | AO28: 94 | AP28: 0 | AR28: 0 | AS28: 0 | AT28: 0 | AV28: 0 | AX28: 0 | AZ28: 0 | BA28: 0 | BB28: 0 | BC28: 0 | BD28: 0 | BE28: 0 | BF28: 100 | BG28: 0 | BI28: 4689.85 | BJ28: 3432.73 | BK28: 0 | BL28: 0
A29: 2155 | B29: Slade Primary School | C29: 1 | D29: 405 | E29: 0 | F29: 0 | G29: 29 | H29: 0 | I29: 35.30769231 | J29: 0 | K29: 12 | L29: 11 | M29: 0 | N29: 4 | O29: 0 | P29: 0 | Q29: 0 | R29: 0 | S29: 0 | T29: 0 | U29: 0 | V29: 0 | W29: 37.56521739 | X29: 0 | Y29: 111.5568862 | Z29: 0 | AA29: 120084 | AB29: 0 | AC29: 0 | AD29: 1 | AE29: 0 | AF29: 29952 | AG29: 0 | AH29: 0 | AI29: 3750 | AJ29: 1355457 | AK29: 120082.8 | AL29: 0 | AM29: 0 | AN29: 32857 | AO29: 389 | AP29: 0 | AR29: 0 | AS29: 0 | AT29: 0 | AV29: 0 | AX29: 0 | AZ29: 0 | BA29: 0 | BB29: 0 | BC29: 0 | BD29: 0 | BE29: 0 | BF29: 389 | BG29: 0 | BI29: 3750 | BJ29: 3750 | BK29: 250 | BL29: 0.06666666667
A30: 2156 | B30: Sussex Road Community Primary School | C30: 1 | D30: 442 | E30: 0 | F30: 0 | G30: 40 | H30: 0 | I30: 54.50672646 | J30: 0 | K30: 2 | L30: 16 | M30: 0 | N30: 2 | O30: 0 | P30: 0 | Q30: 0 | R30: 0 | S30: 0 | T30: 0 | U30: 0 | V30: 0 | W30: 35.58961039 | X30: 0 | Y30: 73.07733333 | Z30: 0 | AA30: 120084 | AB30: 0 | AC30: 0 | AD30: 1 | AE30: 0 | AF30: 44544 | AG30: 0 | AH30: 0 | AI30: 3750 | AJ30: 1570421 | AK30: 120082.8 | AL30: 0 | AM30: 0 | AN30: 47221 | AO30: 448 | AP30: 0 | AR30: 0 | AS30: 0 | AT30: 0 | AV30: 0 | AX30: 0 | AZ30: 0 | BA30: 0 | BB30: 0 | BC30: 0 | BD30: 0 | BE30: 0 | BF30: 448 | BG30: 0 | BI30: 3750 | BJ30: 3750 | BK30: 250 | BL30: 0.06666666667
A31: 2161 | B31: Boughton Monchelsea Primary School | C31: 1 | D31: 209 | E31: 0 | F31: 0 | G31: 18 | H31: 0 | I31: 18.17391304 | J31: 0 | K31: 9 | L31: 0 | M31: 2 | N31: 5 | O31: 3 | P31: 0 | Q31: 0 | R31: 0 | S31: 0 | T31: 0 | U31: 0 | V31: 0 | W31: 3.52247191 | X31: 0 | Y31: 47.23163842 | Z31: 0 | AA31: 120084 | AB31: 0 | AC31: 0 | AD31: 1 | AE31: 0 | AF31: 22580 | AG31: 0 | AH31: 0 | AI31: 3750 | AJ31: 784132.4829 | AK31: 120082.8 | AL31: 0 | AM31: 0 | AN31: 24140 | AO31: 208 | AP31: 0 | AR31: 0 | AS31: 0 | AT31: 0 | AV31: 0 | AX31: 0 | AZ31: 0 | BA31: 0 | BB31: 0 | BC31: 0 | BD31: 0 | BE31: 0 | BF31: 208 | BG31: 0 | BI31: 3758.69 | BJ31: 3184.12 | BK31: 241.31 | BL31: 0.07578546035
A32: 2163 | B32: East Farleigh Primary School | C32: 1 | D32: 208 | E32: 0 | F32: 0 | G32: 8 | H32: 0 | I32: 8.361809045 | J32: 0 | K32: 21 | L32: 1 | M32: 1 | N32: 7 | O32: 4 | P32: 0 | Q32: 0 | R32: 0 | S32: 0 | T32: 0 | U32: 0 | V32: 0 | W32: 5.810055866 | X32: 0 | Y32: 40.8988764 | Z32: 0 | AA32: 120084 | AB32: 0 | AC32: 0 | AD32: 1 | AE32: 0 | AF32: 16717 | AG32: 0 | AH32: 0 | AI32: 3750 | AJ32: 734561.324 | AK32: 120082.8 | AL32: 0 | AM32: 0 | AN32: 18371 | AO32: 200 | AP32: 0 | AR32: 0 | AS32: 0 | AT32: 0 | AV32: 985.7400876 | AX32: 985.7400876 | AZ32: 5 | BA32: 0 | BB32: 5 | BC32: 0 | BD32: 7 | BE32: 0 | BF32: 200 | BG32: 0 | BI32: 3750 | BJ32: 3750 | BK32: 250 | BL32: 0.06666666667
A33: 2164 | B33: East Peckham Primary School | C33: 1 | D33: 169 | E33: 0 | F33: 0 | G33: 19 | H33: 0 | I33: 24.43373494 | J33: 0 | K33: 5.029761905 | L33: 5.029761905 | M33: 0 | N33: 0 | O33: 1.005952381 | P33: 0 | Q33: 0 | R33: 0 | S33: 0 | T33: 0 | U33: 0 | V33: 0 | W33: 2.38028169 | X33: 0 | Y33: 41.61940299 | Z33: 0 | AA33: 120084 | AB33: 0 | AC33: 0 | AD33: 1 | AE33: 0 | AF33: 20709 | AG33: 0 | AH33: 0 | AI33: 3750 | AJ33: 627565.3718 | AK33: 120082.8 | AL33: 0 | AM33: 0 | AN33: 23750 | AO33: 158 | AP33: 0 | AR33: 0 | AS33: 0 | AT33: 0 | AV33: 0 | AX33: 0 | AZ33: 0 | BA33: 0 | BB33: 0 | BC33: 0 | BD33: 0 | BE33: 0 | BF33: 158 | BG33: 0 | BI33: 3933.04 | BJ33: 3222.49 | BK33: 0 | BL33: 0
A34: 2165 | B34: Headcorn Primary School | C34: 1 | D34: 297 | E34: 0 | F34: 0 | G34: 35 | H34: 0 | I34: 35 | J34: 0 | K34: 3 | L34: 0 | M34: 0 | N34: 0 | O34: 0 | P34: 0 | Q34: 0 | R34: 0 | S34: 0 | T34: 0 | U34: 0 | V34: 0 | W34: 6.265822785 | X34: 0 | Y34: 42.61304348 | Z34: 0 | AA34: 120084 | AB34: 0 | AC34: 0 | AD34: 1 | AE34: 0 | AF34: 40918 | AG34: 0 | AH34: 0 | AI34: 3750 | AJ34: 905784 | AK34: 120082.8 | AL34: 0 | AM34: 0 | AN34: 42184 | AO34: 254 | AP34: 0 | AR34: 0 | AS34: 0 | AT34: 0 | AV34: 0 | AX34: 0 | AZ34: 0 | BA34: 0 | BB34: 0 | BC34: 0 | BD34: 0 | BE34: 0 | BF34: 254 | BG34: 0 | BI34: 3750 | BJ34: 3750 | BK34: 250 | BL34: 0.06666666667
A35: 2166 | B35: Hollingbourne Primary School | C35: 1 | D35: 101 | E35: 0 | F35: 0 | G35: 12 | H35: 0 | I35: 12 | J35: 0 | K35: 0 | L35: 0 | M35: 0 | N35: 0 | O35: 0 | P35: 0 | Q35: 0 | R35: 0 | S35: 0 | T35: 0 | U35: 0 | V35: 0 | W35: 3.523255814 | X35: 0 | Y35: 23.12048193 | Z35: 0 | AA35: 120084 | AB35: 0 | AC35: 0 | AD35: 1 | AE35: 0 | AF35: 13723 | AG35: 0 | AH35: 0 | AI35: 3750 | AJ35: 429152.9338 | AK35: 120082.8 | AL35: 0 | AM35: 0 | AN35: 15425 | AO35: 99 | AP35: 0 | AR35: 0 | AS35: 0 | AT35: 0 | AV35: 0 | AX35: 0 | AZ35: 0 | BA35: 0 | BB35: 0 | BC35: 0 | BD35: 0 | BE35: 0 | BF35: 100 | BG35: 0 | BI35: 4382.31 | BJ35: 3193.36 | BK35: 0 | BL35: 0
A36: 2167 | B36: Ightham Primary School | C36: 1 | D36: 207 | E36: 0 | F36: 0 | G36: 1 | H36: 0 | I36: 4.099009901 | J36: 0 | K36: 9 | L36: 0 | M36: 0 | N36: 0 | O36: 0 | P36: 0 | Q36: 0 | R36: 0 | S36: 0 | T36: 0 | U36: 0 | V36: 0 | W36: 4.704545455 | X36: 0 | Y36: 25.39877301 | Z36: 0 | AA36: 120084 | AB36: 0 | AC36: 0 | AD36: 1 | AE36: 0 | AF36: 21457 | AG36: 0 | AH36: 0 | AI36: 3750 | AJ36: 729363.7937 | AK36: 120082.8 | AL36: 0 | AM36: 0 | AN36: 24486 | AO36: 201 | AP36: 0 | AR36: 0 | AS36: 0 | AT36: 0 | AV36: 0 | AX36: 0 | AZ36: 0 | BA36: 0 | BB36: 0 | BC36: 0 | BD36: 0 | BE36: 0 | BF36: 201 | BG36: 0 | BI36: 3750 | BJ36: 3750 | BK36: 250 | BL36: 0.06666666667
A37: 2168 | B37: Lenham Primary School | C37: 1 | D37: 209 | E37: 0 | F37: 0 | G37: 31 | H37: 0 | I37: 38.36714976 | J37: 0 | K37: 0 | L37: 0 | M37: 0 | N37: 0 | O37: 0 | P37: 0 | Q37: 0 | R37: 0 | S37: 0 | T37: 0 | U37: 0 | V37: 0 | W37: 2.335195531 | X37: 0 | Y37: 49.875 | Z37: 0 | AA37: 120084 | AB37: 0 | AC37: 0 | AD37: 1 | AE37: 0 | AF37: 18837 | AG37: 0 | AH37: 0 | AI37: 3750 | AJ37: 764304.8212 | AK37: 120082.8 | AL37: 0 | AM37: 0 | AN37: 20457 | AO37: 205 | AP37: 0 | AR37: 0 | AS37: 0 | AT37: 0 | AV37: 0 | AX37: 0 | AZ37: 0 | BA37: 0 | BB37: 0 | BC37: 0 | BD37: 0 | BE37: 0 | BF37: 205 | BG37: 0 | BI37: 3799.88 | BJ37: 3225.31 | BK37: 200.12 | BL37: 0.06204674899
A38: 2169 | B38: Platts Heath Primary School | C38: 1 | D38: 66 | E38: 0 | F38: 0 | G38: 13 | H38: 0 | I38: 13 | J38: 0 | K38: 2 | L38: 0 | M38: 1 | N38: 1 | O38: 0 | P38: 0 | Q38: 0 | R38: 0 | S38: 0 | T38: 0 | U38: 0 | V38: 0 | W38: 1.157894737 | X38: 0 | Y38: 19.55555556 | Z38: 0 | AA38: 120084 | AB38: 0 | AC38: 0 | AD38: 1 | AE38: 0 | AF38: 2345 | AG38: 0 | AH38: 0 | AI38: 3750 | AJ38: 337011.7395 | AK38: 120082.8 | AL38: 0 | AM38: 0 | AN38: 4230 | AO38: 68 | AP38: 0 | AR38: 0 | AS38: 0 | AT38: 0 | AV38: 0 | AX38: 0 | AZ38: 0 | BA38: 0 | BB38: 0 | BC38: 0 | BD38: 0 | BE38: 0 | BF38: 100 | BG38: 0 | BI38: 5154.07 | BJ38: 3334.62 | BK38: 0 | BL38: 0
A39: 2171 | B39: Brunswick House Primary School | C39: 1 | D39: 418 | E39: 0 | F39: 0 | G39: 64 | H39: 0 | I39: 64 | J39: 0 | K39: 72.52048193 | L39: 0 | M39: 5.036144578 | N39: 4.028915663 | O39: 1.007228916 | P39: 0 | Q39: 0 | R39: 0 | S39: 0 | T39: 0 | U39: 0 | V39: 0 | W39: 46.70391061 | X39: 0 | Y39: 91.13372093 | Z39: 0 | AA39: 120084 | AB39: 0 | AC39: 0 | AD39: 1 | AE39: 0 | AF39: 66048 | AG39: 0 | AH39: 0 | AI39: 3750 | AJ39: 1491538 | AK39: 120082.8 | AL39: 0 | AM39: 0 | AN39: 66938 | AO39: 419 | AP39: 0 | AR39: 0 | AS39: 0 | AT39: 0 | AV39: 0 | AX39: 0 | AZ39: 0 | BA39: 0 | BB39: 0 | BC39: 0 | BD39: 0 | BE39: 0 | BF39: 418.5 | BG39: 0 | BI39: 3750 | BJ39: 3750 | BK39: 250 | BL39: 0.06666666667
A40: 2175 | B40: North Borough Junior School | C40: 1 | D40: 340 | E40: 0 | F40: 0 | G40: 66 | H40: 0 | I40: 83 | J40: 0 | K40: 87.25663717 | L40: 3.008849558 | M40: 6.017699115 | N40: 4.01179941 | O40: 1.002949853 | P40: 0 | Q40: 0 | R40: 0 | S40: 0 | T40: 0 | U40: 0 | V40: 0 | W40: 48 | X40: 0 | Y40: 112.1649485 | Z40: 0 | AA40: 120084 | AB40: 0 | AC40: 0 | AD40: 1 | AE40: 0 | AF40: 23328 | AG40: 0 | AH40: 0 | AI40: 3750 | AJ40: 1248327.951 | AK40: 120082.8 | AL40: 0 | AM40: 0 | AN40: 24200 | AO40: 336 | AP40: 0 | AR40: 0 | AS40: 0 | AT40: 0 | AV40: 0 | AX40: 0 | AZ40: 0 | BA40: 0 | BB40: 0 | BC40: 0 | BD40: 0 | BE40: 0 | BF40: 336 | BG40: 0 | BI40: 3854.47 | BJ40: 3501.28 | BK40: 145.53 | BL40: 0.04156479916
A41: 2176 | B41: Park Way Primary School | C41: 1 | D41: 311 | E41: 0 | F41: 0 | G41: 69 | H41: 0 | I41: 83.80844156 | J41: 0 | K41: 100 | L41: 59 | M41: 4 | N41: 25 | O41: 7 | P41: 0 | Q41: 0 | R41: 0 | S41: 0 | T41: 0 | U41: 0 | V41: 0 | W41: 47.40148699 | X41: 0 | Y41: 94.59583333 | Z41: 0 | AA41: 120084 | AB41: 0 | AC41: 0 | AD41: 1 | AE41: 0 | AF41: 28416 | AG41: 0 | AH41: 0 | AI41: 3750 | AJ41: 1212480.369 | AK41: 120082.8 | AL41: 0 | AM41: 0 | AN41: 29894 | AO41: 310 | AP41: 0 | AR41: 0 | AS41: 0 | AT41: 0 | AV41: 0 | AX41: 0 | AZ41: 0 | BA41: 0 | BB41: 0 | BC41: 0 | BD41: 0 | BE41: 0 | BF41: 310 | BG41: 0 | BI41: 3980.1 | BJ41: 3593.98 | BK41: 0 | BL41: 0
A42: 2183 | B42: Marden Primary School | C42: 1 | D42: 273 | E42: 0 | F42: 0 | G42: 64 | H42: 0 | I42: 64.35 | J42: 0 | K42: 2.007352941 | L42: 1.003676471 | M42: 104.3823529 | N42: 0 | O42: 4.014705882 | P42: 0 | Q42: 0 | R42: 0 | S42: 0 | T42: 0 | U42: 0 | V42: 0 | W42: 7.152838428 | X42: 0 | Y42: 75.01351351 | Z42: 0 | AA42: 120084 | AB42: 0 | AC42: 0 | AD42: 1 | AE42: 0 | AF42: 26624 | AG42: 0 | AH42: 0 | AI42: 3750 | AJ42: 1075806.407 | AK42: 120082.8 | AL42: 0 | AM42: 0 | AN42: 28130 | AO42: 283 | AP42: 0 | AR42: 0 | AS42: 0 | AT42: 0 | AV42: 0 | AX42: 0 | AZ42: 0 | BA42: 0 | BB42: 0 | BC42: 0 | BD42: 0 | BE42: 0 | BF42: 283 | BG42: 0 | BI42: 3919.77 | BJ42: 3479.9 | BK42: 0 | BL42: 0
A43: 2185 | B43: Mereworth Community Primary School | C43: 1 | D43: 209 | E43: 0 | F43: 0 | G43: 20 | H43: 0 | I43: 31.60487805 | J43: 0 | K43: 1.004807692 | L43: 6.028846154 | M43: 2.009615385 | N43: 1.004807692 | O43: 2.009615385 | P43: 0 | Q43: 0 | R43: 0 | S43: 0 | T43: 0 | U43: 0 | V43: 0 | W43: 2.335195531 | X43: 0 | Y43: 48.6875 | Z43: 0 | AA43: 120084 | AB43: 0 | AC43: 0 | AD43: 1 | AE43: 0 | AF43: 26368 | AG43: 0 | AH43: 0 | AI43: 3750 | AJ43: 788604.6879 | AK43: 120082.8 | AL43: 0 | AM43: 0 | AN43: 29329 | AO43: 209 | AP43: 0 | AR43: 0 | AS43: 0 | AT43: 0 | AV43: 0 | AX43: 0 | AZ43: 0 | BA43: 0 | BB43: 0 | BC43: 0 | BD43: 0 | BE43: 0 | BF43: 209 | BG43: 0 | BI43: 3777.6 | BJ43: 3203.04 | BK43: 222.4 | BL43: 0.06943403766
A44: 2187 | B44: Offham Primary School | C44: 1 | D44: 211 | E44: 0 | F44: 0 | G44: 2 | H44: 0 | I44: 4.976415094 | J44: 0 | K44: 29 | L44: 3 | M44: 0 | N44: 0 | O44: 1 | P44: 0 | Q44: 0 | R44: 0 | S44: 0 | T44: 0 | U44: 0 | V44: 0 | W44: 2.331491713 | X44: 0 | Y44: 34.37640449 | Z44: 0 | AA44: 120084 | AB44: 0 | AC44: 0 | AD44: 1 | AE44: 0 | AF44: 23827 | AG44: 0 | AH44: 0 | AI44: 3750 | AJ44: 759943.9402 | AK44: 120082.8 | AL44: 0 | AM44: 0 | AN44: 26818 | AO44: 210 | AP44: 0 | AR44: 0 | AS44: 0 | AT44: 0 | AV44: 0 | AX44: 0 | AZ44: 0 | BA44: 0 | BB44: 0 | BC44: 0 | BD44: 0 | BE44: 0 | BF44: 210 | BG44: 0 | BI44: 3750 | BJ44: 3750 | BK44: 250 | BL44: 0.06666666667
A45: 2188 | B45: Plaxtol Primary School | C45: 1 | D45: 96 | E45: 0 | F45: 0 | G45: 5 | H45: 0 | I45: 5.333333333 | J45: 0 | K45: 4 | L45: 2 | M45: 0 | N45: 2 | O45: 0 | P45: 0 | Q45: 0 | R45: 0 | S45: 0 | T45: 0 | U45: 0 | V45: 0 | W45: 0 | X45: 0 | Y45: 15.15789474 | Z45: 0 | AA45: 120084 | AB45: 0 | AC45: 0 | AD45: 1 | AE45: 0 | AF45: 13847 | AG45: 0 | AH45: 0 | AI45: 3750 | AJ45: 407130.9083 | AK45: 120082.8 | AL45: 0 | AM45: 0 | AN45: 16998 | AO45: 92 | AP45: 0 | AR45: 0 | AS45: 0 | AT45: 0 | AV45: 0 | AX45: 0 | AZ45: 0 | BA45: 0 | BB45: 0 | BC45: 0 | BD45: 0 | BE45: 0 | BF45: 100 | BG45: 0 | BI45: 4321.72 | BJ45: 3070.85 | BK45: 0 | BL45: 0
A46: 2189 | B46: Ryarsh Primary School | C46: 1 | D46: 209 | E46: 0 | F46: 0 | G46: 3 | H46: 0 | I46: 4.976190476 | J46: 0 | K46: 3 | L46: 6 | M46: 0 | N46: 0 | O46: 0 | P46: 0 | Q46: 0 | R46: 0 | S46: 0 | T46: 0 | U46: 0 | V46: 0 | W46: 0 | X46: 0 | Y46: 35.2247191 | Z46: 0 | AA46: 120084 | AB46: 0 | AC46: 0 | AD46: 1 | AE46: 0 | AF46: 17964 | AG46: 0 | AH46: 0 | AI46: 3750 | AJ46: 750333.2126 | AK46: 120082.8 | AL46: 0 | AM46: 0 | AN46: 21049 | AO46: 209 | AP46: 0 | AR46: 0 | AS46: 0 | AT46: 0 | AV46: 0 | AX46: 0 | AZ46: 0 | BA46: 0 | BB46: 0 | BC46: 0 | BD46: 0 | BE46: 0 | BF46: 209 | BG46: 0 | BI46: 3750 | BJ46: 3750 | BK46: 250 | BL46: 0.06666666667
A47: 2190 | B47: Shipbourne School | C47: 1 | D47: 56 | E47: 0 | F47: 0 | G47: 9 | H47: 0 | I47: 10.80701754 | J47: 0 | K47: 3 | L47: 6 | M47: 1 | N47: 1 | O47: 0 | P47: 0 | Q47: 0 | R47: 0 | S47: 0 | T47: 0 | U47: 0 | V47: 0 | W47: 4.48 | X47: 0 | Y47: 4.765957447 | Z47: 0 | AA47: 120084 | AB47: 0 | AC47: 0 | AD47: 1 | AE47: 0 | AF47: 6737 | AG47: 0 | AH47: 0 | AI47: 3750 | AJ47: 302210.3139 | AK47: 120082.8 | AL47: 0 | AM47: 0 | AN47: 9993 | AO47: 55 | AP47: 0 | AR47: 0 | AS47: 0 | AT47: 0 | AV47: 0 | AX47: 0 | AZ47: 0 | BA47: 0 | BB47: 0 | BC47: 0 | BD47: 0 | BE47: 0 | BF47: 100 | BG47: 0 | BI47: 5303.53 | BJ47: 3159.17 | BK47: 0 | BL47: 0
A48: 2192 | B48: Staplehurst School | C48: 1 | D48: 367 | E48: 0 | F48: 0 | G48: 55 | H48: 0 | I48: 74.91731266 | J48: 0 | K48: 1 | L48: 0 | M48: 3 | N48: 0 | O48: 2 | P48: 0 | Q48: 0 | R48: 0 | S48: 0 | T48: 0 | U48: 0 | V48: 0 | W48: 10.10091743 | X48: 0 | Y48: 91.1656051 | Z48: 0 | AA48: 120084 | AB48: 0 | AC48: 0 | AD48: 1 | AE48: 0 | AF48: 37632 | AG48: 0 | AH48: 0 | AI48: 3750 | AJ48: 1351366 | AK48: 120082.8 | AL48: 0 | AM48: 0 | AN48: 38966 | AO48: 386 | AP48: 0 | AR48: 0 | AS48: 0 | AT48: 0 | AV48: 0 | AX48: 0 | AZ48: 0 | BA48: 0 | BB48: 0 | BC48: 0 | BD48: 0 | BE48: 0 | BF48: 385.5 | BG48: 0 | BI48: 3750 | BJ48: 3750 | BK48: 250 | BL48: 0.06666666667
A49: 2193 | B49: Sutton Valence Primary School | C49: 1 | D49: 202 | E49: 0 | F49: 0 | G49: 23 | H49: 0 | I49: 31.72774869 | J49: 0 | K49: 3 | L49: 3 | M49: 3 | N49: 6 | O49: 3 | P49: 0 | Q49: 0 | R49: 0 | S49: 0 | T49: 0 | U49: 0 | V49: 0 | W49: 7.005780347 | X49: 0 | Y49: 36.8427673 | Z49: 0 | AA49: 120084 | AB49: 0 | AC49: 0 | AD49: 1 | AE49: 0 | AF49: 19835 | AG49: 0 | AH49: 0 | AI49: 3750 | AJ49: 703841.7659 | AK49: 120082.8 | AL49: 0 | AM49: 0 | AN49: 21439 | AO49: 183 | AP49: 0 | AR49: 0 | AS49: 0 | AT49: 0 | AV49: 0 | AX49: 0 | AZ49: 0 | BA49: 0 | BB49: 0 | BC49: 0 | BD49: 0 | BE49: 0 | BF49: 183 | BG49: 0 | BI49: 3779.23 | BJ49: 3184.76 | BK49: 220.77 | BL49: 0.06932076514
A50: 2226 | B50: Eastling Primary School | C50: 1 | D50: 86 | E50: 0 | F50: 0 | G50: 15 | H50: 0 | I50: 15 | J50: 0 | K50: 5 | L50: 2 | M50: 1 | N50: 5 | O50: 3 | P50: 0 | Q50: 0 | R50: 0 | S50: 0 | T50: 0 | U50: 0 | V50: 0 | W50: 2.205128205 | X50: 0 | Y50: 26.72972973 | Z50: 0 | AA50: 120084 | AB50: 22162.14382 | AC50: 0 | AD50: 1 | AE50: 0 | AF50: 12974 | AG50: 0 | AH50: 0 | AI50: 3750 | AJ50: 432661.0763 | AK50: 120082.8 | AL50: 19973.71896 | AM50: 0 | AN50: 12080 | AO50: 90 | AP50: 0 | AR50: 0 | AS50: 0 | AT50: 0 | AV50: 0 | AX50: 0 | AZ50: 0 | BA50: 0 | BB50: 0 | BC50: 0 | BD50: 0 | BE50: 0 | BF50: 100 | BG50: 0 | BI50: 5033.93 | BJ50: 3379.91 | BK50: 0 | BL50: 0
A51: 2227 | B51: Ethelbert Road Primary School | C51: 1 | D51: 208 | E51: 0 | F51: 0 | G51: 10 | H51: 0 | I51: 13.86666667 | J51: 0 | K51: 13 | L51: 4 | M51: 9 | N51: 2 | O51: 2 | P51: 0 | Q51: 0 | R51: 0 | S51: 0 | T51: 0 | U51: 0 | V51: 0 | W51: 4.700564972 | X51: 0 | Y51: 52.88135593 | Z51: 0 | AA51: 120084 | AB51: 0 | AC51: 0 | AD51: 1 | AE51: 0 | AF51: 11477 | AG51: 0 | AH51: 0 | AI51: 3750 | AJ51: 763132.8107 | AK51: 120082.8 | AL51: 0 | AM51: 0 | AN51: 11293 | AO51: 209 | AP51: 0 | AR51: 0 | AS51: 0 | AT51: 0 | AV51: 0 | AX51: 0 | AZ51: 0 | BA51: 0 | BB51: 0 | BC51: 0 | BD51: 0 | BE51: 0 | BF51: 209 | BG51: 0 | BI51: 3784.6 | BJ51: 3207.28 | BK51: 215.4 | BL51: 0.06715971166
A52: 2228 | B52: Davington Primary School | C52: 1 | D52: 411 | E52: 0 | F52: 0 | G52: 48 | H52: 0 | I52: 68.66585956 | J52: 0 | K52: 36 | L52: 34 | M52: 23 | N52: 42 | O52: 101 | P52: 0 | Q52: 0 | R52: 0 | S52: 0 | T52: 0 | U52: 0 | V52: 0 | W52: 6.985835694 | X52: 0 | Y52: 121.9971182 | Z52: 0 | AA52: 120084 | AB52: 0 | AC52: 0 | AD52: 1 | AE52: 0 | AF52: 39424 | AG52: 0 | AH52: 0 | AI52: 3750 | AJ52: 1510399.15 | AK52: 120082.8 | AL52: 0 | AM52: 0 | AN52: 38808 | AO52: 409 | AP52: 0 | AR52: 0 | AS52: 0 | AT52: 0 | AV52: 0 | AX52: 0 | AZ52: 0 | BA52: 0 | BB52: 0 | BC52: 0 | BD52: 0 | BE52: 0 | BF52: 409 | BG52: 0 | BI52: 3771.57 | BJ52: 3479.39 | BK52: 228.43 | BL52: 0.06565231262
A53: 2231 | B53: Lower Halstow School | C53: 1 | D53: 159 | E53: 0 | F53: 0 | G53: 11 | H53: 0 | I53: 22.56774194 | J53: 0 | K53: 20 | L53: 3 | M53: 4 | N53: 3 | O53: 0 | P53: 0 | Q53: 0 | R53: 0 | S53: 0 | T53: 0 | U53: 0 | V53: 0 | W53: 1.204545455 | X53: 0 | Y53: 31.53719008 | Z53: 0 | AA53: 120084 | AB53: 0 | AC53: 0 | AD53: 1 | AE53: 0 | AF53: 20833 | AG53: 0 | AH53: 0 | AI53: 3750 | AJ53: 595861.2967 | AK53: 120082.8 | AL53: 0 | AM53: 0 | AN53: 20499 | AO53: 149 | AP53: 0 | AR53: 0 | AS53: 0 | AT53: 0 | AV53: 0 | AX53: 0 | AZ53: 0 | BA53: 0 | BB53: 0 | BC53: 0 | BD53: 0 | BE53: 0 | BF53: 149 | BG53: 0 | BI53: 3934.8 | BJ53: 3179.55 | BK53: 0 | BL53: 0
A54: 2237 | B54: Queenborough School and Nursery | C54: 1 | D54: 435 | E54: 0 | F54: 0 | G54: 134 | H54: 0 | I54: 158.3640553 | J54: 0 | K54: 64 | L54: 11 | M54: 0 | N54: 16 | O54: 163 | P54: 127 | Q54: 0 | R54: 0 | S54: 0 | T54: 0 | U54: 0 | V54: 0 | W54: 5.8 | X54: 0 | Y54: 122.2702703 | Z54: 0 | AA54: 120084 | AB54: 0 | AC54: 0 | AD54: 1 | AE54: 0 | AF54: 34048 | AG54: 0 | AH54: 0 | AI54: 3750 | AJ54: 1705116.67 | AK54: 120082.8 | AL54: 0 | AM54: 0 | AN54: 33516 | AO54: 431 | AP54: 0 | AR54: 4.08 | AS54: 0.9 | AT54: 0.32 | AV54: 0 | AX54: 0 | AZ54: 0 | BA54: 0 | BB54: 0 | BC54: 0 | BD54: 0 | BE54: 0 | BF54: 499 | BG54: 0 | BI54: 4068.76 | BJ54: 3792.71 | BK54: 0 | BL54: 0
A55: 2239 | B55: Rodmersham School | C55: 1 | D55: 103 | E55: 0 | F55: 0 | G55: 1 | H55: 0 | I55: 2.942857143 | J55: 0 | K55: 6 | L55: 2 | M55: 7 | N55: 4 | O55: 2 | P55: 0 | Q55: 0 | R55: 0 | S55: 0 | T55: 0 | U55: 0 | V55: 0 | W55: 2.288888889 | X55: 0 | Y55: 16.57471264 | Z55: 0 | AA55: 120084 | AB55: 0 | AC55: 0 | AD55: 1 | AE55: 0 | AF55: 5863 | AG55: 0 | AH55: 6027 | AI55: 3750 | AJ55: 423761.0609 | AK55: 120082.8 | AL55: 0 | AM55: 0 | AN55: 5769 | AO55: 100 | AP55: 0 | AR55: 0 | AS55: 0 | AT55: 0 | AV55: 0 | AX55: 0 | AZ55: 0 | BA55: 0 | BB55: 0 | BC55: 0 | BD55: 0 | BE55: 0 | BF55: 100 | BG55: 0 | BI55: 4268.38 | BJ55: 3161.03 | BK55: 0 | BL55: 0
A56: 2245 | B56: Rose Street School | C56: 1 | D56: 374 | E56: 0 | F56: 0 | G56: 180 | H56: 0 | I56: 181.1396011 | J56: 0 | K56: 8 | L56: 2 | M56: 2 | N56: 100 | O56: 169 | P56: 88 | Q56: 0 | R56: 0 | S56: 0 | T56: 0 | U56: 0 | V56: 0 | W56: 28.40506329 | X56: 0 | Y56: 111.5868852 | Z56: 0 | AA56: 120084 | AB56: 0 | AC56: 0 | AD56: 1 | AE56: 0 | AF56: 79872 | AG56: 0 | AH56: 0 | AI56: 3750 | AJ56: 1514933.623 | AK56: 120082.8 | AL56: 0 | AM56: 0 | AN56: 78624 | AO56: 350 | AP56: 0 | AR56: 4.08 | AS56: 0.9 | AT56: 0.4 | AV56: 0 | AX56: 0 | AZ56: 0 | BA56: 0 | BB56: 0 | BC56: 0 | BD56: 0 | BE56: 0 | BF56: 385 | BG56: 0 | BI56: 4346.36 | BJ56: 4025.28 | BK56: 0 | BL56: 0
A57: 2254 | B57: Canterbury Road Primary School | C57: 1 | D57: 206 | E57: 0 | F57: 0 | G57: 30 | H57: 0 | I57: 45.33971292 | J57: 0 | K57: 30 | L57: 80 | M57: 9 | N57: 30 | O57: 23 | P57: 5 | Q57: 0 | R57: 0 | S57: 0 | T57: 0 | U57: 0 | V57: 0 | W57: 21.06818182 | X57: 0 | Y57: 78.76470588 | Z57: 0 | AA57: 120084 | AB57: 0 | AC57: 0 | AD57: 1 | AE57: 0 | AF57: 29952 | AG57: 0 | AH57: 0 | AI57: 3750 | AJ57: 881710.3337 | AK57: 120082.8 | AL57: 0 | AM57: 0 | AN57: 29484 | AO57: 210 | AP57: 0 | AR57: 0 | AS57: 0 | AT57: 0 | AV57: 0 | AX57: 0 | AZ57: 0 | BA57: 0 | BB57: 0 | BC57: 0 | BD57: 0 | BE57: 0 | BF57: 210 | BG57: 0 | BI57: 4287.16 | BJ57: 3704.23 | BK57: 0 | BL57: 0
A58: 2258 | B58: Blean Primary School | C58: 1 | D58: 432 | E58: 0 | F58: 0 | G58: 22 | H58: 0 | I58: 41.09512761 | J58: 0 | K58: 11 | L58: 2 | M58: 32 | N58: 24 | O58: 7 | P58: 0 | Q58: 0 | R58: 0 | S58: 0 | T58: 0 | U58: 0 | V58: 0 | W58: 69.67741935 | X58: 0 | Y58: 68.78212291 | Z58: 0 | AA58: 120084 | AB58: 0 | AC58: 0 | AD58: 1 | AE58: 0 | AF58: 37632 | AG58: 0 | AH58: 0 | AI58: 3750 | AJ58: 1509244 | AK58: 120082.8 | AL58: 0 | AM58: 0 | AN58: 37044 | AO58: 433 | AP58: 0 | AR58: 0 | AS58: 0 | AT58: 0 | AV58: 0 | AX58: 0 | AZ58: 0 | BA58: 0 | BB58: 0 | BC58: 0 | BD58: 0 | BE58: 0 | BF58: 433 | BG58: 0 | BI58: 3750 | BJ58: 3750 | BK58: 250 | BL58: 0.06666666667
A59: 2259 | B59: Chartham Primary School | C59: 1 | D59: 353 | E59: 0 | F59: 0 | G59: 59 | H59: 0 | I59: 68.38746439 | J59: 0 | K59: 0 | L59: 0 | M59: 2 | N59: 6 | O59: 7 | P59: 0 | Q59: 0 | R59: 0 | S59: 0 | T59: 0 | U59: 0 | V59: 0 | W59: 16.58389262 | X59: 0 | Y59: 85.16433566 | Z59: 0 | AA59: 120084 | AB59: 0 | AC59: 0 | AD59: 1 | AE59: 0 | AF59: 32512 | AG59: 0 | AH59: 0 | AI59: 3750 | AJ59: 1225601.402 | AK59: 120082.8 | AL59: 0 | AM59: 0 | AN59: 28450 | AO59: 346 | AP59: 0 | AR59: 0 | AS59: 0 | AT59: 0 | AV59: 0 | AX59: 0 | AZ59: 0 | BA59: 0 | BB59: 0 | BC59: 0 | BD59: 0 | BE59: 0 | BF59: 346 | BG59: 0 | BI59: 3750 | BJ59: 3750 | BK59: 250 | BL59: 0.06666666667
A60: 2263 | B60: Herne Bay Infant School | C60: 1 | D60: 305 | E60: 0 | F60: 0 | G60: 72 | H60: 0 | I60: 72.28323699 | J60: 0 | K60: 46 | L60: 36 | M60: 86 | N60: 0 | O60: 0 | P60: 0 | Q60: 0 | R60: 0 | S60: 0 | T60: 0 | U60: 0 | V60: 0 | W60: 19.24757282 | X60: 0 | Y60: 86.93236715 | Z60: 0 | AA60: 120084 | AB60: 0 | AC60: 0 | AD60: 1 | AE60: 0 | AF60: 15968 | AG60: 0 | AH60: 0 | AI60: 3750 | AJ60: 1282510.266 | AK60: 120082.8 | AL60: 0 | AM60: 0 | AN60: 15712 | AO60: 350 | AP60: 0 | AR60: 4.08 | AS60: 0 | AT60: 0 | AV60: 0 | AX60: 0 | AZ60: 0 | BA60: 0 | BB60: 0 | BC60: 0 | BD60: 0 | BE60: 0 | BF60: 390 | BG60: 0 | BI60: 3920.14 | BJ60: 3526.42 | BK60: 0 | BL60: 0
A61: 2265 | B61: Hoath Primary School | C61: 1 | D61: 91 | E61: 0 | F61: 0 | G61: 2 | H61: 0 | I61: 9.635294118 | J61: 0 | K61: 13 | L61: 19 | M61: 2 | N61: 0 | O61: 0 | P61: 0 | Q61: 0 | R61: 0 | S61: 0 | T61: 0 | U61: 0 | V61: 0 | W61: 2.394736842 | X61: 0 | Y61: 20.22222222 | Z61: 0 | AA61: 120084 | AB61: 0 | AC61: 0 | AD61: 1 | AE61: 0 | AF61: 14346 | AG61: 0 | AH61: 0 | AI61: 3750 | AJ61: 406178.6088 | AK61: 120082.8 | AL61: 0 | AM61: 0 | AN61: 14116 | AO61: 88 | AP61: 0 | AR61: 0 | AS61: 0 | AT61: 0 | AV61: 0 | AX61: 0 | AZ61: 0 | BA61: 0 | BB61: 0 | BC61: 0 | BD61: 0 | BE61: 0 | BF61: 100 | BG61: 0 | BI61: 4543.95 | BJ61: 3224.34 | BK61: 0 | BL61: 0
A62: 2268 | B62: Westmeads Community Infant School | C62: 1 | D62: 173 | E62: 0 | F62: 0 | G62: 22 | H62: 0 | I62: 22 | J62: 0 | K62: 1 | L62: 0 | M62: 2 | N62: 0 | O62: 3 | P62: 0 | Q62: 0 | R62: 0 | S62: 0 | T62: 0 | U62: 0 | V62: 0 | W62: 4.474137931 | X62: 0 | Y62: 37.60869565 | Z62: 0 | AA62: 120084 | AB62: 0 | AC62: 0 | AD62: 1 | AE62: 0 | AF62: 19711 | AG62: 0 | AH62: 0 | AI62: 3750 | AJ62: 680967.9447 | AK62: 120082.8 | AL62: 0 | AM62: 0 | AN62: 19395 | AO62: 177 | AP62: 0 | AR62: 0 | AS62: 0 | AT62: 0 | AV62: 0 | AX62: 0 | AZ62: 0 | BA62: 0 | BB62: 0 | BC62: 0 | BD62: 0 | BE62: 0 | BF62: 177 | BG62: 0 | BI62: 3889.95 | BJ62: 3195.82 | BK62: 0 | BL62: 0
A63: 2269 | B63: Whitstable Junior School | C63: 1 | D63: 272 | E63: 0 | F63: 0 | G63: 33 | H63: 0 | I63: 69.21863799 | J63: 0 | K63: 6.022140221 | L63: 0 | M63: 17.06273063 | N63: 1.003690037 | O63: 31.11439114 | P63: 0 | Q63: 0 | R63: 0 | S63: 0 | T63: 0 | U63: 0 | V63: 0 | W63: 3 | X63: 0 | Y63: 83.13962264 | Z63: 0 | AA63: 120084 | AB63: 0 | AC63: 0 | AD63: 1 | AE63: 0 | AF63: 18837 | AG63: 0 | AH63: 0 | AI63: 3750 | AJ63: 1023376.415 | AK63: 120082.8 | AL63: 0 | AM63: 0 | AN63: 18535 | AO63: 276 | AP63: 0 | AR63: 0 | AS63: 0 | AT63: 0 | AV63: 0 | AX63: 0 | AZ63: 0 | BA63: 0 | BB63: 0 | BC63: 0 | BD63: 0 | BE63: 0 | BF63: 276 | BG63: 0 | BI63: 3828.47 | BJ63: 3386.98 | BK63: 171.53 | BL63: 0.05064393649
A64: 2270 | B64: Aldington Primary School | C64: 1 | D64: 198 | E64: 0 | F64: 0 | G64: 9 | H64: 0 | I64: 14.4375 | J64: 0 | K64: 7 | L64: 5 | M64: 4 | N64: 3 | O64: 2 | P64: 0 | Q64: 0 | R64: 0 | S64: 0 | T64: 0 | U64: 0 | V64: 0 | W64: 0 | X64: 0 | Y64: 45.6 | Z64: 0 | AA64: 120084 | AB64: 0 | AC64: 0 | AD64: 1 | AE64: 0 | AF64: 29952 | AG64: 0 | AH64: 0 | AI64: 3750 | AJ64: 736407.3047 | AK64: 120082.8 | AL64: 0 | AM64: 0 | AN64: 29484 | AO64: 197 | AP64: 0 | AR64: 0 | AS64: 0 | AT64: 0 | AV64: 0 | AX64: 0 | AZ64: 0 | BA64: 0 | BB64: 0 | BC64: 0 | BD64: 0 | BE64: 0 | BF64: 197 | BG64: 0 | BI64: 3766.6 | BJ64: 3160.11 | BK64: 233.4 | BL64: 0.07385818848
A65: 2272 | B65: East Stour Primary School | C65: 1 | D65: 375 | E65: 0 | F65: 0 | G65: 86 | H65: 0 | I65: 127.1186441 | J65: 0 | K65: 16 | L65: 73 | M65: 0 | N65: 105 | O65: 7 | P65: 0 | Q65: 0 | R65: 0 | S65: 0 | T65: 0 | U65: 0 | V65: 0 | W65: 27.86377709 | X65: 0 | Y65: 117.1875 | Z65: 0 | AA65: 120084 | AB65: 0 | AC65: 0 | AD65: 1 | AE65: 0 | AF65: 53760 | AG65: 0 | AH65: 0 | AI65: 3750 | AJ65: 1575757.225 | AK65: 120082.8 | AL65: 0 | AM65: 0 | AN65: 52920 | AO65: 415 | AP65: 0 | AR65: 4.08 | AS65: 0.9 | AT65: 0.26 | AV65: 0 | AX65: 0 | AZ65: 0 | BA65: 0 | BB65: 0 | BC65: 0 | BD65: 0 | BE65: 0 | BF65: 453 | BG65: 0 | BI65: 3924.2 | BJ65: 3603.97 | BK65: 0 | BL65: 0
A66: 2275 | B66: Victoria Road Primary School | C66: 1 | D66: 203 | E66: 0 | F66: 0 | G66: 39 | H66: 0 | I66: 45.6507177 | J66: 0 | K66: 104 | L66: 16 | M66: 0 | N66: 9 | O66: 8 | P66: 0 | Q66: 0 | R66: 0 | S66: 0 | T66: 0 | U66: 0 | V66: 0 | W66: 21.12138728 | X66: 0 | Y66: 44.18235294 | Z66: 0 | AA66: 120084 | AB66: 0 | AC66: 0 | AD66: 1 | AE66: 0 | AF66: 15095 | AG66: 0 | AH66: 0 | AI66: 3750 | AJ66: 828380.9084 | AK66: 120082.8 | AL66: 0 | AM66: 0 | AN66: 14853 | AO66: 211 | AP66: 0 | AR66: 0 | AS66: 0 | AT66: 0 | AV66: 0 | AX66: 0 | AZ66: 0 | BA66: 0 | BB66: 0 | BC66: 0 | BD66: 0 | BE66: 0 | BF66: 211 | BG66: 0 | BI66: 4039.83 | BJ66: 3448.28 | BK66: 0 | BL66: 0
A67: 2276 | B67: Willesborough Infant School | C67: 1 | D67: 351 | E67: 0 | F67: 0 | G67: 45 | H67: 0 | I67: 47.17741935 | J67: 0 | K67: 3 | L67: 51 | M67: 1 | N67: 51 | O67: 4 | P67: 0 | Q67: 0 | R67: 0 | S67: 0 | T67: 0 | U67: 0 | V67: 0 | W67: 71.72608696 | X67: 0 | Y67: 58.5 | Z67: 0 | AA67: 120084 | AB67: 0 | AC67: 0 | AD67: 1 | AE67: 0 | AF67: 23079 | AG67: 0 | AH67: 0 | AI67: 3750 | AJ67: 1312401.732 | AK67: 120082.8 | AL67: 0 | AM67: 0 | AN67: 22709 | AO67: 367 | AP67: 0 | AR67: 0 | AS67: 0 | AT67: 0 | AV67: 0 | AX67: 0 | AZ67: 0 | BA67: 0 | BB67: 0 | BC67: 0 | BD67: 0 | BE67: 0 | BF67: 367 | BG67: 0 | BI67: 3750 | BJ67: 3750 | BK67: 250 | BL67: 0.06666666667
A68: 2278 | B68: Bethersden Primary School | C68: 1 | D68: 116 | E68: 0 | F68: 0 | G68: 22 | H68: 0 | I68: 25.67938931 | J68: 0 | K68: 1.008695652 | L68: 0 | M68: 2.017391304 | N68: 1.008695652 | O68: 7.060869565 | P68: 0 | Q68: 0 | R68: 0 | S68: 0 | T68: 0 | U68: 0 | V68: 0 | W68: 1.08411215 | X68: 0 | Y68: 24.0754717 | Z68: 0 | AA68: 120084 | AB68: 11741.07306 | AC68: 0 | AD68: 1 | AE68: 0 | AF68: 10978 | AG68: 0 | AH68: 0 | AI68: 3750 | AJ68: 544243.9879 | AK68: 120082.8 | AL68: 6947.380507 | AM68: 0 | AN68: 10802 | AO68: 129 | AP68: 0 | AR68: 0 | AS68: 0 | AT68: 0 | AV68: 0 | AX68: 0 | AZ68: 0 | BA68: 0 | BB68: 0 | BC68: 0 | BD68: 0 | BE68: 0 | BF68: 129 | BG68: 0 | BI68: 4396.87 | BJ68: 3260.44 | BK68: 0 | BL68: 0
A69: 2279 | B69: Brook Community Primary School | C69: 1 | D69: 92 | E69: 0 | F69: 0 | G69: 6 | H69: 0 | I69: 15.95918367 | J69: 0 | K69: 4 | L69: 4 | M69: 0 | N69: 2 | O69: 4 | P69: 0 | Q69: 0 | R69: 0 | S69: 0 | T69: 0 | U69: 0 | V69: 0 | W69: 5.82278481 | X69: 0 | Y69: 15.94666667 | Z69: 0 | AA69: 120084 | AB69: 0 | AC69: 0 | AD69: 1 | AE69: 0 | AF69: 8608 | AG69: 0 | AH69: 0 | AI69: 3750 | AJ69: 429394.6995 | AK69: 120082.8 | AL69: 0 | AM69: 0 | AN69: 8470 | AO69: 97 | AP69: 0 | AR69: 0 | AS69: 0 | AT69: 0 | AV69: 0 | AX69: 0 | AZ69: 0 | BA69: 0 | BB69: 0 | BC69: 0 | BD69: 0 | BE69: 0 | BF69: 100 | BG69: 0 | BI69: 4495.93 | BJ69: 3190.67 | BK69: 0 | BL69: =BK69/BJ69 -> 0
A70: 2280 | B70: Challock Primary School | C70: 1 | D70: 207 | E70: 0 | F70: 0 | G70: 6 | H70: 0 | I70: 10.74056604 | J70: 0 | K70: 0 | L70: 7.033980583 | M70: 0 | N70: 0 | O70: 0 | P70: 0 | Q70: 0 | R70: 0 | S70: 0 | T70: 0 | U70: 0 | V70: 0 | W70: 3.508474576 | X70: 0 | Y70: 49.96551724 | Z70: 0 | AA70: 120084 | AB70: 0 | AC70: 0 | AD70: 1 | AE70: 0 | AF70: 19711 | AG70: 0 | AH70: 0 | AI70: 3750 | AJ70: 771583.4619 | AK70: 120082.8 | AL70: 0 | AM70: 0 | AN70: 19395 | AO70: 212 | AP70: 0 | AR70: 0 | AS70: 0 | AT70: 0 | AV70: 0 | AX70: 0 | AZ70: 0 | BA70: 0 | BB70: 0 | BC70: 0 | BD70: 0 | BE70: 0 | BF70: 212 | BG70: 0 | BI70: 3750 | BJ70: 3750 | BK70: =IF(AND(C70=1,BI70<3883.495),4000-BI70,0) -> 250 | BL70: 0.06666666667
A71: 2282 | B71: Great Chart Primary School | C71: 1 | D71: 452 | E71: 0 | F71: 0 | G71: 46 | H71: 0 | I71: 70.625 | J71: 0 | K71: 34 | L71: 20 | M71: 2 | N71: 10 | O71: 14 | P71: 0 | Q71: 0 | R71: 0 | S71: 0 | T71: 0 | U71: 0 | V71: 0 | W71: 35.74489796 | X71: 0 | Y71: 79.21649485 | Z71: 0 | AA71: 120084 | AB71: 0 | AC71: 0 | AD71: 1 | AE71: 0 | AF71: 38656 | AG71: 0 | AH71: 0 | AI71: 3750 | AJ71: 1680252 | AK71: 120082.8 | AL71: 0 | AM71: 0 | AN71: 38052 | AO71: 483 | AP71: 0 | AR71: 0 | AS71: 0 | AT71: 0 | AV71: 0 | AX71: 0 | AZ71: 0 | BA71: 0 | BB71: 0 | BC71: 0 | BD71: 0 | BE71: 0 | BF71: 483 | BG71: 0 | BI71: 3750 | BJ71: 3750 | BK71: 250 | BL71: 0.06666666667
A72: 2285 | B72: Mersham Primary School | C72: 1 | D72: 194 | E72: 0 | F72: 0 | G72: 13 | H72: 0 | I72: 21.32984293 | J72: 0 | K72: 1 | L72: 12 | M72: 0 | N72: 7 | O72: 6 | P72: 0 | Q72: 0 | R72: 0 | S72: 0 | T72: 0 | U72: 0 | V72: 0 | W72: 1.161676647 | X72: 0 | Y72: 39.76397516 | Z72: 0 | AA72: 120084 | AB72: 0 | AC72: 0 | AD72: 1 | AE72: 0 | AF72: 7859 | AG72: 0 | AH72: 0 | AI72: 3750 | AJ72: 717066.6071 | AK72: 120082.8 | AL72: 0 | AM72: 0 | AN72: 7105 | AO72: 196 | AP72: 0 | AR72: 0 | AS72: 0 | AT72: 0 | AV72: 0 | AX72: 0 | AZ72: 0 | BA72: 0 | BB72: 0 | BC72: 0 | BD72: 0 | BE72: 0 | BF72: 196 | BG72: 0 | BI72: 3789.8 | BJ72: 3170.81 | BK72: 210.2 | BL72: 0.06629220925
A73: 2289 | B73: Smeeth Community Primary School | C73: 1 | D73: 128 | E73: 0 | F73: 0 | G73: 5 | H73: 0 | I73: 8.861538462 | J73: 0 | K73: 6 | L73: 4 | M73: 0 | N73: 6 | O73: 0 | P73: 0 | Q73: 0 | R73: 0 | S73: 0 | T73: 0 | U73: 0 | V73: 0 | W73: 1.20754717 | X73: 0 | Y73: 27.60784314 | Z73: 0 | AA73: 120084 | AB73: 0 | AC73: 0 | AD73: 1 | AE73: 0 | AF73: 14845 | AG73: 0 | AH73: 0 | AI73: 3750 | AJ73: 533945.3662 | AK73: 120082.8 | AL73: 0 | AM73: 0 | AN73: 14607 | AO73: 132 | AP73: 0 | AR73: 0 | AS73: 0 | AT73: 0 | AV73: 0 | AX73: 0 | AZ73: 0 | BA73: 0 | BB73: 0 | BC73: 0 | BD73: 0 | BE73: 0 | BF73: 132 | BG73: 0 | BI73: 4088.47 | BJ73: 3150.31 | BK73: 0 | BL73: 0
A74: 2296 | B74: Mundella Primary School | C74: 1 | D74: 187 | E74: 0 | F74: 0 | G74: 69 | H74: 0 | I74: 84.24257426 | J74: 0 | K74: 5.081521739 | L74: 6.097826087 | M74: 39.63586957 | N74: 29.47282609 | O74: 55.89673913 | P74: 45.73369565 | Q74: 0 | R74: 0 | S74: 0 | T74: 0 | U74: 0 | V74: 0 | W74: 14.4702381 | X74: 0 | Y74: 75.27044025 | Z74: 0 | AA74: 120084 | AB74: 0 | AC74: 0 | AD74: 1 | AE74: 0 | AF74: 17017 | AG74: 0 | AH74: 0 | AI74: 3750 | AJ74: 921437.668 | AK74: 120082.8 | AL74: 0 | AM74: 0 | AN74: 16744 | AO74: 207 | AP74: 0 | AR74: 0 | AS74: 0 | AT74: 0 | AV74: 0 | AX74: 0 | AZ74: 0 | BA74: 0 | BB74: 0 | BC74: 0 | BD74: 0 | BE74: 0 | BF74: 207 | BG74: 0 | BI74: 4697.73 | BJ74: 4055.57 | BK74: 0 | BL74: 0
A75: 2298 | B75: Hawkinge Primary School | C75: 1 | D75: 393 | E75: 0 | F75: 0 | G75: 51 | H75: 0 | I75: 72.8537859 | J75: 0 | K75: 132.6751918 | L75: 6.030690537 | M75: 1.00511509 | N75: 3.015345269 | O75: 17.08695652 | P75: 3.015345269 | Q75: 0 | R75: 0 | S75: 0 | T75: 0 | U75: 0 | V75: 0 | W75: 9.329376855 | X75: 0 | Y75: 119.4528875 | Z75: 0 | AA75: 120084 | AB75: 0 | AC75: 0 | AD75: 1 | AE75: 0 | AF75: 8243 | AG75: 0 | AH75: 0 | AI75: 3750 | AJ75: 1356201.92 | AK75: 120082.8 | AL75: 0 | AM75: 0 | AN75: 8114 | AO75: 382 | AP75: 0 | AR75: 0 | AS75: 0 | AT75: 0 | AV75: 0 | AX75: 0 | AZ75: 0 | BA75: 0 | BB75: 0 | BC75: 0 | BD75: 0 | BE75: 0 | BF75: 382 | BG75: 0 | BI75: 3750 | BJ75: 3750 | BK75: 250 | BL75: 0.06666666667
A76: 2300 | B76: Sellindge Primary School | C76: 1 | D76: 108 | E76: 0 | F76: 0 | G76: 12 | H76: 0 | I76: 12 | J76: 0 | K76: 1 | L76: 2 | M76: 0 | N76: 0 | O76: 0 | P76: 0 | Q76: 0 | R76: 0 | S76: 0 | T76: 0 | U76: 0 | V76: 0 | W76: 3.56043956 | X76: 0 | Y76: 26.10989011 | Z76: 0 | AA76: 120084 | AB76: 0 | AC76: 0 | AD76: 1 | AE76: 0 | AF76: 17216 | AG76: 0 | AH76: 0 | AI76: 3750 | AJ76: 445774.061 | AK76: 120082.8 | AL76: 0 | AM76: 0 | AN76: 16940 | AO76: 103 | AP76: 0 | AR76: 0 | AS76: 0 | AT76: 0 | AV76: 0 | AX76: 0 | AZ76: 0 | BA76: 0 | BB76: 0 | BC76: 0 | BD76: 0 | BE76: 0 | BF76: 103 | BG76: 0 | BI76: 4318.52 | BJ76: 3206.64 | BK76: 0 | BL76: 0
A77: 2312 | B77: River Primary School | C77: 1 | D77: 418 | E77: 0 | F77: 0 | G77: 33 | H77: 0 | I77: 54.22169811 | J77: 0 | K77: 43.10311751 | L77: 49.117506 | M77: 49.117506 | N77: 14.03357314 | O77: 36.08633094 | P77: 0 | Q77: 0 | R77: 0 | S77: 0 | T77: 0 | U77: 0 | V77: 0 | W77: 5.837988827 | X77: 0 | Y77: 98.62921348 | Z77: 0 | AA77: 120084 | AB77: 0 | AC77: 0 | AD77: 1 | AE77: 0 | AF77: 40960 | AG77: 0 | AH77: 0 | AI77: 3750 | AJ77: 1506028.905 | AK77: 120082.8 | AL77: 0 | AM77: 0 | AN77: 40320 | AO77: 426 | AP77: 0 | AR77: 0 | AS77: 0 | AT77: 0 | AV77: 0 | AX77: 0 | AZ77: 0 | BA77: 0 | BB77: 0 | BC77: 0 | BD77: 0 | BE77: 0 | BF77: 426 | BG77: 0 | BI77: 3750 | BJ77: 3750 | BK77: 250 | BL77: 0.06666666667
A78: 2318 | B78: Langdon Primary School | C78: 1 | D78: 91 | E78: 0 | F78: 0 | G78: 13 | H78: 0 | I78: 14.08333333 | J78: 0 | K78: 7 | L78: 4 | M78: 6 | N78: 4 | O78: 5 | P78: 0 | Q78: 0 | R78: 0 | S78: 0 | T78: 0 | U78: 0 | V78: 0 | W78: 3.5 | X78: 0 | Y78: 15.56578947 | Z78: 0 | AA78: 120084 | AB78: 0 | AC78: 0 | AD78: 1 | AE78: 0 | AF78: 4990 | AG78: 0 | AH78: 0 | AI78: 3750 | AJ78: 390112.2461 | AK78: 120082.8 | AL78: 0 | AM78: 0 | AN78: 4910 | AO78: 84 | AP78: 0 | AR78: 0 | AS78: 0 | AT78: 0 | AV78: 0 | AX78: 0 | AZ78: 0 | BA78: 0 | BB78: 0 | BC78: 0 | BD78: 0 | BE78: 0 | BF78: 100 | BG78: 0 | BI78: 4569.33 | BJ78: 3249.73 | BK78: 0 | BL78: 0
A79: 2320 | B79: Eythorne Elvington Community Primary School | C79: 1 | D79: 103 | E79: 0 | F79: 0 | G79: 51 | H79: 0 | I79: 55.17857143 | J79: 0 | K79: 3 | L79: 59 | M79: 0 | N79: 1 | O79: 0 | P79: 0 | Q79: 0 | R79: 0 | S79: 0 | T79: 0 | U79: 0 | V79: 0 | W79: 2.452380952 | X79: 0 | Y79: 32.26506024 | Z79: 0 | AA79: 120084 | AB79: 0 | AC79: 0 | AD79: 1 | AE79: 0 | AF79: 17340 | AG79: 0 | AH79: 0 | AI79: 3750 | AJ79: 527879.6909 | AK79: 120082.8 | AL79: 0 | AM79: 0 | AN79: 17062 | AO79: 111 | AP79: 0 | AR79: 0 | AS79: 0 | AT79: 0 | AV79: 0 | AX79: 0 | AZ79: 0 | BA79: 0 | BB79: 0 | BC79: 0 | BD79: 0 | BE79: 0 | BF79: 111 | BG79: 0 | BI79: 4901.18 | BJ79: 3735.31 | BK79: 0 | BL79: 0
A80: 2321 | B80: Lydden Primary School | C80: 1 | D80: 84 | E80: 0 | F80: 0 | G80: 11 | H80: 0 | I80: 18 | J80: 0 | K80: 8 | L80: 10 | M80: 7 | N80: 4 | O80: 0 | P80: 0 | Q80: 0 | R80: 0 | S80: 0 | T80: 0 | U80: 0 | V80: 0 | W80: 0 | X80: 0 | Y80: 3.6 | Z80: 0 | AA80: 120084 | AB80: 0 | AC80: 0 | AD80: 1 | AE80: 0 | AF80: 8483 | AG80: 0 | AH80: 0 | AI80: 3750 | AJ80: 383449.4023 | AK80: 120082.8 | AL80: 0 | AM80: 0 | AN80: 5167 | AO80: 86 | AP80: 0 | AR80: 0 | AS80: 0 | AT80: 0 | AV80: 262.7579814 | AX80: 262.7579814 | AZ80: 12 | BA80: 0 | BB80: 12 | BC80: 0 | BD80: 9 | BE80: 0 | BF80: 100 | BG80: 0 | BI80: 4542.76 | BJ80: 3113.18 | BK80: 0 | BL80: 0
A81: 2322 | B81: Preston Primary School | C81: 1 | D81: 131 | E81: 0 | F81: 0 | G81: 8 | H81: 0 | I81: 15.3515625 | J81: 0 | K81: 13.1 | L81: 11.08461538 | M81: 1.007692308 | N81: 0 | O81: 1.007692308 | P81: 0 | Q81: 0 | R81: 0 | S81: 0 | T81: 0 | U81: 0 | V81: 0 | W81: 4.637168142 | X81: 0 | Y81: 28.07142857 | Z81: 0 | AA81: 120084 | AB81: 6530.537677 | AC81: 0 | AD81: 1 | AE81: 0 | AF81: 17964 | AG81: 0 | AH81: 0 | AI81: 3750 | AJ81: 519266.5694 | AK81: 120082.8 | AL81: 7949.406542 | AM81: 0 | AN81: 10314 | AO81: 126 | AP81: 0 | AR81: 0 | AS81: 0 | AT81: 0 | AV81: 0 | AX81: 0 | AZ81: 0 | BA81: 0 | BB81: 0 | BC81: 0 | BD81: 0 | BE81: 0 | BF81: 126 | BG81: 0 | BI81: 4166.46 | BJ81: 3199.93 | BK81: 0 | BL81: 0
A82: 2326 | B82: Wingham Primary School | C82: 1 | D82: 197 | E82: 0 | F82: 0 | G82: 15 | H82: 0 | I82: 16.96650718 | J82: 0 | K82: 10 | L82: 2 | M82: 0 | N82: 3 | O82: 0 | P82: 0 | Q82: 0 | R82: 0 | S82: 0 | T82: 0 | U82: 0 | V82: 0 | W82: 1.172619048 | X82: 0 | Y82: 51.33939394 | Z82: 0 | AA82: 120084 | AB82: 0 | AC82: 0 | AD82: 1 | AE82: 0 | AF82: 31232 | AG82: 0 | AH82: 0 | AI82: 3750 | AJ82: 792337.4593 | AK82: 120082.8 | AL82: 0 | AM82: 0 | AN82: 30744 | AO82: 211 | AP82: 0 | AR82: 0 | AS82: 0 | AT82: 0 | AV82: 0 | AX82: 0 | AZ82: 0 | BA82: 0 | BB82: 0 | BC82: 0 | BD82: 0 | BE82: 0 | BF82: 211 | BG82: 0 | BI82: 3810.77 | BJ82: 3201.21 | BK82: 189.23 | BL82: 0.05911202327
A83: 2327 | B83: Worth Primary School | C83: 1 | D83: 71 | E83: 0 | F83: 0 | G83: 13 | H83: 0 | I83: 13 | J83: 0 | K83: 13 | L83: 6 | M83: 0 | N83: 0 | O83: 6 | P83: 0 | Q83: 0 | R83: 0 | S83: 0 | T83: 0 | U83: 0 | V83: 0 | W83: 2.366666667 | X83: 0 | Y83: 17.13793103 | Z83: 0 | AA83: 120084 | AB83: 0 | AC83: 0 | AD83: 1 | AE83: 0 | AF83: 3393 | AG83: 0 | AH83: 0 | AI83: 3750 | AJ83: 318218.0816 | AK83: 120082.8 | AL83: 0 | AM83: 0 | AN83: 3100 | AO83: 62 | AP83: 0 | AR83: 0 | AS83: 0 | AT83: 0 | AV83: 0 | AX83: 0 | AZ83: 0 | BA83: 0 | BB83: 0 | BC83: 0 | BD83: 0 | BE83: 0 | BF83: 100 | BG83: 0 | BI83: 5043.34 | BJ83: 3352.01 | BK83: 0 | BL83: 0
A84: 2328 | B84: St Mildred's Primary Infant School | C84: 1 | D84: 268 | E84: 0 | F84: 0 | G84: 34 | H84: 0 | I84: 34 | J84: 0 | K84: 41 | L84: 6 | M84: 3 | N84: 5 | O84: 5 | P84: 3 | Q84: 0 | R84: 0 | S84: 0 | T84: 0 | U84: 0 | V84: 0 | W84: 29.94413408 | X84: 0 | Y84: 73.7752809 | Z84: 0 | AA84: 120084 | AB84: 0 | AC84: 0 | AD84: 1 | AE84: 0 | AF84: 24950 | AG84: 0 | AH84: 0 | AI84: 3750 | AJ84: 986747.6813 | AK84: 120082.8 | AL84: 0 | AM84: 0 | AN84: 24550 | AO84: 270 | AP84: 0 | AR84: 0 | AS84: 0 | AT84: 0 | AV84: 0 | AX84: 0 | AZ84: 0 | BA84: 0 | BB84: 0 | BC84: 0 | BD84: 0 | BE84: 0 | BF84: 270 | BG84: 0 | BI84: 3802.58 | BJ84: 3354.51 | BK84: 197.42 | BL84: 0.05885211253
A85: 2329 | B85: Callis Grange Nursery & Infant School | C85: 1 | D85: 270 | E85: 0 | F85: 0 | G85: 48 | H85: 0 | I85: 48 | J85: 0 | K85: 36 | L85: 102 | M85: 10 | N85: 7 | O85: 5 | P85: 9 | Q85: 0 | R85: 0 | S85: 0 | T85: 0 | U85: 0 | V85: 0 | W85: 12 | X85: 0 | Y85: 45.25139665 | Z85: 0 | AA85: 120084 | AB85: 0 | AC85: 0 | AD85: 1 | AE85: 0 | AF85: 43520 | AG85: 0 | AH85: 0 | AI85: 3750 | AJ85: 1021555.844 | AK85: 120082.8 | AL85: 0 | AM85: 0 | AN85: 42840 | AO85: 270 | AP85: 0 | AR85: 4.08 | AS85: 0.9 | AT85: 0 | AV85: 0 | AX85: 0 | AZ85: 0 | BA85: 0 | BB85: 0 | BC85: 0 | BD85: 0 | BE85: 0 | BF85: 294 | BG85: 0 | BI85: 3798.57 | BJ85: 3353.81 | BK85: 201.43 | BL85: 0.06006005111
A86: 2337 | B86: St Crispin's Community Primary Infant School | C86: 1 | D86: 269 | E86: 0 | F86: 0 | G86: 35 | H86: 0 | I86: 35 | J86: 0 | K86: 7 | L86: 63 | M86: 11 | N86: 1 | O86: 5 | P86: 4 | Q86: 0 | R86: 0 | S86: 0 | T86: 0 | U86: 0 | V86: 0 | W86: 9.016759777 | X86: 0 | Y86: 60.79096045 | Z86: 0 | AA86: 120084 | AB86: 0 | AC86: 0 | AD86: 1 | AE86: 0 | AF86: 20085 | AG86: 0 | AH86: 0 | AI86: 3750 | AJ86: 961990.6362 | AK86: 120082.8 | AL86: 0 | AM86: 0 | AN86: 19763 | AO86: 269 | AP86: 0 | AR86: 0 | AS86: 0 | AT86: 0 | AV86: 0 | AX86: 0 | AZ86: 0 | BA86: 0 | BB86: 0 | BC86: 0 | BD86: 0 | BE86: 0 | BF86: 269 | BG86: 0 | BI86: 3750 | BJ86: 3750 | BK86: 250 | BL86: 0.06666666667
A87: 2340 | B87: Ellington Infant School | C87: 1 | D87: 137 | E87: 0 | F87: 0 | G87: 46 | H87: 0 | I87: 49.67251462 | J87: 0 | K87: 57 | L87: 1 | M87: 7 | N87: 27 | O87: 22 | P87: 1 | Q87: 0 | R87: 0 | S87: 0 | T87: 0 | U87: 0 | V87: 0 | W87: 13.43137255 | X87: 0 | Y87: 47.53061224 | Z87: 0 | AA87: 120084 | AB87: 0 | AC87: 0 | AD87: 1 | AE87: 0 | AF87: 26880 | AG87: 0 | AH87: 0 | AI87: 3750 | AJ87: 761295.1026 | AK87: 120082.8 | AL87: 0 | AM87: 0 | AN87: 26460 | AO87: 175 | AP87: 0 | AR87: 0 | AS87: 0 | AT87: 0 | AV87: 0 | AX87: 0 | AZ87: 0 | BA87: 0 | BB87: 0 | BC87: 0 | BD87: 0 | BE87: 0 | BF87: 175 | BG87: 0 | BI87: 4668.8 | BJ87: 3792.28 | BK87: 0 | BL87: 0
A88: 2345 | B88: Priory Infant School | C88: 1 | D88: 178 | E88: 0 | F88: 0 | G88: 31 | H88: 0 | I88: 40.2259887 | J88: 0 | K88: 92 | L88: 1 | M88: 2 | N88: 37 | O88: 32 | P88: 1 | Q88: 0 | R88: 0 | S88: 0 | T88: 0 | U88: 0 | V88: 0 | W88: 23.73333333 | X88: 0 | Y88: 82.26890756 | Z88: 0 | AA88: 120084 | AB88: 0 | AC88: 0 | AD88: 1 | AE88: 0 | AF88: 30976 | AG88: 0 | AH88: 0 | AI88: 3750 | AJ88: 756462.5668 | AK88: 120082.8 | AL88: 0 | AM88: 0 | AN88: 30492 | AO88: 177 | AP88: 0 | AR88: 0 | AS88: 0 | AT88: 0 | AV88: 0 | AX88: 0 | AZ88: 0 | BA88: 0 | BB88: 0 | BC88: 0 | BD88: 0 | BE88: 0 | BF88: 177 | BG88: 0 | BI88: 4509.09 | BJ88: 3834.46 | BK88: 0 | BL88: 0
A89: 2431 | B89: Shears Green Junior School | C89: 1 | D89: 478 | E89: 0 | F89: 0 | G89: 82 | H89: 0 | I89: 88.18448637 | J89: 0 | K89: 113.4747899 | L89: 105.4411765 | M89: 6.025210084 | N89: 3.012605042 | O89: 14.05882353 | P89: 0 | Q89: 0 | R89: 0 | S89: 0 | T89: 0 | U89: 0 | V89: 0 | W89: 16 | X89: 0 | Y89: 126.4387097 | Z89: 0 | AA89: 120084 | AB89: 0 | AC89: 0 | AD89: 1 | AE89: 0 | AF89: 21760 | AG89: 0 | AH89: 0 | AI89: 3750 | AJ89: 1686994.493 | AK89: 120082.8 | AL89: 0 | AM89: 0 | AN89: 21420 | AO89: 479 | AP89: 0 | AR89: 0 | AS89: 0 | AT89: 0 | AV89: 0 | AX89: 0 | AZ89: 0 | BA89: 0 | BB89: 0 | BC89: 0 | BD89: 0 | BE89: 0 | BF89: 479 | BG89: 0 | BI89: 3750 | BJ89: 3750 | BK89: 250 | BL89: 0.06666666667
A90: 2434 | B90: West Minster Primary School | C90: 1 | D90: 455 | E90: 0 | F90: 0 | G90: 176 | H90: 0 | I90: 221.4333333 | J90: 0 | K90: 9 | L90: 9 | M90: 0 | N90: 175 | O90: 84 | P90: 156 | Q90: 0 | R90: 0 | S90: 0 | T90: 0 | U90: 0 | V90: 0 | W90: 9.479166667 | X90: 0 | Y90: 111.3297872 | Z90: 0 | AA90: 120084 | AB90: 0 | AC90: 0 | AD90: 1 | AE90: 0 | AF90: 80384 | AG90: 0 | AH90: 0 | AI90: 3750 | AJ90: 1878956.784 | AK90: 120082.8 | AL90: 0 | AM90: 0 | AN90: 79128 | AO90: 454 | AP90: 0 | AR90: 4.08 | AS90: 0.9 | AT90: 0.61 | AV90: 0 | AX90: 0 | AZ90: 0 | BA90: 0 | BB90: 0 | BC90: 0 | BD90: 0 | BE90: 0 | BF90: 493 | BG90: 0 | BI90: 4157.72 | BJ90: 3893.8 | BK90: 0 | BL90: 0
A91: 2454 | B91: Aycliffe Community Primary School | C91: 1 | D91: 103 | E91: 0 | F91: 0 | G91: 43 | H91: 0 | I91: 47.82142857 | J91: 0 | K91: 1.01980198 | L91: 6.118811881 | M91: 4.079207921 | N91: 85.66336634 | O91: 5.099009901 | P91: 0 | Q91: 0 | R91: 0 | S91: 0 | T91: 0 | U91: 0 | V91: 0 | W91: 4.681818182 | X91: 0 | Y91: 28.74418605 | Z91: 0 | AA91: 120084 | AB91: 0 | AC91: 0 | AD91: 1 | AE91: 0 | AF91: 22829 | AG91: 0 | AH91: 0 | AI91: 3750 | AJ91: 575442.4862 | AK91: 120082.8 | AL91: 0 | AM91: 0 | AN91: 22463 | AO91: 116 | AP91: 0 | AR91: 0 | AS91: 0 | AT91: 0 | AV91: 0 | AX91: 0 | AZ91: 0 | BA91: 0 | BB91: 0 | BC91: 0 | BD91: 0 | BE91: 0 | BF91: 116 | BG91: 0 | BI91: 5055.26 | BJ91: 3889.4 | BK91: 0 | BL91: 0
A92: 2459 | B92: Riverhead Infant School | C92: 1 | D92: 266 | E92: 0 | F92: 0 | G92: 10 | H92: 0 | I92: 10 | J92: 0 | K92: 0 | L92: 0 | M92: 0 | N92: 0 | O92: 0 | P92: 0 | Q92: 0 | R92: 0 | S92: 0 | T92: 0 | U92: 0 | V92: 0 | W92: 25.26256983 | X92: 0 | Y92: 33.44 | Z92: 0 | AA92: 120084 | AB92: 0 | AC92: 0 | AD92: 1.0364 | AE92: 0 | AF92: 38912 | AG92: 0 | AH92: 0 | AI92: 3750 | AJ92: 974438.0008 | AK92: 124453.8139 | AL92: 0 | AM92: 0 | AN92: 38304 | AO92: 269 | AP92: 0 | AR92: 0 | AS92: 0 | AT92: 0 | AV92: 0 | AX92: 0 | AZ92: 0 | BA92: 0 | BB92: 0 | BC92: 0 | BD92: 0 | BE92: 0 | BF92: 269 | BG92: 0 | BI92: 3750 | BJ92: 3750 | BK92: 250 | BL92: 0.06666666667
A93: 2465 | B93: Claremont Primary School | C93: 1 | D93: 434 | E93: 0 | F93: 0 | G93: 8 | H93: 0 | I93: 15.7987152 | J93: 0 | K93: 2 | L93: 0 | M93: 0 | N93: 0 | O93: 0 | P93: 0 | Q93: 0 | R93: 0 | S93: 0 | T93: 0 | U93: 0 | V93: 0 | W93: 38.192 | X93: 0 | Y93: 68.96438356 | Z93: 0 | AA93: 120084 | AB93: 0 | AC93: 0 | AD93: 1 | AE93: 0 | AF93: 38656 | AG93: 0 | AH93: 0 | AI93: 3750 | AJ93: 1619052 | AK93: 120082.8 | AL93: 0 | AM93: 0 | AN93: 38052 | AO93: 465 | AP93: 0 | AR93: 0 | AS93: 0 | AT93: 0 | AV93: 257.4549511 | AX93: 257.4549511 | AZ93: 12 | BA93: 0 | BB93: 15 | BC93: 0 | BD93: 15 | BE93: 0 | BF93: 465 | BG93: 0 | BI93: 3750 | BJ93: 3750 | BK93: 250 | BL93: 0.06666666667
A94: 2471 | B94: Whitfield Aspen School | C94: 1 | D94: 493 | E94: 0 | F94: 0 | G94: 112 | H94: 0 | I94: 152.8603696 | J94: 0 | K94: 143 | L94: 51 | M94: 37 | N94: 13 | O94: 51 | P94: 1 | Q94: 0 | R94: 0 | S94: 0 | T94: 0 | U94: 0 | V94: 0 | W94: 6.012195122 | X94: 0 | Y94: 209.7089552 | Z94: 0 | AA94: 120084 | AB94: 0 | AC94: 0 | AD94: 1 | AE94: 19250 | AF94: 65024 | AG94: 0 | AH94: 0 | AI94: 3750 | AJ94: 1838528.462 | AK94: 120082.8 | AL94: 0 | AM94: 0 | AN94: 64008 | AO94: 484 | AP94: 0 | AR94: 0 | AS94: 0 | AT94: 0 | AV94: 0 | AX94: 0 | AZ94: 0 | BA94: 0 | BB94: 0 | BC94: 0 | BD94: 0 | BE94: 0 | BF94: 488 | BG94: 0 | BI94: 3916.91 | BJ94: 3712.38 | BK94: 0 | BL94: 0
A95: 2474 | B95: St Paul's Infant School | C95: 1 | D95: 263 | E95: 0 | F95: 0 | G95: 45 | H95: 0 | I95: 50.80681818 | J95: 0 | K95: 80 | L95: 1 | M95: 1 | N95: 2 | O95: 0 | P95: 0 | Q95: 0 | R95: 0 | S95: 0 | T95: 0 | U95: 0 | V95: 0 | W95: 84.53571429 | X95: 0 | Y95: 80.67484663 | Z95: 0 | AA95: 120084 | AB95: 0 | AC95: 0 | AD95: 1 | AE95: 0 | AF95: 11477 | AG95: 0 | AH95: 0 | AI95: 3750 | AJ95: 1025253.787 | AK95: 120082.8 | AL95: 0 | AM95: 0 | AN95: 12970 | AO95: 262 | AP95: 0 | AR95: 0 | AS95: 0 | AT95: 0 | AV95: 0 | AX95: 0 | AZ95: 0 | BA95: 0 | BB95: 0 | BC95: 0 | BD95: 0 | BE95: 0 | BF95: 262 | BG95: 0 | BI95: 4003.36 | BJ95: 3546.76 | BK95: 0 | BL95: 0
A96: 2482 | B96: Langton Green Primary School | C96: 1 | D96: 415 | E96: 0 | F96: 0 | G96: 12 | H96: 0 | I96: 16.08527132 | J96: 0 | K96: 21 | L96: 1 | M96: 1 | N96: 5 | O96: 0 | P96: 0 | Q96: 0 | R96: 0 | S96: 0 | T96: 0 | U96: 0 | V96: 0 | W96: 6.994382022 | X96: 0 | Y96: 65.14534884 | Z96: 0 | AA96: 120084 | AB96: 0 | AC96: 0 | AD96: 1 | AE96: 0 | AF96: 39168 | AG96: 0 | AH96: 0 | AI96: 3750 | AJ96: 1361156 | AK96: 120082.8 | AL96: 0 | AM96: 0 | AN96: 38556 | AO96: 389 | AP96: 0 | AR96: 0 | AS96: 0 | AT96: 0 | AV96: 0 | AX96: 0 | AZ96: 0 | BA96: 0 | BB96: 0 | BC96: 0 | BD96: 0 | BE96: 0 | BF96: 389 | BG96: 0 | BI96: 3750 | BJ96: 3750 | BK96: 250 | BL96: 0.06666666667
A97: 2490 | B97: Bishops Down Primary School | C97: 1 | D97: 235 | E97: 0 | F97: 0 | G97: 25 | H97: 0 | I97: 27.85185185 | J97: 0 | K97: 47.2008547 | L97: 3.012820513 | M97: 2.008547009 | N97: 3.012820513 | O97: 0 | P97: 0 | Q97: 0 | R97: 0 | S97: 0 | T97: 0 | U97: 0 | V97: 0 | W97: 10.31707317 | X97: 0 | Y97: 48.70466321 | Z97: 0 | AA97: 120084 | AB97: 0 | AC97: 0 | AD97: 1 | AE97: 0 | AF97: 31232 | AG97: 0 | AH97: 0 | AI97: 3750 | AJ97: 971046.2719 | AK97: 120082.8 | AL97: 0 | AM97: 0 | AN97: 30744 | AO97: 267 | AP97: 0 | AR97: 4.08 | AS97: 0.9 | AT97: 0 | AV97: 1322.565694 | AX97: 1322.565694 | AZ97: 103 | BA97: 0 | BB97: 112 | BC97: 0 | BD97: 104 | BE97: 0 | BF97: 299 | BG97: 0 | BI97: 3750 | BJ97: 3750 | BK97: 250 | BL97: 0.06666666667
A98: 2509 | B98: Singlewell Primary School | C98: 1 | D98: 320 | E98: 0 | F98: 0 | G98: 36 | H98: 0 | I98: 54.79452055 | J98: 0 | K98: 87.27272727 | L98: 27.0846395 | M98: 11.03448276 | N98: 1.003134796 | O98: 24.07523511 | P98: 0 | Q98: 0 | R98: 0 | S98: 0 | T98: 0 | U98: 0 | V98: 0 | W98: 36.92307692 | X98: 0 | Y98: 85.91439689 | Z98: 0 | AA98: 120084 | AB98: 0 | AC98: 0 | AD98: 1 | AE98: 0 | AF98: 51712 | AG98: 0 | AH98: 0 | AI98: 3750 | AJ98: 1117878.131 | AK98: 120082.8 | AL98: 0 | AM98: 0 | AN98: 50904 | AO98: 294 | AP98: 0 | AR98: 0 | AS98: 0 | AT98: 0 | AV98: 0 | AX98: 0 | AZ98: 0 | BA98: 0 | BB98: 0 | BC98: 0 | BD98: 0 | BE98: 0 | BF98: 294 | BG98: 0 | BI98: 3793.49 | BJ98: 3418.23 | BK98: 206.51 | BL98: 0.06041430799
A99: 2510 | B99: Cheriton Primary School | C99: 1 | D99: 436 | E99: 0 | F99: 0 | G99: 73 | H99: 0 | I99: 107.5594714 | J99: 0 | K99: 64 | L99: 30 | M99: 8 | N99: 15 | O99: 3 | P99: 4 | Q99: 0 | R99: 0 | S99: 0 | T99: 0 | U99: 0 | V99: 0 | W99: 81.53766234 | X99: 0 | Y99: 109.3105413 | Z99: 0 | AA99: 120084 | AB99: 0 | AC99: 0 | AD99: 1 | AE99: 0 | AF99: 8909 | AG99: 0 | AH99: 0 | AI99: 3750 | AJ99: 1625056.872 | AK99: 120082.8 | AL99: 0 | AM99: 0 | AN99: 6197 | AO99: 452 | AP99: 0 | AR99: 0 | AS99: 0 | AT99: 0 | AV99: 0 | AX99: 0 | AZ99: 0 | BA99: 0 | BB99: 0 | BC99: 0 | BD99: 0 | BE99: 0 | BF99: 452 | BG99: 0 | BI99: 3750 | BJ99: 3750 | BK99: 250 | BL99: 0.06666666667
A100: 2514 | B100: Brookfield Infant School | C100: 1 | D100: 180 | E100: 0 | F100: 0 | G100: 36 | H100: 0 | I100: 45.50561798 | J100: 0 | K100: 0 | L100: 14 | M100: 2 | N100: 0 | O100: 18 | P100: 0 | Q100: 0 | R100: 0 | S100: 0 | T100: 0 | U100: 0 | V100: 0 | W100: 9 | X100: 0 | Y100: 48 | Z100: 0 | AA100: 120084 | AB100: 0 | AC100: 0 | AD100: 1 | AE100: 0 | AF100: 20210 | AG100: 0 | AH100: 0 | AI100: 3750 | AJ100: 707413.8496 | AK100: 120082.8 | AL100: 0 | AM100: 0 | AN100: 23177 | AO100: 177 | AP100: 0 | AR100: 0 | AS100: 0 | AT100: 0 | AV100: 868.2192604 | AX100: 868.2192604 | AZ100: 7 | BA100: 0 | BB100: 7 | BC100: 0 | BD100: 6 | BE100: 0 | BF100: 177 | BG100: 0 | BI100: 4055.98 | BJ100: 3388.85 | BK100: 0 | BL100: 0
A101: 2519 | B101: Vigo Village School | C101: 1 | D101: 182 | E101: 0 | F101: 0 | G101: 11 | H101: 0 | I101: 18.49197861 | J101: 0 | K101: 11 | L101: 4 | M101: 0 | N101: 1 | O101: 2 | P101: 0 | Q101: 0 | R101: 0 | S101: 0 | T101: 0 | U101: 0 | V101: 0 | W101: 4.607594937 | X101: 0 | Y101: 50.08053691 | Z101: 0 | AA101: 120084 | AB101: 0 | AC101: 0 | AD101: 1 | AE101: 0 | AF101: 22081 | AG101: 0 | AH101: 0 | AI101: 3750 | AJ101: 717161.2092 | AK101: 120082.8 | AL101: 0 | AM101: 0 | AN101: 21727 | AO101: 188 | AP101: 0 | AR101: 0 | AS101: 0 | AT101: 0 | AV101: 0 | AX101: 0 | AZ101: 0 | BA101: 0 | BB101: 0 | BC101: 0 | BD101: 0 | BE101: 0 | BF101: 188 | BG101: 0 | BI101: 3890.68 | BJ101: 3230.88 | BK101: 0 | BL101: 0
A102: 2520 | B102: Madginford Primary School | C102: 1 | D102: 639 | E102: 0 | F102: 0 | G102: 25 | H102: 0 | I102: 31.60432767 | J102: 0 | K102: 82 | L102: 12 | M102: 21 | N102: 34 | O102: 14 | P102: 0 | Q102: 0 | R102: 0 | S102: 0 | T102: 0 | U102: 0 | V102: 0 | W102: 33.81569343 | X102: 0 | Y102: 112.7647059 | Z102: 0 | AA102: 120084 | AB102: 0 | AC102: 0 | AD102: 1 | AE102: 0 | AF102: 58880 | AG102: 0 | AH102: 0 | AI102: 3750 | AJ102: 2242682 | AK102: 120082.8 | AL102: 0 | AM102: 0 | AN102: 59882 | AO102: 642 | AP102: 0 | AR102: 0 | AS102: 0 | AT102: 0 | AV102: 0 | AX102: 0 | AZ102: 0 | BA102: 0 | BB102: 0 | BC102: 0 | BD102: 0 | BE102: 0 | BF102: 642 | BG102: 0 | BI102: 3750 | BJ102: 3750 | BK102: 250 | BL102: 0.06666666667
A103: 2524 | B103: Palmarsh Primary School | C103: 1 | D103: 156 | E103: 0 | F103: 0 | G103: 27 | H103: 0 | I103: 46.5974026 | J103: 0 | K103: 2 | L103: 40 | M103: 10 | N103: 0 | O103: 1 | P103: 2 | Q103: 0 | R103: 0 | S103: 0 | T103: 0 | U103: 0 | V103: 0 | W103: 2.277372263 | X103: 0 | Y103: 49.63636364 | Z103: 0 | AA103: 120084 | AB103: 0 | AC103: 0 | AD103: 1 | AE103: 0 | AF103: 16218 | AG103: 0 | AH103: 0 | AI103: 3750 | AJ103: 620743.3483 | AK103: 120082.8 | AL103: 0 | AM103: 0 | AN103: 12171 | AO103: 147 | AP103: 0 | AR103: 0 | AS103: 0 | AT103: 0 | AV103: 0 | AX103: 0 | AZ103: 0 | BA103: 0 | BB103: 0 | BC103: 0 | BD103: 0 | BE103: 0 | BF103: 147 | BG103: 0 | BI103: 4231.55 | BJ103: 3461.78 | BK103: 0 | BL103: 0
A104: 2525 | B104: Painters Ash Primary School | C104: 1 | D104: 410 | E104: 0 | F104: 0 | G104: 68 | H104: 0 | I104: 95.76642336 | J104: 0 | K104: 19 | L104: 118 | M104: 7 | N104: 16 | O104: 8 | P104: 0 | Q104: 0 | R104: 0 | S104: 0 | T104: 0 | U104: 0 | V104: 0 | W104: 42.05128205 | X104: 0 | Y104: 108.7755102 | Z104: 0 | AA104: 120084 | AB104: 0 | AC104: 0 | AD104: 1 | AE104: 0 | AF104: 41728 | AG104: 0 | AH104: 0 | AI104: 3750 | AJ104: 1497820.733 | AK104: 120082.8 | AL104: 0 | AM104: 0 | AN104: 40730 | AO104: 407 | AP104: 0 | AR104: 0 | AS104: 0 | AT104: 0 | AV104: 0 | AX104: 0 | AZ104: 0 | BA104: 0 | BB104: 0 | BC104: 0 | BD104: 0 | BE104: 0 | BF104: 407 | BG104: 0 | BI104: 3750 | BJ104: 3750 | BK104: 250 | BL104: 0.06666666667
A105: 2530 | B105: Tunbury Primary School | C105: 1 | D105: 601 | E105: 0 | F105: 0 | G105: 10 | H105: 0 | I105: 19.321489 | J105: 0 | K105: 15.025 | L105: 52.08666667 | M105: 24.04 | N105: 0 | O105: 3.005 | P105: 1.001666667 | Q105: 0 | R105: 0 | S105: 0 | T105: 0 | U105: 0 | V105: 0 | W105: 5.81237911 | X105: 0 | Y105: 104.6751468 | Z105: 0 | AA105: 120084 | AB105: 0 | AC105: 0 | AD105: 1 | AE105: 0 | AF105: 46336 | AG105: 0 | AH105: 0 | AI105: 3750 | AJ105: 2065185 | AK105: 120082.8 | AL105: 0 | AM105: 0 | AN105: 48985 | AO105: 593 | AP105: 0 | AR105: 0 | AS105: 0 | AT105: 0 | AV105: 0 | AX105: 0 | AZ105: 0 | BA105: 0 | BB105: 0 | BC105: 0 | BD105: 0 | BE105: 0 | BF105: 593 | BG105: 0 | BI105: 3750 | BJ105: 3750 | BK105: 250 | BL105: 0.06666666667
A106: 2532 | B106: St Margaret's-at-Cliffe Primary School | C106: 1 | D106: 196 | E106: 0 | F106: 0 | G106: 9 | H106: 0 | I106: 13.06666667 | J106: 0 | K106: 16 | L106: 10 | M106: 5 | N106: 5 | O106: 6 | P106: 0 | Q106: 0 | R106: 0 | S106: 0 | T106: 0 | U106: 0 | V106: 0 | W106: 6.797687861 | X106: 0 | Y106: 33.87654321 | Z106: 0 | AA106: 120084 | AB106: 0 | AC106: 0 | AD106: 1 | AE106: 0 | AF106: 18713 | AG106: 0 | AH106: 0 | AI106: 3750 | AJ106: 723532.77 | AK106: 120082.8 | AL106: 0 | AM106: 0 | AN106: 16503 | AO106: 194 | AP106: 0 | AR106: 0 | AS106: 0 | AT106: 0 | AV106: 0 | AX106: 0 | AZ106: 0 | BA106: 0 | BB106: 0 | BC106: 0 | BD106: 0 | BE106: 0 | BF106: 194 | BG106: 0 | BI106: 3759.59 | BJ106: 3146.91 | BK106: 240.41 | BL106: 0.07639557534
A107: 2534 | B107: Bysing Wood Primary School | C107: 1 | D107: 151 | E107: 0 | F107: 0 | G107: 59 | H107: 0 | I107: 86.01265823 | J107: 0 | K107: 12 | L107: 5 | M107: 38 | N107: 50 | O107: 14 | P107: 0 | Q107: 0 | R107: 0 | S107: 0 | T107: 0 | U107: 0 | V107: 0 | W107: 7.947368421 | X107: 0 | Y107: 68.421875 | Z107: 0 | AA107: 120084 | AB107: 0 | AC107: 0 | AD107: 1 | AE107: 0 | AF107: 48154 | AG107: 0 | AH107: 0 | AI107: 3750 | AJ107: 758134.0837 | AK107: 120082.8 | AL107: 0 | AM107: 0 | AN107: 42963 | AO107: 157 | AP107: 0 | AR107: 0 | AS107: 0 | AT107: 0 | AV107: 0 | AX107: 0 | AZ107: 0 | BA107: 0 | BB107: 0 | BC107: 0 | BD107: 0 | BE107: 0 | BF107: 157 | BG107: 0 | BI107: 4799.66 | BJ107: 4004.41 | BK107: 0 | BL107: 0
A108: 2539 | B108: Stocks Green Primary School | C108: 1 | D108: 217 | E108: 0 | F108: 0 | G108: 2 | H108: 0 | I108: 4.075117371 | J108: 0 | K108: 1 | L108: 1 | M108: 0 | N108: 1 | O108: 0 | P108: 0 | Q108: 0 | R108: 0 | S108: 0 | T108: 0 | U108: 0 | V108: 0 | W108: 5.771276596 | X108: 0 | Y108: 29.32432432 | Z108: 0 | AA108: 120084 | AB108: 0 | AC108: 0 | AD108: 1 | AE108: 0 | AF108: 23204 | AG108: 0 | AH108: 0 | AI108: 3750 | AJ108: 769128.133 | AK108: 120082.8 | AL108: 0 | AM108: 0 | AN108: 25445 | AO108: 217 | AP108: 0 | AR108: 0 | AS108: 0 | AT108: 0 | AV108: 0 | AX108: 0 | AZ108: 0 | BA108: 0 | BB108: 0 | BC108: 0 | BD108: 0 | BE108: 0 | BF108: 217 | BG108: 0 | BI108: 3750 | BJ108: 3750 | BK108: 250 | BL108: 0.06666666667
A109: 2545 | B109: Sandgate Primary School | C109: 1 | D109: 424 | E109: 0 | F109: 0 | G109: 44 | H109: 0 | I109: 51 | J109: 0 | K109: 41 | L109: 12 | M109: 15 | N109: 7 | O109: 7 | P109: 2 | Q109: 0 | R109: 0 | S109: 0 | T109: 0 | U109: 0 | V109: 0 | W109: 12.81318681 | X109: 0 | Y109: 77.3038674 | Z109: 0 | AA109: 120084 | AB109: 0 | AC109: 0 | AD109: 1 | AE109: 0 | AF109: 46592 | AG109: 0 | AH109: 0 | AI109: 3750 | AJ109: 1494264 | AK109: 120082.8 | AL109: 0 | AM109: 0 | AN109: 45864 | AO109: 426 | AP109: 0 | AR109: 0 | AS109: 0 | AT109: 0 | AV109: 0 | AX109: 0 | AZ109: 0 | BA109: 0 | BB109: 0 | BC109: 0 | BD109: 0 | BE109: 0 | BF109: 426 | BG109: 0 | BI109: 3750 | BJ109: 3750 | BK109: 250 | BL109: 0.06666666667
A110: 2552 | B110: Sandling Primary School | C110: 1 | D110: 417 | E110: 0 | F110: 0 | G110: 17 | H110: 0 | I110: 29.57446809 | J110: 0 | K110: 16 | L110: 2 | M110: 2 | N110: 0 | O110: 1 | P110: 0 | Q110: 0 | R110: 0 | S110: 0 | T110: 0 | U110: 0 | V110: 0 | W110: 19.74651811 | X110: 0 | Y110: 82.45762712 | Z110: 0 | AA110: 120084 | AB110: 0 | AC110: 0 | AD110: 1 | AE110: 0 | AF110: 30720 | AG110: 0 | AH110: 0 | AI110: 3750 | AJ110: 1470362 | AK110: 120082.8 | AL110: 0 | AM110: 0 | AN110: 32162 | AO110: 423 | AP110: 0 | AR110: 0 | AS110: 0 | AT110: 0 | AV110: 0 | AX110: 0 | AZ110: 0 | BA110: 0 | BB110: 0 | BC110: 0 | BD110: 0 | BE110: 0 | BF110: 423 | BG110: 0 | BI110: 3750 | BJ110: 3750 | BK110: 250 | BL110: 0.06666666667
A111: 2559 | B111: Capel-le-Ferne Primary School | C111: 1 | D111: 202 | E111: 0 | F111: 0 | G111: 11 | H111: 0 | I111: 23.30769231 | J111: 0 | K111: 9 | L111: 3 | M111: 20 | N111: 13 | O111: 32 | P111: 0 | Q111: 0 | R111: 0 | S111: 0 | T111: 0 | U111: 0 | V111: 0 | W111: 0 | X111: 0 | Y111: 48.0952381 | Z111: 0 | AA111: 120084 | AB111: 0 | AC111: 0 | AD111: 1 | AE111: 0 | AF111: 19336 | AG111: 0 | AH111: 0 | AI111: 3750 | AJ111: 796695.7397 | AK111: 120082.8 | AL111: 0 | AM111: 0 | AN111: 19026 | AO111: 208 | AP111: 0 | AR111: 0 | AS111: 0 | AT111: 0 | AV111: 0 | AX111: 0 | AZ111: 0 | BA111: 0 | BB111: 0 | BC111: 0 | BD111: 0 | BE111: 0 | BF111: 208 | BG111: 0 | BI111: 3894.13 | BJ111: 3299.65 | BK111: 0 | BL111: 0
A112: 2562 | B112: Lunsford Primary School | C112: 1 | D112: 208 | E112: 0 | F112: 0 | G112: 26 | H112: 0 | I112: 27 | J112: 0 | K112: 3 | L112: 6 | M112: 1 | N112: 0 | O112: 5 | P112: 0 | Q112: 0 | R112: 0 | S112: 0 | T112: 0 | U112: 0 | V112: 0 | W112: 5.842696629 | X112: 0 | Y112: 47.91011236 | Z112: 0 | AA112: 120084 | AB112: 0 | AC112: 0 | AD112: 1 | AE112: 0 | AF112: 19087 | AG112: 0 | AH112: 0 | AI112: 3750 | AJ112: 770006.3459 | AK112: 120082.8 | AL112: 0 | AM112: 0 | AN112: 22154 | AO112: 207 | AP112: 0 | AR112: 0 | AS112: 0 | AT112: 0 | AV112: 0 | AX112: 0 | AZ112: 0 | BA112: 0 | BB112: 0 | BC112: 0 | BD112: 0 | BE112: 0 | BF112: 207 | BG112: 0 | BI112: 3797.43 | BJ112: 3220.11 | BK112: 202.57 | BL112: 0.06290778886
A113: 2569 | B113: Briary Primary School | C113: 1 | D113: 338 | E113: 0 | F113: 0 | G113: 68 | H113: 0 | I113: 88.21428571 | J113: 0 | K113: 99 | L113: 15 | M113: 11 | N113: 1 | O113: 4 | P113: 0 | Q113: 0 | R113: 0 | S113: 0 | T113: 0 | U113: 0 | V113: 0 | W113: 4.447368421 | X113: 0 | Y113: 119.4949495 | Z113: 0 | AA113: 120084 | AB113: 0 | AC113: 0 | AD113: 1 | AE113: 0 | AF113: 13308 | AG113: 0 | AH113: 0 | AI113: 3750 | AJ113: 1323541.645 | AK113: 120082.8 | AL113: 0 | AM113: 0 | AN113: 13098 | AO113: 365 | AP113: 0 | AR113: 0 | AS113: 0 | AT113: 0 | AV113: 0 | AX113: 0 | AZ113: 0 | BA113: 0 | BB113: 0 | BC113: 0 | BD113: 0 | BE113: 0 | BF113: 365 | BG113: 0 | BI113: 3844.23 | BJ113: 3488.95 | BK113: 155.77 | BL113: 0.0446466702
A114: 2574 | B114: Downs View Infant School | C114: 1 | D114: 262 | E114: 0 | F114: 0 | G114: 48 | H114: 0 | I114: 48 | J114: 0 | K114: 9.034482759 | L114: 38.14559387 | M114: 12.04597701 | N114: 26.09961686 | O114: 1.003831418 | P114: 0 | Q114: 0 | R114: 0 | S114: 0 | T114: 0 | U114: 0 | V114: 0 | W114: 19.80232558 | X114: 0 | Y114: 58.75151515 | Z114: 0 | AA114: 120084 | AB114: 0 | AC114: 0 | AD114: 1 | AE114: 0 | AF114: 27648 | AG114: 0 | AH114: 0 | AI114: 3750 | AJ114: 954133.1053 | AK114: 120082.8 | AL114: 0 | AM114: 0 | AN114: 27216 | AO114: 258 | AP114: 0 | AR114: 0 | AS114: 0 | AT114: 0 | AV114: 0 | AX114: 0 | AZ114: 0 | BA114: 0 | BB114: 0 | BC114: 0 | BD114: 0 | BE114: 0 | BF114: 258 | BG114: 0 | BI114: 3821.35 | BJ114: 3363.01 | BK114: 178.65 | BL114: 0.05312205435
A115: 2578 | B115: Kingswood Primary School | C115: 1 | D115: 118 | E115: 0 | F115: 0 | G115: 9 | H115: 0 | I115: 9.567567568 | J115: 0 | K115: 3.025641026 | L115: 0 | M115: 0 | N115: 1.008547009 | O115: 5.042735043 | P115: 0 | Q115: 0 | R115: 0 | S115: 0 | T115: 0 | U115: 0 | V115: 0 | W115: 1.191919192 | X115: 0 | Y115: 20.06 | Z115: 0 | AA115: 120084 | AB115: 0 | AC115: 0 | AD115: 1 | AE115: 0 | AF115: 16093 | AG115: 0 | AH115: 0 | AI115: 3750 | AJ115: 454656.3972 | AK115: 120082.8 | AL115: 0 | AM115: 0 | AN115: 11205 | AO115: 110 | AP115: 0 | AR115: 0 | AS115: 0 | AT115: 0 | AV115: 0 | AX115: 0 | AZ115: 0 | BA115: 0 | BB115: 0 | BC115: 0 | BD115: 0 | BE115: 0 | BF115: 110 | BG115: 0 | BI115: 4131.03 | BJ115: 3113.37 | BK115: 0 | BL115: 0
A116: 2586 | B116: Senacre Wood Primary School | C116: 1 | D116: 207 | E116: 0 | F116: 0 | G116: 41 | H116: 0 | I116: 49.75961538 | J116: 0 | K116: 14 | L116: 2 | M116: 80 | N116: 18 | O116: 23 | P116: 0 | Q116: 0 | R116: 0 | S116: 0 | T116: 0 | U116: 0 | V116: 0 | W116: 9.355932203 | X116: 0 | Y116: 67.83050847 | Z116: 0 | AA116: 120084 | AB116: 0 | AC116: 0 | AD116: 1 | AE116: 0 | AF116: 21332 | AG116: 0 | AH116: 0 | AI116: 3750 | AJ116: 846942.1028 | AK116: 120082.8 | AL116: 0 | AM116: 0 | AN116: 19868 | AO116: 206 | AP116: 0 | AR116: 0 | AS116: 0 | AT116: 0 | AV116: 0 | AX116: 0 | AZ116: 0 | BA116: 0 | BB116: 0 | BC116: 0 | BD116: 0 | BE116: 0 | BF116: 206 | BG116: 0 | BI116: 4204.64 | BJ116: 3624.52 | BK116: 0 | BL116: 0
A117: 2603 | B117: Bromstone Primary School, Broadstairs | C117: 1 | D117: 481 | E117: 0 | F117: 0 | G117: 128 | H117: 0 | I117: 162.6331967 | J117: 0 | K117: 87 | L117: 18 | M117: 81 | N117: 68 | O117: 40 | P117: 12 | Q117: 0 | R117: 0 | S117: 0 | T117: 0 | U117: 0 | V117: 0 | W117: 15.95734597 | X117: 0 | Y117: 165.3801453 | Z117: 0 | AA117: 120084 | AB117: 0 | AC117: 0 | AD117: 1 | AE117: 0 | AF117: 45056 | AG117: 0 | AH117: 0 | AI117: 3750 | AJ117: 1824261.305 | AK117: 120082.8 | AL117: 0 | AM117: 0 | AN117: 41024 | AO117: 484 | AP117: 0 | AR117: 0 | AS117: 0 | AT117: 0 | AV117: 0 | AX117: 0 | AZ117: 0 | BA117: 0 | BB117: 0 | BC117: 0 | BD117: 0 | BE117: 0 | BF117: 484 | BG117: 0 | BI117: 3921.04 | BJ117: 3671.39 | BK117: 0 | BL117: 0
A118: 2607 | B118: Parkside Community Primary School | C118: 1 | D118: 89 | E118: 0 | F118: 0 | G118: 53 | H118: 0 | I118: 63.16129032 | J118: 0 | K118: 1 | L118: 0 | M118: 5 | N118: 3 | O118: 63 | P118: 0 | Q118: 0 | R118: 0 | S118: 0 | T118: 0 | U118: 0 | V118: 0 | W118: 5.705128205 | X118: 0 | Y118: 49.98630137 | Z118: 0 | AA118: 120084 | AB118: 0 | AC118: 0 | AD118: 1 | AE118: 0 | AF118: 20958 | AG118: 0 | AH118: 0 | AI118: 3750 | AJ118: 553380.0993 | AK118: 120082.8 | AL118: 0 | AM118: 0 | AN118: 18154 | AO118: 95 | AP118: 0 | AR118: 0 | AS118: 0 | AT118: 0 | AV118: 0 | AX118: 0 | AZ118: 0 | BA118: 0 | BB118: 0 | BC118: 0 | BD118: 0 | BE118: 0 | BF118: 100 | BG118: 0 | BI118: 5741.02 | BJ118: 4391.77 | BK118: 0 | BL118: 0
A119: 2611 | B119: St Stephen's Infant School | C119: 1 | D119: 268 | E119: 0 | F119: 0 | G119: 62 | H119: 0 | I119: 62 | J119: 0 | K119: 23 | L119: 3 | M119: 27 | N119: 56 | O119: 66 | P119: 0 | Q119: 0 | R119: 0 | S119: 0 | T119: 0 | U119: 0 | V119: 0 | W119: 76.78651685 | X119: 0 | Y119: 72.80924855 | Z119: 0 | AA119: 120084 | AB119: 0 | AC119: 0 | AD119: 1 | AE119: 0 | AF119: 24950 | AG119: 0 | AH119: 0 | AI119: 3750 | AJ119: 1058258.036 | AK119: 120082.8 | AL119: 0 | AM119: 0 | AN119: 24550 | AO119: 267 | AP119: 0 | AR119: 0 | AS119: 0 | AT119: 0 | AV119: 0 | AX119: 0 | AZ119: 0 | BA119: 0 | BB119: 0 | BC119: 0 | BD119: 0 | BE119: 0 | BF119: 267 | BG119: 0 | BI119: 4159.42 | BJ119: 3711.34 | BK119: 0 | BL119: 0
A120: 2615 | B120: High Firs Primary School | C120: 1 | D120: 206 | E120: 0 | F120: 0 | G120: 10 | H120: 0 | I120: 29.85507246 | J120: 0 | K120: 0 | L120: 23 | M120: 11 | N120: 22 | O120: 18 | P120: 0 | Q120: 0 | R120: 0 | S120: 0 | T120: 0 | U120: 0 | V120: 0 | W120: 10.53409091 | X120: 0 | Y120: 58.68604651 | Z120: 0 | AA120: 120084 | AB120: 0 | AC120: 0 | AD120: 1.0364 | AE120: 0 | AF120: 24950 | AG120: 0 | AH120: 0 | AI120: 3750 | AJ120: 838811.2271 | AK120: 124453.8139 | AL120: 0 | AM120: 0 | AN120: 24550 | AO120: 207 | AP120: 0 | AR120: 0 | AS120: 0 | AT120: 0 | AV120: 521.8373205 | AX120: 521.8373205 | AZ120: 16 | BA120: 0 | BB120: 16 | BC120: 0 | BD120: 24 | BE120: 0 | BF120: 207 | BG120: 0 | BI120: 4094.56 | BJ120: 3490.41 | BK120: 0 | BL120: 0
A121: 2626 | B121: Sandwich Infant School | C121: 1 | D121: 131 | E121: 0 | F121: 0 | G121: 20 | H121: 0 | I121: 20 | J121: 0 | K121: 8 | L121: 43 | M121: 4 | N121: 0 | O121: 1 | P121: 0 | Q121: 0 | R121: 0 | S121: 0 | T121: 0 | U121: 0 | V121: 0 | W121: 8.1875 | X121: 0 | Y121: 36.62365591 | Z121: 0 | AA121: 120084 | AB121: 0 | AC121: 0 | AD121: 1 | AE121: 0 | AF121: 14097 | AG121: 0 | AH121: 0 | AI121: 3750 | AJ121: 551392.6394 | AK121: 120082.8 | AL121: 0 | AM121: 0 | AN121: 13871 | AO121: 131 | AP121: 0 | AR121: 0 | AS121: 0 | AT121: 0 | AV121: 0 | AX121: 0 | AZ121: 0 | BA121: 0 | BB121: 0 | BC121: 0 | BD121: 0 | BE121: 0 | BF121: 131 | BG121: 0 | BI121: 4314.76 | BJ121: 3398.09 | BK121: 0 | BL121: 0
A122: 2627 | B122: Sandwich Junior School | C122: 1 | D122: 200 | E122: 0 | F122: 0 | G122: 39 | H122: 0 | I122: 50.22421525 | J122: 0 | K122: 14 | L122: 63 | M122: 3 | N122: 1 | O122: 1 | P122: 0 | Q122: 0 | R122: 0 | S122: 0 | T122: 0 | U122: 0 | V122: 0 | W122: 4 | X122: 0 | Y122: 44.55958549 | Z122: 0 | AA122: 120084 | AB122: 0 | AC122: 0 | AD122: 1 | AE122: 0 | AF122: 28160 | AG122: 0 | AH122: 0 | AI122: 3750 | AJ122: 841026.6461 | AK122: 120082.8 | AL122: 0 | AM122: 0 | AN122: 23046 | AO122: 221 | AP122: 0 | AR122: 0 | AS122: 0 | AT122: 0 | AV122: 0 | AX122: 0 | AZ122: 0 | BA122: 0 | BB122: 0 | BC122: 0 | BD122: 0 | BE122: 0 | BF122: 221 | BG122: 0 | BI122: 3959.85 | BJ122: 3359.43 | BK122: 0 | BL122: 0
A123: 2629 | B123: Holywell Primary School Upchurch | C123: 1 | D123: 202 | E123: 0 | F123: 0 | G123: 28 | H123: 0 | I123: 28 | J123: 0 | K123: 11 | L123: 8 | M123: 1 | N123: 3 | O123: 0 | P123: 0 | Q123: 0 | R123: 0 | S123: 0 | T123: 0 | U123: 0 | V123: 0 | W123: 18.36363636 | X123: 0 | Y123: 32.62111801 | Z123: 0 | AA123: 120084 | AB123: 0 | AC123: 0 | AD123: 1 | AE123: 0 | AF123: 23578 | AG123: 0 | AH123: 0 | AI123: 3750 | AJ123: 725114.6927 | AK123: 120082.8 | AL123: 0 | AM123: 0 | AN123: 23200 | AO123: 195 | AP123: 0 | AR123: 0 | AS123: 0 | AT123: 0 | AV123: 0 | AX123: 0 | AZ123: 0 | BA123: 0 | BB123: 0 | BC123: 0 | BD123: 0 | BE123: 0 | BF123: 195 | BG123: 0 | BI123: 3790.54 | BJ123: 3196.06 | BK123: 209.46 | BL123: 0.06553694236
A124: 2632 | B124: Sevenoaks Primary School | C124: 1 | D124: 620 | E124: 0 | F124: 0 | G124: 47 | H124: 0 | I124: 47 | J124: 0 | K124: 4.006462036 | L124: 1.001615509 | M124: 0 | N124: 1.001615509 | O124: 0 | P124: 0 | Q124: 0 | R124: 0 | S124: 0 | T124: 0 | U124: 0 | V124: 0 | W124: 78.95131086 | X124: 0 | Y124: 107.9352227 | Z124: 0 | AA124: 120084 | AB124: 0 | AC124: 0 | AD124: 1.0364 | AE124: 0 | AF124: 75264 | AG124: 0 | AH124: 0 | AI124: 3750 | AJ124: 2100488 | AK124: 124453.8139 | AL124: 0 | AM124: 0 | AN124: 74088 | AO124: 596 | AP124: 0 | AR124: 0 | AS124: 0 | AT124: 0 | AV124: 0 | AX124: 0 | AZ124: 0 | BA124: 0 | BB124: 0 | BC124: 0 | BD124: 0 | BE124: 0 | BF124: 596 | BG124: 0 | BI124: 3750 | BJ124: 3750 | BK124: 250 | BL124: 0.06666666667
A125: 2643 | B125: Swalecliffe Community Primary School | C125: 1 | D125: 616 | E125: 0 | F125: 0 | G125: 69 | H125: 0 | I125: 82.65814696 | J125: 0 | K125: 72 | L125: 7 | M125: 10 | N125: 2 | O125: 8 | P125: 0 | Q125: 0 | R125: 0 | S125: 0 | T125: 0 | U125: 0 | V125: 0 | W125: 9.142857143 | X125: 0 | Y125: 137.5309568 | Z125: 0 | AA125: 120084 | AB125: 0 | AC125: 0 | AD125: 1 | AE125: 0 | AF125: 59904 | AG125: 0 | AH125: 0 | AI125: 3750 | AJ125: 2190768 | AK125: 120082.8 | AL125: 0 | AM125: 0 | AN125: 58968 | AO125: 627 | AP125: 0 | AR125: 0 | AS125: 0 | AT125: 0 | AV125: 0 | AX125: 0 | AZ125: 0 | BA125: 0 | BB125: 0 | BC125: 0 | BD125: 0 | BE125: 0 | BF125: 627 | BG125: 0 | BI125: 3750 | BJ125: 3750 | BK125: 250 | BL125: 0.06666666667
A126: 2648 | B126: Aylesham Primary School | C126: 1 | D126: 327 | E126: 0 | F126: 0 | G126: 93 | H126: 0 | I126: 109 | J126: 0 | K126: 195 | L126: 3 | M126: 3 | N126: 110 | O126: 2 | P126: 0 | Q126: 0 | R126: 0 | S126: 0 | T126: 0 | U126: 0 | V126: 0 | W126: 15.12811388 | X126: 0 | Y126: 78.72222222 | Z126: 0 | AA126: 120084 | AB126: 0 | AC126: 0 | AD126: 1 | AE126: 0 | AF126: 27136 | AG126: 0 | AH126: 0 | AI126: 3750 | AJ126: 1083218.859 | AK126: 120082.8 | AL126: 0 | AM126: 0 | AN126: 23401 | AO126: 271 | AP126: 0 | AR126: 0 | AS126: 0 | AT126: 0 | AV126: 0 | AX126: 0 | AZ126: 0 | BA126: 0 | BB126: 0 | BC126: 0 | BD126: 0 | BE126: 0 | BF126: 271 | BG126: 0 | BI126: 3993.46 | BJ126: 3626.23 | BK126: 0 | BL126: 0
A127: 2651 | B127: Broadwater Down Primary School | C127: 1 | D127: 142 | E127: 0 | F127: 0 | G127: 27 | H127: 0 | I127: 39.79617834 | J127: 0 | K127: 1 | L127: 0 | M127: 7 | N127: 50 | O127: 0 | P127: 0 | Q127: 0 | R127: 0 | S127: 0 | T127: 0 | U127: 0 | V127: 0 | W127: 22.48333333 | X127: 0 | Y127: 46.49557522 | Z127: 0 | AA127: 120084 | AB127: 0 | AC127: 0 | AD127: 1 | AE127: 0 | AF127: 18837 | AG127: 0 | AH127: 0 | AI127: 3750 | AJ127: 688274.4907 | AK127: 120082.8 | AL127: 0 | AM127: 0 | AN127: 17740 | AO127: 161 | AP127: 0 | AR127: 0 | AS127: 0 | AT127: 0 | AV127: 0 | AX127: 0 | AZ127: 0 | BA127: 0 | BB127: 0 | BC127: 0 | BD127: 0 | BE127: 0 | BF127: 161 | BG127: 0 | BI127: 4457.26 | BJ127: 3611.6 | BK127: 0 | BL127: 0
A128: 2653 | B128: West Borough Primary School | C128: 1 | D128: 448 | E128: 0 | F128: 0 | G128: 62 | H128: 0 | I128: 98 | J128: 0 | K128: 87 | L128: 1 | M128: 3 | N128: 5 | O128: 4 | P128: 0 | Q128: 0 | R128: 0 | S128: 0 | T128: 0 | U128: 0 | V128: 0 | W128: 79.67010309 | X128: 0 | Y128: 105.5561644 | Z128: 0 | AA128: 120084 | AB128: 0 | AC128: 0 | AD128: 1 | AE128: 0 | AF128: 58368 | AG128: 0 | AH128: 0 | AI128: 3750 | AJ128: 1629610.734 | AK128: 120082.8 | AL128: 0 | AM128: 0 | AN128: 58874 | AO128: 450 | AP128: 0 | AR128: 4.08 | AS128: 0.3 | AT128: 0 | AV128: 0 | AX128: 0 | AZ128: 0 | BA128: 0 | BB128: 0 | BC128: 0 | BD128: 0 | BE128: 0 | BF128: 497 | BG128: 0 | BI128: 3750 | BJ128: 3750 | BK128: 250 | BL128: 0.06666666667
A129: 2662 | B129: Long Mead Community Primary School | C129: 1 | D129: 129 | E129: 0 | F129: 0 | G129: 55 | H129: 0 | I129: 55 | J129: 0 | K129: 14 | L129: 10 | M129: 0 | N129: 40 | O129: 0 | P129: 0 | Q129: 0 | R129: 0 | S129: 0 | T129: 0 | U129: 0 | V129: 0 | W129: 4.526315789 | X129: 0 | Y129: 48.52293578 | Z129: 0 | AA129: 120084 | AB129: 0 | AC129: 0 | AD129: 1 | AE129: 0 | AF129: 18463 | AG129: 0 | AH129: 0 | AI129: 3750 | AJ129: 637995.2656 | AK129: 120082.8 | AL129: 0 | AM129: 0 | AN129: 17401 | AO129: 143 | AP129: 0 | AR129: 4.08 | AS129: 0.9 | AT129: 0.17 | AV129: 0 | AX129: 0 | AZ129: 0 | BA129: 0 | BB129: 0 | BC129: 0 | BD129: 0 | BE129: 0 | BF129: 158 | BG129: 0 | BI129: 4687.34 | BJ129: 3756.46 | BK129: 0 | BL129: 0
A130: 2672 | B130: Palm Bay Primary School | C130: 1 | D130: 424 | E130: 0 | F130: 0 | G130: 46 | H130: 0 | I130: 49.64871194 | J130: 0 | K130: 25 | L130: 1 | M130: 24 | N130: 32 | O130: 15 | P130: 44 | Q130: 0 | R130: 0 | S130: 0 | T130: 0 | U130: 0 | V130: 0 | W130: 9.370165746 | X130: 0 | Y130: 106.8808864 | Z130: 0 | AA130: 120084 | AB130: 0 | AC130: 0 | AD130: 1 | AE130: 0 | AF130: 54272 | AG130: 0 | AH130: 0 | AI130: 3750 | AJ130: 1528545.006 | AK130: 120082.8 | AL130: 0 | AM130: 0 | AN130: 53424 | AO130: 427 | AP130: 0 | AR130: 0 | AS130: 0 | AT130: 0 | AV130: 0 | AX130: 0 | AZ130: 0 | BA130: 0 | BB130: 0 | BC130: 0 | BD130: 0 | BE130: 0 | BF130: 427 | BG130: 0 | BI130: 3750 | BJ130: 3750 | BK130: 250 | BL130: 0.06666666667
A131: 2674 | B131: King's Farm Primary School | C131: 1 | D131: 360 | E131: 0 | F131: 0 | G131: 145 | H131: 0 | I131: 171.4763231 | J131: 0 | K131: 69 | L131: 34 | M131: 20 | N131: 7 | O131: 158 | P131: 0 | Q131: 0 | R131: 0 | S131: 0 | T131: 0 | U131: 0 | V131: 0 | W131: 44.7133758 | X131: 0 | Y131: 139.7938144 | Z131: 0 | AA131: 120084 | AB131: 0 | AC131: 0 | AD131: 1 | AE131: 0 | AF131: 43264 | AG131: 0 | AH131: 0 | AI131: 3750 | AJ131: 1796111.688 | AK131: 120082.8 | AL131: 0 | AM131: 0 | AN131: 38341 | AO131: 358 | AP131: 0 | AR131: 4.08 | AS131: 0.9 | AT131: 0.39 | AV131: 0 | AX131: 0 | AZ131: 0 | BA131: 0 | BB131: 0 | BC131: 0 | BD131: 0 | BE131: 0 | BF131: 427 | BG131: 0 | BI131: 4930.98 | BJ131: 4597.42 | BK131: 0 | BL131: 0
A132: 2680 | B132: Kings Hill School | C132: 1 | D132: 477 | E132: 0 | F132: 0 | G132: 30 | H132: 0 | I132: 31.8 | J132: 0 | K132: 12 | L132: 11 | M132: 0 | N132: 0 | O132: 3 | P132: 0 | Q132: 0 | R132: 0 | S132: 0 | T132: 0 | U132: 0 | V132: 0 | W132: 17.15827338 | X132: 0 | Y132: 97.785 | Z132: 0 | AA132: 120084 | AB132: 0 | AC132: 0 | AD132: 1 | AE132: 0 | AF132: 52224 | AG132: 0 | AH132: 0 | AI132: 3750 | AJ132: 1686781 | AK132: 120082.8 | AL132: 0 | AM132: 0 | AN132: 54781 | AO132: 480 | AP132: 0 | AR132: 0 | AS132: 0 | AT132: 0 | AV132: 0 | AX132: 0 | AZ132: 0 | BA132: 0 | BB132: 0 | BC132: 0 | BD132: 0 | BE132: 0 | BF132: 480 | BG132: 0 | BI132: 3750 | BJ132: 3750 | BK132: 250 | BL132: 0.06666666667
A133: 2682 | B133: New Ash Green Primary School | C133: 1 | D133: 402 | E133: 0 | F133: 0 | G133: 24 | H133: 0 | I133: 45.68181818 | J133: 0 | K133: 112 | L133: 16 | M133: 1 | N133: 0 | O133: 1 | P133: 0 | Q133: 0 | R133: 0 | S133: 0 | T133: 0 | U133: 0 | V133: 0 | W133: 9.403508772 | X133: 0 | Y133: 116.748503 | Z133: 0 | AA133: 120084 | AB133: 0 | AC133: 0 | AD133: 1.0364 | AE133: 0 | AF133: 33792 | AG133: 0 | AH133: 0 | AI133: 3750 | AJ133: 1428133.884 | AK133: 124453.8139 | AL133: 0 | AM133: 0 | AN133: 33264 | AO133: 399 | AP133: 0 | AR133: 0 | AS133: 0 | AT133: 0 | AV133: 624.7546764 | AX133: 624.7546764 | AZ133: 31 | BA133: 0 | BB133: 31 | BC133: 0 | BD133: 27 | BE133: 0 | BF133: 399 | BG133: 0 | BI133: 3750 | BJ133: 3750 | BK133: 250 | BL133: =BK133/BJ133 -> 0.06666666667
A134: 2689 | B134: Craylands School, The | C134: 1 | D134: 331 | E134: 0 | F134: 0 | G134: 48 | H134: 0 | I134: 64.88039867 | J134: 0 | K134: 114 | L134: 13 | M134: 0 | N134: 1 | O134: 48 | P134: 0 | Q134: 0 | R134: 0 | S134: 0 | T134: 0 | U134: 0 | V134: 0 | W134: 23.37918216 | X134: 0 | Y134: 97.06015038 | Z134: 0 | AA134: 120084 | AB134: 0 | AC134: 0 | AD134: 1.0364 | AE134: 0 | AF134: 61952 | AG134: 76874.98553 | AH134: 0 | AI134: 3750 | AJ134: 1240569.432 | AK134: 124453.8139 | AL134: 0 | AM134: 0 | AN134: 32508 | AO134: 295 | AP134: 0 | AR134: 0 | AS134: 0 | AT134: 0 | AV134: 0 | AX134: 0 | AZ134: 0 | BA134: 0 | BB134: 0 | BC134: 0 | BD134: 0 | BE134: 0 | BF134: 295 | BG134: 0 | BI134: 3966.53 | BJ134: 3590.53 | BK134: =IF(AND(C134=1,BI134<3883.495),4000-BI134,0) -> 0 | BL134: 0
A135: 2692 | B135: Churchill School, The | C135: 1 | D135: 399 | E135: 0 | F135: 0 | G135: 56 | H135: 0 | I135: 70.86861314 | J135: 0 | K135: 101 | L135: 5 | M135: 17 | N135: 2 | O135: 14 | P135: 2 | Q135: 0 | R135: 0 | S135: 0 | T135: 0 | U135: 0 | V135: 0 | W135: 22.93103448 | X135: 0 | Y135: 86.84117647 | Z135: 0 | AA135: 120084 | AB135: 0 | AC135: 0 | AD135: 1 | AE135: 0 | AF135: 12595 | AG135: 0 | AH135: 0 | AI135: 3750 | AJ135: 1414470.23 | AK135: 120082.8 | AL135: 0 | AM135: 0 | AN135: 12398 | AO135: 408 | AP135: 0 | AR135: 0 | AS135: 0 | AT135: 0 | AV135: 0 | AX135: 0 | AZ135: 0 | BA135: 0 | BB135: 0 | BC135: 0 | BD135: 0 | BE135: 0 | BF135: 408 | BG135: 0 | BI135: 3750 | BJ135: 3750 | BK135: 250 | BL135: 0.06666666667
A136: 3010 | B136: St Paul's CEP School | C136: 1 | D136: 111 | E136: 0 | F136: 0 | G136: 8 | H136: 0 | I136: 8 | J136: 0 | K136: 1 | L136: 4 | M136: 1 | N136: 0 | O136: 10 | P136: 0 | Q136: 0 | R136: 0 | S136: 0 | T136: 0 | U136: 0 | V136: 0 | W136: 1.15625 | X136: 0 | Y136: 21.96875 | Z136: 0 | AA136: 120084 | AB136: 0 | AC136: 0 | AD136: 1.0364 | AE136: 0 | AF136: 10729 | AG136: 0 | AH136: 0 | AI136: 3750 | AJ136: 473699.7136 | AK136: 124453.8139 | AL136: 0 | AM136: 0 | AN136: 10557 | AO136: 108 | AP136: 0 | AR136: 0 | AS136: 0 | AT136: 0 | AV136: 691.769024 | AX136: 691.769024 | AZ136: 0 | BA136: 0 | BB136: 6 | BC136: 0 | BD136: 0 | BE136: 0 | BF136: 108 | BG136: 0 | BI136: 4400.93 | BJ136: 3279.72 | BK136: 0 | BL136: 0
A137: 3015 | B137: Fawkham CEP School | C137: 1 | D137: 103 | E137: 0 | F137: 0 | G137: 3 | H137: 0 | I137: 4.904761905 | J137: 0 | K137: 7 | L137: 4 | M137: 0 | N137: 2 | O137: 0 | P137: 0 | Q137: 0 | R137: 0 | S137: 0 | T137: 0 | U137: 0 | V137: 0 | W137: 1.170454545 | X137: 0 | Y137: 15.3908046 | Z137: 0 | AA137: 120084 | AB137: 0 | AC137: 0 | AD137: 1.0364 | AE137: 0 | AF137: 21083 | AG137: 0 | AH137: 0 | AI137: 3750 | AJ137: 462673.8917 | AK137: 124453.8139 | AL137: 0 | AM137: 0 | AN137: 20745 | AO137: 105 | AP137: 0 | AR137: 0 | AS137: 0 | AT137: 0 | AV137: 0 | AX137: 0 | AZ137: 0 | BA137: 0 | BB137: 0 | BC137: 0 | BD137: 0 | BE137: 0 | BF137: 105 | BG137: 0 | BI137: 4384.3 | BJ137: 3176 | BK137: 0 | BL137: 0
A138: 3020 | B138: Sedley's CEP School | C138: 1 | D138: 98 | E138: 0 | F138: 0 | G138: 5 | H138: 0 | I138: 7.762376238 | J138: 0 | K138: 4.041237113 | L138: 8.082474227 | M138: 2.020618557 | N138: 0 | O138: 6.06185567 | P138: 0 | Q138: 0 | R138: 0 | S138: 0 | T138: 0 | U138: 0 | V138: 0 | W138: 2.333333333 | X138: 0 | Y138: 25.725 | Z138: 0 | AA138: 120084 | AB138: 0 | AC138: 0 | AD138: 1.0364 | AE138: 0 | AF138: 5863 | AG138: 0 | AH138: 0 | AI138: 3750 | AJ138: 438786.0641 | AK138: 124453.8139 | AL138: 0 | AM138: 0 | AN138: 4973 | AO138: 98 | AP138: 0 | AR138: 0 | AS138: 0 | AT138: 0 | AV138: 0 | AX138: 0 | AZ138: 0 | BA138: 0 | BB138: 0 | BC138: 0 | BD138: 0 | BE138: 0 | BF138: 100 | BG138: 0 | BI138: 4631.84 | BJ138: 3361.89 | BK138: 0 | BL138: 0
A139: 3022 | B139: Benenden CEP School | C139: 1 | D139: 204 | E139: 0 | F139: 0 | G139: 19 | H139: 0 | I139: 19 | J139: 0 | K139: 21.20792079 | L139: 1.00990099 | M139: 0 | N139: 0 | O139: 0 | P139: 0 | Q139: 0 | R139: 0 | S139: 0 | T139: 0 | U139: 0 | V139: 0 | W139: 0 | X139: 0 | Y139: 42.24852071 | Z139: 0 | AA139: 120084 | AB139: 0 | AC139: 0 | AD139: 1 | AE139: 0 | AF139: 6986 | AG139: 0 | AH139: 15101 | AI139: 3750 | AJ139: 637398.0812 | AK139: 120082.8 | AL139: 0 | AM139: 0 | AN139: 6024 | AO139: 167 | AP139: 0 | AR139: 0 | AS139: 0 | AT139: 0 | AV139: 0 | AX139: 0 | AZ139: 0 | BA139: 0 | BB139: 0 | BC139: 0 | BD139: 0 | BE139: 0 | BF139: 167 | BG139: 0 | BI139: 3750 | BJ139: 3824.02 | BK139: 250 | BL139: 0.06537622711
A140: 3023 | B140: Bidborough CEP School | C140: 1 | D140: 203 | E140: 0 | F140: 0 | G140: 12 | H140: 0 | I140: 12 | J140: 0 | K140: 0 | L140: 6 | M140: 0 | N140: 0 | O140: 0 | P140: 0 | Q140: 0 | R140: 0 | S140: 0 | T140: 0 | U140: 0 | V140: 0 | W140: 11.73410405 | X140: 0 | Y140: 52.30674847 | Z140: 0 | AA140: 120084 | AB140: 0 | AC140: 0 | AD140: 1 | AE140: 0 | AF140: 14970 | AG140: 0 | AH140: 0 | AI140: 3750 | AJ140: 762725.4275 | AK140: 120082.8 | AL140: 0 | AM140: 0 | AN140: 14730 | AO140: 210 | AP140: 0 | AR140: 0 | AS140: 0 | AT140: 0 | AV140: 0 | AX140: 0 | AZ140: 0 | BA140: 0 | BB140: 0 | BC140: 0 | BD140: 0 | BE140: 0 | BF140: 210 | BG140: 0 | BI140: 3788.98 | BJ140: 3197.43 | BK140: 211.02 | BL140: 0.06599675364
A141: 3027 | B141: Cranbrook CEP School | C141: 1 | D141: 174 | E141: 0 | F141: 0 | G141: 51 | H141: 0 | I141: 59.7791411 | J141: 0 | K141: 1 | L141: 0 | M141: 0 | N141: 0 | O141: 0 | P141: 0 | Q141: 0 | R141: 0 | S141: 0 | T141: 0 | U141: 0 | V141: 0 | W141: 9.6 | X141: 0 | Y141: 39.66176471 | Z141: 0 | AA141: 120084 | AB141: 0 | AC141: 0 | AD141: 1 | AE141: 0 | AF141: 26112 | AG141: 0 | AH141: 0 | AI141: 3750 | AJ141: 666084.88 | AK141: 120082.8 | AL141: 0 | AM141: 0 | AN141: 25704 | AO141: 160 | AP141: 0 | AR141: 0 | AS141: 0 | AT141: 0 | AV141: 0 | AX141: 0 | AZ141: 0 | BA141: 0 | BB141: 0 | BC141: 0 | BD141: 0 | BE141: 0 | BF141: 160 | BG141: 0 | BI141: 4045.88 | BJ141: 3355.75 | BK141: 0 | BL141: 0
A142: 3029 | B142: Goudhurst & Kilndown CEP School | C142: 1 | D142: 212 | E142: 0 | F142: 0 | G142: 17 | H142: 0 | I142: 17.8317757 | J142: 0 | K142: 2 | L142: 0 | M142: 10 | N142: 0 | O142: 0 | P142: 0 | Q142: 0 | R142: 0 | S142: 0 | T142: 0 | U142: 0 | V142: 0 | W142: 3.494505495 | X142: 0 | Y142: 24.50867052 | Z142: 0 | AA142: 120084 | AB142: 0 | AC142: 0 | AD142: 1 | AE142: 0 | AF142: 27904 | AG142: 0 | AH142: 0 | AI142: 3750 | AJ142: 767549.2372 | AK142: 120082.8 | AL142: 0 | AM142: 0 | AN142: 26964 | AO142: 212 | AP142: 0 | AR142: 0 | AS142: 0 | AT142: 0 | AV142: 0 | AX142: 0 | AZ142: 0 | BA142: 0 | BB142: 0 | BC142: 0 | BD142: 0 | BE142: 0 | BF142: 212 | BG142: 0 | BI142: 3750 | BJ142: 3750 | BK142: 250 | BL142: 0.06666666667
A143: 3032 | B143: Hawkhurst CEP School | C143: 1 | D143: 198 | E143: 0 | F143: 0 | G143: 53 | H143: 0 | I143: 62.58031088 | J143: 0 | K143: 78 | L143: 0 | M143: 0 | N143: 1 | O143: 0 | P143: 0 | Q143: 0 | R143: 0 | S143: 0 | T143: 0 | U143: 0 | V143: 0 | W143: 9.372781065 | X143: 0 | Y143: 47.08536585 | Z143: 0 | AA143: 120084 | AB143: 0 | AC143: 0 | AD143: 1 | AE143: 0 | AF143: 34560 | AG143: 0 | AH143: 0 | AI143: 3750 | AJ143: 789924.1644 | AK143: 120082.8 | AL143: 0 | AM143: 0 | AN143: 34020 | AO143: 195 | AP143: 0 | AR143: 0 | AS143: 0 | AT143: 0 | AV143: 0 | AX143: 0 | AZ143: 0 | BA143: 0 | BB143: 0 | BC143: 0 | BD143: 0 | BE143: 0 | BF143: 195 | BG143: 0 | BI143: 4031.81 | BJ143: 3425.32 | BK143: 0 | BL143: 0
A144: 3033 | B144: Hildenborough CEP School | C144: 1 | D144: 200 | E144: 0 | F144: 0 | G144: 10 | H144: 0 | I144: 15.6097561 | J144: 0 | K144: 4.020100503 | L144: 11.05527638 | M144: 0 | N144: 0 | O144: 0 | P144: 0 | Q144: 0 | R144: 0 | S144: 0 | T144: 0 | U144: 0 | V144: 0 | W144: 6.936416185 | X144: 0 | Y144: 38.0952381 | Z144: 0 | AA144: 120084 | AB144: 0 | AC144: 0 | AD144: 1 | AE144: 0 | AF144: 22580 | AG144: 0 | AH144: 0 | AI144: 3750 | AJ144: 757060.0274 | AK144: 120082.8 | AL144: 0 | AM144: 0 | AN144: 25591 | AO144: 204 | AP144: 0 | AR144: 0 | AS144: 0 | AT144: 0 | AV144: 0 | AX144: 0 | AZ144: 0 | BA144: 0 | BB144: 0 | BC144: 0 | BD144: 0 | BE144: 0 | BF144: 203 | BG144: 0 | BI144: 3750 | BJ144: 3750 | BK144: 250 | BL144: 0.06666666667
A145: 3034 | B145: Lamberhurst St Mary's CEP School | C145: 1 | D145: 204 | E145: 0 | F145: 0 | G145: 8 | H145: 0 | I145: 8.912621359 | J145: 0 | K145: 2 | L145: 0 | M145: 0 | N145: 0 | O145: 0 | P145: 0 | Q145: 0 | R145: 0 | S145: 0 | T145: 0 | U145: 0 | V145: 0 | W145: 5.862068966 | X145: 0 | Y145: 40.3255814 | Z145: 0 | AA145: 120084 | AB145: 0 | AC145: 0 | AD145: 1 | AE145: 0 | AF145: 27904 | AG145: 0 | AH145: 0 | AI145: 3750 | AJ145: 761605.1011 | AK145: 120082.8 | AL145: 0 | AM145: 0 | AN145: 27468 | AO145: 209 | AP145: 0 | AR145: 0 | AS145: 0 | AT145: 0 | AV145: 0 | AX145: 0 | AZ145: 0 | BA145: 0 | BB145: 0 | BC145: 0 | BD145: 0 | BE145: 0 | BF145: 209 | BG145: 0 | BI145: 3750 | BJ145: 3750 | BK145: 250 | BL145: 0.06666666667
A146: 3035 | B146: Seal CEP School | C146: 1 | D146: 296 | E146: 0 | F146: 0 | G146: 40 | H146: 0 | I146: 69.46938776 | J146: 0 | K146: 2 | L146: 0 | M146: 0 | N146: 0 | O146: 0 | P146: 0 | Q146: 0 | R146: 0 | S146: 0 | T146: 0 | U146: 0 | V146: 0 | W146: 16.64257028 | X146: 0 | Y146: 64.34782609 | Z146: 0 | AA146: 120084 | AB146: 0 | AC146: 0 | AD146: 1.0364 | AE146: 0 | AF146: 17839 | AG146: 0 | AH146: 0 | AI146: 3750 | AJ146: 1050744.221 | AK146: 124453.8139 | AL146: 0 | AM146: 0 | AN146: 14234 | AO146: 282 | AP146: 0 | AR146: 0 | AS146: 0 | AT146: 0 | AV146: 0 | AX146: 0 | AZ146: 0 | BA146: 0 | BB146: 0 | BC146: 0 | BD146: 0 | BE146: 0 | BF146: 282 | BG146: 0 | BI146: 3777.2 | BJ146: 3356.74 | BK146: 222.8 | BL146: 0.06637392232
A147: 3037 | B147: St John's CEP School, Sevenoaks | C147: 1 | D147: 213 | E147: 0 | F147: 0 | G147: 11 | H147: 0 | I147: 19.12653061 | J147: 0 | K147: 0 | L147: 1 | M147: 0 | N147: 0 | O147: 0 | P147: 0 | Q147: 0 | R147: 0 | S147: 0 | T147: 0 | U147: 0 | V147: 0 | W147: 17.45901639 | X147: 0 | Y147: 39.07100592 | Z147: 0 | AA147: 120084 | AB147: 0 | AC147: 0 | AD147: 1.0364 | AE147: 0 | AF147: 22330 | AG147: 0 | AH147: 0 | AI147: 3750 | AJ147: 992490.0895 | AK147: 124453.8139 | AL147: 0 | AM147: 0 | AN147: 19185 | AO147: 240 | AP147: 0 | AR147: 0 | AS147: 0 | AT147: 0 | AV147: 0 | AX147: 0 | AZ147: 0 | BA147: 0 | BB147: 0 | BC147: 0 | BD147: 0 | BE147: 0 | BF147: 240 | BG147: 0 | BI147: 4138.86 | BJ147: 3554.56 | BK147: 0 | BL147: 0
A148: 3042 | B148: Speldhurst CEP School | C148: 1 | D148: 194 | E148: 0 | F148: 0 | G148: 3 | H148: 0 | I148: 3.197802198 | J148: 0 | K148: 1 | L148: 0 | M148: 0 | N148: 0 | O148: 0 | P148: 0 | Q148: 0 | R148: 0 | S148: 0 | T148: 0 | U148: 0 | V148: 0 | W148: 3.548780488 | X148: 0 | Y148: 20.83221477 | Z148: 0 | AA148: 120084 | AB148: 0 | AC148: 0 | AD148: 1 | AE148: 0 | AF148: 3098 | AG148: 0 | AH148: 0 | AI148: 3750 | AJ148: 630871.7768 | AK148: 120082.8 | AL148: 0 | AM148: 0 | AN148: 3049 | AO148: 177 | AP148: 0 | AR148: 0 | AS148: 0 | AT148: 0 | AV148: 0 | AX148: 0 | AZ148: 0 | BA148: 0 | BB148: 0 | BC148: 0 | BD148: 0 | BE148: 0 | BF148: 177 | BG148: 0 | BI148: 3750 | BJ148: 3750 | BK148: 250 | BL148: 0.06666666667
A149: 3043 | B149: Sundridge & Brasted CEP School | C149: 1 | D149: 91 | E149: 0 | F149: 0 | G149: 12 | H149: 0 | I149: 22 | J149: 0 | K149: 0 | L149: 4 | M149: 0 | N149: 0 | O149: 0 | P149: 0 | Q149: 0 | R149: 0 | S149: 0 | T149: 0 | U149: 0 | V149: 0 | W149: 5.986842105 | X149: 0 | Y149: 13.38235294 | Z149: 0 | AA149: 120084 | AB149: 0 | AC149: 0 | AD149: 1.0364 | AE149: 0 | AF149: 7111 | AG149: 0 | AH149: 0 | AI149: 3750 | AJ149: 415550.4056 | AK149: 124453.8139 | AL149: 0 | AM149: 0 | AN149: 6394 | AO149: 91 | AP149: 0 | AR149: 0 | AS149: 0 | AT149: 0 | AV149: 0 | AX149: 0 | AZ149: 0 | BA149: 0 | BB149: 0 | BC149: 0 | BD149: 0 | BE149: 0 | BF149: 100 | BG149: 0 | BI149: 4662.78 | BJ149: 3295.14 | BK149: 0 | BL149: 0
A150: 3050 | B150: St John's CEP School | C150: 1 | D150: 644 | E150: 0 | F150: 0 | G150: 36 | H150: 0 | I150: 50.60708783 | J150: 0 | K150: 7 | L150: 31 | M150: 19 | N150: 0 | O150: 0 | P150: 0 | Q150: 0 | R150: 0 | S150: 0 | T150: 0 | U150: 0 | V150: 0 | W150: 74.66666667 | X150: 0 | Y150: 168.2089552 | Z150: 0 | AA150: 120084 | AB150: 0 | AC150: 0 | AD150: 1 | AE150: 0 | AF150: 73216 | AG150: 0 | AH150: 0 | AI150: 3750 | AJ150: 2278672 | AK150: 120082.8 | AL150: 0 | AM150: 0 | AN150: 72072 | AO150: 649 | AP150: 0 | AR150: 0 | AS150: 0 | AT150: 0 | AV150: 0 | AX150: 0 | AZ150: 0 | BA150: 0 | BB150: 0 | BC150: 0 | BD150: 0 | BE150: 0 | BF150: 649 | BG150: 0 | BI150: 3750 | BJ150: 3750 | BK150: 250 | BL150: 0.06666666667
A151: 3052 | B151: St Mark's CEP School | C151: 1 | D151: 321 | E151: 0 | F151: 0 | G151: 57 | H151: 0 | I151: 70.53821656 | J151: 0 | K151: 11.034375 | L151: 0 | M151: 0 | N151: 74.23125 | O151: 0 | P151: 0 | Q151: 0 | R151: 0 | S151: 0 | T151: 0 | U151: 0 | V151: 0 | W151: 41.38327526 | X151: 0 | Y151: 91.88931298 | Z151: 0 | AA151: 120084 | AB151: 0 | AC151: 0 | AD151: 1 | AE151: 0 | AF151: 45568 | AG151: 0 | AH151: 0 | AI151: 3750 | AJ151: 1174851.377 | AK151: 120082.8 | AL151: 0 | AM151: 0 | AN151: 44856 | AO151: 309 | AP151: 0 | AR151: 0 | AS151: 0 | AT151: 0 | AV151: 0 | AX151: 0 | AZ151: 0 | BA151: 0 | BB151: 0 | BC151: 0 | BD151: 0 | BE151: 0 | BF151: 309 | BG151: 0 | BI151: 3839.04 | BJ151: 3464.95 | BK151: 160.96 | BL151: 0.04645377278
A152: 3053 | B152: St Peter's CEP School | C152: 1 | D152: 150 | E152: 0 | F152: 0 | G152: 15 | H152: 0 | I152: 22.02797203 | J152: 0 | K152: 1 | L152: 1 | M152: 0 | N152: 1 | O152: 0 | P152: 0 | Q152: 0 | R152: 0 | S152: 0 | T152: 0 | U152: 0 | V152: 0 | W152: 11.25 | X152: 0 | Y152: 28.20512821 | Z152: 0 | AA152: 120084 | AB152: 0 | AC152: 0 | AD152: 1 | AE152: 0 | AF152: 11477 | AG152: 0 | AH152: 7250 | AI152: 3750 | AJ152: 561678.1451 | AK152: 120082.8 | AL152: 0 | AM152: 0 | AN152: 9850 | AO152: 139 | AP152: 0 | AR152: 0 | AS152: 0 | AT152: 0 | AV152: 0 | AX152: 0 | AZ152: 0 | BA152: 0 | BB152: 0 | BC152: 0 | BD152: 0 | BE152: 0 | BF152: 139 | BG152: 0 | BI152: 3978.22 | BJ152: 3225.99 | BK152: 0 | BL152: 0
A153: 3054 | B153: Crockham Hill CEP School | C153: 1 | D153: 143 | E153: 0 | F153: 0 | G153: 3 | H153: 0 | I153: 9.862068966 | J153: 0 | K153: 9 | L153: 7 | M153: 0 | N153: 0 | O153: 0 | P153: 0 | Q153: 0 | R153: 0 | S153: 0 | T153: 0 | U153: 0 | V153: 0 | W153: 1.172131148 | X153: 0 | Y153: 33.36666667 | Z153: 0 | AA153: 120084 | AB153: 0 | AC153: 0 | AD153: 1.0364 | AE153: 0 | AF153: 17964 | AG153: 0 | AH153: 12500 | AI153: 3750 | AJ153: 587136.992 | AK153: 124453.8139 | AL153: 0 | AM153: 0 | AN153: 17676 | AO153: 142 | AP153: 0 | AR153: 0 | AS153: 0 | AT153: 0 | AV153: 0 | AX153: 0 | AZ153: 0 | BA153: 0 | BB153: 0 | BC153: 0 | BD153: 0 | BE153: 0 | BF153: 142 | BG153: 0 | BI153: 4133.98 | BJ153: 3351.07 | BK153: 0 | BL153: 0
A154: 3055 | B154: Churchill CEP School | C154: 1 | D154: 227 | E154: 0 | F154: 0 | G154: 30 | H154: 0 | I154: 39.44015444 | J154: 0 | K154: 4 | L154: 3 | M154: 0 | N154: 0 | O154: 0 | P154: 0 | Q154: 0 | R154: 0 | S154: 0 | T154: 0 | U154: 0 | V154: 0 | W154: 8.233160622 | X154: 0 | Y154: 39.84574468 | Z154: 0 | AA154: 120084 | AB154: 0 | AC154: 0 | AD154: 1.0364 | AE154: 0 | AF154: 28928 | AG154: 0 | AH154: 0 | AI154: 3750 | AJ154: 951992.2491 | AK154: 124453.8139 | AL154: 0 | AM154: 0 | AN154: 28476 | AO154: 257 | AP154: 0 | AR154: 0 | AS154: 0 | AT154: 0 | AV154: 0 | AX154: 0 | AZ154: 0 | BA154: 0 | BB154: 0 | BC154: 0 | BD154: 0 | BE154: 0 | BF154: 257 | BG154: 0 | BI154: 3831.62 | BJ154: 3283.36 | BK154: 168.38 | BL154: 0.05128283222
A155: 3057 | B155: St Peter's CEP School | C155: 1 | D155: 173 | E155: 0 | F155: 0 | G155: 23 | H155: 0 | I155: 25.01204819 | J155: 0 | K155: 16 | L155: 1 | M155: 16 | N155: 0 | O155: 5 | P155: 0 | Q155: 0 | R155: 0 | S155: 0 | T155: 0 | U155: 0 | V155: 0 | W155: 8.127516779 | X155: 0 | Y155: 39.10273973 | Z155: 0 | AA155: 120084 | AB155: 0 | AC155: 0 | AD155: 1 | AE155: 0 | AF155: 16342 | AG155: 0 | AH155: 10199 | AI155: 3750 | AJ155: 658033.7166 | AK155: 120082.8 | AL155: 0 | AM155: 0 | AN155: 19453 | AO155: 164 | AP155: 0 | AR155: 0 | AS155: 0 | AT155: 0 | AV155: 0 | AX155: 0 | AZ155: 0 | BA155: 0 | BB155: 0 | BC155: 0 | BD155: 0 | BE155: 0 | BF155: 164 | BG155: 0 | BI155: 3973.77 | BJ155: 3338.6 | BK155: 0 | BL155: 0
A156: 3061 | B156: Bredhurst CEP School | C156: 1 | D156: 125 | E156: 0 | F156: 0 | G156: 5 | H156: 0 | I156: 8 | J156: 0 | K156: 1 | L156: 7 | M156: 1 | N156: 1 | O156: 2 | P156: 0 | Q156: 0 | R156: 0 | S156: 0 | T156: 0 | U156: 0 | V156: 0 | W156: 6.818181818 | X156: 0 | Y156: 28.93518519 | Z156: 0 | AA156: 120084 | AB156: 0 | AC156: 0 | AD156: 1 | AE156: 0 | AF156: 15220 | AG156: 0 | AH156: 0 | AI156: 3750 | AJ156: 515814.1257 | AK156: 120082.8 | AL156: 0 | AM156: 0 | AN156: 16898 | AO156: 125 | AP156: 0 | AR156: 0 | AS156: 0 | AT156: 0 | AV156: 0 | AX156: 0 | AZ156: 0 | BA156: 0 | BB156: 0 | BC156: 0 | BD156: 0 | BE156: 0 | BF156: 125 | BG156: 0 | BI156: 4142.93 | BJ156: 3182.26 | BK156: 0 | BL156: 0
A157: 3062 | B157: Burham CEP School | C157: 1 | D157: 162 | E157: 0 | F157: 0 | G157: 15 | H157: 0 | I157: 26.03571429 | J157: 0 | K157: 36 | L157: 6 | M157: 3 | N157: 3 | O157: 3 | P157: 0 | Q157: 0 | R157: 0 | S157: 0 | T157: 0 | U157: 0 | V157: 0 | W157: 4.595744681 | X157: 0 | Y157: 35.47445255 | Z157: 0 | AA157: 120084 | AB157: 0 | AC157: 0 | AD157: 1 | AE157: 0 | AF157: 22081 | AG157: 0 | AH157: 0 | AI157: 3750 | AJ157: 683368.894 | AK157: 120082.8 | AL157: 0 | AM157: 0 | AN157: 25100 | AO157: 172 | AP157: 0 | AR157: 0 | AS157: 0 | AT157: 0 | AV157: 0 | AX157: 0 | AZ157: 0 | BA157: 0 | BB157: 0 | BC157: 0 | BD157: 0 | BE157: 0 | BF157: 172 | BG157: 0 | BI157: 4000.8 | BJ157: 3259.54 | BK157: 0 | BL157: 0
A158: 3067 | B158: Harrietsham CEP School | C158: 1 | D158: 221 | E158: 0 | F158: 0 | G158: 27 | H158: 0 | I158: 40.46478873 | J158: 0 | K158: 0 | L158: 1 | M158: 0 | N158: 0 | O158: 2 | P158: 0 | Q158: 0 | R158: 0 | S158: 0 | T158: 0 | U158: 0 | V158: 0 | W158: 3.583783784 | X158: 0 | Y158: 56.16574586 | Z158: 0 | AA158: 120084 | AB158: 0 | AC158: 0 | AD158: 1 | AE158: 0 | AF158: 30976 | AG158: 0 | AH158: 0 | AI158: 3750 | AJ158: 800739.487 | AK158: 120082.8 | AL158: 0 | AM158: 0 | AN158: 32414 | AO158: 212 | AP158: 0 | AR158: 0 | AS158: 0 | AT158: 0 | AV158: 0 | AX158: 0 | AZ158: 0 | BA158: 0 | BB158: 0 | BC158: 0 | BD158: 0 | BE158: 0 | BF158: 212 | BG158: 0 | BI158: 3781.05 | BJ158: 3237.68 | BK158: 218.95 | BL158: 0.06762558375
A159: 3069 | B159: Leeds & Broomfield CEP School | C159: 1 | D159: 62 | E159: 0 | F159: 0 | G159: 13 | H159: 0 | I159: 14.68421053 | J159: 0 | K159: 2.066666667 | L159: 0 | M159: 1.033333333 | N159: 2.066666667 | O159: 0 | P159: 0 | Q159: 0 | R159: 0 | S159: 0 | T159: 0 | U159: 0 | V159: 0 | W159: 0 | X159: 0 | Y159: 13.52727273 | Z159: 0 | AA159: 120084 | AB159: 0 | AC159: 0 | AD159: 1 | AE159: 0 | AF159: 5489 | AG159: 0 | AH159: 0 | AI159: 3750 | AJ159: 369120.2231 | AK159: 120082.8 | AL159: 0 | AM159: 0 | AN159: 6895 | AO159: 76 | AP159: 0 | AR159: 0 | AS159: 0 | AT159: 0 | AV159: 0 | AX159: 0 | AZ159: 0 | BA159: 0 | BB159: 0 | BC159: 0 | BD159: 0 | BE159: 0 | BF159: 100 | BG159: 0 | BI159: 5206.04 | BJ159: 3269.2 | BK159: 0 | BL159: 0
A160: 3072 | B160: St Michael's CEJ School, Maidstone | C160: 1 | D160: 169 | E160: 0 | F160: 0 | G160: 18 | H160: 0 | I160: 30.54216867 | J160: 0 | K160: 33 | L160: 0 | M160: 1 | N160: 9 | O160: 1 | P160: 0 | Q160: 0 | R160: 0 | S160: 0 | T160: 0 | U160: 0 | V160: 0 | W160: 17 | X160: 0 | Y160: 37.55555556 | Z160: 0 | AA160: 120084 | AB160: 0 | AC160: 0 | AD160: 1 | AE160: 0 | AF160: 10230 | AG160: 0 | AH160: 0 | AI160: 3750 | AJ160: 649075.8309 | AK160: 120082.8 | AL160: 0 | AM160: 0 | AN160: 11988 | AO160: 164 | AP160: 0 | AR160: 0 | AS160: 0 | AT160: 0 | AV160: 0 | AX160: 0 | AZ160: 0 | BA160: 0 | BB160: 0 | BC160: 0 | BD160: 0 | BE160: 0 | BF160: 164 | BG160: 0 | BI160: 4013.91 | BJ160: 3303.35 | BK160: 0 | BL160: 0
A161: 3073 | B161: St Michael's CEI School, Maidstone | C161: 1 | D161: 119 | E161: 0 | F161: 0 | G161: 11 | H161: 0 | I161: 11 | J161: 0 | K161: 26 | L161: 0 | M161: 0 | N161: 5 | O161: 1 | P161: 0 | Q161: 0 | R161: 0 | S161: 0 | T161: 0 | U161: 0 | V161: 0 | W161: 22.59493671 | X161: 0 | Y161: 30.12658228 | Z161: 0 | AA161: 120084 | AB161: 0 | AC161: 0 | AD161: 1 | AE161: 0 | AF161: 10105 | AG161: 0 | AH161: 0 | AI161: 3750 | AJ161: 511515.9132 | AK161: 120082.8 | AL161: 0 | AM161: 0 | AN161: 11865 | AO161: 121 | AP161: 0 | AR161: 0 | AS161: 0 | AT161: 0 | AV161: 0 | AX161: 0 | AZ161: 0 | BA161: 0 | BB161: 0 | BC161: 0 | BD161: 0 | BE161: 0 | BF161: 121 | BG161: 0 | BI161: 4357.46 | BJ161: 3348.35 | BK161: 0 | BL161: 0
A162: 3081 | B162: Thurnham CEI School | C162: 1 | D162: 270 | E162: 0 | F162: 0 | G162: 4 | H162: 0 | I162: 4 | J162: 0 | K162: 4 | L162: 0 | M162: 0 | N162: 1 | O162: 1 | P162: 0 | Q162: 0 | R162: 0 | S162: 0 | T162: 0 | U162: 0 | V162: 0 | W162: 10.5 | X162: 0 | Y162: 51 | Z162: 0 | AA162: 120084 | AB162: 0 | AC162: 0 | AD162: 1 | AE162: 0 | AF162: 26368 | AG162: 0 | AH162: 0 | AI162: 3750 | AJ162: 949278 | AK162: 120082.8 | AL162: 0 | AM162: 0 | AN162: 27878 | AO162: 271 | AP162: 0 | AR162: 0 | AS162: 0 | AT162: 0 | AV162: 0 | AX162: 0 | AZ162: 0 | BA162: 0 | BB162: 0 | BC162: 0 | BD162: 0 | BE162: 0 | BF162: 271 | BG162: 0 | BI162: 3750 | BJ162: 3750 | BK162: 250 | BL162: 0.06666666667
A163: 3082 | B163: Trottiscliffe CEP School | C163: 1 | D163: 87 | E163: 0 | F163: 0 | G163: 4 | H163: 0 | I163: 8.810126582 | J163: 0 | K163: 2 | L163: 3 | M163: 0 | N163: 1 | O163: 0 | P163: 0 | Q163: 0 | R163: 0 | S163: 0 | T163: 0 | U163: 0 | V163: 0 | W163: 0 | X163: 0 | Y163: 16.45945946 | Z163: 0 | AA163: 120084 | AB163: 0 | AC163: 0 | AD163: 1 | AE163: 0 | AF163: 6362 | AG163: 0 | AH163: 0 | AI163: 3750 | AJ163: 373686.7396 | AK163: 120082.8 | AL163: 0 | AM163: 0 | AN163: 9121 | AO163: 82 | AP163: 0 | AR163: 0 | AS163: 0 | AT163: 0 | AV163: 0 | AX163: 0 | AZ163: 0 | BA163: 0 | BB163: 0 | BC163: 0 | BD163: 0 | BE163: 0 | BF163: 100 | BG163: 0 | BI163: 4492.25 | BJ163: 3111.97 | BK163: 0 | BL163: 0
A164: 3083 | B164: Ulcombe CEP School | C164: 1 | D164: 74 | E164: 0 | F164: 0 | G164: 22 | H164: 0 | I164: 28.95652174 | J164: 0 | K164: 0 | L164: 0 | M164: 0 | N164: 1 | O164: 0 | P164: 0 | Q164: 0 | R164: 0 | S164: 0 | T164: 0 | U164: 0 | V164: 0 | W164: 2.144927536 | X164: 0 | Y164: 30.94545455 | Z164: 0 | AA164: 120084 | AB164: 0 | AC164: 0 | AD164: 1 | AE164: 0 | AF164: 7236 | AG164: 0 | AH164: 0 | AI164: 3750 | AJ164: 413016.5384 | AK164: 120082.8 | AL164: 0 | AM164: 0 | AN164: 6701 | AO164: 84 | AP164: 0 | AR164: 0 | AS164: 0 | AT164: 0 | AV164: 0 | AX164: 0 | AZ164: 0 | BA164: 0 | BB164: 0 | BC164: 0 | BD164: 0 | BE164: 0 | BF164: 100 | BG164: 0 | BI164: 5188.87 | BJ164: 3566.11 | BK164: 0 | BL164: 0
A165: 3084 | B165: Wateringbury CEP School | C165: 1 | D165: 201 | E165: 0 | F165: 0 | G165: 24 | H165: 0 | I165: 28.43414634 | J165: 0 | K165: 6.060301508 | L165: 2.020100503 | M165: 0 | N165: 0 | O165: 2.020100503 | P165: 0 | Q165: 0 | R165: 0 | S165: 0 | T165: 0 | U165: 0 | V165: 0 | W165: 5.646067416 | X165: 0 | Y165: 49.65882353 | Z165: 0 | AA165: 120084 | AB165: 0 | AC165: 0 | AD165: 1 | AE165: 0 | AF165: 4890 | AG165: 0 | AH165: 0 | AI165: 3750 | AJ165: 749094.7111 | AK165: 120082.8 | AL165: 0 | AM165: 0 | AN165: 8186 | AO165: 202 | AP165: 0 | AR165: 0 | AS165: 0 | AT165: 0 | AV165: 0 | AX165: 0 | AZ165: 0 | BA165: 0 | BB165: 0 | BC165: 0 | BD165: 0 | BE165: 0 | BF165: 202 | BG165: 0 | BI165: 3827.33 | BJ165: 3229.89 | BK165: 172.67 | BL165: 0.05346002495
A166: 3088 | B166: Wouldham, All Saint's CEP School | C166: 1 | D166: 393 | E166: 0 | F166: 0 | G166: 36 | H166: 0 | I166: 39.41945289 | J166: 0 | K166: 22 | L166: 59 | M166: 9 | N166: 1 | O166: 21 | P166: 0 | Q166: 0 | R166: 0 | S166: 0 | T166: 0 | U166: 0 | V166: 0 | W166: 3.519402985 | X166: 0 | Y166: 108.5428571 | Z166: 0 | AA166: 120084 | AB166: 0 | AC166: 0 | AD166: 1 | AE166: 0 | AF166: 70656 | AG166: 0 | AH166: 0 | AI166: 3750 | AJ166: 1120477.205 | AK166: 120082.8 | AL166: 0 | AM166: 0 | AN166: 72925 | AO166: 299 | AP166: 0 | AR166: 0 | AS166: 0 | AT166: 0 | AV166: 0 | AX166: 0 | AZ166: 0 | BA166: 0 | BB166: 0 | BC166: 0 | BD166: 0 | BE166: 0 | BF166: 299 | BG166: 0 | BI166: 3750 | BJ166: 3750 | BK166: 250 | BL166: 0.06666666667
A167: 3089 | B167: St George's CEP School | C167: 1 | D167: 210 | E167: 0 | F167: 0 | G167: 27 | H167: 0 | I167: 39.81042654 | J167: 0 | K167: 10 | L167: 7 | M167: 1 | N167: 1 | O167: 0 | P167: 0 | Q167: 0 | R167: 0 | S167: 0 | T167: 0 | U167: 0 | V167: 0 | W167: 2.333333333 | X167: 0 | Y167: 61.83333333 | Z167: 0 | AA167: 120084 | AB167: 0 | AC167: 0 | AD167: 1 | AE167: 0 | AF167: 18214 | AG167: 0 | AH167: 0 | AI167: 3750 | AJ167: 790521.7715 | AK167: 120082.8 | AL167: 0 | AM167: 0 | AN167: 17813 | AO167: 209 | AP167: 0 | AR167: 0 | AS167: 0 | AT167: 0 | AV167: 0 | AX167: 0 | AZ167: 0 | BA167: 0 | BB167: 0 | BC167: 0 | BD167: 0 | BE167: 0 | BF167: 209 | BG167: 0 | BI167: 3871.7 | BJ167: 3299.87 | BK167: 128.3 | BL167: 0.03888031953
A168: 3090 | B168: St Margaret's CEP School, Collier Street | C168: 1 | D168: 122 | E168: 0 | F168: 0 | G168: 3 | H168: 0 | I168: 5.25862069 | J168: 0 | K168: 0 | L168: 2 | M168: 12 | N168: 1 | O168: 1 | P168: 0 | Q168: 0 | R168: 0 | S168: 0 | T168: 0 | U168: 0 | V168: 0 | W168: 3.485714286 | X168: 0 | Y168: 49.26923077 | Z168: 0 | AA168: 120084 | AB168: 0 | AC168: 0 | AD168: 1 | AE168: 0 | AF168: 13972 | AG168: 0 | AH168: 0 | AI168: 3750 | AJ168: 509038.9637 | AK168: 120082.8 | AL168: 0 | AM168: 0 | AN168: 15670 | AO168: 118 | AP168: 0 | AR168: 0 | AS168: 0 | AT168: 0 | AV168: 0 | AX168: 0 | AZ168: 0 | BA168: 0 | BB168: 0 | BC168: 0 | BD168: 0 | BE168: 0 | BF168: 118 | BG168: 0 | BI168: 4341.63 | BJ168: 3357.34 | BK168: 0 | BL168: 0
A169: 3091 | B169: Laddingford St Mary's CEP School | C169: 1 | D169: 84 | E169: 0 | F169: 0 | G169: 15 | H169: 0 | I169: 17.23076923 | J169: 0 | K169: 6 | L169: 0 | M169: 3 | N169: 0 | O169: 0 | P169: 0 | Q169: 0 | R169: 0 | S169: 0 | T169: 0 | U169: 0 | V169: 0 | W169: 1.076923077 | X169: 0 | Y169: 20.46153846 | Z169: 0 | AA169: 120084 | AB169: 0 | AC169: 0 | AD169: 1 | AE169: 0 | AF169: 5240 | AG169: 0 | AH169: 5427 | AI169: 3750 | AJ169: 379864.2615 | AK169: 120082.8 | AL169: 0 | AM169: 0 | AN169: 7078 | AO169: 78 | AP169: 0 | AR169: 0 | AS169: 0 | AT169: 0 | AV169: 0 | AX169: 0 | AZ169: 0 | BA169: 0 | BB169: 0 | BC169: 0 | BD169: 0 | BE169: 0 | BF169: 100 | BG169: 0 | BI169: 4710.07 | BJ169: 3345.1 | BK169: 0 | BL169: 0
A170: 3092 | B170: Yalding St Peter & St Paul CEP School | C170: 1 | D170: 166 | E170: 0 | F170: 0 | G170: 10 | H170: 0 | I170: 10 | J170: 0 | K170: 7 | L170: 0 | M170: 0 | N170: 0 | O170: 0 | P170: 0 | Q170: 0 | R170: 0 | S170: 0 | T170: 0 | U170: 0 | V170: 0 | W170: 1.144827586 | X170: 0 | Y170: 36.88888889 | Z170: 0 | AA170: 120084 | AB170: 0 | AC170: 0 | AD170: 1 | AE170: 0 | AF170: 14222 | AG170: 0 | AH170: 0 | AI170: 3750 | AJ170: 630449.0488 | AK170: 120082.8 | AL170: 0 | AM170: 0 | AN170: 15916 | AO170: 167 | AP170: 0 | AR170: 0 | AS170: 0 | AT170: 0 | AV170: 0 | AX170: 0 | AZ170: 0 | BA170: 0 | BB170: 0 | BC170: 0 | BD170: 0 | BE170: 0 | BF170: 167 | BG170: 0 | BI170: 3858.14 | BJ170: 3134.74 | BK170: 141.86 | BL170: 0.04525415186
A171: 3106 | B171: Eastchurch CEP School | C171: 1 | D171: 412 | E171: 0 | F171: 0 | G171: 112 | H171: 0 | I171: 140.2553191 | J171: 0 | K171: 10.07334963 | L171: 82.60146699 | M171: 0 | N171: 141.0268949 | O171: 126.9242054 | P171: 10.07334963 | Q171: 0 | R171: 0 | S171: 0 | T171: 0 | U171: 0 | V171: 0 | W171: 10.18681319 | X171: 0 | Y171: 141.2910663 | Z171: 0 | AA171: 120084 | AB171: 0 | AC171: 0 | AD171: 1 | AE171: 33000 | AF171: 77824 | AG171: 0 | AH171: 0 | AI171: 3750 | AJ171: 1774708.563 | AK171: 120082.8 | AL171: 0 | AM171: 33000 | AN171: 76608 | AO171: 435 | AP171: 0 | AR171: 4.08 | AS171: 0 | AT171: 0 | AV171: 0 | AX171: 0 | AZ171: 0 | BA171: 0 | BB171: 0 | BC171: 0 | BD171: 0 | BE171: 0 | BF171: 466 | BG171: 0 | BI171: 4084.48 | BJ171: 3873.11 | BK171: 0 | BL171: 0
A172: 3108 | B172: Ospringe CEP School | C172: 1 | D172: 214 | E172: 0 | F172: 0 | G172: 56 | H172: 0 | I172: 62.65765766 | J172: 0 | K172: 26 | L172: 22 | M172: 66 | N172: 7 | O172: 8 | P172: 0 | Q172: 0 | R172: 0 | S172: 0 | T172: 0 | U172: 0 | V172: 0 | W172: 7.802083333 | X172: 0 | Y172: 59.50802139 | Z172: 0 | AA172: 120084 | AB172: 0 | AC172: 0 | AD172: 1 | AE172: 0 | AF172: 23079 | AG172: 0 | AH172: 0 | AI172: 3750 | AJ172: 876155.5036 | AK172: 120082.8 | AL172: 0 | AM172: 0 | AN172: 22709 | AO172: 222 | AP172: 0 | AR172: 0 | AS172: 0 | AT172: 0 | AV172: 0 | AX172: 0 | AZ172: 0 | BA172: 0 | BB172: 0 | BC172: 0 | BD172: 0 | BE172: 0 | BF172: 222 | BG172: 0 | BI172: 4125 | BJ172: 3563.86 | BK172: 0 | BL172: 0
A173: 3109 | B173: Hernhill CEP School | C173: 1 | D173: 206 | E173: 0 | F173: 0 | G173: 8 | H173: 0 | I173: 13.06341463 | J173: 0 | K173: 21 | L173: 10 | M173: 10 | N173: 0 | O173: 2 | P173: 0 | Q173: 0 | R173: 0 | S173: 0 | T173: 0 | U173: 0 | V173: 0 | W173: 0 | X173: 0 | Y173: 48.54022989 | Z173: 0 | AA173: 120084 | AB173: 0 | AC173: 0 | AD173: 1 | AE173: 0 | AF173: 31744 | AG173: 0 | AH173: 0 | AI173: 3750 | AJ173: 763552.8327 | AK173: 120082.8 | AL173: 0 | AM173: 0 | AN173: 31248 | AO173: 203 | AP173: 0 | AR173: 0 | AS173: 0 | AT173: 0 | AV173: 0 | AX173: 0 | AZ173: 0 | BA173: 0 | BB173: 0 | BC173: 0 | BD173: 0 | BE173: 0 | BF173: 203 | BG173: 0 | BI173: 3766.81 | BJ173: 3183.88 | BK173: 233.19 | BL173: 0.07324082566
A174: 3111 | B174: Newington CEP School | C174: 1 | D174: 180 | E174: 0 | F174: 0 | G174: 33 | H174: 0 | I174: 50.18181818 | J174: 0 | K174: 53 | L174: 5 | M174: 4 | N174: 1 | O174: 0 | P174: 3 | Q174: 0 | R174: 0 | S174: 0 | T174: 0 | U174: 0 | V174: 0 | W174: 7.105263158 | X174: 0 | Y174: 45.31468531 | Z174: 0 | AA174: 120084 | AB174: 0 | AC174: 0 | AD174: 1 | AE174: 0 | AF174: 34048 | AG174: 0 | AH174: 0 | AI174: 3750 | AJ174: 710279.8902 | AK174: 120082.8 | AL174: 0 | AM174: 0 | AN174: 33516 | AO174: 172 | AP174: 0 | AR174: 0 | AS174: 0 | AT174: 0 | AV174: 0 | AX174: 0 | AZ174: 0 | BA174: 0 | BB174: 0 | BC174: 0 | BD174: 0 | BE174: 0 | BF174: 172 | BG174: 0 | BI174: 4057.63 | BJ174: 3390.5 | BK174: 0 | BL174: 0
A175: 3117 | B175: Teynham Parochial CEP School | C175: 1 | D175: 203 | E175: 0 | F175: 0 | G175: 33 | H175: 0 | I175: 53.67788462 | J175: 0 | K175: 103 | L175: 9 | M175: 11 | N175: 12 | O175: 1 | P175: 0 | Q175: 0 | R175: 0 | S175: 0 | T175: 0 | U175: 0 | V175: 0 | W175: 12.90751445 | X175: 0 | Y175: 67.26627219 | Z175: 0 | AA175: 120084 | AB175: 0 | AC175: 0 | AD175: 1 | AE175: 0 | AF175: 23827 | AG175: 0 | AH175: 0 | AI175: 3750 | AJ175: 832293.6612 | AK175: 120082.8 | AL175: 0 | AM175: 0 | AN175: 15884 | AO175: 209 | AP175: 0 | AR175: 0 | AS175: 0 | AT175: 0 | AV175: 0 | AX175: 0 | AZ175: 0 | BA175: 0 | BB175: 0 | BC175: 0 | BD175: 0 | BE175: 0 | BF175: 209 | BG175: 0 | BI175: 4140.52 | BJ175: 3548.97 | BK175: 0 | BL175: 0
A176: 3120 | B176: Barham CEP School | C176: 1 | D176: 207 | E176: 0 | F176: 0 | G176: 7 | H176: 0 | I176: 12.05825243 | J176: 0 | K176: 31 | L176: 4 | M176: 0 | N176: 5 | O176: 1 | P176: 0 | Q176: 0 | R176: 0 | S176: 0 | T176: 0 | U176: 0 | V176: 0 | W176: 15.20338983 | X176: 0 | Y176: 40.21714286 | Z176: 0 | AA176: 120084 | AB176: 0 | AC176: 0 | AD176: 1 | AE176: 0 | AF176: 28672 | AG176: 0 | AH176: 0 | AI176: 3750 | AJ176: 766946.4566 | AK176: 120082.8 | AL176: 0 | AM176: 0 | AN176: 28224 | AO176: 207 | AP176: 0 | AR176: 0 | AS176: 0 | AT176: 0 | AV176: 0 | AX176: 0 | AZ176: 0 | BA176: 0 | BB176: 0 | BC176: 0 | BD176: 0 | BE176: 0 | BF176: 207 | BG176: 0 | BI176: 3750 | BJ176: 3750 | BK176: 250 | BL176: 0.06666666667
A177: 3122 | B177: Bridge & Patrixbourne CEP School | C177: 1 | D177: 420 | E177: 0 | F177: 0 | G177: 14 | H177: 0 | I177: 21.8957346 | J177: 0 | K177: 10 | L177: 0 | M177: 3 | N177: 15 | O177: 7 | P177: 0 | Q177: 0 | R177: 0 | S177: 0 | T177: 0 | U177: 0 | V177: 0 | W177: 46.79665738 | X177: 0 | Y177: 46.53409091 | Z177: 0 | AA177: 120084 | AB177: 0 | AC177: 0 | AD177: 1 | AE177: 0 | AF177: 35072 | AG177: 0 | AH177: 0 | AI177: 3750 | AJ177: 1459124 | AK177: 120082.8 | AL177: 0 | AM177: 0 | AN177: 34524 | AO177: 419 | AP177: 0 | AR177: 0 | AS177: 0 | AT177: 0 | AV177: 0 | AX177: 0 | AZ177: 0 | BA177: 0 | BB177: 0 | BC177: 0 | BD177: 0 | BE177: 0 | BF177: 419 | BG177: 0 | BI177: 3750 | BJ177: 3750 | BK177: 250 | BL177: 0.06666666667
A178: 3123 | B178: Chislet CEP School | C178: 1 | D178: 98 | E178: 0 | F178: 0 | G178: 3 | H178: 0 | I178: 8.711111111 | J178: 0 | K178: 7 | L178: 20 | M178: 3 | N178: 0 | O178: 0 | P178: 0 | Q178: 0 | R178: 0 | S178: 0 | T178: 0 | U178: 0 | V178: 0 | W178: 0 | X178: 0 | Y178: 26.83333333 | Z178: 0 | AA178: 120084 | AB178: 0 | AC178: 0 | AD178: 1 | AE178: 0 | AF178: 6113 | AG178: 0 | AH178: 0 | AI178: 3750 | AJ178: 416891.6196 | AK178: 120082.8 | AL178: 0 | AM178: 0 | AN178: 6015 | AO178: 95 | AP178: 0 | AR178: 0 | AS178: 0 | AT178: 0 | AV178: 0 | AX178: 0 | AZ178: 0 | BA178: 0 | BB178: 0 | BC178: 0 | BD178: 0 | BE178: 0 | BF178: 100 | BG178: 0 | BI178: 4476.01 | BJ178: 3250.66 | BK178: 0 | BL178: 0
A179: 3126 | B179: Littlebourne CEP School | C179: 1 | D179: 95 | E179: 0 | F179: 0 | G179: 22 | H179: 0 | I179: 28.5 | J179: 0 | K179: 4 | L179: 0 | M179: 2 | N179: 9 | O179: 3 | P179: 0 | Q179: 0 | R179: 0 | S179: 0 | T179: 0 | U179: 0 | V179: 0 | W179: 8.3125 | X179: 0 | Y179: 31.66666667 | Z179: 0 | AA179: 120084 | AB179: 0 | AC179: 0 | AD179: 1 | AE179: 0 | AF179: 11228 | AG179: 0 | AH179: 0 | AI179: 3750 | AJ179: 447317.9315 | AK179: 120082.8 | AL179: 0 | AM179: 0 | AN179: 11048 | AO179: 96 | AP179: 0 | AR179: 0 | AS179: 0 | AT179: 0 | AV179: 0 | AX179: 0 | AZ179: 0 | BA179: 0 | BB179: 0 | BC179: 0 | BD179: 0 | BE179: 0 | BF179: 100 | BG179: 0 | BI179: 4775.27 | BJ179: 3511.23 | BK179: 0 | BL179: 0
A180: 3129 | B180: St Alphege CEI School | C180: 1 | D180: 145 | E180: 0 | F180: 0 | G180: 21 | H180: 0 | I180: 23.72727273 | J180: 0 | K180: 2 | L180: 0 | M180: 6 | N180: 0 | O180: 17 | P180: 0 | Q180: 0 | R180: 0 | S180: 0 | T180: 0 | U180: 0 | V180: 0 | W180: 4.182692308 | X180: 0 | Y180: 46.91176471 | Z180: 0 | AA180: 120084 | AB180: 0 | AC180: 0 | AD180: 1 | AE180: 0 | AF180: 31488 | AG180: 0 | AH180: 0 | AI180: 3750 | AJ180: 667528.278 | AK180: 120082.8 | AL180: 0 | AM180: 0 | AN180: 30996 | AO180: 164 | AP180: 0 | AR180: 4.08 | AS180: 0.9 | AT180: 0 | AV180: 0 | AX180: 0 | AZ180: 0 | BA180: 0 | BB180: 0 | BC180: 0 | BD180: 0 | BE180: 0 | BF180: 196 | BG180: 0 | BI180: 4214.84 | BJ180: 3386.67 | BK180: 0 | BL180: 0
A181: 3130 | B181: Wickhambreaux CEP School | C181: 1 | D181: 137 | E181: 0 | F181: 0 | G181: 5 | H181: 0 | I181: 9.201492537 | J181: 0 | K181: 5 | L181: 5 | M181: 3 | N181: 0 | O181: 0 | P181: 0 | Q181: 0 | R181: 0 | S181: 0 | T181: 0 | U181: 0 | V181: 0 | W181: 10.275 | X181: 0 | Y181: 9.785714286 | Z181: 0 | AA181: 120084 | AB181: 0 | AC181: 0 | AD181: 1 | AE181: 0 | AF181: 8733 | AG181: 0 | AH181: 0 | AI181: 3750 | AJ181: 520460.5443 | AK181: 120082.8 | AL181: 0 | AM181: 0 | AN181: 8593 | AO181: 132 | AP181: 0 | AR181: 0 | AS181: 0 | AT181: 0 | AV181: 0 | AX181: 0 | AZ181: 0 | BA181: 0 | BB181: 0 | BC181: 0 | BD181: 0 | BE181: 0 | BF181: 132 | BG181: 0 | BI181: 3894.73 | BJ181: 3018.2 | BK181: 0 | BL181: 0
A182: 3134 | B182: John Mayne CEP School | C182: 1 | D182: 87 | E182: 0 | F182: 0 | G182: 7 | H182: 0 | I182: 13.38461538 | J182: 0 | K182: 0 | L182: 0 | M182: 0 | N182: 0 | O182: 0 | P182: 0 | Q182: 0 | R182: 0 | S182: 0 | T182: 0 | U182: 0 | V182: 0 | W182: 0 | X182: 0 | Y182: 25.58823529 | Z182: 0 | AA182: 120084 | AB182: 21814.77479 | AC182: 0 | AD182: 1 | AE182: 0 | AF182: 14222 | AG182: 0 | AH182: 0 | AI182: 3750 | AJ182: 483902.7279 | AK182: 120082.8 | AL182: 13627.55407 | AM182: 0 | AN182: 13614 | AO182: 109 | AP182: 0 | AR182: 0 | AS182: 0 | AT182: 0 | AV182: 0 | AX182: 0 | AZ182: 0 | BA182: 0 | BB182: 0 | BC182: 0 | BD182: 0 | BE182: 0 | BF182: 109 | BG182: 0 | BI182: 4869.28 | BJ182: 3238.26 | BK182: 0 | BL182: 0
A183: 3136 | B183: Brabourne CEP School | C183: 1 | D183: 96 | E183: 0 | F183: 0 | G183: 5 | H183: 0 | I183: 8.347826087 | J183: 0 | K183: 3 | L183: 1 | M183: 1 | N183: 0 | O183: 0 | P183: 1 | Q183: 0 | R183: 0 | S183: 0 | T183: 0 | U183: 0 | V183: 0 | W183: 1.185185185 | X183: 0 | Y183: 21.76 | Z183: 0 | AA183: 120084 | AB183: 0 | AC183: 0 | AD183: 1 | AE183: 0 | AF183: 5502 | AG183: 0 | AH183: 0 | AI183: 3750 | AJ183: 409224.8661 | AK183: 120082.8 | AL183: 0 | AM183: 0 | AN183: 5413 | AO183: 94 | AP183: 0 | AR183: 0 | AS183: 0 | AT183: 0 | AV183: 0 | AX183: 0 | AZ183: 0 | BA183: 0 | BB183: 0 | BC183: 0 | BD183: 0 | BE183: 0 | BF183: 100 | BG183: 0 | BI183: 4408.73 | BJ183: 3157.86 | BK183: 0 | BL183: 0
A184: 3137 | B184: Brookland CEP School | C184: 1 | D184: 99 | E184: 0 | F184: 0 | G184: 13 | H184: 0 | I184: 19 | J184: 0 | K184: 0 | L184: 5 | M184: 35 | N184: 1 | O184: 0 | P184: 0 | Q184: 0 | R184: 0 | S184: 0 | T184: 0 | U184: 0 | V184: 0 | W184: 1.151162791 | X184: 0 | Y184: 15.32142857 | Z184: 0 | AA184: 120084 | AB184: 0 | AC184: 0 | AD184: 1 | AE184: 0 | AF184: 11976 | AG184: 0 | AH184: 0 | AI184: 3750 | AJ184: 447218.9773 | AK184: 120082.8 | AL184: 0 | AM184: 0 | AN184: 11784 | AO184: 101 | AP184: 0 | AR184: 0 | AS184: 0 | AT184: 0 | AV184: 0 | AX184: 0 | AZ184: 0 | BA184: 0 | BB184: 0 | BC184: 0 | BD184: 0 | BE184: 0 | BF184: 101 | BG184: 0 | BI184: 4493.58 | BJ184: 3280.61 | BK184: 0 | BL184: 0
A185: 3138 | B185: Chilham St Mary's CEP School | C185: 1 | D185: 84 | E185: 0 | F185: 0 | G185: 20 | H185: 0 | I185: 24 | J185: 0 | K185: 0 | L185: 0 | M185: 0 | N185: 0 | O185: 0 | P185: 0 | Q185: 0 | R185: 0 | S185: 0 | T185: 0 | U185: 0 | V185: 0 | W185: 1.12 | X185: 0 | Y185: 21.8630137 | Z185: 0 | AA185: 120084 | AB185: 0 | AC185: 0 | AD185: 1 | AE185: 0 | AF185: 8358 | AG185: 0 | AH185: 8400 | AI185: 3750 | AJ185: 430270.7451 | AK185: 120082.8 | AL185: 0 | AM185: 0 | AN185: 8073 | AO185: 93 | AP185: 0 | AR185: 0 | AS185: 0 | AT185: 0 | AV185: 0 | AX185: 0 | AZ185: 0 | BA185: 0 | BB185: 0 | BC185: 0 | BD185: 0 | BE185: 0 | BF185: 100 | BG185: 0 | BI185: 4752.64 | BJ185: 3423.07 | BK185: 0 | BL185: 0
A186: 3139 | B186: High Halden CEP School | C186: 1 | D186: 90 | E186: 0 | F186: 0 | G186: 8 | H186: 0 | I186: 18.62068966 | J186: 0 | K186: 0 | L186: 0 | M186: 0 | N186: 0 | O186: 0 | P186: 0 | Q186: 0 | R186: 0 | S186: 0 | T186: 0 | U186: 0 | V186: 0 | W186: 0 | X186: 0 | Y186: 20.67567568 | Z186: 0 | AA186: 120084 | AB186: 0 | AC186: 0 | AD186: 1 | AE186: 0 | AF186: 15968 | AG186: 0 | AH186: 0 | AI186: 3750 | AJ186: 404825.8169 | AK186: 120082.8 | AL186: 0 | AM186: 0 | AN186: 15712 | AO186: 90 | AP186: 0 | AR186: 0 | AS186: 0 | AT186: 0 | AV186: 0 | AX186: 0 | AZ186: 0 | BA186: 0 | BB186: 0 | BC186: 0 | BD186: 0 | BE186: 0 | BF186: 100 | BG186: 0 | BI186: 4524.9 | BJ186: 3190.64 | BK186: 0 | BL186: 0
A187: 3145 | B187: Woodchurch CEP School | C187: 1 | D187: 161 | E187: 0 | F187: 0 | G187: 29 | H187: 0 | I187: 29.6091954 | J187: 0 | K187: 0 | L187: 2 | M187: 4 | N187: 1 | O187: 0 | P187: 0 | Q187: 0 | R187: 0 | S187: 0 | T187: 0 | U187: 0 | V187: 0 | W187: 0 | X187: 0 | Y187: 49.8057554 | Z187: 0 | AA187: 120084 | AB187: 0 | AC187: 0 | AD187: 1 | AE187: 0 | AF187: 12226 | AG187: 0 | AH187: 0 | AI187: 3750 | AJ187: 671533.4164 | AK187: 120082.8 | AL187: 0 | AM187: 0 | AN187: 11539 | AO187: 174 | AP187: 0 | AR187: 0 | AS187: 0 | AT187: 0 | AV187: 0 | AX187: 0 | AZ187: 0 | BA187: 0 | BB187: 0 | BC187: 0 | BD187: 0 | BE187: 0 | BF187: 174 | BG187: 0 | BI187: 4069.94 | BJ187: 3324.07 | BK187: 0 | BL187: 0
A188: 3146 | B188: Bodsham CEP School | C188: 1 | D188: 76 | E188: 0 | F188: 0 | G188: 0 | H188: 0 | I188: 0.9743589744 | J188: 0 | K188: 0 | L188: 3.04 | M188: 1.013333333 | N188: 0 | O188: 0 | P188: 0 | Q188: 0 | R188: 0 | S188: 0 | T188: 0 | U188: 0 | V188: 0 | W188: 2.268656716 | X188: 0 | Y188: 8 | Z188: 0 | AA188: 120084 | AB188: 25635.83407 | AC188: 0 | AD188: 1 | AE188: 0 | AF188: 6049 | AG188: 0 | AH188: 0 | AI188: 3750 | AJ188: 376960.1065 | AK188: 120082.8 | AL188: 23647.81442 | AM188: 0 | AN188: 5960 | AO188: 79 | AP188: 0 | AR188: 0 | AS188: 0 | AT188: 0 | AV188: 0 | AX188: 0 | AZ188: 0 | BA188: 0 | BB188: 0 | BC188: 0 | BD188: 0 | BE188: 0 | BF188: 100 | BG188: 0 | BI188: 4903.39 | BJ188: 2986.03 | BK188: 0 | BL188: 0
A189: 3149 | B189: St Martin's CEP School, Folkestone | C189: 1 | D189: 207 | E189: 0 | F189: 0 | G189: 25 | H189: 0 | I189: 32.52857143 | J189: 0 | K189: 18 | L189: 23 | M189: 4 | N189: 2 | O189: 3 | P189: 1 | Q189: 0 | R189: 0 | S189: 0 | T189: 0 | U189: 0 | V189: 0 | W189: 5.847457627 | X189: 0 | Y189: 42.86982249 | Z189: 0 | AA189: 120084 | AB189: 0 | AC189: 0 | AD189: 1 | AE189: 0 | AF189: 19511 | AG189: 0 | AH189: 0 | AI189: 3750 | AJ189: 782290.3817 | AK189: 120082.8 | AL189: 0 | AM189: 0 | AN189: 19198 | AO189: 209 | AP189: 0 | AR189: 0 | AS189: 0 | AT189: 0 | AV189: 0 | AX189: 0 | AZ189: 0 | BA189: 0 | BB189: 0 | BC189: 0 | BD189: 0 | BE189: 0 | BF189: 209 | BG189: 0 | BI189: 3826.43 | BJ189: 3246.32 | BK189: 173.57 | BL189: 0.0534666946
A190: 3150 | B190: St Peter's CEP School, Folkestone | C190: 1 | D190: 105 | E190: 0 | F190: 0 | G190: 41 | H190: 0 | I190: 49.06542056 | J190: 0 | K190: 1 | L190: 0 | M190: 18 | N190: 31 | O190: 23 | P190: 30 | Q190: 0 | R190: 0 | S190: 0 | T190: 0 | U190: 0 | V190: 0 | W190: 4.615384615 | X190: 0 | Y190: 33.35294118 | Z190: 0 | AA190: 120084 | AB190: 0 | AC190: 0 | AD190: 1 | AE190: 0 | AF190: 2707 | AG190: 0 | AH190: 27480 | AI190: 3750 | AJ190: 555286.483 | AK190: 120082.8 | AL190: 0 | AM190: 0 | AN190: 2522 | AO190: 108 | AP190: 0 | AR190: 0 | AS190: 0 | AT190: 0 | AV190: 0 | AX190: 0 | AZ190: 0 | BA190: 0 | BB190: 0 | BC190: 0 | BD190: 0 | BE190: 0 | BF190: 108 | BG190: 0 | BI190: 5124.65 | BJ190: 4242.71 | BK190: 0 | BL190: 0
A191: 3153 | B191: Seabrook CEP School | C191: 1 | D191: 107 | E191: 0 | F191: 0 | G191: 10 | H191: 0 | I191: 17.16037736 | J191: 0 | K191: 15 | L191: 35 | M191: 3 | N191: 2 | O191: 0 | P191: 0 | Q191: 0 | R191: 0 | S191: 0 | T191: 0 | U191: 0 | V191: 0 | W191: 0 | X191: 0 | Y191: 13.2247191 | Z191: 0 | AA191: 120084 | AB191: 0 | AC191: 0 | AD191: 1 | AE191: 0 | AF191: 607 | AG191: 0 | AH191: 0 | AI191: 3750 | AJ191: 448280.7862 | AK191: 120082.8 | AL191: 0 | AM191: 0 | AN191: 1114 | AO191: 107 | AP191: 0 | AR191: 0 | AS191: 0 | AT191: 0 | AV191: 0 | AX191: 0 | AZ191: 0 | BA191: 0 | BB191: 0 | BC191: 0 | BD191: 0 | BE191: 0 | BF191: 107 | BG191: 0 | BI191: 4316.17 | BJ191: 3193.89 | BK191: 0 | BL191: 0
A192: 3154 | B192: Lyminge CEP School | C192: 1 | D192: 191 | E192: 0 | F192: 0 | G192: 9 | H192: 0 | I192: 12.29207921 | J192: 0 | K192: 5 | L192: 3 | M192: 4 | N192: 3 | O192: 0 | P192: 1 | Q192: 0 | R192: 0 | S192: 0 | T192: 0 | U192: 0 | V192: 0 | W192: 3.350877193 | X192: 0 | Y192: 24.86390533 | Z192: 0 | AA192: 120084 | AB192: 0 | AC192: 0 | AD192: 1 | AE192: 0 | AF192: 28160 | AG192: 0 | AH192: 0 | AI192: 3750 | AJ192: 723670.3639 | AK192: 120082.8 | AL192: 0 | AM192: 0 | AN192: 27720 | AO192: 198 | AP192: 0 | AR192: 0 | AS192: 0 | AT192: 0 | AV192: 0 | AX192: 0 | AZ192: 0 | BA192: 0 | BB192: 0 | BC192: 0 | BD192: 0 | BE192: 0 | BF192: 198 | BG192: 0 | BI192: 3750 | BJ192: 3750 | BK192: 250 | BL192: 0.06666666667
A193: 3155 | B193: Lympne CEP School | C193: 1 | D193: 199 | E193: 0 | F193: 0 | G193: 6 | H193: 0 | I193: 9.900497512 | J193: 0 | K193: 0 | L193: 26 | M193: 7 | N193: 3 | O193: 1 | P193: 0 | Q193: 0 | R193: 0 | S193: 0 | T193: 0 | U193: 0 | V193: 0 | W193: 2.313953488 | X193: 0 | Y193: 52.36842105 | Z193: 0 | AA193: 120084 | AB193: 0 | AC193: 0 | AD193: 1 | AE193: 0 | AF193: 45824 | AG193: 0 | AH193: 0 | AI193: 3750 | AJ193: 788279.1972 | AK193: 120082.8 | AL193: 0 | AM193: 0 | AN193: 45108 | AO193: 204 | AP193: 0 | AR193: 0 | AS193: 0 | AT193: 0 | AV193: 0 | AX193: 0 | AZ193: 0 | BA193: 0 | BB193: 0 | BC193: 0 | BD193: 0 | BE193: 0 | BF193: 204 | BG193: 0 | BI193: 3812.71 | BJ193: 3209.27 | BK193: 187.29 | BL193: 0.05835906608
A194: 3158 | B194: Stelling Minnis CEP School | C194: 1 | D194: 89 | E194: 0 | F194: 0 | G194: 7 | H194: 0 | I194: 12.44086022 | J194: 0 | K194: 0 | L194: 1 | M194: 0 | N194: 0 | O194: 0 | P194: 0 | Q194: 0 | R194: 0 | S194: 0 | T194: 0 | U194: 0 | V194: 0 | W194: 2.373333333 | X194: 0 | Y194: 21.30985915 | Z194: 0 | AA194: 120084 | AB194: 21120.03674 | AC194: 0 | AD194: 1 | AE194: 0 | AF194: 14097 | AG194: 0 | AH194: 0 | AI194: 3750 | AJ194: 439087.6541 | AK194: 120082.8 | AL194: 18303.67557 | AM194: 0 | AN194: 13871 | AO194: 95 | AP194: 0 | AR194: 0 | AS194: 0 | AT194: 0 | AV194: 0 | AX194: 0 | AZ194: 0 | BA194: 0 | BB194: 0 | BC194: 0 | BD194: 0 | BE194: 0 | BF194: 100 | BG194: 0 | BI194: 4778.26 | BJ194: 3191.7 | BK194: 0 | BL194: 0
A195: 3159 | B195: Stowting CEP School | C195: 1 | D195: 100 | E195: 0 | F195: 0 | G195: 2 | H195: 0 | I195: 2.083333333 | J195: 0 | K195: 1 | L195: 2 | M195: 1 | N195: 1 | O195: 0 | P195: 0 | Q195: 0 | R195: 0 | S195: 0 | T195: 0 | U195: 0 | V195: 0 | W195: 0 | X195: 0 | Y195: 20.23809524 | Z195: 0 | AA195: 120084 | AB195: 0 | AC195: 0 | AD195: 1 | AE195: 0 | AF195: 13972 | AG195: 0 | AH195: 0 | AI195: 3750 | AJ195: 414342.0109 | AK195: 120082.8 | AL195: 0 | AM195: 0 | AN195: 13748 | AO195: 95 | AP195: 0 | AR195: 0 | AS195: 0 | AT195: 0 | AV195: 0 | AX195: 0 | AZ195: 0 | BA195: 0 | BB195: 0 | BC195: 0 | BD195: 0 | BE195: 0 | BF195: 100 | BG195: 0 | BI195: 4285.89 | BJ195: 3085.05 | BK195: 0 | BL195: 0
A196: 3160 | B196: Selsted CEP School | C196: 1 | D196: 96 | E196: 0 | F196: 0 | G196: 2 | H196: 0 | I196: 9.411764706 | J196: 0 | K196: 16 | L196: 1 | M196: 4 | N196: 2 | O196: 2 | P196: 2 | Q196: 0 | R196: 0 | S196: 0 | T196: 0 | U196: 0 | V196: 0 | W196: 0 | X196: 0 | Y196: 18.96296296 | Z196: 0 | AA196: 120084 | AB196: 18688.45356 | AC196: 0 | AD196: 1 | AE196: 0 | AF196: 10978 | AG196: 0 | AH196: 0 | AI196: 3750 | AJ196: 455332.0937 | AK196: 120082.8 | AL196: 16299.6235 | AM196: 0 | AN196: 10802 | AO196: 101 | AP196: 0 | AR196: 0 | AS196: 0 | AT196: 0 | AV196: 0 | AX196: 0 | AZ196: 0 | BA196: 0 | BB196: 0 | BC196: 0 | BD196: 0 | BE196: 0 | BF196: 101 | BG196: 0 | BI196: 4619.21 | BJ196: 3173.67 | BK196: 0 | BL196: 0
A197: 3167 | B197: Eastry CEP School | C197: 1 | D197: 189 | E197: 0 | F197: 0 | G197: 31 | H197: 0 | I197: 38.93969849 | J197: 0 | K197: 14 | L197: 12 | M197: 1 | N197: 0 | O197: 1 | P197: 0 | Q197: 0 | R197: 0 | S197: 0 | T197: 0 | U197: 0 | V197: 0 | W197: 3.52173913 | X197: 0 | Y197: 55.02531646 | Z197: 0 | AA197: 120084 | AB197: 0 | AC197: 0 | AD197: 1 | AE197: 0 | AF197: 17465 | AG197: 0 | AH197: 0 | AI197: 3750 | AJ197: 751927.4818 | AK197: 120082.8 | AL197: 0 | AM197: 0 | AN197: 13409 | AO197: 199 | AP197: 0 | AR197: 0 | AS197: 0 | AT197: 0 | AV197: 0 | AX197: 0 | AZ197: 0 | BA197: 0 | BB197: 0 | BC197: 0 | BD197: 0 | BE197: 0 | BF197: 199 | BG197: 0 | BI197: 3970.72 | BJ197: 3335.35 | BK197: 0 | BL197: =BK197/BJ197 -> 0
A198: 3168 | B198: Goodnestone CEP School | C198: 1 | D198: 33 | E198: 0 | F198: 0 | G198: 5 | H198: 0 | I198: 6.6 | J198: 0 | K198: 11 | L198: 2 | M198: 0 | N198: 2 | O198: 1 | P198: 0 | Q198: 0 | R198: 0 | S198: 0 | T198: 0 | U198: 0 | V198: 0 | W198: 0 | X198: 0 | Y198: 12.96428571 | Z198: 0 | AA198: 120084 | AB198: 0 | AC198: 0 | AD198: 1 | AE198: 0 | AF198: 3443 | AG198: 0 | AH198: 0 | AI198: 3750 | AJ198: 260899.9123 | AK198: 120082.8 | AL198: 0 | AM198: 0 | AN198: 3068 | AO198: 42 | AP198: 0 | AR198: 0 | AS198: 0 | AT198: 0 | AV198: 0 | AX198: 0 | AZ198: 0 | BA198: 0 | BB198: 0 | BC198: 0 | BD198: 0 | BE198: 0 | BF198: 100 | BG198: 0 | BI198: 7152.33 | BJ198: 3513.42 | BK198: =IF(AND(C198=1,BI198<3883.495),4000-BI198,0) -> 0 | BL198: 0
A199: 3169 | B199: Guston CEP School | C199: 1 | D199: 154 | E199: 0 | F199: 0 | G199: 12 | H199: 0 | I199: 12 | J199: 0 | K199: 2 | L199: 12 | M199: 1 | N199: 2 | O199: 6 | P199: 0 | Q199: 0 | R199: 0 | S199: 0 | T199: 0 | U199: 0 | V199: 0 | W199: 56 | X199: 0 | Y199: 39.6 | Z199: 0 | AA199: 120084 | AB199: 0 | AC199: 0 | AD199: 1 | AE199: 0 | AF199: 19461 | AG199: 0 | AH199: 0 | AI199: 3750 | AJ199: 660068.0417 | AK199: 120082.8 | AL199: 0 | AM199: 0 | AN199: 19149 | AO199: 156 | AP199: 0 | AR199: 0 | AS199: 0 | AT199: 0 | AV199: 0 | AX199: 0 | AZ199: 0 | BA199: 0 | BB199: 0 | BC199: 0 | BD199: 0 | BE199: 0 | BF199: 156 | BG199: 0 | BI199: 4194.43 | BJ199: 3414.66 | BK199: 0 | BL199: 0
A200: 3171 | B200: Nonington CEP School | C200: 1 | D200: 49 | E200: 0 | F200: 0 | G200: 6 | H200: 0 | I200: 9.8 | J200: 0 | K200: 29.82608696 | L200: 3.195652174 | M200: 0 | N200: 6.391304348 | O200: 0 | P200: 0 | Q200: 0 | R200: 0 | S200: 0 | T200: 0 | U200: 0 | V200: 0 | W200: 1.166666667 | X200: 0 | Y200: 17.92682927 | Z200: 0 | AA200: 120084 | AB200: 0 | AC200: 0 | AD200: 1 | AE200: 0 | AF200: 9606 | AG200: 0 | AH200: 0 | AI200: 3750 | AJ200: 302621.5531 | AK200: 120082.8 | AL200: 0 | AM200: 0 | AN200: 9452 | AO200: 52 | AP200: 0 | AR200: 0 | AS200: 0 | AT200: 0 | AV200: 0 | AX200: 0 | AZ200: 0 | BA200: 0 | BB200: 0 | BC200: 0 | BD200: 0 | BE200: 0 | BF200: 100 | BG200: 0 | BI200: 6009.12 | BJ200: 3558.43 | BK200: 0 | BL200: 0
... 104 more rows

Sheet TestArea (hidden)
A1: MI DfE no | B1: School Name | D1: Macro School Name | E1: Data Calc | F1: =SUM(F2:F302) -> 301 | H1: Macro F1 | I1: Data Calc F1 | L1: Macro F2 | M1: Data Calc F2 | N1: 0 | P1: Macro F4 | Q1: Data Calc F4 | R1: 0 | T1: Macro F6 | U1: Data Calc F6 | V1: 0 | X1: Macro F7 | Y1: Data Calc F7 | Z1: 0 | AB1: Macro F8 | AC1: Data Calc F8 | AD1: 0 | AF1: Macro F9 | AG1: Data Calc F9 | AH1: 0 | AJ1: Macro F10 | AK1: Data Calc F10 | AL1: 0 | AN1: Macro F11 | AO1: Data Calc F11 | AP1: 0 | AR1: Macro F12 | AS1: Data Calc F12 | AT1: 0 | AV1: Macro F13 | AW1: Data Calc F13 | AX1: 0 | AZ1: Macro F14 | BA1: Data Calc F14 | BB1: 0 | BD1: Macro FFT | BE1: Data Calc FFT | BF1: 0 | BH1: Macro MFG | BI1: Data Calc MFG | BJ1: 0 | BL1: Macro SBS | BM1: Data Calc SBS | BN1: 0 | BP1: Macro Growth | BQ1: Data Calc Growth | BR1: 0 | BT1: Macro SBS Inc Growth | BU1: Data Calc SBS Inc Growth | BV1: 0 | BX1: Early years rate | BZ1: =SUM(BZ2:BZ302) -> 5.62 | CB1: Macro Notional SEN | CC1: Data Calc | CD1: =SUM(CD2:CD302) -> 0 | CF1: Macro SEN top up | CG1: Data Calc | CH1: =SUM(CH2:CH302) -> 141373 | CJ1: SRP Element 1 | CK1: Data Calc | CL1: =SUM(CL2:CL302) -> 0 | CN1: SRP Element 2 | CO1: Data Calc | CP1: =SUM(CP2:CP302) -> 2052500 | CR1: SRP 1 Pre | CS1: Data Calc | CT1: =SUM(CT2:CT302) -> 11056 | CV1: SRP 1 Post | CW1: Data Calc | CX1: =SUM(CX2:CX302) -> 11056 | CZ1: SRP 2 Pre | DA1: Data Calc | DB1: =SUM(DB2:DB302) -> 11056 | DD1: SRP 2 Post | DE1: Data Calc | DF1: =SUM(DF2:DF302) -> 11056 | DH1: Qual Year1 | DI1: Data Calc | DJ1: =SUM(DJ2:DJ302) -> 35 | DL1: Orig PAN 1 | DM1: Data Calc | DN1: =SUM(DN2:DN302) -> -947 | DP1: New PAN | DQ1: Data Calc | DR1: =SUM(DR2:DR302) -> 36 | DT1: Qual Year2 | DU1: Data Calc | DV1: =SUM(DV2:DV302) -> 36 | DX1: Orig PAN2 | DY1: Data Calc | DZ1: =SUM(DZ2:DZ302) -> 38 | EB1: New PAN2 | EC1: Data Calc | ED1: =SUM(ED2:ED302) -> 37 | EF1: Qual Year3 | EG1: Data Calc | EH1: =SUM(EH2:EH302) -> 31 | EJ1: Orig PAN3 | EK1: Data Calc | EL1: =SUM(EL2:EL302) -> 31 | EN1: New PAN3 | EO1: Data Calc | EP1: =SUM(EP2:EP302) -> 31
A2: 2270 | B2: Aldington Primary School | D2: Aldington Primary School | F2: =IF(E2=D2,0,1) -> 1 | H2: 562061.4 | I2: 562061.4013 | J2: =H2-I2 -> -0.001283491147 | L2: 15043.27 | M2: 15043.27293 | N2: =L2-M2 -> -0.002925000012 | P2: 0 | Q2: 0 | R2: =P2-Q2 -> 0 | T2: 48597.99 | U2: 48597.9948 | V2: =T2-U2 -> -0.004799999944 | X2: 120084 | Y2: 120084 | Z2: =X2-Y2 -> 0 | AB2: 0 | AC2: 0 | AD2: =AB2-AC2 -> 0 | AF2: 0 | AG2: 0 | AH2: =AF2-AG2 -> 0 | AJ2: 0 | AK2: 0 | AL2: =AJ2-AK2 -> 0 | AN2: 29952 | AO2: 29952 | AP2: =AN2-AO2 -> 0 | AR2: 0 | AS2: 0 | AT2: =AR2-AS2 -> 0 | AV2: 0 | AW2: 0 | AX2: =AV2-AW2 -> 0 | AZ2: 0 | BA2: 0 | BB2: =AZ2-BA2 -> 0 | BD2: 775738.67 | BE2: 775738.669 | BF2: =BD2-BE2 -> 0.0009915088303 | BH2: 0 | BI2: 0 | BJ2: =BH2-BI2 -> 0 | BL2: 775738.67 | BM2: 775738.669 | BN2: =BL2-BM2 -> 0.0009915088303 | BP2: 0 | BR2: =BP2-BQ2 -> 0 | BT2: 3160.11 | BV2: =BT2-BU2 -> 3160.11 | BX2: 0 | BZ2: =BX2-BY2 -> 0 | CB2: 65823.5 | CC2: 65823.49503 | CD2: =ROUND(CB2-CC2,0) -> 0 | CF2: 0 | CH2: =ROUND(CF2-CG2,0) -> 0 | CJ2: 3766.6 | CK2: 3766.599338 | CL2: =ROUND(CJ2-CK2,0) -> 0 | CN2: 0 | CP2: =ROUND(CN2-CO2,0) -> 0 | CR2: 0 | CT2: =ROUND(CR2-CS2,0) -> 0 | CV2: 0 | CX2: =ROUND(CV2-CW2,0) -> 0 | CZ2: 0 | DB2: =ROUND(CZ2-DA2,0) -> 0 | DD2: 0 | DF2: =ROUND(DD2-DE2,0) -> 0 | DH2: NO | DI2: =IF(ISERROR(VLOOKUP($A2+8860000,'Growth Data'!$A:$F,3,0)),"NO",VLOOKUP($A2+8860000,'Growth Data'!$A:$F,3,0)) -> NO | DJ2: =IF(DH2=DI2,0,1) -> 0 | DL2: 0 | DM2: =IF(DI2="YES",IF(ISERROR(VLOOKUP($A2+8860000,'Growth Data'!$A:$F,6,0)),0,VLOOKUP($A2+8860000,'Growth Data'!$A:$F,6,0)),0) -> 0 | DN2: =ROUND(DL2-DM2,0) -> 0 | DP2: 0 | DQ2: =IF(ISERROR(VLOOKUP($A2+8860000,'Growth Data'!$A:$Z,7,0)),0,VLOOKUP($A2+8860000,'Growth Data'!$A:$Z,7,0)) -> 0 | DR2: =IF(DP2=DQ2,0,1) -> 0 | DT2: NO | DU2: =IF(ISERROR(VLOOKUP($A2+8860000,'Growth Data'!$A:$F,4,0)),"NO",VLOOKUP($A2+8860000,'Growth Data'!$A:$F,4,0)) -> NO | DV2: =IF(DT2=DU2,0,1) -> 0 | DX2: 0 | DY2: =IF(ISERROR(VLOOKUP($A2+8860000,'Growth Data'!$A:$Z,8,0)),0,VLOOKUP($A2+8860000,'Growth Data'!$A:$Z,8,0)) -> 0 | DZ2: =IF(DX2=DY2,0,1) -> 0 | EB2: 0 | EC2: =IF(ISERROR(VLOOKUP($A2+8860000,'Growth Data'!$A:$Z,9,0)),0,VLOOKUP($A2+8860000,'Growth Data'!$A:$Z,9,0)) -> 0 | ED2: =IF(EB2=EC2,0,1) -> 0 | EF2: NO | EG2: =IF(ISERROR(VLOOKUP($A2+8860000,'Growth Data'!$A:$Z,5,0)),"NO",VLOOKUP($A2+8860000,'Growth Data'!$A:$Z,5,0)) -> NO | EH2: =IF(EF2=EG2,0,1) -> 0 | EJ2: 0 | EK2: =IF(ISERROR(VLOOKUP($A2+8860000,'Growth Data'!$A:$Z,10,0)),0,VLOOKUP($A2+8860000,'Growth Data'!$A:$Z,10,0)) -> 0 | EL2: =IF(EJ2=EK2,0,1) -> 0 | EN2: 0 | EO2: =IF(ISERROR(VLOOKUP($A2+8860000,'Growth Data'!$A:$Z,11,0)),0,VLOOKUP($A2+8860000,'Growth Data'!$A:$Z,11,0)) -> 0 | EP2: =IF(EN2=EO2,0,1) -> 0
A3: 2089 | B3: Anthony Roper Primary School, The | D3: Anthony Roper Primary School, The | F3: 1 | H3: 854446.88 | I3: 854446.8777 | J3: 0.002291258308 | L3: 21049.79 | M3: 21049.79034 | N3: -0.0003355263143 | P3: 1873.81 | Q3: 1873.81075 | R3: -0.0007500000022 | T3: 62654.18 | U3: 62654.17881 | V3: 0.001191406249 | X3: 120084 | Y3: 120084 | Z3: 0 | AB3: 0 | AC3: 0 | AD3: 0 | AF3: 38587.96 | AG3: 38587.95514 | AH3: 0.004863255846 | AJ3: 0 | AK3: 0 | AL3: 0 | AN3: 6656 | AO3: 6656 | AP3: 0 | AR3: 0 | AS3: 0 | AT3: 0 | AV3: 0 | AW3: 0 | AX3: 0 | AZ3: 30053.39 | BA3: 30053.38726 | BB3: 0.002739605829 | BD3: 1135406 | BE3: 1135406 | BF3: 0 | BH3: 0 | BI3: 0 | BJ3: 0 | BL3: 1135406 | BM3: 1135406 | BN3: 0 | BP3: 0 | BR3: 0 | BT3: 3750 | BV3: 3750 | BX3: 0 | BZ3: 0 | CB3: 85820.7 | CC3: 85820.70034 | CD3: 0 | CF3: 0 | CH3: 0 | CJ3: 3750 | CK3: 3750 | CL3: 0 | CN3: 0 | CP3: 0 | CR3: 0 | CT3: 0 | CV3: 0 | CX3: 0 | CZ3: 0 | DB3: 0 | DD3: 0 | DF3: 0 | DH3: NO | DI3: =IF(ISERROR(VLOOKUP($A3+8860000,'Growth Data'!$A:$F,3,0)),"NO",VLOOKUP($A3+8860000,'Growth Data'!$A:$F,3,0)) -> NO | DJ3: 0 | DL3: 0 | DM3: =IF(DI3="YES",IF(ISERROR(VLOOKUP($A3+8860000,'Growth Data'!$A:$F,6,0)),0,VLOOKUP($A3+8860000,'Growth Data'!$A:$F,6,0)),0) -> 0 | DN3: 0 | DP3: 0 | DQ3: =IF(ISERROR(VLOOKUP($A3+8860000,'Growth Data'!$A:$Z,7,0)),0,VLOOKUP($A3+8860000,'Growth Data'!$A:$Z,7,0)) -> 0 | DR3: 0 | DT3: NO | DU3: =IF(ISERROR(VLOOKUP($A3+8860000,'Growth Data'!$A:$F,4,0)),"NO",VLOOKUP($A3+8860000,'Growth Data'!$A:$F,4,0)) -> NO | DV3: 0 | DX3: 0 | DY3: =IF(ISERROR(VLOOKUP($A3+8860000,'Growth Data'!$A:$Z,8,0)),0,VLOOKUP($A3+8860000,'Growth Data'!$A:$Z,8,0)) -> 0 | DZ3: 0 | EB3: 0 | EC3: =IF(ISERROR(VLOOKUP($A3+8860000,'Growth Data'!$A:$Z,9,0)),0,VLOOKUP($A3+8860000,'Growth Data'!$A:$Z,9,0)) -> 0 | ED3: 0 | EF3: NO | EG3: =IF(ISERROR(VLOOKUP($A3+8860000,'Growth Data'!$A:$Z,5,0)),"NO",VLOOKUP($A3+8860000,'Growth Data'!$A:$Z,5,0)) -> NO | EH3: 0 | EJ3: 0 | EK3: =IF(ISERROR(VLOOKUP($A3+8860000,'Growth Data'!$A:$Z,10,0)),0,VLOOKUP($A3+8860000,'Growth Data'!$A:$Z,10,0)) -> 0 | EL3: 0 | EN3: 0 | EO3: =IF(ISERROR(VLOOKUP($A3+8860000,'Growth Data'!$A:$Z,11,0)),0,VLOOKUP($A3+8860000,'Growth Data'!$A:$Z,11,0)) -> 0 | EP3: 0
A4: 5426 | B4: Archbishop's School, The | D4: Archbishop's School, The | F4: 1 | H4: 2489231.54 | I4: 2489231.545 | J4: -0.004802435171 | L4: 291698.3 | M4: 291698.296 | N4: 0.004025000264 | P4: 33199.45 | Q4: 33199.45426 | R4: -0.004261460075 | T4: 249165.86 | U4: 249165.855 | V4: 0.005005535233 | X4: 114480.08 | Y4: 114480.08 | Z4: 0 | AB4: 0 | AC4: 0 | AD4: 0 | AF4: 0 | AG4: 0 | AH4: 0 | AJ4: 0 | AK4: 0 | AL4: 0 | AN4: 17101 | AO4: 17101 | AP4: 0 | AR4: 0 | AS4: 0 | AT4: 0 | AV4: 0 | AW4: 0 | AX4: 0 | AZ4: 0 | BA4: 0 | BB4: 0 | BD4: 3194876.23 | BE4: 3194876.23 | BF4: -3.335950896e-05 | BH4: 0 | BI4: 0 | BJ4: 0 | BL4: 3194876.23 | BM4: 3194876.23 | BN4: -3.335950896e-05 | BP4: 0 | BR4: 0 | BT4: 5192.03 | BV4: 5192.03 | BX4: 0 | BZ4: 0 | CB4: 522643.57 | CC4: 522643.5684 | CD4: 0 | CF4: 0 | CH4: 0 | CJ4: 5386.06 | CK4: 5386.059712 | CL4: 0 | CN4: 0 | CP4: 0 | CR4: 0 | CT4: 0 | CV4: 0 | CX4: 0 | CZ4: 0 | DB4: 0 | DD4: 0 | DF4: 0 | DH4: NO | DI4: =IF(ISERROR(VLOOKUP($A4+8860000,'Growth Data'!$A:$F,3,0)),"NO",VLOOKUP($A4+8860000,'Growth Data'!$A:$F,3,0)) -> NO | DJ4: 0 | DL4: 0 | DM4: =IF(DI4="YES",IF(ISERROR(VLOOKUP($A4+8860000,'Growth Data'!$A:$F,6,0)),0,VLOOKUP($A4+8860000,'Growth Data'!$A:$F,6,0)),0) -> 0 | DN4: 0 | DP4: 0 | DQ4: =IF(ISERROR(VLOOKUP($A4+8860000,'Growth Data'!$A:$Z,7,0)),0,VLOOKUP($A4+8860000,'Growth Data'!$A:$Z,7,0)) -> 0 | DR4: 0 | DT4: NO | DU4: =IF(ISERROR(VLOOKUP($A4+8860000,'Growth Data'!$A:$F,4,0)),"NO",VLOOKUP($A4+8860000,'Growth Data'!$A:$F,4,0)) -> NO | DV4: 0 | DX4: 0 | DY4: =IF(ISERROR(VLOOKUP($A4+8860000,'Growth Data'!$A:$Z,8,0)),0,VLOOKUP($A4+8860000,'Growth Data'!$A:$Z,8,0)) -> 0 | DZ4: 0 | EB4: 0 | EC4: =IF(ISERROR(VLOOKUP($A4+8860000,'Growth Data'!$A:$Z,9,0)),0,VLOOKUP($A4+8860000,'Growth Data'!$A:$Z,9,0)) -> 0 | ED4: 0 | EF4: NO | EG4: =IF(ISERROR(VLOOKUP($A4+8860000,'Growth Data'!$A:$Z,5,0)),"NO",VLOOKUP($A4+8860000,'Growth Data'!$A:$Z,5,0)) -> NO | EH4: 0 | EJ4: 0 | EK4: =IF(ISERROR(VLOOKUP($A4+8860000,'Growth Data'!$A:$Z,10,0)),0,VLOOKUP($A4+8860000,'Growth Data'!$A:$Z,10,0)) -> 0 | EL4: 0 | EN4: 0 | EO4: =IF(ISERROR(VLOOKUP($A4+8860000,'Growth Data'!$A:$Z,11,0)),0,VLOOKUP($A4+8860000,'Growth Data'!$A:$Z,11,0)) -> 0 | EP4: 0
A5: 3351 | B5: Ash Cartwright and Kelsey CEP School | D5: Ash Cartwright and Kelsey CEP School | F5: 1 | H5: 405933.23 | I5: 405933.2343 | J5: -0.004260299203 | L5: 21724.07 | M5: 21724.07028 | N5: -0.0002797845991 | P5: 1177.82 | Q5: 1177.8239 | R5: -0.003900000001 | T5: 41672.31 | U5: 41672.31428 | V5: -0.004277343753 | X5: 120084 | Y5: 120084 | Z5: 0 | AB5: 2362.11 | AC5: 2362.109372 | AD5: 0.000627503337 | AF5: 0 | AG5: 0 | AH5: 0 | AJ5: 0 | AK5: 0 | AL5: 0 | AN5: 6912 | AO5: 6912 | AP5: 0 | AR5: 0 | AS5: 0 | AT5: 0 | AV5: 0 | AW5: 0 | AX5: 0 | AZ5: 0 | BA5: 0 | BB5: 0 | BD5: 599865.55 | BE5: 599865.5521 | BF5: -0.002089924179 | BH5: 0 | BI5: 0 | BJ5: 0 | BL5: 599865.55 | BM5: 599865.5521 | BN5: -0.002089924179 | BP5: 0 | BR5: 0 | BT5: 3290.26 | BV5: 3290.26 | BX5: 0 | BZ5: 0 | CB5: 60001.71 | CC5: 60001.71076 | CD5: 0 | CF5: 0 | CH5: 0 | CJ5: 4146.53 | CK5: 4146.528336 | CL5: 0 | CN5: 0 | CP5: 0 | CR5: 0 | CT5: 0 | CV5: 0 | CX5: 0 | CZ5: 0 | DB5: 0 | DD5: 0 | DF5: 0 | DH5: NO | DI5: =IF(ISERROR(VLOOKUP($A5+8860000,'Growth Data'!$A:$F,3,0)),"NO",VLOOKUP($A5+8860000,'Growth Data'!$A:$F,3,0)) -> NO | DJ5: 0 | DL5: 0 | DM5: =IF(DI5="YES",IF(ISERROR(VLOOKUP($A5+8860000,'Growth Data'!$A:$F,6,0)),0,VLOOKUP($A5+8860000,'Growth Data'!$A:$F,6,0)),0) -> 0 | DN5: 0 | DP5: 0 | DQ5: =IF(ISERROR(VLOOKUP($A5+8860000,'Growth Data'!$A:$Z,7,0)),0,VLOOKUP($A5+8860000,'Growth Data'!$A:$Z,7,0)) -> 0 | DR5: 0 | DT5: NO | DU5: =IF(ISERROR(VLOOKUP($A5+8860000,'Growth Data'!$A:$F,4,0)),"NO",VLOOKUP($A5+8860000,'Growth Data'!$A:$F,4,0)) -> NO | DV5: 0 | DX5: 0 | DY5: =IF(ISERROR(VLOOKUP($A5+8860000,'Growth Data'!$A:$Z,8,0)),0,VLOOKUP($A5+8860000,'Growth Data'!$A:$Z,8,0)) -> 0 | DZ5: 0 | EB5: 0 | EC5: =IF(ISERROR(VLOOKUP($A5+8860000,'Growth Data'!$A:$Z,9,0)),0,VLOOKUP($A5+8860000,'Growth Data'!$A:$Z,9,0)) -> 0 | ED5: 0 | EF5: NO | EG5: =IF(ISERROR(VLOOKUP($A5+8860000,'Growth Data'!$A:$Z,5,0)),"NO",VLOOKUP($A5+8860000,'Growth Data'!$A:$Z,5,0)) -> NO | EH5: 0 | EJ5: 0 | EK5: =IF(ISERROR(VLOOKUP($A5+8860000,'Growth Data'!$A:$Z,10,0)),0,VLOOKUP($A5+8860000,'Growth Data'!$A:$Z,10,0)) -> 0 | EL5: 0 | EN5: 0 | EO5: =IF(ISERROR(VLOOKUP($A5+8860000,'Growth Data'!$A:$Z,11,0)),0,VLOOKUP($A5+8860000,'Growth Data'!$A:$Z,11,0)) -> 0 | EP5: 0
A6: 3909 | B6: Ashford Oaks Community Primary School | D6: Ashford Oaks Community Primary School | F6: 1 | H6: 1155348.44 | I6: 1155348.436 | J6: 0.004028379219 | L6: 264475.13 | M6: 264475.1335 | N6: -0.003526086919 | P6: 23234.02 | Q6: 23234.01901 | R6: 0.0009927953761 | T6: 169560.11 | U6: 169560.1091 | V6: 0.0009499999578 | X6: 120084 | Y6: 120084 | Z6: 0 | AB6: 0 | AC6: 0 | AD6: 0 | AF6: 0 | AG6: 0 | AH6: 0 | AJ6: 0 | AK6: 0 | AL6: 0 | AN6: 69632 | AO6: 69632 | AP6: 0 | AR6: 0 | AS6: 0 | AT6: 0 | AV6: 0 | AW6: 0 | AX6: 0 | AZ6: 0 | BA6: 0 | BB6: 0 | BD6: 1802333.7 | BE6: 1802333.698 | BF6: 0.002445087535 | BH6: 0 | BI6: 0 | BJ6: 0 | BL6: 1802333.7 | BM6: 1802333.698 | BN6: 0.002445087535 | BP6: 0 | BR6: 0 | BT6: 3962.21 | BV6: 3962.21 | BX6: 0.54 | BZ6: 0.54 | CB6: 388301.72 | CC6: 388301.7189 | CD6: 0 | CF6: 0 | CH6: 0 | CJ6: 4257.25 | CK6: 4257.252328 | CL6: 0 | CN6: 0 | CP6: 0 | CR6: 0 | CT6: 0 | CV6: 0 | CX6: 0 | CZ6: 0 | DB6: 0 | DD6: 0 | DF6: 0 | DH6: NO | DI6: =IF(ISERROR(VLOOKUP($A6+8860000,'Growth Data'!$A:$F,3,0)),"NO",VLOOKUP($A6+8860000,'Growth Data'!$A:$F,3,0)) -> NO | DJ6: 0 | DL6: 0 | DM6: =IF(DI6="YES",IF(ISERROR(VLOOKUP($A6+8860000,'Growth Data'!$A:$F,6,0)),0,VLOOKUP($A6+8860000,'Growth Data'!$A:$F,6,0)),0) -> 0 | DN6: 0 | DP6: 0 | DQ6: =IF(ISERROR(VLOOKUP($A6+8860000,'Growth Data'!$A:$Z,7,0)),0,VLOOKUP($A6+8860000,'Growth Data'!$A:$Z,7,0)) -> 0 | DR6: 0 | DT6: NO | DU6: =IF(ISERROR(VLOOKUP($A6+8860000,'Growth Data'!$A:$F,4,0)),"NO",VLOOKUP($A6+8860000,'Growth Data'!$A:$F,4,0)) -> NO | DV6: 0 | DX6: 0 | DY6: =IF(ISERROR(VLOOKUP($A6+8860000,'Growth Data'!$A:$Z,8,0)),0,VLOOKUP($A6+8860000,'Growth Data'!$A:$Z,8,0)) -> 0 | DZ6: 0 | EB6: 0 | EC6: =IF(ISERROR(VLOOKUP($A6+8860000,'Growth Data'!$A:$Z,9,0)),0,VLOOKUP($A6+8860000,'Growth Data'!$A:$Z,9,0)) -> 0 | ED6: 0 | EF6: NO | EG6: =IF(ISERROR(VLOOKUP($A6+8860000,'Growth Data'!$A:$Z,5,0)),"NO",VLOOKUP($A6+8860000,'Growth Data'!$A:$Z,5,0)) -> NO | EH6: 0 | EJ6: 0 | EK6: =IF(ISERROR(VLOOKUP($A6+8860000,'Growth Data'!$A:$Z,10,0)),0,VLOOKUP($A6+8860000,'Growth Data'!$A:$Z,10,0)) -> 0 | EL6: 0 | EN6: 0 | EO6: =IF(ISERROR(VLOOKUP($A6+8860000,'Growth Data'!$A:$Z,11,0)),0,VLOOKUP($A6+8860000,'Growth Data'!$A:$Z,11,0)) -> 0 | EP6: 0
A7: 2454 | B7: Aycliffe Community Primary School | D7: Aycliffe Community Primary School | F7: 1 | H7: 292385.48 | I7: 292385.4764 | J7: 0.003574749513 | L7: 75081.96 | M7: 75081.96049 | N7: -0.0004947666166 | P7: 2506.53 | Q7: 2506.526068 | R7: 0.00393181818 | T7: 30633.99 | U7: 30633.98693 | V7: 0.003069767492 | X7: 120084 | Y7: 120084 | Z7: 0 | AB7: 0 | AC7: 0 | AD7: 0 | AF7: 0 | AG7: 0 | AH7: 0 | AJ7: 0 | AK7: 0 | AL7: 0 | AN7: 22829 | AO7: 22829 | AP7: 0 | AR7: 0 | AS7: 0 | AT7: 0 | AV7: 0 | AW7: 0 | AX7: 0 | AZ7: 0 | BA7: 0 | BB7: 0 | BD7: 543520.95 | BE7: 543520.9499 | BF7: 8.156849071e-05 | BH7: 0 | BI7: 0 | BJ7: 0 | BL7: 543520.95 | BM7: 543520.9499 | BN7: 8.156849071e-05 | BP7: 0 | BR7: 0 | BT7: 3889.4 | BV7: 3889.4 | BX7: 0 | BZ7: 0 | CB7: 95093.99 | CC7: 95093.9908 | CD7: 0 | CF7: 0 | CH7: 0 | CJ7: 5055.26 | CK7: 5055.26165 | CL7: 0 | CN7: 0 | CP7: 0 | CR7: 0 | CT7: 0 | CV7: 0 | CX7: 0 | CZ7: 0 | DB7: 0 | DD7: 0 | DF7: 0 | DH7: NO | DI7: =IF(ISERROR(VLOOKUP($A7+8860000,'Growth Data'!$A:$F,3,0)),"NO",VLOOKUP($A7+8860000,'Growth Data'!$A:$F,3,0)) -> NO | DJ7: 0 | DL7: 0 | DM7: =IF(DI7="YES",IF(ISERROR(VLOOKUP($A7+8860000,'Growth Data'!$A:$F,6,0)),0,VLOOKUP($A7+8860000,'Growth Data'!$A:$F,6,0)),0) -> 0 | DN7: 0 | DP7: 0 | DQ7: =IF(ISERROR(VLOOKUP($A7+8860000,'Growth Data'!$A:$Z,7,0)),0,VLOOKUP($A7+8860000,'Growth Data'!$A:$Z,7,0)) -> 0 | DR7: 0 | DT7: NO | DU7: =IF(ISERROR(VLOOKUP($A7+8860000,'Growth Data'!$A:$F,4,0)),"NO",VLOOKUP($A7+8860000,'Growth Data'!$A:$F,4,0)) -> NO | DV7: 0 | DX7: 0 | DY7: =IF(ISERROR(VLOOKUP($A7+8860000,'Growth Data'!$A:$Z,8,0)),0,VLOOKUP($A7+8860000,'Growth Data'!$A:$Z,8,0)) -> 0 | DZ7: 0 | EB7: 0 | EC7: =IF(ISERROR(VLOOKUP($A7+8860000,'Growth Data'!$A:$Z,9,0)),0,VLOOKUP($A7+8860000,'Growth Data'!$A:$Z,9,0)) -> 0 | ED7: 0 | EF7: NO | EG7: =IF(ISERROR(VLOOKUP($A7+8860000,'Growth Data'!$A:$Z,5,0)),"NO",VLOOKUP($A7+8860000,'Growth Data'!$A:$Z,5,0)) -> NO | EH7: 0 | EJ7: 0 | EK7: =IF(ISERROR(VLOOKUP($A7+8860000,'Growth Data'!$A:$Z,10,0)),0,VLOOKUP($A7+8860000,'Growth Data'!$A:$Z,10,0)) -> 0 | EL7: 0 | EN7: 0 | EO7: =IF(ISERROR(VLOOKUP($A7+8860000,'Growth Data'!$A:$Z,11,0)),0,VLOOKUP($A7+8860000,'Growth Data'!$A:$Z,11,0)) -> 0 | EP7: 0
A8: 5410 | B8: Aylesford School - Sports College | D8: Aylesford School - Sports College | F8: 1 | H8: 2760597.57 | I8: 2760597.571 | J8: -0.0006064013578 | L8: 259109.42 | M8: 259109.4158 | N8: 0.004173074733 | P8: 14543.3 | Q8: 14543.30108 | R8: -0.001078582474 | T8: 284951.35 | U8: 284951.3533 | V8: -0.003269335895 | X8: 114480.08 | Y8: 114480.08 | Z8: 0 | AB8: 0 | AC8: 0 | AD8: 0 | AF8: 0 | AG8: 0 | AH8: 0 | AJ8: 0 | AK8: 0 | AL8: 0 | AN8: 37888 | AO8: 37888 | AP8: 0 | AR8: 930120.9 | AS8: 930120.9006 | AT8: -0.000575188431 | AV8: 0 | AW8: 0 | AX8: 0 | AZ8: 0 | BA8: 0 | BB8: 0 | BD8: 4401690.62 | BE8: 4401690.621 | BF8: -0.001356433146 | BH8: 0 | BI8: 0 | BJ8: 0 | BL8: 4401690.62 | BM8: 4401690.621 | BN8: -0.001356433146 | BP8: 0 | BR8: 0 | BT8: 5067.48 | BV8: 5067.48 | BX8: 0 | BZ8: 0 | CB8: 508985.29 | CC8: 508985.2933 | CD8: 0 | CF8: 0 | CH8: 0 | CJ8: 5242.26 | CK8: 5242.262169 | CL8: 0 | CN8: 0 | CP8: 0 | CR8: 0 | CT8: 0 | CV8: 0 | CX8: 0 | CZ8: 0 | DB8: 0 | DD8: 0 | DF8: 0 | DH8: NO | DI8: =IF(ISERROR(VLOOKUP($A8+8860000,'Growth Data'!$A:$F,3,0)),"NO",VLOOKUP($A8+8860000,'Growth Data'!$A:$F,3,0)) -> NO | DJ8: 0 | DL8: 0 | DM8: =IF(DI8="YES",IF(ISERROR(VLOOKUP($A8+8860000,'Growth Data'!$A:$F,6,0)),0,VLOOKUP($A8+8860000,'Growth Data'!$A:$F,6,0)),0) -> 0 | DN8: 0 | DP8: 0 | DQ8: =IF(ISERROR(VLOOKUP($A8+8860000,'Growth Data'!$A:$Z,7,0)),0,VLOOKUP($A8+8860000,'Growth Data'!$A:$Z,7,0)) -> 0 | DR8: 0 | DT8: NO | DU8: =IF(ISERROR(VLOOKUP($A8+8860000,'Growth Data'!$A:$F,4,0)),"NO",VLOOKUP($A8+8860000,'Growth Data'!$A:$F,4,0)) -> NO | DV8: 0 | DX8: 0 | DY8: =IF(ISERROR(VLOOKUP($A8+8860000,'Growth Data'!$A:$Z,8,0)),0,VLOOKUP($A8+8860000,'Growth Data'!$A:$Z,8,0)) -> 0 | DZ8: 0 | EB8: 0 | EC8: =IF(ISERROR(VLOOKUP($A8+8860000,'Growth Data'!$A:$Z,9,0)),0,VLOOKUP($A8+8860000,'Growth Data'!$A:$Z,9,0)) -> 0 | ED8: 0 | EF8: NO | EG8: =IF(ISERROR(VLOOKUP($A8+8860000,'Growth Data'!$A:$Z,5,0)),"NO",VLOOKUP($A8+8860000,'Growth Data'!$A:$Z,5,0)) -> NO | EH8: 0 | EJ8: 0 | EK8: =IF(ISERROR(VLOOKUP($A8+8860000,'Growth Data'!$A:$Z,10,0)),0,VLOOKUP($A8+8860000,'Growth Data'!$A:$Z,10,0)) -> 0 | EL8: 0 | EN8: 0 | EO8: =IF(ISERROR(VLOOKUP($A8+8860000,'Growth Data'!$A:$Z,11,0)),0,VLOOKUP($A8+8860000,'Growth Data'!$A:$Z,11,0)) -> 0 | EP8: 0
A9: 2648 | B9: Aylesham Primary School | D9: Aylesham Primary School | F9: 1 | H9: 928252.92 | I9: 928252.9203 | J9: -0.0003015232505 | L9: 165526.79 | M9: 165526.7877 | N9: 0.002299999906 | P9: 8099.21 | Q9: 8099.206404 | R9: 0.003596085416 | T9: 83897.85 | U9: 83897.85408 | V9: -0.004083333421 | X9: 120084 | Y9: 120084 | Z9: 0 | AB9: 0 | AC9: 0 | AD9: 0 | AF9: 0 | AG9: 0 | AH9: 0 | AJ9: 0 | AK9: 0 | AL9: 0 | AN9: 27136 | AO9: 27136 | AP9: 0 | AR9: 0 | AS9: 0 | AT9: 0 | AV9: 0 | AW9: 0 | AX9: 0 | AZ9: 0 | BA9: 0 | BB9: 0 | BD9: 1332996.77 | BE9: 1332996.768 | BF9: 0.001511228736 | BH9: 0 | BI9: 0 | BJ9: 0 | BL9: 1332996.77 | BM9: 1332996.768 | BN9: 0.001511228736 | BP9: 0 | BR9: 0 | BT9: 3626.23 | BV9: 3626.23 | BX9: 0 | BZ9: 0 | CB9: 221879.62 | CC9: 221879.6155 | CD9: 0 | CF9: 0 | CH9: 0 | CJ9: 3993.46 | CK9: 3993.458008 | CL9: 0 | CN9: 0 | CP9: 0 | CR9: 0 | CT9: 0 | CV9: 0 | CX9: 0 | CZ9: 0 | DB9: 0 | DD9: 0 | DF9: 0 | DH9: NO | DI9: =IF(ISERROR(VLOOKUP($A9+8860000,'Growth Data'!$A:$F,3,0)),"NO",VLOOKUP($A9+8860000,'Growth Data'!$A:$F,3,0)) -> NO | DJ9: 0 | DL9: 0 | DM9: =IF(DI9="YES",IF(ISERROR(VLOOKUP($A9+8860000,'Growth Data'!$A:$F,6,0)),0,VLOOKUP($A9+8860000,'Growth Data'!$A:$F,6,0)),0) -> 0 | DN9: 0 | DP9: 0 | DQ9: =IF(ISERROR(VLOOKUP($A9+8860000,'Growth Data'!$A:$Z,7,0)),0,VLOOKUP($A9+8860000,'Growth Data'!$A:$Z,7,0)) -> 0 | DR9: 0 | DT9: NO | DU9: =IF(ISERROR(VLOOKUP($A9+8860000,'Growth Data'!$A:$F,4,0)),"NO",VLOOKUP($A9+8860000,'Growth Data'!$A:$F,4,0)) -> NO | DV9: 0 | DX9: 0 | DY9: =IF(ISERROR(VLOOKUP($A9+8860000,'Growth Data'!$A:$Z,8,0)),0,VLOOKUP($A9+8860000,'Growth Data'!$A:$Z,8,0)) -> 0 | DZ9: 0 | EB9: 0 | EC9: =IF(ISERROR(VLOOKUP($A9+8860000,'Growth Data'!$A:$Z,9,0)),0,VLOOKUP($A9+8860000,'Growth Data'!$A:$Z,9,0)) -> 0 | ED9: 0 | EF9: NO | EG9: =IF(ISERROR(VLOOKUP($A9+8860000,'Growth Data'!$A:$Z,5,0)),"NO",VLOOKUP($A9+8860000,'Growth Data'!$A:$Z,5,0)) -> NO | EH9: 0 | EJ9: 0 | EK9: =IF(ISERROR(VLOOKUP($A9+8860000,'Growth Data'!$A:$Z,10,0)),0,VLOOKUP($A9+8860000,'Growth Data'!$A:$Z,10,0)) -> 0 | EL9: 0 | EN9: 0 | EO9: =IF(ISERROR(VLOOKUP($A9+8860000,'Growth Data'!$A:$Z,11,0)),0,VLOOKUP($A9+8860000,'Growth Data'!$A:$Z,11,0)) -> 0 | EP9: 0
A10: 3328 | B10: Bapchild & Tonge CEP School | D10: Bapchild & Tonge CEP School | F10: 1 | H10: 581932.26 | I10: 581932.2589 | J10: 0.001095375279 | L10: 47849.23 | M10: 47849.23375 | N10: -0.003749878662 | P10: 4365.13 | Q10: 4365.127315 | R10: 0.002684659087 | T10: 47272.98 | U10: 47272.98022 | V10: -0.0002192982502 | X10: 120084 | Y10: 120084 | Z10: 0 | AB10: 0 | AC10: 0 | AD10: 0 | AF10: 0 | AG10: 0 | AH10: 0 | AJ10: 0 | AK10: 0 | AL10: 0 | AN10: 3507 | AO10: 3507 | AP10: 0 | AR10: 0 | AS10: 0 | AT10: 0 | AV10: 0 | AW10: 0 | AX10: 0 | AZ10: 0 | BA10: 0 | BB10: 0 | BD10: 805010.6 | BE10: 805010.6002 | BF10: -0.0001891426509 | BH10: 0 | BI10: 0 | BJ10: 0 | BL10: 805010.6 | BM10: 805010.6002 | BN10: -0.0001891426509 | BP10: 0 | BR10: 0 | BT10: 3324 | BV10: 3324 | BX10: 0 | BZ10: 0 | CB10: 94914.84 | CC10: 94914.84359 | CD10: 0 | CF10: 0 | CH10: 0 | CJ10: 3909.77 | CK10: 3909.773659 | CL10: 0 | CN10: 0 | CP10: 0 | CR10: 0 | CT10: 0 | CV10: 0 | CX10: 0 | CZ10: 0 | DB10: 0 | DD10: 0 | DF10: 0 | DH10: NO | DI10: =IF(ISERROR(VLOOKUP($A10+8860000,'Growth Data'!$A:$F,3,0)),"NO",VLOOKUP($A10+8860000,'Growth Data'!$A:$F,3,0)) -> NO | DJ10: 0 | DL10: 0 | DM10: =IF(DI10="YES",IF(ISERROR(VLOOKUP($A10+8860000,'Growth Data'!$A:$F,6,0)),0,VLOOKUP($A10+8860000,'Growth Data'!$A:$F,6,0)),0) -> 0 | DN10: 0 | DP10: 0 | DQ10: =IF(ISERROR(VLOOKUP($A10+8860000,'Growth Data'!$A:$Z,7,0)),0,VLOOKUP($A10+8860000,'Growth Data'!$A:$Z,7,0)) -> 0 | DR10: 0 | DT10: NO | DU10: =IF(ISERROR(VLOOKUP($A10+8860000,'Growth Data'!$A:$F,4,0)),"NO",VLOOKUP($A10+8860000,'Growth Data'!$A:$F,4,0)) -> NO | DV10: 0 | DX10: 0 | DY10: =IF(ISERROR(VLOOKUP($A10+8860000,'Growth Data'!$A:$Z,8,0)),0,VLOOKUP($A10+8860000,'Growth Data'!$A:$Z,8,0)) -> 0 | DZ10: 0 | EB10: 0 | EC10: =IF(ISERROR(VLOOKUP($A10+8860000,'Growth Data'!$A:$Z,9,0)),0,VLOOKUP($A10+8860000,'Growth Data'!$A:$Z,9,0)) -> 0 | ED10: 0 | EF10: NO | EG10: =IF(ISERROR(VLOOKUP($A10+8860000,'Growth Data'!$A:$Z,5,0)),"NO",VLOOKUP($A10+8860000,'Growth Data'!$A:$Z,5,0)) -> NO | EH10: 0 | EJ10: 0 | EK10: =IF(ISERROR(VLOOKUP($A10+8860000,'Growth Data'!$A:$Z,10,0)),0,VLOOKUP($A10+8860000,'Growth Data'!$A:$Z,10,0)) -> 0 | EL10: 0 | EN10: 0 | EO10: =IF(ISERROR(VLOOKUP($A10+8860000,'Growth Data'!$A:$Z,11,0)),0,VLOOKUP($A10+8860000,'Growth Data'!$A:$Z,11,0)) -> 0 | EP10: 0
A11: 3120 | B11: Barham CEP School | D11: Barham CEP School | F11: 1 | H11: 587609.65 | I11: 587609.6468 | J11: 0.00320362288 | L11: 17038.79 | M11: 17038.7926 | N11: -0.00259805824 | P11: 8139.51 | Q11: 8139.507229 | R11: 0.002771186444 | T11: 42861.24 | U11: 42861.23902 | V11: 0.0009771429177 | X11: 120084 | Y11: 120084 | Z11: 0 | AB11: 0 | AC11: 0 | AD11: 0 | AF11: 0 | AG11: 0 | AH11: 0 | AJ11: 0 | AK11: 0 | AL11: 0 | AN11: 28672 | AO11: 28672 | AP11: 0 | AR11: 0 | AS11: 0 | AT11: 0 | AV11: 0 | AW11: 0 | AX11: 0 | AZ11: 516.81 | BA11: 516.8143539 | BB11: -0.004353893977 | BD11: 804922 | BE11: 804922 | BF11: 0 | BH11: 0 | BI11: 0 | BJ11: 0 | BL11: 804922 | BM11: 804922 | BN11: 0 | BP11: 0 | BR11: 0 | BT11: 3750 | BV11: 3750 | BX11: 0 | BZ11: 0 | CB11: 71122.4 | CC11: 71122.39616 | CD11: 0 | CF11: 0 | CH11: 0 | CJ11: 3750 | CK11: 3750 | CL11: 0 | CN11: 0 | CP11: 0 | CR11: 0 | CT11: 0 | CV11: 0 | CX11: 0 | CZ11: 0 | DB11: 0 | DD11: 0 | DF11: 0 | DH11: NO | DI11: =IF(ISERROR(VLOOKUP($A11+8860000,'Growth Data'!$A:$F,3,0)),"NO",VLOOKUP($A11+8860000,'Growth Data'!$A:$F,3,0)) -> NO | DJ11: 0 | DL11: 0 | DM11: =IF(DI11="YES",IF(ISERROR(VLOOKUP($A11+8860000,'Growth Data'!$A:$F,6,0)),0,VLOOKUP($A11+8860000,'Growth Data'!$A:$F,6,0)),0) -> 0 | DN11: 0 | DP11: 0 | DQ11: =IF(ISERROR(VLOOKUP($A11+8860000,'Growth Data'!$A:$Z,7,0)),0,VLOOKUP($A11+8860000,'Growth Data'!$A:$Z,7,0)) -> 0 | DR11: 0 | DT11: NO | DU11: =IF(ISERROR(VLOOKUP($A11+8860000,'Growth Data'!$A:$F,4,0)),"NO",VLOOKUP($A11+8860000,'Growth Data'!$A:$F,4,0)) -> NO | DV11: 0 | DX11: 0 | DY11: =IF(ISERROR(VLOOKUP($A11+8860000,'Growth Data'!$A:$Z,8,0)),0,VLOOKUP($A11+8860000,'Growth Data'!$A:$Z,8,0)) -> 0 | DZ11: 0 | EB11: 0 | EC11: =IF(ISERROR(VLOOKUP($A11+8860000,'Growth Data'!$A:$Z,9,0)),0,VLOOKUP($A11+8860000,'Growth Data'!$A:$Z,9,0)) -> 0 | ED11: 0 | EF11: NO | EG11: =IF(ISERROR(VLOOKUP($A11+8860000,'Growth Data'!$A:$Z,5,0)),"NO",VLOOKUP($A11+8860000,'Growth Data'!$A:$Z,5,0)) -> NO | EH11: 0 | EJ11: 0 | EK11: =IF(ISERROR(VLOOKUP($A11+8860000,'Growth Data'!$A:$Z,10,0)),0,VLOOKUP($A11+8860000,'Growth Data'!$A:$Z,10,0)) -> 0 | EL11: 0 | EN11: 0 | EO11: =IF(ISERROR(VLOOKUP($A11+8860000,'Growth Data'!$A:$Z,11,0)),0,VLOOKUP($A11+8860000,'Growth Data'!$A:$Z,11,0)) -> 0 | EP11: 0
A12: 2120 | B12: Bean Primary School | D12: Bean Primary School | F12: 1 | H12: 573416.18 | I12: 573416.1771 | J12: 0.00293300394 | L12: 53003.81 | M12: 53003.8107 | N12: -0.0007039409174 | P12: 7209.71 | Q12: 7209.709933 | R12: 6.666666377e-05 | T12: 58826.67 | U12: 58826.67312 | V12: -0.003122092945 | X12: 120084 | Y12: 120084 | Z12: 0 | AB12: 0 | AC12: 0 | AD12: 0 | AF12: 29576.47 | AG12: 29576.4695 | AH12: 0.0005019203854 | AJ12: 0 | AK12: 0 | AL12: 0 | AN12: 16093 | AO12: 16093 | AP12: 0 | AR12: 0 | AS12: 0 | AT12: 0 | AV12: 0 | AW12: 0 | AX12: 0 | AZ12: 0 | BA12: 0 | BB12: 0 | BD12: 858209.84 | BE12: 858209.8403 | BF12: -0.0003244429827 | BH12: 0 | BI12: 0 | BJ12: 0 | BL12: 858209.84 | BM12: 858209.8403 | BN12: -0.0003244429827 | BP12: 0 | BR12: 0 | BT12: 3552.78 | BV12: 3552.78 | BX12: 0 | BZ12: 0 | CB12: 116300.79 | CC12: 116300.7879 | CD12: 0 | CF12: 0 | CH12: 0 | CJ12: 4168.9 | CK12: 4168.895249 | CL12: 0 | CN12: 0 | CP12: 0 | CR12: 0 | CT12: 0 | CV12: 0 | CX12: 0 | CZ12: 0 | DB12: 0 | DD12: 0 | DF12: 0 | DH12: NO | DI12: =IF(ISERROR(VLOOKUP($A12+8860000,'Growth Data'!$A:$F,3,0)),"NO",VLOOKUP($A12+8860000,'Growth Data'!$A:$F,3,0)) -> NO | DJ12: 0 | DL12: 0 | DM12: =IF(DI12="YES",IF(ISERROR(VLOOKUP($A12+8860000,'Growth Data'!$A:$F,6,0)),0,VLOOKUP($A12+8860000,'Growth Data'!$A:$F,6,0)),0) -> 0 | DN12: 0 | DP12: 0 | DQ12: =IF(ISERROR(VLOOKUP($A12+8860000,'Growth Data'!$A:$Z,7,0)),0,VLOOKUP($A12+8860000,'Growth Data'!$A:$Z,7,0)) -> 0 | DR12: 0 | DT12: NO | DU12: =IF(ISERROR(VLOOKUP($A12+8860000,'Growth Data'!$A:$F,4,0)),"NO",VLOOKUP($A12+8860000,'Growth Data'!$A:$F,4,0)) -> NO | DV12: 0 | DX12: 0 | DY12: =IF(ISERROR(VLOOKUP($A12+8860000,'Growth Data'!$A:$Z,8,0)),0,VLOOKUP($A12+8860000,'Growth Data'!$A:$Z,8,0)) -> 0 | DZ12: 0 | EB12: 0 | EC12: =IF(ISERROR(VLOOKUP($A12+8860000,'Growth Data'!$A:$Z,9,0)),0,VLOOKUP($A12+8860000,'Growth Data'!$A:$Z,9,0)) -> 0 | ED12: 0 | EF12: NO | EG12: =IF(ISERROR(VLOOKUP($A12+8860000,'Growth Data'!$A:$Z,5,0)),"NO",VLOOKUP($A12+8860000,'Growth Data'!$A:$Z,5,0)) -> NO | EH12: 0 | EJ12: 0 | EK12: =IF(ISERROR(VLOOKUP($A12+8860000,'Growth Data'!$A:$Z,10,0)),0,VLOOKUP($A12+8860000,'Growth Data'!$A:$Z,10,0)) -> 0 | EL12: 0 | EN12: 0 | EO12: =IF(ISERROR(VLOOKUP($A12+8860000,'Growth Data'!$A:$Z,11,0)),0,VLOOKUP($A12+8860000,'Growth Data'!$A:$Z,11,0)) -> 0 | EP12: 0
A13: 3022 | B13: Benenden CEP School | D13: Benenden CEP School | F13: 1 | H13: 579093.57 | I13: 579093.565 | J13: 0.005041251425 | L13: 19425.73 | M13: 19425.72711 | N13: 0.00288910891 | P13: 0 | Q13: 0 | R13: 0 | T13: 45026.17 | U13: 45026.17083 | V13: -0.0008284022988 | X13: 120084 | Y13: 120084 | Z13: 0 | AB13: 0 | AC13: 0 | AD13: 0 | AF13: 0 | AG13: 0 | AH13: 0 | AJ13: 0 | AK13: 0 | AL13: 0 | AN13: 6986 | AO13: 6986 | AP13: 0 | AR13: 0 | AS13: 0 | AT13: 0 | AV13: 15101 | AW13: 15101 | AX13: 0 | AZ13: 1370.54 | BA13: 1370.537102 | BB13: 0.002898041937 | BD13: 787087 | BE13: 787087 | BF13: 0 | BH13: 0 | BI13: 0 | BJ13: 0 | BL13: 787087 | BM13: 787087 | BN13: 0 | BP13: 0 | BR13: 0 | BT13: 3824.02 | BV13: 3824.02 | BX13: 0 | BZ13: 0 | CB13: 62130.98 | CC13: 62130.97525 | CD13: 0 | CF13: 0 | CH13: 0 | CJ13: 3750 | CK13: 3750 | CL13: 0 | CN13: 0 | CP13: 0 | CR13: 0 | CT13: 0 | CV13: 0 | CX13: 0 | CZ13: 0 | DB13: 0 | DD13: 0 | DF13: 0 | DH13: NO | DI13: =IF(ISERROR(VLOOKUP($A13+8860000,'Growth Data'!$A:$F,3,0)),"NO",VLOOKUP($A13+8860000,'Growth Data'!$A:$F,3,0)) -> NO | DJ13: 0 | DL13: 0 | DM13: =IF(DI13="YES",IF(ISERROR(VLOOKUP($A13+8860000,'Growth Data'!$A:$F,6,0)),0,VLOOKUP($A13+8860000,'Growth Data'!$A:$F,6,0)),0) -> 0 | DN13: 0 | DP13: 0 | DQ13: =IF(ISERROR(VLOOKUP($A13+8860000,'Growth Data'!$A:$Z,7,0)),0,VLOOKUP($A13+8860000,'Growth Data'!$A:$Z,7,0)) -> 0 | DR13: 0 | DT13: NO | DU13: =IF(ISERROR(VLOOKUP($A13+8860000,'Growth Data'!$A:$F,4,0)),"NO",VLOOKUP($A13+8860000,'Growth Data'!$A:$F,4,0)) -> NO | DV13: 0 | DX13: 0 | DY13: =IF(ISERROR(VLOOKUP($A13+8860000,'Growth Data'!$A:$Z,8,0)),0,VLOOKUP($A13+8860000,'Growth Data'!$A:$Z,8,0)) -> 0 | DZ13: 0 | EB13: 0 | EC13: =IF(ISERROR(VLOOKUP($A13+8860000,'Growth Data'!$A:$Z,9,0)),0,VLOOKUP($A13+8860000,'Growth Data'!$A:$Z,9,0)) -> 0 | ED13: 0 | EF13: NO | EG13: =IF(ISERROR(VLOOKUP($A13+8860000,'Growth Data'!$A:$Z,5,0)),"NO",VLOOKUP($A13+8860000,'Growth Data'!$A:$Z,5,0)) -> NO | EH13: 0 | EJ13: 0 | EK13: =IF(ISERROR(VLOOKUP($A13+8860000,'Growth Data'!$A:$Z,10,0)),0,VLOOKUP($A13+8860000,'Growth Data'!$A:$Z,10,0)) -> 0 | EL13: 0 | EN13: 0 | EO13: =IF(ISERROR(VLOOKUP($A13+8860000,'Growth Data'!$A:$Z,11,0)),0,VLOOKUP($A13+8860000,'Growth Data'!$A:$Z,11,0)) -> 0 | EP13: 0
A14: 2278 | B14: Bethersden Primary School | D14: Bethersden Primary School | F14: 1 | H14: 329288.5 | I14: 329288.4977 | J14: 0.002278358676 | L14: 22684.34 | M14: 22684.33789 | N14: 0.00210753403 | P14: 580.41 | Q14: 580.406 | R14: 0.004 | T14: 25658.33 | U14: 25658.32562 | V14: 0.004377358466 | X14: 120084 | Y14: 120084 | Z14: 0 | AB14: 11741.07 | AC14: 11741.07306 | AD14: -0.003057409875 | AF14: 0 | AG14: 0 | AH14: 0 | AJ14: 0 | AK14: 0 | AL14: 0 | AN14: 10978 | AO14: 10978 | AP14: 0 | AR14: 0 | AS14: 0 | AT14: 0 | AV14: 0 | AW14: 0 | AX14: 0 | AZ14: 0 | BA14: 0 | BB14: 0 | BD14: 521014.64 | BE14: 521014.6403 | BF14: -0.0002941587591 | BH14: 0 | BI14: 0 | BJ14: 0 | BL14: 521014.64 | BM14: 521014.6403 | BN14: -0.0002941587591 | BP14: 0 | BR14: 0 | BT14: 3260.44 | BV14: 3260.44 | BX14: 0 | BZ14: 0 | CB14: 45251.2 | CC14: 45251.20182 | CD14: 0 | CF14: 1474.88 | CH14: 1475 | CJ14: 4396.87 | CK14: 4396.867589 | CL14: 0 | CN14: 0 | CP14: 0 | CR14: 0 | CT14: 0 | CV14: 0 | CX14: 0 | CZ14: 0 | DB14: 0 | DD14: 0 | DF14: 0 | DH14: NO | DI14: =IF(ISERROR(VLOOKUP($A14+8860000,'Growth Data'!$A:$F,3,0)),"NO",VLOOKUP($A14+8860000,'Growth Data'!$A:$F,3,0)) -> NO | DJ14: 0 | DL14: 0 | DM14: =IF(DI14="YES",IF(ISERROR(VLOOKUP($A14+8860000,'Growth Data'!$A:$F,6,0)),0,VLOOKUP($A14+8860000,'Growth Data'!$A:$F,6,0)),0) -> 0 | DN14: 0 | DP14: 0 | DQ14: =IF(ISERROR(VLOOKUP($A14+8860000,'Growth Data'!$A:$Z,7,0)),0,VLOOKUP($A14+8860000,'Growth Data'!$A:$Z,7,0)) -> 0 | DR14: 0 | DT14: NO | DU14: =IF(ISERROR(VLOOKUP($A14+8860000,'Growth Data'!$A:$F,4,0)),"NO",VLOOKUP($A14+8860000,'Growth Data'!$A:$F,4,0)) -> NO | DV14: 0 | DX14: 0 | DY14: =IF(ISERROR(VLOOKUP($A14+8860000,'Growth Data'!$A:$Z,8,0)),0,VLOOKUP($A14+8860000,'Growth Data'!$A:$Z,8,0)) -> 0 | DZ14: 0 | EB14: 0 | EC14: =IF(ISERROR(VLOOKUP($A14+8860000,'Growth Data'!$A:$Z,9,0)),0,VLOOKUP($A14+8860000,'Growth Data'!$A:$Z,9,0)) -> 0 | ED14: 0 | EF14: NO | EG14: =IF(ISERROR(VLOOKUP($A14+8860000,'Growth Data'!$A:$Z,5,0)),"NO",VLOOKUP($A14+8860000,'Growth Data'!$A:$Z,5,0)) -> NO | EH14: 0 | EJ14: 0 | EK14: =IF(ISERROR(VLOOKUP($A14+8860000,'Growth Data'!$A:$Z,10,0)),0,VLOOKUP($A14+8860000,'Growth Data'!$A:$Z,10,0)) -> 0 | EL14: 0 | EN14: 0 | EO14: =IF(ISERROR(VLOOKUP($A14+8860000,'Growth Data'!$A:$Z,11,0)),0,VLOOKUP($A14+8860000,'Growth Data'!$A:$Z,11,0)) -> 0 | EP14: 0
A15: 3023 | B15: Bidborough CEP School | D15: Bidborough CEP School | F15: 1 | H15: 576254.87 | I15: 576254.871 | J15: -0.001012872322 | L15: 10795.55 | M15: 10795.5516 | N15: -0.001599999992 | P15: 6282.14 | Q15: 6282.140087 | R15: -8.67052031e-05 | T15: 55745.68 | U15: 55745.6818 | V15: -0.00179754608 | X15: 120084 | Y15: 120084 | Z15: 0 | AB15: 0 | AC15: 0 | AD15: 0 | AF15: 0 | AG15: 0 | AH15: 0 | AJ15: 0 | AK15: 0 | AL15: 0 | AN15: 14970 | AO15: 14970 | AP15: 0 | AR15: 0 | AS15: 0 | AT15: 0 | AV15: 0 | AW15: 0 | AX15: 0 | AZ15: 0 | BA15: 0 | BB15: 0 | BD15: 784132.24 | BE15: 784132.2445 | BF15: -0.004497123649 | BH15: 0 | BI15: 0 | BJ15: 0 | BL15: 784132.24 | BM15: 784132.2445 | BN15: -0.004497123649 | BP15: 0 | BR15: 0 | BT15: 3197.43 | BV15: 3197.43 | BX15: 0 | BZ15: 0 | CB15: 73654.66 | CC15: 73654.65579 | CD15: 0 | CF15: 0 | CH15: 0 | CJ15: 3788.98 | CK15: 3788.976574 | CL15: 0 | CN15: 0 | CP15: 0 | CR15: 0 | CT15: 0 | CV15: 0 | CX15: 0 | CZ15: 0 | DB15: 0 | DD15: 0 | DF15: 0 | DH15: NO | DI15: =IF(ISERROR(VLOOKUP($A15+8860000,'Growth Data'!$A:$F,3,0)),"NO",VLOOKUP($A15+8860000,'Growth Data'!$A:$F,3,0)) -> NO | DJ15: 0 | DL15: 0 | DM15: =IF(DI15="YES",IF(ISERROR(VLOOKUP($A15+8860000,'Growth Data'!$A:$F,6,0)),0,VLOOKUP($A15+8860000,'Growth Data'!$A:$F,6,0)),0) -> 0 | DN15: 0 | DP15: 0 | DQ15: =IF(ISERROR(VLOOKUP($A15+8860000,'Growth Data'!$A:$Z,7,0)),0,VLOOKUP($A15+8860000,'Growth Data'!$A:$Z,7,0)) -> 0 | DR15: 0 | DT15: NO | DU15: =IF(ISERROR(VLOOKUP($A15+8860000,'Growth Data'!$A:$F,4,0)),"NO",VLOOKUP($A15+8860000,'Growth Data'!$A:$F,4,0)) -> NO | DV15: 0 | DX15: 0 | DY15: =IF(ISERROR(VLOOKUP($A15+8860000,'Growth Data'!$A:$Z,8,0)),0,VLOOKUP($A15+8860000,'Growth Data'!$A:$Z,8,0)) -> 0 | DZ15: 0 | EB15: 0 | EC15: =IF(ISERROR(VLOOKUP($A15+8860000,'Growth Data'!$A:$Z,9,0)),0,VLOOKUP($A15+8860000,'Growth Data'!$A:$Z,9,0)) -> 0 | ED15: 0 | EF15: NO | EG15: =IF(ISERROR(VLOOKUP($A15+8860000,'Growth Data'!$A:$Z,5,0)),"NO",VLOOKUP($A15+8860000,'Growth Data'!$A:$Z,5,0)) -> NO | EH15: 0 | EJ15: 0 | EK15: =IF(ISERROR(VLOOKUP($A15+8860000,'Growth Data'!$A:$Z,10,0)),0,VLOOKUP($A15+8860000,'Growth Data'!$A:$Z,10,0)) -> 0 | EL15: 0 | EN15: 0 | EO15: =IF(ISERROR(VLOOKUP($A15+8860000,'Growth Data'!$A:$Z,11,0)),0,VLOOKUP($A15+8860000,'Growth Data'!$A:$Z,11,0)) -> 0 | EP15: 0
A16: 3178 | B16: Birchington CEP School | D16: Birchington CEP School | F16: 1 | H16: 1354057.01 | I16: 1354057.012 | J16: -0.002182956086 | L16: 107847.17 | M16: 107847.1681 | N16: 0.0019287256 | P16: 7005.26 | Q16: 7005.261849 | R16: -0.001849127171 | T16: 136767.07 | U16: 136767.0659 | V16: 0.004083756299 | X16: 120084 | Y16: 120084 | Z16: 0 | AB16: 0 | AC16: 0 | AD16: 0 | AF16: 0 | AG16: 0 | AH16: 0 | AJ16: 0 | AK16: 0 | AL16: 0 | AN16: 67072 | AO16: 67072 | AP16: 0 | AR16: 0 | AS16: 0 | AT16: 0 | AV16: 0 | AW16: 0 | AX16: 0 | AZ16: 62989.49 | BA16: 62989.49198 | BB16: -0.001980398541 | BD16: 1855822 | BE16: 1855822 | BF16: 0 | BH16: 0 | BI16: 0 | BJ16: 0 | BL16: 1855822 | BM16: 1855822 | BN16: 0 | BP16: 0 | BR16: 0 | BT16: 3750 | BV16: 3750 | BX16: 0 | BZ16: 0 | CB16: 229935.03 | CC16: 229935.0281 | CD16: 0 | CF16: 0 | CH16: 0 | CJ16: 3750 | CK16: 3750 | CL16: 0 | CN16: 0 | CP16: 0 | CR16: 0 | CT16: 0 | CV16: 0 | CX16: 0 | CZ16: 0 | DB16: 0 | DD16: 0 | DF16: 0 | DH16: NO | DI16: =IF(ISERROR(VLOOKUP($A16+8860000,'Growth Data'!$A:$F,3,0)),"NO",VLOOKUP($A16+8860000,'Growth Data'!$A:$F,3,0)) -> YES | DJ16: 1 | DL16: 0 | DM16: =IF(DI16="YES",IF(ISERROR(VLOOKUP($A16+8860000,'Growth Data'!$A:$F,6,0)),0,VLOOKUP($A16+8860000,'Growth Data'!$A:$F,6,0)),0) -> 61 | DN16: -61 | DP16: 0 | DQ16: =IF(ISERROR(VLOOKUP($A16+8860000,'Growth Data'!$A:$Z,7,0)),0,VLOOKUP($A16+8860000,'Growth Data'!$A:$Z,7,0)) -> 90 | DR16: 1 | DT16: NO | DU16: =IF(ISERROR(VLOOKUP($A16+8860000,'Growth Data'!$A:$F,4,0)),"NO",VLOOKUP($A16+8860000,'Growth Data'!$A:$F,4,0)) -> YES | DV16: 1 | DX16: 0 | DY16: =IF(ISERROR(VLOOKUP($A16+8860000,'Growth Data'!$A:$Z,8,0)),0,VLOOKUP($A16+8860000,'Growth Data'!$A:$Z,8,0)) -> 60 | DZ16: 1 | EB16: 0 | EC16: =IF(ISERROR(VLOOKUP($A16+8860000,'Growth Data'!$A:$Z,9,0)),0,VLOOKUP($A16+8860000,'Growth Data'!$A:$Z,9,0)) -> 90 | ED16: 1 | EF16: NO | EG16: =IF(ISERROR(VLOOKUP($A16+8860000,'Growth Data'!$A:$Z,5,0)),"NO",VLOOKUP($A16+8860000,'Growth Data'!$A:$Z,5,0)) -> YES | EH16: 1 | EJ16: 0 | EK16: =IF(ISERROR(VLOOKUP($A16+8860000,'Growth Data'!$A:$Z,10,0)),0,VLOOKUP($A16+8860000,'Growth Data'!$A:$Z,10,0)) -> 60 | EL16: 1 | EN16: 0 | EO16: =IF(ISERROR(VLOOKUP($A16+8860000,'Growth Data'!$A:$Z,11,0)),0,VLOOKUP($A16+8860000,'Growth Data'!$A:$Z,11,0)) -> 90 | EP16: 1
A17: 2490 | B17: Bishops Down Primary School | D17: Bishops Down Primary School | F17: 1 | H17: 667093.08 | I17: 667093.0773 | J17: 0.00271908869 | L17: 32935.82 | M17: 32935.821 | N17: -0.0009987179219 | P17: 5523.5 | Q17: 5523.49789 | R17: 0.002109756104 | T17: 51906.78 | U17: 51906.77565 | V17: 0.004352331533 | X17: 120084 | Y17: 120084 | Z17: 0 | AB17: 0 | AC17: 0 | AD17: 0 | AF17: 0 | AG17: 0 | AH17: 0 | AJ17: 0 | AK17: 0 | AL17: 0 | AN17: 31232 | AO17: 31232 | AP17: 0 | AR17: 0 | AS17: 0 | AT17: 0 | AV17: 0 | AW17: 0 | AX17: 0 | AZ17: 3706.83 | BA17: 3706.828182 | BB17: 0.001817541588 | BD17: 912482 | BE17: 912482 | BF17: 0 | BH17: 0 | BI17: 0 | BJ17: 0 | BL17: 912482 | BM17: 912482 | BN17: 0 | BP17: 0 | BR17: 0 | BT17: 3750 | BV17: 3750 | BX17: 0 | BZ17: 0 | CB17: 85343.28 | CC17: 85343.28184 | CD17: 0 | CF17: 0 | CH17: 0 | CJ17: 3750 | CK17: 3750 | CL17: 0 | CN17: 0 | CP17: 0 | CR17: 0 | CT17: 0 | CV17: 0 | CX17: 0 | CZ17: 0 | DB17: 0 | DD17: 0 | DF17: 0 | DH17: NO | DI17: =IF(ISERROR(VLOOKUP($A17+8860000,'Growth Data'!$A:$F,3,0)),"NO",VLOOKUP($A17+8860000,'Growth Data'!$A:$F,3,0)) -> NO | DJ17: 0 | DL17: 0 | DM17: =IF(DI17="YES",IF(ISERROR(VLOOKUP($A17+8860000,'Growth Data'!$A:$F,6,0)),0,VLOOKUP($A17+8860000,'Growth Data'!$A:$F,6,0)),0) -> 0 | DN17: 0 | DP17: 0 | DQ17: =IF(ISERROR(VLOOKUP($A17+8860000,'Growth Data'!$A:$Z,7,0)),0,VLOOKUP($A17+8860000,'Growth Data'!$A:$Z,7,0)) -> 0 | DR17: 0 | DT17: NO | DU17: =IF(ISERROR(VLOOKUP($A17+8860000,'Growth Data'!$A:$F,4,0)),"NO",VLOOKUP($A17+8860000,'Growth Data'!$A:$F,4,0)) -> NO | DV17: 0 | DX17: 0 | DY17: =IF(ISERROR(VLOOKUP($A17+8860000,'Growth Data'!$A:$Z,8,0)),0,VLOOKUP($A17+8860000,'Growth Data'!$A:$Z,8,0)) -> 0 | DZ17: 0 | EB17: 0 | EC17: =IF(ISERROR(VLOOKUP($A17+8860000,'Growth Data'!$A:$Z,9,0)),0,VLOOKUP($A17+8860000,'Growth Data'!$A:$Z,9,0)) -> 0 | ED17: 0 | EF17: NO | EG17: =IF(ISERROR(VLOOKUP($A17+8860000,'Growth Data'!$A:$Z,5,0)),"NO",VLOOKUP($A17+8860000,'Growth Data'!$A:$Z,5,0)) -> NO | EH17: 0 | EJ17: 0 | EK17: =IF(ISERROR(VLOOKUP($A17+8860000,'Growth Data'!$A:$Z,10,0)),0,VLOOKUP($A17+8860000,'Growth Data'!$A:$Z,10,0)) -> 0 | EL17: 0 | EN17: 0 | EO17: =IF(ISERROR(VLOOKUP($A17+8860000,'Growth Data'!$A:$Z,11,0)),0,VLOOKUP($A17+8860000,'Growth Data'!$A:$Z,11,0)) -> 0 | EP17: 0
A18: 2258 | B18: Blean Primary School | D18: Blean Primary School | F18: 1 | H18: 1226315.78 | I18: 1226315.785 | J18: -0.004618526204 | L18: 50825.37 | M18: 50825.37422 | N18: -0.004220649651 | P18: 37303.51 | Q18: 37303.51355 | R18: -0.003548387052 | T18: 73304.24 | U18: 73304.23797 | V18: 0.002033519588 | X18: 120084 | Y18: 120084 | Z18: 0 | AB18: 0 | AC18: 0 | AD18: 0 | AF18: 0 | AG18: 0 | AH18: 0 | AJ18: 0 | AK18: 0 | AL18: 0 | AN18: 37632 | AO18: 37632 | AP18: 0 | AR18: 0 | AS18: 0 | AT18: 0 | AV18: 0 | AW18: 0 | AX18: 0 | AZ18: 112167.09 | BA18: 112167.0896 | BB18: 0.0003540433536 | BD18: 1657632 | BE18: 1657632 | BF18: 0 | BH18: 0 | BI18: 0 | BJ18: 0 | BL18: 1657632 | BM18: 1657632 | BN18: 0 | BP18: 0 | BR18: 0 | BT18: 3750 | BV18: 3750 | BX18: 0 | BZ18: 0 | CB18: 157761.26 | CC18: 157761.258 | CD18: 0 | CF18: 0 | CH18: 0 | CJ18: 3750 | CK18: 3750 | CL18: 0 | CN18: 0 | CP18: 0 | CR18: 0 | CT18: 0 | CV18: 0 | CX18: 0 | CZ18: 0 | DB18: 0 | DD18: 0 | DF18: 0 | DH18: NO | DI18: =IF(ISERROR(VLOOKUP($A18+8860000,'Growth Data'!$A:$F,3,0)),"NO",VLOOKUP($A18+8860000,'Growth Data'!$A:$F,3,0)) -> NO | DJ18: 0 | DL18: 0 | DM18: =IF(DI18="YES",IF(ISERROR(VLOOKUP($A18+8860000,'Growth Data'!$A:$F,6,0)),0,VLOOKUP($A18+8860000,'Growth Data'!$A:$F,6,0)),0) -> 0 | DN18: 0 | DP18: 0 | DQ18: =IF(ISERROR(VLOOKUP($A18+8860000,'Growth Data'!$A:$Z,7,0)),0,VLOOKUP($A18+8860000,'Growth Data'!$A:$Z,7,0)) -> 0 | DR18: 0 | DT18: NO | DU18: =IF(ISERROR(VLOOKUP($A18+8860000,'Growth Data'!$A:$F,4,0)),"NO",VLOOKUP($A18+8860000,'Growth Data'!$A:$F,4,0)) -> NO | DV18: 0 | DX18: 0 | DY18: =IF(ISERROR(VLOOKUP($A18+8860000,'Growth Data'!$A:$Z,8,0)),0,VLOOKUP($A18+8860000,'Growth Data'!$A:$Z,8,0)) -> 0 | DZ18: 0 | EB18: 0 | EC18: =IF(ISERROR(VLOOKUP($A18+8860000,'Growth Data'!$A:$Z,9,0)),0,VLOOKUP($A18+8860000,'Growth Data'!$A:$Z,9,0)) -> 0 | ED18: 0 | EF18: NO | EG18: =IF(ISERROR(VLOOKUP($A18+8860000,'Growth Data'!$A:$Z,5,0)),"NO",VLOOKUP($A18+8860000,'Growth Data'!$A:$Z,5,0)) -> NO | EH18: 0 | EJ18: 0 | EK18: =IF(ISERROR(VLOOKUP($A18+8860000,'Growth Data'!$A:$Z,10,0)),0,VLOOKUP($A18+8860000,'Growth Data'!$A:$Z,10,0)) -> 0 | EL18: 0 | EN18: 0 | EO18: =IF(ISERROR(VLOOKUP($A18+8860000,'Growth Data'!$A:$Z,11,0)),0,VLOOKUP($A18+8860000,'Growth Data'!$A:$Z,11,0)) -> 0 | EP18: 0
A19: 3146 | B19: Bodsham CEP School | D19: Bodsham CEP School | F19: 1 | H19: 215740.74 | I19: 215740.7399 | J19: 0.0001134074118 | L19: 1456.71 | M19: 1456.711292 | N19: -0.001292307691 | P19: 1214.58 | Q19: 1214.580955 | R19: -0.0009552238798 | T19: 8525.96 | U19: 8525.964 | V19: -0.004000000014 | X19: 120084 | Y19: 120084 | Z19: 0 | AB19: 25635.83 | AC19: 25635.83407 | AD19: -0.004072096126 | AF19: 0 | AG19: 0 | AH19: 0 | AJ19: 0 | AK19: 0 | AL19: 0 | AN19: 6049 | AO19: 6049 | AP19: 0 | AR19: 0 | AS19: 0 | AT19: 0 | AV19: 0 | AW19: 0 | AX19: 0 | AZ19: 0 | BA19: 0 | BB19: 0 | BD19: 378706.83 | BE19: 378706.8302 | BF19: -0.0002062202548 | BH19: 0 | BI19: 0 | BJ19: 0 | BL19: 378706.83 | BM19: 378706.8302 | BN19: -0.0002062202548 | BP19: 0 | BR19: 0 | BT19: 2986.03 | BV19: 2986.03 | BX19: 0 | BZ19: 0 | CB19: 17432.32 | CC19: 17432.31855 | CD19: 0 | CF19: 4256.77 | CH19: 4257 | CJ19: 4903.39 | CK19: 4903.392503 | CL19: 0 | CN19: 0 | CP19: 0 | CR19: 0 | CT19: 0 | CV19: 0 | CX19: 0 | CZ19: 0 | DB19: 0 | DD19: 0 | DF19: 0 | DH19: NO | DI19: =IF(ISERROR(VLOOKUP($A19+8860000,'Growth Data'!$A:$F,3,0)),"NO",VLOOKUP($A19+8860000,'Growth Data'!$A:$F,3,0)) -> NO | DJ19: 0 | DL19: 0 | DM19: =IF(DI19="YES",IF(ISERROR(VLOOKUP($A19+8860000,'Growth Data'!$A:$F,6,0)),0,VLOOKUP($A19+8860000,'Growth Data'!$A:$F,6,0)),0) -> 0 | DN19: 0 | DP19: 0 | DQ19: =IF(ISERROR(VLOOKUP($A19+8860000,'Growth Data'!$A:$Z,7,0)),0,VLOOKUP($A19+8860000,'Growth Data'!$A:$Z,7,0)) -> 0 | DR19: 0 | DT19: NO | DU19: =IF(ISERROR(VLOOKUP($A19+8860000,'Growth Data'!$A:$F,4,0)),"NO",VLOOKUP($A19+8860000,'Growth Data'!$A:$F,4,0)) -> NO | DV19: 0 | DX19: 0 | DY19: =IF(ISERROR(VLOOKUP($A19+8860000,'Growth Data'!$A:$Z,8,0)),0,VLOOKUP($A19+8860000,'Growth Data'!$A:$Z,8,0)) -> 0 | DZ19: 0 | EB19: 0 | EC19: =IF(ISERROR(VLOOKUP($A19+8860000,'Growth Data'!$A:$Z,9,0)),0,VLOOKUP($A19+8860000,'Growth Data'!$A:$Z,9,0)) -> 0 | ED19: 0 | EF19: NO | EG19: =IF(ISERROR(VLOOKUP($A19+8860000,'Growth Data'!$A:$Z,5,0)),"NO",VLOOKUP($A19+8860000,'Growth Data'!$A:$Z,5,0)) -> NO | EH19: 0 | EJ19: 0 | EK19: =IF(ISERROR(VLOOKUP($A19+8860000,'Growth Data'!$A:$Z,10,0)),0,VLOOKUP($A19+8860000,'Growth Data'!$A:$Z,10,0)) -> 0 | EL19: 0 | EN19: 0 | EO19: =IF(ISERROR(VLOOKUP($A19+8860000,'Growth Data'!$A:$Z,11,0)),0,VLOOKUP($A19+8860000,'Growth Data'!$A:$Z,11,0)) -> 0 | EP19: 0
A20: 5201 | B20: Borough Green Primary School | D20: Borough Green Primary School | F20: 1 | H20: 840253.41 | I20: 840253.408 | J20: 0.002020639484 | L20: 54024.26 | M20: 54024.25586 | N20: 0.004142989223 | P20: 3144.26 | Q20: 3144.262937 | R20: -0.002936507929 | T20: 64097.59 | U20: 64097.58593 | V20: 0.004071713127 | X20: 120084 | Y20: 120084 | Z20: 0 | AB20: 0 | AC20: 0 | AD20: 0 | AF20: 0 | AG20: 0 | AH20: 0 | AJ20: 0 | AK20: 0 | AL20: 0 | AN20: 6451 | AO20: 6451 | AP20: 0 | AR20: 0 | AS20: 0 | AT20: 0 | AV20: 0 | AW20: 0 | AX20: 0 | AZ20: 28396.49 | BA20: 28396.4873 | BB20: 0.002701166097 | BD20: 1116451 | BE20: 1116451 | BF20: 0 | BH20: 0 | BI20: 0 | BJ20: 0 | BL20: 1116451 | BM20: 1116451 | BN20: 0 | BP20: 0 | BR20: 0 | BT20: 3750 | BV20: 3750 | BX20: 0 | BZ20: 0 | CB20: 113091.09 | CC20: 113091.087 | CD20: 0 | CF20: 0 | CH20: 0 | CJ20: 3750 | CK20: 3750 | CL20: 0 | CN20: 0 | CP20: 0 | CR20: 0 | CT20: 0 | CV20: 0 | CX20: 0 | CZ20: 0 | DB20: 0 | DD20: 0 | DF20: 0 | DH20: YES | DI20: =IF(ISERROR(VLOOKUP($A20+8860000,'Growth Data'!$A:$F,3,0)),"NO",VLOOKUP($A20+8860000,'Growth Data'!$A:$F,3,0)) -> NO | DJ20: 1 | DL20: 31 | DM20: =IF(DI20="YES",IF(ISERROR(VLOOKUP($A20+8860000,'Growth Data'!$A:$F,6,0)),0,VLOOKUP($A20+8860000,'Growth Data'!$A:$F,6,0)),0) -> 0 | DN20: 31 | DP20: 60 | DQ20: =IF(ISERROR(VLOOKUP($A20+8860000,'Growth Data'!$A:$Z,7,0)),0,VLOOKUP($A20+8860000,'Growth Data'!$A:$Z,7,0)) -> 0 | DR20: 1 | DT20: YES | DU20: =IF(ISERROR(VLOOKUP($A20+8860000,'Growth Data'!$A:$F,4,0)),"NO",VLOOKUP($A20+8860000,'Growth Data'!$A:$F,4,0)) -> NO | DV20: 1 | DX20: 32 | DY20: =IF(ISERROR(VLOOKUP($A20+8860000,'Growth Data'!$A:$Z,8,0)),0,VLOOKUP($A20+8860000,'Growth Data'!$A:$Z,8,0)) -> 0 | DZ20: 1 | EB20: 60 | EC20: =IF(ISERROR(VLOOKUP($A20+8860000,'Growth Data'!$A:$Z,9,0)),0,VLOOKUP($A20+8860000,'Growth Data'!$A:$Z,9,0)) -> 0 | ED20: 1 | EF20: NO | EG20: =IF(ISERROR(VLOOKUP($A20+8860000,'Growth Data'!$A:$Z,5,0)),"NO",VLOOKUP($A20+8860000,'Growth Data'!$A:$Z,5,0)) -> NO | EH20: 0 | EJ20: 0 | EK20: =IF(ISERROR(VLOOKUP($A20+8860000,'Growth Data'!$A:$Z,10,0)),0,VLOOKUP($A20+8860000,'Growth Data'!$A:$Z,10,0)) -> 0 | EL20: 0 | EN20: 0 | EO20: =IF(ISERROR(VLOOKUP($A20+8860000,'Growth Data'!$A:$Z,11,0)),0,VLOOKUP($A20+8860000,'Growth Data'!$A:$Z,11,0)) -> 0 | EP20: 0
A21: 2161 | B21: Boughton Monchelsea Primary School | D21: Boughton Monchelsea Primary School | F21: 1 | H21: 593287.03 | I21: 593287.0347 | J21: -0.004688129527 | L21: 19972.32 | M21: 19972.31867 | N21: 0.001330434781 | P21: 1885.84 | Q21: 1885.841638 | R21: -0.001637640454 | T21: 50336.91 | U21: 50336.9061 | V21: 0.003898305033 | X21: 120084 | Y21: 120084 | Z21: 0 | AB21: 0 | AC21: 0 | AD21: 0 | AF21: 0 | AG21: 0 | AH21: 0 | AJ21: 0 | AK21: 0 | AL21: 0 | AN21: 22580 | AO21: 22580 | AP21: 0 | AR21: 0 | AS21: 0 | AT21: 0 | AV21: 0 | AW21: 0 | AX21: 0 | AZ21: 0 | BA21: 0 | BB21: 0 | BD21: 808146.1 | BE21: 808146.1011 | BF21: -0.001097030356 | BH21: 0 | BI21: 0 | BJ21: 0 | BL21: 808146.1 | BM21: 808146.1011 | BN21: -0.001097030356 | BP21: 0 | BR21: 0 | BT21: 3184.12 | BV21: 3184.12 | BX21: 0 | BZ21: 0 | CB21: 70324.46 | CC21: 70324.45872 | CD21: 0 | CF21: 0 | CH21: 0 | CJ21: 3758.69 | CK21: 3758.689479 | CL21: 0 | CN21: 0 | CP21: 0 | CR21: 0 | CT21: 0 | CV21: 0 | CX21: 0 | CZ21: 0 | DB21: 0 | DD21: 0 | DF21: 0 | DH21: NO | DI21: =IF(ISERROR(VLOOKUP($A21+8860000,'Growth Data'!$A:$F,3,0)),"NO",VLOOKUP($A21+8860000,'Growth Data'!$A:$F,3,0)) -> NO | DJ21: 0 | DL21: 0 | DM21: =IF(DI21="YES",IF(ISERROR(VLOOKUP($A21+8860000,'Growth Data'!$A:$F,6,0)),0,VLOOKUP($A21+8860000,'Growth Data'!$A:$F,6,0)),0) -> 0 | DN21: 0 | DP21: 0 | DQ21: =IF(ISERROR(VLOOKUP($A21+8860000,'Growth Data'!$A:$Z,7,0)),0,VLOOKUP($A21+8860000,'Growth Data'!$A:$Z,7,0)) -> 0 | DR21: 0 | DT21: NO | DU21: =IF(ISERROR(VLOOKUP($A21+8860000,'Growth Data'!$A:$F,4,0)),"NO",VLOOKUP($A21+8860000,'Growth Data'!$A:$F,4,0)) -> NO | DV21: 0 | DX21: 0 | DY21: =IF(ISERROR(VLOOKUP($A21+8860000,'Growth Data'!$A:$Z,8,0)),0,VLOOKUP($A21+8860000,'Growth Data'!$A:$Z,8,0)) -> 0 | DZ21: 0 | EB21: 0 | EC21: =IF(ISERROR(VLOOKUP($A21+8860000,'Growth Data'!$A:$Z,9,0)),0,VLOOKUP($A21+8860000,'Growth Data'!$A:$Z,9,0)) -> 0 | ED21: 0 | EF21: NO | EG21: =IF(ISERROR(VLOOKUP($A21+8860000,'Growth Data'!$A:$Z,5,0)),"NO",VLOOKUP($A21+8860000,'Growth Data'!$A:$Z,5,0)) -> NO | EH21: 0 | EJ21: 0 | EK21: =IF(ISERROR(VLOOKUP($A21+8860000,'Growth Data'!$A:$Z,10,0)),0,VLOOKUP($A21+8860000,'Growth Data'!$A:$Z,10,0)) -> 0 | EL21: 0 | EN21: 0 | EO21: =IF(ISERROR(VLOOKUP($A21+8860000,'Growth Data'!$A:$Z,11,0)),0,VLOOKUP($A21+8860000,'Growth Data'!$A:$Z,11,0)) -> 0 | EP21: 0
A22: 3282 | B22: Boughton-under-Blean & Dunkirk Primary School | D22: Boughton-under-Blean & Dunkirk Primary School | F22: 1 | H22: 576254.87 | I22: 576254.871 | J22: -0.001012872322 | L22: 54927.42 | M22: 54927.4223 | N22: -0.00230000008 | P22: 1256.43 | Q22: 1256.428017 | R22: 0.001982658959 | T22: 50828.36 | U22: 50828.35617 | V22: 0.003834337258 | X22: 120084 | Y22: 120084 | Z22: 0 | AB22: 0 | AC22: 0 | AD22: 0 | AF22: 0 | AG22: 0 | AH22: 0 | AJ22: 0 | AK22: 0 | AL22: 0 | AN22: 18338 | AO22: 18338 | AP22: 0 | AR22: 0 | AS22: 0 | AT22: 0 | AV22: 0 | AW22: 0 | AX22: 0 | AZ22: 0 | BA22: 0 | BB22: 0 | BD22: 821689.08 | BE22: 821689.0775 | BF22: 0.002504123724 | BH22: 0 | BI22: 0 | BJ22: 0 | BL22: 821689.08 | BM22: 821689.0775 | BN22: 0.002504123724 | BP22: 0 | BR22: 0 | BT22: 3365.85 | BV22: 3365.85 | BX22: 0 | BZ22: 0 | CB22: 97035.93 | CC22: 97035.92879 | CD22: 0 | CF22: 0 | CH22: 0 | CJ22: 3957.39 | CK22: 3957.39447 | CL22: 0 | CN22: 0 | CP22: 0 | CR22: 0 | CT22: 0 | CV22: 0 | CX22: 0 | CZ22: 0 | DB22: 0 | DD22: 0 | DF22: 0 | DH22: NO | DI22: =IF(ISERROR(VLOOKUP($A22+8860000,'Growth Data'!$A:$F,3,0)),"NO",VLOOKUP($A22+8860000,'Growth Data'!$A:$F,3,0)) -> NO | DJ22: 0 | DL22: 0 | DM22: =IF(DI22="YES",IF(ISERROR(VLOOKUP($A22+8860000,'Growth Data'!$A:$F,6,0)),0,VLOOKUP($A22+8860000,'Growth Data'!$A:$F,6,0)),0) -> 0 | DN22: 0 | DP22: 0 | DQ22: =IF(ISERROR(VLOOKUP($A22+8860000,'Growth Data'!$A:$Z,7,0)),0,VLOOKUP($A22+8860000,'Growth Data'!$A:$Z,7,0)) -> 0 | DR22: 0 | DT22: NO | DU22: =IF(ISERROR(VLOOKUP($A22+8860000,'Growth Data'!$A:$F,4,0)),"NO",VLOOKUP($A22+8860000,'Growth Data'!$A:$F,4,0)) -> NO | DV22: 0 | DX22: 0 | DY22: =IF(ISERROR(VLOOKUP($A22+8860000,'Growth Data'!$A:$Z,8,0)),0,VLOOKUP($A22+8860000,'Growth Data'!$A:$Z,8,0)) -> 0 | DZ22: 0 | EB22: 0 | EC22: =IF(ISERROR(VLOOKUP($A22+8860000,'Growth Data'!$A:$Z,9,0)),0,VLOOKUP($A22+8860000,'Growth Data'!$A:$Z,9,0)) -> 0 | ED22: 0 | EF22: NO | EG22: =IF(ISERROR(VLOOKUP($A22+8860000,'Growth Data'!$A:$Z,5,0)),"NO",VLOOKUP($A22+8860000,'Growth Data'!$A:$Z,5,0)) -> NO | EH22: 0 | EJ22: 0 | EK22: =IF(ISERROR(VLOOKUP($A22+8860000,'Growth Data'!$A:$Z,10,0)),0,VLOOKUP($A22+8860000,'Growth Data'!$A:$Z,10,0)) -> 0 | EL22: 0 | EN22: 0 | EO22: =IF(ISERROR(VLOOKUP($A22+8860000,'Growth Data'!$A:$Z,11,0)),0,VLOOKUP($A22+8860000,'Growth Data'!$A:$Z,11,0)) -> 0 | EP22: 0
A23: 3136 | B23: Brabourne CEP School | D23: Brabourne CEP School | F23: 1 | H23: 272514.62 | I23: 272514.6188 | J23: 0.001195883029 | L23: 6814.46 | M23: 6814.462439 | N23: -0.002439130437 | P23: 634.52 | Q23: 634.5179259 | R23: 0.002074074073 | T23: 23190.62 | U23: 23190.62208 | V23: -0.002080000031 | X23: 120084 | Y23: 120084 | Z23: 0 | AB23: 0 | AC23: 0 | AD23: 0 | AF23: 0 | AG23: 0 | AH23: 0 | AJ23: 0 | AK23: 0 | AL23: 0 | AN23: 5502 | AO23: 5502 | AP23: 0 | AR23: 0 | AS23: 0 | AT23: 0 | AV23: 0 | AW23: 0 | AX23: 0 | AZ23: 0 | BA23: 0 | BB23: 0 | BD23: 428740.22 | BE23: 428740.2212 | BF23: -0.001249173307 | BH23: 0 | BI23: 0 | BJ23: 0 | BL23: 428740.22 | BM23: 428740.2212 | BN23: -0.001249173307 | BP23: 0 | BR23: 0 | BT23: 3157.86 | BV23: 3157.86 | BX23: 0 | BZ23: 0 | CB23: 34623.09 | CC23: 34623.08975 | CD23: 0 | CF23: 2537.69 | CH23: 2538 | CJ23: 4408.73 | CK23: 4408.731471 | CL23: 0 | CN23: 0 | CP23: 0 | CR23: 0 | CT23: 0 | CV23: 0 | CX23: 0 | CZ23: 0 | DB23: 0 | DD23: 0 | DF23: 0 | DH23: NO | DI23: =IF(ISERROR(VLOOKUP($A23+8860000,'Growth Data'!$A:$F,3,0)),"NO",VLOOKUP($A23+8860000,'Growth Data'!$A:$F,3,0)) -> NO | DJ23: 0 | DL23: 0 | DM23: =IF(DI23="YES",IF(ISERROR(VLOOKUP($A23+8860000,'Growth Data'!$A:$F,6,0)),0,VLOOKUP($A23+8860000,'Growth Data'!$A:$F,6,0)),0) -> 0 | DN23: 0 | DP23: 0 | DQ23: =IF(ISERROR(VLOOKUP($A23+8860000,'Growth Data'!$A:$Z,7,0)),0,VLOOKUP($A23+8860000,'Growth Data'!$A:$Z,7,0)) -> 0 | DR23: 0 | DT23: NO | DU23: =IF(ISERROR(VLOOKUP($A23+8860000,'Growth Data'!$A:$F,4,0)),"NO",VLOOKUP($A23+8860000,'Growth Data'!$A:$F,4,0)) -> NO | DV23: 0 | DX23: 0 | DY23: =IF(ISERROR(VLOOKUP($A23+8860000,'Growth Data'!$A:$Z,8,0)),0,VLOOKUP($A23+8860000,'Growth Data'!$A:$Z,8,0)) -> 0 | DZ23: 0 | EB23: 0 | EC23: =IF(ISERROR(VLOOKUP($A23+8860000,'Growth Data'!$A:$Z,9,0)),0,VLOOKUP($A23+8860000,'Growth Data'!$A:$Z,9,0)) -> 0 | ED23: 0 | EF23: NO | EG23: =IF(ISERROR(VLOOKUP($A23+8860000,'Growth Data'!$A:$Z,5,0)),"NO",VLOOKUP($A23+8860000,'Growth Data'!$A:$Z,5,0)) -> NO | EH23: 0 | EJ23: 0 | EK23: =IF(ISERROR(VLOOKUP($A23+8860000,'Growth Data'!$A:$Z,10,0)),0,VLOOKUP($A23+8860000,'Growth Data'!$A:$Z,10,0)) -> 0 | EL23: 0 | EN23: 0 | EO23: =IF(ISERROR(VLOOKUP($A23+8860000,'Growth Data'!$A:$Z,11,0)),0,VLOOKUP($A23+8860000,'Growth Data'!$A:$Z,11,0)) -> 0 | EP23: 0
A24: 3061 | B24: Bredhurst CEP School | D24: Bredhurst CEP School | F24: 1 | H24: 354836.74 | I24: 354836.7432 | J24: -0.003234527248 | L24: 8457.92 | M24: 8457.9164 | N24: 0.0036 | P24: 3650.28 | Q24: 3650.280682 | R24: -0.0006818181791 | T24: 30837.54 | U24: 30837.5434 | V24: -0.003402777715 | X24: 120084 | Y24: 120084 | Z24: 0 | AB24: 0 | AC24: 0 | AD24: 0 | AF24: 0 | AG24: 0 | AH24: 0 | AJ24: 0 | AK24: 0 | AL24: 0 | AN24: 15220 | AO24: 15220 | AP24: 0 | AR24: 0 | AS24: 0 | AT24: 0 | AV24: 0 | AW24: 0 | AX24: 0 | AZ24: 0 | BA24: 0 | BB24: 0 | BD24: 533086.48 | BE24: 533086.4837 | BF24: -0.00371912308 | BH24: 0 | BI24: 0 | BJ24: 0 | BL24: 533086.48 | BM24: 533086.4837 | BN24: -0.00371912308 | BP24: 0 | BR24: 0 | BT24: 3182.26 | BV24: 3182.26 | BX24: 0 | BZ24: 0 | CB24: 46929.23 | CC24: 46929.22779 | CD24: 0 | CF24: 1307.08 | CH24: 1307 | CJ24: 4142.93 | CK24: 4142.93187 | CL24: 0 | CN24: 0 | CP24: 0 | CR24: 0 | CT24: 0 | CV24: 0 | CX24: 0 | CZ24: 0 | DB24: 0 | DD24: 0 | DF24: 0 | DH24: NO | DI24: =IF(ISERROR(VLOOKUP($A24+8860000,'Growth Data'!$A:$F,3,0)),"NO",VLOOKUP($A24+8860000,'Growth Data'!$A:$F,3,0)) -> NO | DJ24: 0 | DL24: 0 | DM24: =IF(DI24="YES",IF(ISERROR(VLOOKUP($A24+8860000,'Growth Data'!$A:$F,6,0)),0,VLOOKUP($A24+8860000,'Growth Data'!$A:$F,6,0)),0) -> 0 | DN24: 0 | DP24: 0 | DQ24: =IF(ISERROR(VLOOKUP($A24+8860000,'Growth Data'!$A:$Z,7,0)),0,VLOOKUP($A24+8860000,'Growth Data'!$A:$Z,7,0)) -> 0 | DR24: 0 | DT24: NO | DU24: =IF(ISERROR(VLOOKUP($A24+8860000,'Growth Data'!$A:$F,4,0)),"NO",VLOOKUP($A24+8860000,'Growth Data'!$A:$F,4,0)) -> NO | DV24: 0 | DX24: 0 | DY24: =IF(ISERROR(VLOOKUP($A24+8860000,'Growth Data'!$A:$Z,8,0)),0,VLOOKUP($A24+8860000,'Growth Data'!$A:$Z,8,0)) -> 0 | DZ24: 0 | EB24: 0 | EC24: =IF(ISERROR(VLOOKUP($A24+8860000,'Growth Data'!$A:$Z,9,0)),0,VLOOKUP($A24+8860000,'Growth Data'!$A:$Z,9,0)) -> 0 | ED24: 0 | EF24: NO | EG24: =IF(ISERROR(VLOOKUP($A24+8860000,'Growth Data'!$A:$Z,5,0)),"NO",VLOOKUP($A24+8860000,'Growth Data'!$A:$Z,5,0)) -> NO | EH24: 0 | EJ24: 0 | EK24: =IF(ISERROR(VLOOKUP($A24+8860000,'Growth Data'!$A:$Z,10,0)),0,VLOOKUP($A24+8860000,'Growth Data'!$A:$Z,10,0)) -> 0 | EL24: 0 | EN24: 0 | EO24: =IF(ISERROR(VLOOKUP($A24+8860000,'Growth Data'!$A:$Z,11,0)),0,VLOOKUP($A24+8860000,'Growth Data'!$A:$Z,11,0)) -> 0 | EP24: 0
A25: 2569 | B25: Briary Primary School | D25: Briary Primary School | F25: 1 | H25: 959478.55 | I25: 959478.5537 | J25: -0.003706161631 | L25: 90054.42 | M25: 90054.42257 | N25: -0.002571428646 | P25: 2381.01 | Q25: 2381.007645 | R25: 0.002355263159 | T25: 127351.2 | U25: 127351.2047 | V25: -0.00469696986 | X25: 120084 | Y25: 120084 | Z25: 0 | AB25: 0 | AC25: 0 | AD25: 0 | AF25: 0 | AG25: 0 | AH25: 0 | AJ25: 0 | AK25: 0 | AL25: 0 | AN25: 13308 | AO25: 13308 | AP25: 0 | AR25: 0 | AS25: 0 | AT25: 0 | AV25: 0 | AW25: 0 | AX25: 0 | AZ25: 0 | BA25: 0 | BB25: 0 | BD25: 1312657.19 | BE25: 1312657.189 | BF25: 0.001380702946 | BH25: 0 | BI25: 0 | BJ25: 0 | BL25: 1312657.19 | BM25: 1312657.189 | BN25: 0.001380702946 | BP25: 0 | BR25: 0 | BT25: 3488.95 | BV25: 3488.95 | BX25: 0 | BZ25: 0 | CB25: 195400.28 | CC25: 195400.2772 | CD25: 0 | CF25: 0 | CH25: 0 | CJ25: 3844.23 | CK25: 3844.228369 | CL25: 0 | CN25: 0 | CP25: 0 | CR25: 0 | CT25: 0 | CV25: 0 | CX25: 0 | CZ25: 0 | DB25: 0 | DD25: 0 | DF25: 0 | DH25: NO | DI25: =IF(ISERROR(VLOOKUP($A25+8860000,'Growth Data'!$A:$F,3,0)),"NO",VLOOKUP($A25+8860000,'Growth Data'!$A:$F,3,0)) -> NO | DJ25: 0 | DL25: 0 | DM25: =IF(DI25="YES",IF(ISERROR(VLOOKUP($A25+8860000,'Growth Data'!$A:$F,6,0)),0,VLOOKUP($A25+8860000,'Growth Data'!$A:$F,6,0)),0) -> 0 | DN25: 0 | DP25: 0 | DQ25: =IF(ISERROR(VLOOKUP($A25+8860000,'Growth Data'!$A:$Z,7,0)),0,VLOOKUP($A25+8860000,'Growth Data'!$A:$Z,7,0)) -> 0 | DR25: 0 | DT25: NO | DU25: =IF(ISERROR(VLOOKUP($A25+8860000,'Growth Data'!$A:$F,4,0)),"NO",VLOOKUP($A25+8860000,'Growth Data'!$A:$F,4,0)) -> NO | DV25: 0 | DX25: 0 | DY25: =IF(ISERROR(VLOOKUP($A25+8860000,'Growth Data'!$A:$Z,8,0)),0,VLOOKUP($A25+8860000,'Growth Data'!$A:$Z,8,0)) -> 0 | DZ25: 0 | EB25: 0 | EC25: =IF(ISERROR(VLOOKUP($A25+8860000,'Growth Data'!$A:$Z,9,0)),0,VLOOKUP($A25+8860000,'Growth Data'!$A:$Z,9,0)) -> 0 | ED25: 0 | EF25: NO | EG25: =IF(ISERROR(VLOOKUP($A25+8860000,'Growth Data'!$A:$Z,5,0)),"NO",VLOOKUP($A25+8860000,'Growth Data'!$A:$Z,5,0)) -> NO | EH25: 0 | EJ25: 0 | EK25: =IF(ISERROR(VLOOKUP($A25+8860000,'Growth Data'!$A:$Z,10,0)),0,VLOOKUP($A25+8860000,'Growth Data'!$A:$Z,10,0)) -> 0 | EL25: 0 | EN25: 0 | EO25: =IF(ISERROR(VLOOKUP($A25+8860000,'Growth Data'!$A:$Z,11,0)),0,VLOOKUP($A25+8860000,'Growth Data'!$A:$Z,11,0)) -> 0 | EP25: 0
A26: 3122 | B26: Bridge & Patrixbourne CEP School | D26: Bridge & Patrixbourne CEP School | F26: 1 | H26: 1192251.46 | I26: 1192251.457 | J26: 0.002731988439 | L26: 25757.24 | M26: 25757.23546 | N26: 0.004537914701 | P26: 25053.74 | Q26: 25053.73705 | R26: 0.002952646348 | T26: 49593.5 | U26: 49593.49798 | V26: 0.002017045255 | X26: 120084 | Y26: 120084 | Z26: 0 | AB26: 0 | AC26: 0 | AD26: 0 | AF26: 0 | AG26: 0 | AH26: 0 | AJ26: 0 | AK26: 0 | AL26: 0 | AN26: 35072 | AO26: 35072 | AP26: 0 | AR26: 0 | AS26: 0 | AT26: 0 | AV26: 0 | AW26: 0 | AX26: 0 | AZ26: 162260.07 | BA26: 162260.0722 | BB26: -0.002239594527 | BD26: 1610072 | BE26: 1610072 | BF26: 0 | BH26: 0 | BI26: 0 | BJ26: 0 | BL26: 1610072 | BM26: 1610072 | BN26: 0 | BP26: 0 | BR26: 0 | BT26: 3750 | BV26: 3750 | BX26: 0 | BZ26: 0 | CB26: 100335.12 | CC26: 100335.1228 | CD26: 0 | CF26: 0 | CH26: 0 | CJ26: 3750 | CK26: 3750 | CL26: 0 | CN26: 0 | CP26: 0 | CR26: 0 | CT26: 0 | CV26: 0 | CX26: 0 | CZ26: 0 | DB26: 0 | DD26: 0 | DF26: 0 | DH26: NO | DI26: =IF(ISERROR(VLOOKUP($A26+8860000,'Growth Data'!$A:$F,3,0)),"NO",VLOOKUP($A26+8860000,'Growth Data'!$A:$F,3,0)) -> NO | DJ26: 0 | DL26: 0 | DM26: =IF(DI26="YES",IF(ISERROR(VLOOKUP($A26+8860000,'Growth Data'!$A:$F,6,0)),0,VLOOKUP($A26+8860000,'Growth Data'!$A:$F,6,0)),0) -> 0 | DN26: 0 | DP26: 0 | DQ26: =IF(ISERROR(VLOOKUP($A26+8860000,'Growth Data'!$A:$Z,7,0)),0,VLOOKUP($A26+8860000,'Growth Data'!$A:$Z,7,0)) -> 0 | DR26: 0 | DT26: NO | DU26: =IF(ISERROR(VLOOKUP($A26+8860000,'Growth Data'!$A:$F,4,0)),"NO",VLOOKUP($A26+8860000,'Growth Data'!$A:$F,4,0)) -> NO | DV26: 0 | DX26: 0 | DY26: =IF(ISERROR(VLOOKUP($A26+8860000,'Growth Data'!$A:$Z,8,0)),0,VLOOKUP($A26+8860000,'Growth Data'!$A:$Z,8,0)) -> 0 | DZ26: 0 | EB26: 0 | EC26: =IF(ISERROR(VLOOKUP($A26+8860000,'Growth Data'!$A:$Z,9,0)),0,VLOOKUP($A26+8860000,'Growth Data'!$A:$Z,9,0)) -> 0 | ED26: 0 | EF26: NO | EG26: =IF(ISERROR(VLOOKUP($A26+8860000,'Growth Data'!$A:$Z,5,0)),"NO",VLOOKUP($A26+8860000,'Growth Data'!$A:$Z,5,0)) -> NO | EH26: 0 | EJ26: 0 | EK26: =IF(ISERROR(VLOOKUP($A26+8860000,'Growth Data'!$A:$Z,10,0)),0,VLOOKUP($A26+8860000,'Growth Data'!$A:$Z,10,0)) -> 0 | EL26: 0 | EN26: 0 | EO26: =IF(ISERROR(VLOOKUP($A26+8860000,'Growth Data'!$A:$Z,11,0)),0,VLOOKUP($A26+8860000,'Growth Data'!$A:$Z,11,0)) -> 0 | EP26: 0
A27: 2651 | B27: Broadwater Down Primary School | D27: Broadwater Down Primary School | F27: 1 | H27: 403094.54 | I27: 403094.5403 | J27: -0.0003144229995 | L27: 48162.65 | M27: 48162.65206 | N27: -0.002056687918 | P27: 12037 | Q27: 12037.00334 | R27: -0.003341666641 | T27: 49552.45 | U27: 49552.45006 | V27: -6.194689922e-05 | X27: 120084 | Y27: 120084 | Z27: 0 | AB27: 0 | AC27: 0 | AD27: 0 | AF27: 0 | AG27: 0 | AH27: 0 | AJ27: 0 | AK27: 0 | AL27: 0 | AN27: 18837 | AO27: 18837 | AP27: 0 | AR27: 0 | AS27: 0 | AT27: 0 | AV27: 0 | AW27: 0 | AX27: 0 | AZ27: 0 | BA27: 0 | BB27: 0 | BD27: 651767.65 | BE27: 651767.6458 | BF27: 0.004225275596 | BH27: 0 | BI27: 0 | BJ27: 0 | BL27: 651767.65 | BM27: 651767.6458 | BN27: 0.004225275596 | BP27: 0 | BR27: 0 | BT27: 3611.6 | BV27: 3611.6 | BX27: 0 | BZ27: 0 | CB27: 103828.66 | CC27: 103828.6628 | CD27: 0 | CF27: 0 | CH27: 0 | CJ27: 4457.26 | CK27: 4457.258069 | CL27: 0 | CN27: 0 | CP27: 0 | CR27: 0 | CT27: 0 | CV27: 0 | CX27: 0 | CZ27: 0 | DB27: 0 | DD27: 0 | DF27: 0 | DH27: NO | DI27: =IF(ISERROR(VLOOKUP($A27+8860000,'Growth Data'!$A:$F,3,0)),"NO",VLOOKUP($A27+8860000,'Growth Data'!$A:$F,3,0)) -> NO | DJ27: 0 | DL27: 0 | DM27: =IF(DI27="YES",IF(ISERROR(VLOOKUP($A27+8860000,'Growth Data'!$A:$F,6,0)),0,VLOOKUP($A27+8860000,'Growth Data'!$A:$F,6,0)),0) -> 0 | DN27: 0 | DP27: 0 | DQ27: =IF(ISERROR(VLOOKUP($A27+8860000,'Growth Data'!$A:$Z,7,0)),0,VLOOKUP($A27+8860000,'Growth Data'!$A:$Z,7,0)) -> 0 | DR27: 0 | DT27: NO | DU27: =IF(ISERROR(VLOOKUP($A27+8860000,'Growth Data'!$A:$F,4,0)),"NO",VLOOKUP($A27+8860000,'Growth Data'!$A:$F,4,0)) -> NO | DV27: 0 | DX27: 0 | DY27: =IF(ISERROR(VLOOKUP($A27+8860000,'Growth Data'!$A:$Z,8,0)),0,VLOOKUP($A27+8860000,'Growth Data'!$A:$Z,8,0)) -> 0 | DZ27: 0 | EB27: 0 | EC27: =IF(ISERROR(VLOOKUP($A27+8860000,'Growth Data'!$A:$Z,9,0)),0,VLOOKUP($A27+8860000,'Growth Data'!$A:$Z,9,0)) -> 0 | ED27: 0 | EF27: NO | EG27: =IF(ISERROR(VLOOKUP($A27+8860000,'Growth Data'!$A:$Z,5,0)),"NO",VLOOKUP($A27+8860000,'Growth Data'!$A:$Z,5,0)) -> NO | EH27: 0 | EJ27: 0 | EK27: =IF(ISERROR(VLOOKUP($A27+8860000,'Growth Data'!$A:$Z,10,0)),0,VLOOKUP($A27+8860000,'Growth Data'!$A:$Z,10,0)) -> 0 | EL27: 0 | EN27: 0 | EO27: =IF(ISERROR(VLOOKUP($A27+8860000,'Growth Data'!$A:$Z,11,0)),0,VLOOKUP($A27+8860000,'Growth Data'!$A:$Z,11,0)) -> 0 | EP27: 0
A28: 2603 | B28: Bromstone Primary School, Broadstairs | D28: Bromstone Primary School, Broadstairs | F28: 1 | H28: 1365411.79 | I28: 1365411.788 | J28: 0.002033539116 | L28: 215729.06 | M28: 215729.0604 | N28: -0.0004467211256 | P28: 8543.16 | Q28: 8543.156121 | R28: 0.003879146911 | T28: 176253.15 | U28: 176253.1456 | V28: 0.004380145372 | X28: 120084 | Y28: 120084 | Z28: 0 | AB28: 0 | AC28: 0 | AD28: 0 | AF28: 0 | AG28: 0 | AH28: 0 | AJ28: 0 | AK28: 0 | AL28: 0 | AN28: 45056 | AO28: 45056 | AP28: 0 | AR28: 0 | AS28: 0 | AT28: 0 | AV28: 0 | AW28: 0 | AX28: 0 | AZ28: 0 | BA28: 0 | BB28: 0 | BD28: 1931077.15 | BE28: 1931077.15 | BF28: -0.0001538896468 | BH28: 0 | BI28: 0 | BJ28: 0 | BL28: 1931077.15 | BM28: 1931077.15 | BN28: -0.0001538896468 | BP28: 0 | BR28: 0 | BT28: 3671.39 | BV28: 3671.39 | BX28: 0 | BZ28: 0 | CB28: 349120.1 | CC28: 349120.1045 | CD28: 0 | CF28: 0 | CH28: 0 | CJ28: 3921.04 | CK28: 3921.041892 | CL28: 0 | CN28: 0 | CP28: 0 | CR28: 0 | CT28: 0 | CV28: 0 | CX28: 0 | CZ28: 0 | DB28: 0 | DD28: 0 | DF28: 0 | DH28: NO | DI28: =IF(ISERROR(VLOOKUP($A28+8860000,'Growth Data'!$A:$F,3,0)),"NO",VLOOKUP($A28+8860000,'Growth Data'!$A:$F,3,0)) -> NO | DJ28: 0 | DL28: 0 | DM28: =IF(DI28="YES",IF(ISERROR(VLOOKUP($A28+8860000,'Growth Data'!$A:$F,6,0)),0,VLOOKUP($A28+8860000,'Growth Data'!$A:$F,6,0)),0) -> 0 | DN28: 0 | DP28: 0 | DQ28: =IF(ISERROR(VLOOKUP($A28+8860000,'Growth Data'!$A:$Z,7,0)),0,VLOOKUP($A28+8860000,'Growth Data'!$A:$Z,7,0)) -> 0 | DR28: 0 | DT28: NO | DU28: =IF(ISERROR(VLOOKUP($A28+8860000,'Growth Data'!$A:$F,4,0)),"NO",VLOOKUP($A28+8860000,'Growth Data'!$A:$F,4,0)) -> NO | DV28: 0 | DX28: 0 | DY28: =IF(ISERROR(VLOOKUP($A28+8860000,'Growth Data'!$A:$Z,8,0)),0,VLOOKUP($A28+8860000,'Growth Data'!$A:$Z,8,0)) -> 0 | DZ28: 0 | EB28: 0 | EC28: =IF(ISERROR(VLOOKUP($A28+8860000,'Growth Data'!$A:$Z,9,0)),0,VLOOKUP($A28+8860000,'Growth Data'!$A:$Z,9,0)) -> 0 | ED28: 0 | EF28: NO | EG28: =IF(ISERROR(VLOOKUP($A28+8860000,'Growth Data'!$A:$Z,5,0)),"NO",VLOOKUP($A28+8860000,'Growth Data'!$A:$Z,5,0)) -> NO | EH28: 0 | EJ28: 0 | EK28: =IF(ISERROR(VLOOKUP($A28+8860000,'Growth Data'!$A:$Z,10,0)),0,VLOOKUP($A28+8860000,'Growth Data'!$A:$Z,10,0)) -> 0 | EL28: 0 | EN28: 0 | EO28: =IF(ISERROR(VLOOKUP($A28+8860000,'Growth Data'!$A:$Z,11,0)),0,VLOOKUP($A28+8860000,'Growth Data'!$A:$Z,11,0)) -> 0 | EP28: 0
A29: 2279 | B29: Brook Community Primary School | D29: Brook Community Primary School | F29: 1 | H29: 261159.84 | I29: 261159.843 | J29: -0.003020612057 | L29: 12269.36 | M29: 12269.35805 | N29: 0.001946938781 | P29: 3117.37 | Q29: 3117.370506 | R29: -0.0005063291133 | T29: 16995.09 | U29: 16995.08824 | V29: 0.001760000032 | X29: 120084 | Y29: 120084 | Z29: 0 | AB29: 0 | AC29: 0 | AD29: 0 | AF29: 0 | AG29: 0 | AH29: 0 | AJ29: 0 | AK29: 0 | AL29: 0 | AN29: 8608 | AO29: 8608 | AP29: 0 | AR29: 0 | AS29: 0 | AT29: 0 | AV29: 0 | AW29: 0 | AX29: 0 | AZ29: 0 | BA29: 0 | BB29: 0 | BD29: 422233.66 | BE29: 422233.6598 | BF29: 0.0001799976453 | BH29: 0 | BI29: 0 | BJ29: 0 | BL29: 422233.66 | BM29: 422233.6598 | BN29: 0.0001799976453 | BP29: 0 | BR29: 0 | BT29: 3190.67 | BV29: 3190.67 | BX29: 0 | BZ29: 0 | CB29: 35914.99 | CC29: 35914.98911 | CD29: 0 | CF29: 2408.5 | CH29: 2409 | CJ29: 4495.93 | CK29: 4495.931085 | CL29: 0 | CN29: 0 | CP29: 0 | CR29: 0 | CT29: 0 | CV29: 0 | CX29: 0 | CZ29: 0 | DB29: 0 | DD29: 0 | DF29: 0 | DH29: NO | DI29: =IF(ISERROR(VLOOKUP($A29+8860000,'Growth Data'!$A:$F,3,0)),"NO",VLOOKUP($A29+8860000,'Growth Data'!$A:$F,3,0)) -> NO | DJ29: 0 | DL29: 0 | DM29: =IF(DI29="YES",IF(ISERROR(VLOOKUP($A29+8860000,'Growth Data'!$A:$F,6,0)),0,VLOOKUP($A29+8860000,'Growth Data'!$A:$F,6,0)),0) -> 0 | DN29: 0 | DP29: 0 | DQ29: =IF(ISERROR(VLOOKUP($A29+8860000,'Growth Data'!$A:$Z,7,0)),0,VLOOKUP($A29+8860000,'Growth Data'!$A:$Z,7,0)) -> 0 | DR29: 0 | DT29: NO | DU29: =IF(ISERROR(VLOOKUP($A29+8860000,'Growth Data'!$A:$F,4,0)),"NO",VLOOKUP($A29+8860000,'Growth Data'!$A:$F,4,0)) -> NO | DV29: 0 | DX29: 0 | DY29: =IF(ISERROR(VLOOKUP($A29+8860000,'Growth Data'!$A:$Z,8,0)),0,VLOOKUP($A29+8860000,'Growth Data'!$A:$Z,8,0)) -> 0 | DZ29: 0 | EB29: 0 | EC29: =IF(ISERROR(VLOOKUP($A29+8860000,'Growth Data'!$A:$Z,9,0)),0,VLOOKUP($A29+8860000,'Growth Data'!$A:$Z,9,0)) -> 0 | ED29: 0 | EF29: NO | EG29: =IF(ISERROR(VLOOKUP($A29+8860000,'Growth Data'!$A:$Z,5,0)),"NO",VLOOKUP($A29+8860000,'Growth Data'!$A:$Z,5,0)) -> NO | EH29: 0 | EJ29: 0 | EK29: =IF(ISERROR(VLOOKUP($A29+8860000,'Growth Data'!$A:$Z,10,0)),0,VLOOKUP($A29+8860000,'Growth Data'!$A:$Z,10,0)) -> 0 | EL29: 0 | EN29: 0 | EO29: =IF(ISERROR(VLOOKUP($A29+8860000,'Growth Data'!$A:$Z,11,0)),0,VLOOKUP($A29+8860000,'Growth Data'!$A:$Z,11,0)) -> 0 | EP29: 0
A30: 2514 | B30: Brookfield Infant School | D30: Brookfield Infant School | F30: 1 | H30: 510964.91 | I30: 510964.9103 | J30: -0.0002577193081 | L30: 43053.94 | M30: 43053.9369 | N30: 0.003101123599 | P30: 4818.37 | Q30: 4818.3705 | R30: -0.0005000000001 | T30: 51155.78 | U30: 51155.784 | V30: -0.004000000059 | X30: 120084 | Y30: 120084 | Z30: 0 | AB30: 0 | AC30: 0 | AD30: 0 | AF30: 0 | AG30: 0 | AH30: 0 | AJ30: 0 | AK30: 0 | AL30: 0 | AN30: 20210 | AO30: 20210 | AP30: 0 | AR30: 0 | AS30: 0 | AT30: 0 | AV30: 0 | AW30: 0 | AX30: 0 | AZ30: 0 | BA30: 0 | BB30: 0 | BD30: 750287 | BE30: 750287.0017 | BF30: -0.001656595734 | BH30: 0 | BI30: 0 | BJ30: 0 | BL30: 750287 | BM30: 750287.0017 | BN30: -0.001656595734 | BP30: 0 | BR30: 0 | BT30: 3388.85 | BV30: 3388.85 | BX30: 0 | BZ30: 0 | CB30: 89051.81 | CC30: 89051.81371 | CD30: 0 | CF30: 0 | CH30: 0 | CJ30: 4055.98 | CK30: 4055.983343 | CL30: 0 | CN30: 0 | CP30: 0 | CR30: 0 | CT30: 0 | CV30: 0 | CX30: 0 | CZ30: 0 | DB30: 0 | DD30: 0 | DF30: 0 | DH30: NO | DI30: =IF(ISERROR(VLOOKUP($A30+8860000,'Growth Data'!$A:$F,3,0)),"NO",VLOOKUP($A30+8860000,'Growth Data'!$A:$F,3,0)) -> NO | DJ30: 0 | DL30: 0 | DM30: =IF(DI30="YES",IF(ISERROR(VLOOKUP($A30+8860000,'Growth Data'!$A:$F,6,0)),0,VLOOKUP($A30+8860000,'Growth Data'!$A:$F,6,0)),0) -> 0 | DN30: 0 | DP30: 0 | DQ30: =IF(ISERROR(VLOOKUP($A30+8860000,'Growth Data'!$A:$Z,7,0)),0,VLOOKUP($A30+8860000,'Growth Data'!$A:$Z,7,0)) -> 0 | DR30: 0 | DT30: NO | DU30: =IF(ISERROR(VLOOKUP($A30+8860000,'Growth Data'!$A:$F,4,0)),"NO",VLOOKUP($A30+8860000,'Growth Data'!$A:$F,4,0)) -> NO | DV30: 0 | DX30: 0 | DY30: =IF(ISERROR(VLOOKUP($A30+8860000,'Growth Data'!$A:$Z,8,0)),0,VLOOKUP($A30+8860000,'Growth Data'!$A:$Z,8,0)) -> 0 | DZ30: 0 | EB30: 0 | EC30: =IF(ISERROR(VLOOKUP($A30+8860000,'Growth Data'!$A:$Z,9,0)),0,VLOOKUP($A30+8860000,'Growth Data'!$A:$Z,9,0)) -> 0 | ED30: 0 | EF30: NO | EG30: =IF(ISERROR(VLOOKUP($A30+8860000,'Growth Data'!$A:$Z,5,0)),"NO",VLOOKUP($A30+8860000,'Growth Data'!$A:$Z,5,0)) -> NO | EH30: 0 | EJ30: 0 | EK30: =IF(ISERROR(VLOOKUP($A30+8860000,'Growth Data'!$A:$Z,10,0)),0,VLOOKUP($A30+8860000,'Growth Data'!$A:$Z,10,0)) -> 0 | EL30: 0 | EN30: 0 | EO30: =IF(ISERROR(VLOOKUP($A30+8860000,'Growth Data'!$A:$Z,11,0)),0,VLOOKUP($A30+8860000,'Growth Data'!$A:$Z,11,0)) -> 0 | EP30: 0
A31: 5223 | B31: Brookfield Junior School, Larkfield | D31: Brookfield Junior School, Larkfield | F31: 1 | H31: 709673.49 | I31: 709673.4865 | J31: 0.003530945512 | L31: 75552.29 | M31: 75552.29184 | N31: -0.001840637444 | P31: 1606.12 | Q31: 1606.1235 | R31: -0.0035 | T31: 57015.19 | U31: 57015.19136 | V31: -0.00135802466 | X31: 120084 | Y31: 120084 | Z31: 0 | AB31: 0 | AC31: 0 | AD31: 0 | AF31: 0 | AG31: 0 | AH31: 0 | AJ31: 0 | AK31: 0 | AL31: 0 | AN31: 25200 | AO31: 25200 | AP31: 0 | AR31: 0 | AS31: 0 | AT31: 0 | AV31: 0 | AW31: 0 | AX31: 0 | AZ31: 0 | BA31: 0 | BB31: 0 | BD31: 989131.09 | BE31: 989131.0932 | BF31: -0.00316771667 | BH31: 0 | BI31: 0 | BJ31: 0 | BL31: 989131.09 | BM31: 989131.0932 | BN31: -0.00316771667 | BP31: 0 | BR31: 0 | BT31: 3375.39 | BV31: 3375.39 | BX31: 0 | BZ31: 0 | CB31: 114740.71 | CC31: 114740.714 | CD31: 0 | CF31: 0 | CH31: 0 | CJ31: 3855.72 | CK31: 3855.724373 | CL31: 0 | CN31: 0 | CP31: 0 | CR31: 0 | CT31: 0 | CV31: 0 | CX31: 0 | CZ31: 0 | DB31: 0 | DD31: 0 | DF31: 0 | DH31: NO | DI31: =IF(ISERROR(VLOOKUP($A31+8860000,'Growth Data'!$A:$F,3,0)),"NO",VLOOKUP($A31+8860000,'Growth Data'!$A:$F,3,0)) -> NO | DJ31: 0 | DL31: 0 | DM31: =IF(DI31="YES",IF(ISERROR(VLOOKUP($A31+8860000,'Growth Data'!$A:$F,6,0)),0,VLOOKUP($A31+8860000,'Growth Data'!$A:$F,6,0)),0) -> 0 | DN31: 0 | DP31: 0 | DQ31: =IF(ISERROR(VLOOKUP($A31+8860000,'Growth Data'!$A:$Z,7,0)),0,VLOOKUP($A31+8860000,'Growth Data'!$A:$Z,7,0)) -> 0 | DR31: 0 | DT31: NO | DU31: =IF(ISERROR(VLOOKUP($A31+8860000,'Growth Data'!$A:$F,4,0)),"NO",VLOOKUP($A31+8860000,'Growth Data'!$A:$F,4,0)) -> NO | DV31: 0 | DX31: 0 | DY31: =IF(ISERROR(VLOOKUP($A31+8860000,'Growth Data'!$A:$Z,8,0)),0,VLOOKUP($A31+8860000,'Growth Data'!$A:$Z,8,0)) -> 0 | DZ31: 0 | EB31: 0 | EC31: =IF(ISERROR(VLOOKUP($A31+8860000,'Growth Data'!$A:$Z,9,0)),0,VLOOKUP($A31+8860000,'Growth Data'!$A:$Z,9,0)) -> 0 | ED31: 0 | EF31: NO | EG31: =IF(ISERROR(VLOOKUP($A31+8860000,'Growth Data'!$A:$Z,5,0)),"NO",VLOOKUP($A31+8860000,'Growth Data'!$A:$Z,5,0)) -> NO | EH31: 0 | EJ31: 0 | EK31: =IF(ISERROR(VLOOKUP($A31+8860000,'Growth Data'!$A:$Z,10,0)),0,VLOOKUP($A31+8860000,'Growth Data'!$A:$Z,10,0)) -> 0 | EL31: 0 | EN31: 0 | EO31: =IF(ISERROR(VLOOKUP($A31+8860000,'Growth Data'!$A:$Z,11,0)),0,VLOOKUP($A31+8860000,'Growth Data'!$A:$Z,11,0)) -> 0 | EP31: 0
A32: 3137 | B32: Brookland CEP School | D32: Brookland CEP School | F32: 1 | H32: 281030.7 | I32: 281030.7006 | J32: -0.0006417455734 | L32: 26804.75 | M32: 26804.7502 | N32: -0.0002000000022 | P32: 616.3 | Q32: 616.3032035 | R32: -0.003203488373 | T32: 16328.74 | U32: 16328.74355 | V32: -0.003553571452 | X32: 120084 | Y32: 120084 | Z32: 0 | AB32: 0 | AC32: 0 | AD32: 0 | AF32: 0 | AG32: 0 | AH32: 0 | AJ32: 0 | AK32: 0 | AL32: 0 | AN32: 11976 | AO32: 11976 | AP32: 0 | AR32: 0 | AS32: 0 | AT32: 0 | AV32: 0 | AW32: 0 | AX32: 0 | AZ32: 0 | BA32: 0 | BB32: 0 | BD32: 456840.5 | BE32: 456840.4976 | BF32: 0.002401194593 | BH32: 0 | BI32: 0 | BJ32: 0 | BL32: 456840.5 | BM32: 456840.4976 | BN32: 0.002401194593 | BP32: 0 | BR32: 0 | BT32: 3280.61 | BV32: 3280.61 | BX32: 0 | BZ32: 0 | CB32: 44130.76 | CC32: 44130.76426 | CD32: 0 | CF32: 1586.92 | CH32: 1587 | CJ32: 4493.58 | CK32: 4493.580784 | CL32: 0 | CN32: 0 | CP32: 0 | CR32: 0 | CT32: 0 | CV32: 0 | CX32: 0 | CZ32: 0 | DB32: 0 | DD32: 0 | DF32: 0 | DH32: NO | DI32: =IF(ISERROR(VLOOKUP($A32+8860000,'Growth Data'!$A:$F,3,0)),"NO",VLOOKUP($A32+8860000,'Growth Data'!$A:$F,3,0)) -> NO | DJ32: 0 | DL32: 0 | DM32: =IF(DI32="YES",IF(ISERROR(VLOOKUP($A32+8860000,'Growth Data'!$A:$F,6,0)),0,VLOOKUP($A32+8860000,'Growth Data'!$A:$F,6,0)),0) -> 0 | DN32: 0 | DP32: 0 | DQ32: =IF(ISERROR(VLOOKUP($A32+8860000,'Growth Data'!$A:$Z,7,0)),0,VLOOKUP($A32+8860000,'Growth Data'!$A:$Z,7,0)) -> 0 | DR32: 0 | DT32: NO | DU32: =IF(ISERROR(VLOOKUP($A32+8860000,'Growth Data'!$A:$F,4,0)),"NO",VLOOKUP($A32+8860000,'Growth Data'!$A:$F,4,0)) -> NO | DV32: 0 | DX32: 0 | DY32: =IF(ISERROR(VLOOKUP($A32+8860000,'Growth Data'!$A:$Z,8,0)),0,VLOOKUP($A32+8860000,'Growth Data'!$A:$Z,8,0)) -> 0 | DZ32: 0 | EB32: 0 | EC32: =IF(ISERROR(VLOOKUP($A32+8860000,'Growth Data'!$A:$Z,9,0)),0,VLOOKUP($A32+8860000,'Growth Data'!$A:$Z,9,0)) -> 0 | ED32: 0 | EF32: NO | EG32: =IF(ISERROR(VLOOKUP($A32+8860000,'Growth Data'!$A:$Z,5,0)),"NO",VLOOKUP($A32+8860000,'Growth Data'!$A:$Z,5,0)) -> NO | EH32: 0 | EJ32: 0 | EK32: =IF(ISERROR(VLOOKUP($A32+8860000,'Growth Data'!$A:$Z,10,0)),0,VLOOKUP($A32+8860000,'Growth Data'!$A:$Z,10,0)) -> 0 | EL32: 0 | EN32: 0 | EO32: =IF(ISERROR(VLOOKUP($A32+8860000,'Growth Data'!$A:$Z,11,0)),0,VLOOKUP($A32+8860000,'Growth Data'!$A:$Z,11,0)) -> 0 | EP32: 0
A33: 2171 | B33: Brunswick House Primary School | D33: Brunswick House Primary School | F33: 1 | H33: 1186574.07 | I33: 1186574.069 | J33: 0.0006237409543 | L33: 68771.82 | M33: 68771.81744 | N33: 0.002559036191 | P33: 25004.08 | Q33: 25004.08279 | R33: -0.002793296091 | T33: 97125.35 | U33: 97125.35298 | V33: -0.002979650933 | X33: 120084 | Y33: 120084 | Z33: 0 | AB33: 0 | AC33: 0 | AD33: 0 | AF33: 0 | AG33: 0 | AH33: 0 | AJ33: 0 | AK33: 0 | AL33: 0 | AN33: 66048 | AO33: 66048 | AP33: 0 | AR33: 0 | AS33: 0 | AT33: 0 | AV33: 0 | AW33: 0 | AX33: 0 | AZ33: 69940.68 | BA33: 69940.67741 | BB33: 0.002590169956 | BD33: 1633548 | BE33: 1633548 | BF33: 0 | BH33: 0 | BI33: 0 | BJ33: 0 | BL33: 1633548 | BM33: 1633548 | BN33: 0 | BP33: 0 | BR33: 0 | BT33: 3750 | BV33: 3750 | BX33: 0 | BZ33: 0 | CB33: 168316.16 | CC33: 168316.1555 | CD33: 0 | CF33: 0 | CH33: 0 | CJ33: 3750 | CK33: 3750 | CL33: 0 | CN33: 0 | CP33: 0 | CR33: 0 | CT33: 0 | CV33: 0 | CX33: 0 | CZ33: 0 | DB33: 0 | DD33: 0 | DF33: 0 | DH33: NO | DI33: =IF(ISERROR(VLOOKUP($A33+8860000,'Growth Data'!$A:$F,3,0)),"NO",VLOOKUP($A33+8860000,'Growth Data'!$A:$F,3,0)) -> NO | DJ33: 0 | DL33: 0 | DM33: =IF(DI33="YES",IF(ISERROR(VLOOKUP($A33+8860000,'Growth Data'!$A:$F,6,0)),0,VLOOKUP($A33+8860000,'Growth Data'!$A:$F,6,0)),0) -> 0 | DN33: 0 | DP33: 0 | DQ33: =IF(ISERROR(VLOOKUP($A33+8860000,'Growth Data'!$A:$Z,7,0)),0,VLOOKUP($A33+8860000,'Growth Data'!$A:$Z,7,0)) -> 0 | DR33: 0 | DT33: NO | DU33: =IF(ISERROR(VLOOKUP($A33+8860000,'Growth Data'!$A:$F,4,0)),"NO",VLOOKUP($A33+8860000,'Growth Data'!$A:$F,4,0)) -> NO | DV33: 0 | DX33: 0 | DY33: =IF(ISERROR(VLOOKUP($A33+8860000,'Growth Data'!$A:$Z,8,0)),0,VLOOKUP($A33+8860000,'Growth Data'!$A:$Z,8,0)) -> 0 | DZ33: 0 | EB33: 0 | EC33: =IF(ISERROR(VLOOKUP($A33+8860000,'Growth Data'!$A:$Z,9,0)),0,VLOOKUP($A33+8860000,'Growth Data'!$A:$Z,9,0)) -> 0 | ED33: 0 | EF33: NO | EG33: =IF(ISERROR(VLOOKUP($A33+8860000,'Growth Data'!$A:$Z,5,0)),"NO",VLOOKUP($A33+8860000,'Growth Data'!$A:$Z,5,0)) -> NO | EH33: 0 | EJ33: 0 | EK33: =IF(ISERROR(VLOOKUP($A33+8860000,'Growth Data'!$A:$Z,10,0)),0,VLOOKUP($A33+8860000,'Growth Data'!$A:$Z,10,0)) -> 0 | EL33: 0 | EN33: 0 | EO33: =IF(ISERROR(VLOOKUP($A33+8860000,'Growth Data'!$A:$Z,11,0)),0,VLOOKUP($A33+8860000,'Growth Data'!$A:$Z,11,0)) -> 0 | EP33: 0
A34: 3062 | B34: Burham CEP School | D34: Burham CEP School | F34: 1 | H34: 459868.42 | I34: 459868.4192 | J34: 0.0007680526469 | L34: 27910.09 | M34: 27910.09483 | N34: -0.004828571415 | P34: 2460.44 | Q34: 2460.444511 | R34: -0.004510638295 | T34: 37806.74 | U34: 37806.73818 | V34: 0.001824817518 | X34: 120084 | Y34: 120084 | Z34: 0 | AB34: 0 | AC34: 0 | AD34: 0 | AF34: 0 | AG34: 0 | AH34: 0 | AJ34: 0 | AK34: 0 | AL34: 0 | AN34: 22081 | AO34: 22081 | AP34: 0 | AR34: 0 | AS34: 0 | AT34: 0 | AV34: 0 | AW34: 0 | AX34: 0 | AZ34: 0 | BA34: 0 | BB34: 0 | BD34: 670210.7 | BE34: 670210.6967 | BF34: 0.003253660398 | BH34: 0 | BI34: 0 | BJ34: 0 | BL34: 670210.7 | BM34: 670210.6967 | BN34: 0.003253660398 | BP34: 0 | BR34: 0 | BT34: 3259.54 | BV34: 3259.54 | BX34: 0 | BZ34: 0 | CB34: 67657.61 | CC34: 67657.61482 | CD34: 0 | CF34: 0 | CH34: 0 | CJ34: 4000.8 | CK34: 4000.800597 | CL34: 0 | CN34: 0 | CP34: 0 | CR34: 0 | CT34: 0 | CV34: 0 | CX34: 0 | CZ34: 0 | DB34: 0 | DD34: 0 | DF34: 0 | DH34: NO | DI34: =IF(ISERROR(VLOOKUP($A34+8860000,'Growth Data'!$A:$F,3,0)),"NO",VLOOKUP($A34+8860000,'Growth Data'!$A:$F,3,0)) -> NO | DJ34: 0 | DL34: 0 | DM34: =IF(DI34="YES",IF(ISERROR(VLOOKUP($A34+8860000,'Growth Data'!$A:$F,6,0)),0,VLOOKUP($A34+8860000,'Growth Data'!$A:$F,6,0)),0) -> 0 | DN34: 0 | DP34: 0 | DQ34: =IF(ISERROR(VLOOKUP($A34+8860000,'Growth Data'!$A:$Z,7,0)),0,VLOOKUP($A34+8860000,'Growth Data'!$A:$Z,7,0)) -> 0 | DR34: 0 | DT34: NO | DU34: =IF(ISERROR(VLOOKUP($A34+8860000,'Growth Data'!$A:$F,4,0)),"NO",VLOOKUP($A34+8860000,'Growth Data'!$A:$F,4,0)) -> NO | DV34: 0 | DX34: 0 | DY34: =IF(ISERROR(VLOOKUP($A34+8860000,'Growth Data'!$A:$Z,8,0)),0,VLOOKUP($A34+8860000,'Growth Data'!$A:$Z,8,0)) -> 0 | DZ34: 0 | EB34: 0 | EC34: =IF(ISERROR(VLOOKUP($A34+8860000,'Growth Data'!$A:$Z,9,0)),0,VLOOKUP($A34+8860000,'Growth Data'!$A:$Z,9,0)) -> 0 | ED34: 0 | EF34: NO | EG34: =IF(ISERROR(VLOOKUP($A34+8860000,'Growth Data'!$A:$Z,5,0)),"NO",VLOOKUP($A34+8860000,'Growth Data'!$A:$Z,5,0)) -> NO | EH34: 0 | EJ34: 0 | EK34: =IF(ISERROR(VLOOKUP($A34+8860000,'Growth Data'!$A:$Z,10,0)),0,VLOOKUP($A34+8860000,'Growth Data'!$A:$Z,10,0)) -> 0 | EL34: 0 | EN34: 0 | EO34: =IF(ISERROR(VLOOKUP($A34+8860000,'Growth Data'!$A:$Z,11,0)),0,VLOOKUP($A34+8860000,'Growth Data'!$A:$Z,11,0)) -> 0 | EP34: 0
A35: 2534 | B35: Bysing Wood Primary School | D35: Bysing Wood Primary School | F35: 1 | H35: 428642.79 | I35: 428642.7858 | J35: 0.004172691028 | L35: 98847.25 | M35: 98847.24594 | N35: 0.004063291126 | P35: 4254.82 | Q35: 4254.818395 | R35: 0.001605263159 | T35: 72920.31 | U35: 72920.30538 | V35: 0.0046171875 | X35: 120084 | Y35: 120084 | Z35: 0 | AB35: 0 | AC35: 0 | AD35: 0 | AF35: 0 | AG35: 0 | AH35: 0 | AJ35: 0 | AK35: 0 | AL35: 0 | AN35: 48154 | AO35: 48154 | AP35: 0 | AR35: 0 | AS35: 0 | AT35: 0 | AV35: 0 | AW35: 0 | AX35: 0 | AZ35: 0 | BA35: 0 | BB35: 0 | BD35: 772903.16 | BE35: 772903.1555 | BF35: 0.004458432784 | BH35: 0 | BI35: 0 | BJ35: 0 | BL35: 772903.16 | BM35: 772903.1555 | BN35: 0.004458432784 | BP35: 0 | BR35: 0 | BT35: 4004.41 | BV35: 4004.41 | BX35: 0 | BZ35: 0 | CB35: 155688.85 | CC35: 155688.847 | CD35: 0 | CF35: 0 | CH35: 0 | CJ35: 4799.66 | CK35: 4799.663282 | CL35: 0 | CN35: 0 | CP35: 0 | CR35: 0 | CT35: 0 | CV35: 0 | CX35: 0 | CZ35: 0 | DB35: 0 | DD35: 0 | DF35: 0 | DH35: NO | DI35: =IF(ISERROR(VLOOKUP($A35+8860000,'Growth Data'!$A:$F,3,0)),"NO",VLOOKUP($A35+8860000,'Growth Data'!$A:$F,3,0)) -> YES | DJ35: 1 | DL35: 0 | DM35: =IF(DI35="YES",IF(ISERROR(VLOOKUP($A35+8860000,'Growth Data'!$A:$F,6,0)),0,VLOOKUP($A35+8860000,'Growth Data'!$A:$F,6,0)),0) -> 30 | DN35: -30 | DP35: 0 | DQ35: =IF(ISERROR(VLOOKUP($A35+8860000,'Growth Data'!$A:$Z,7,0)),0,VLOOKUP($A35+8860000,'Growth Data'!$A:$Z,7,0)) -> 60 | DR35: 1 | DT35: NO | DU35: =IF(ISERROR(VLOOKUP($A35+8860000,'Growth Data'!$A:$F,4,0)),"NO",VLOOKUP($A35+8860000,'Growth Data'!$A:$F,4,0)) -> YES | DV35: 1 | DX35: 0 | DY35: =IF(ISERROR(VLOOKUP($A35+8860000,'Growth Data'!$A:$Z,8,0)),0,VLOOKUP($A35+8860000,'Growth Data'!$A:$Z,8,0)) -> 30 | DZ35: 1 | EB35: 0 | EC35: =IF(ISERROR(VLOOKUP($A35+8860000,'Growth Data'!$A:$Z,9,0)),0,VLOOKUP($A35+8860000,'Growth Data'!$A:$Z,9,0)) -> 60 | ED35: 1 | EF35: NO | EG35: =IF(ISERROR(VLOOKUP($A35+8860000,'Growth Data'!$A:$Z,5,0)),"NO",VLOOKUP($A35+8860000,'Growth Data'!$A:$Z,5,0)) -> YES | EH35: 1 | EJ35: 0 | EK35: =IF(ISERROR(VLOOKUP($A35+8860000,'Growth Data'!$A:$Z,10,0)),0,VLOOKUP($A35+8860000,'Growth Data'!$A:$Z,10,0)) -> 30 | EL35: 1 | EN35: 0 | EO35: =IF(ISERROR(VLOOKUP($A35+8860000,'Growth Data'!$A:$Z,11,0)),0,VLOOKUP($A35+8860000,'Growth Data'!$A:$Z,11,0)) -> 60 | EP35: 1
A36: 2329 | B36: Callis Grange Nursery & Infant School | D36: Callis Grange Nursery & Infant School | F36: 1 | H36: 766447.37 | I36: 766447.3654 | J36: 0.004613421159 | L36: 84431.06 | M36: 84431.0604 | N36: -0.000400000019 | P36: 6424.49 | Q36: 6424.494 | R36: -0.003999999994 | T36: 48226.47 | U36: 48226.47235 | V36: -0.002346368572 | X36: 120084 | Y36: 120084 | Z36: 0 | AB36: 0 | AC36: 0 | AD36: 0 | AF36: 0 | AG36: 0 | AH36: 0 | AJ36: 0 | AK36: 0 | AL36: 0 | AN36: 43520 | AO36: 43520 | AP36: 0 | AR36: 0 | AS36: 0 | AT36: 0 | AV36: 0 | AW36: 0 | AX36: 0 | AZ36: 0 | BA36: 0 | BB36: 0 | BD36: 1069133.39 | BE36: 1069133.392 | BF36: -0.002132947324 | BH36: 0 | BI36: 0 | BJ36: 0 | BL36: 1069133.39 | BM36: 1069133.392 | BN36: -0.002132947324 | BP36: 0 | BR36: 0 | BT36: 3353.81 | BV36: 3353.81 | BX36: 0 | BZ36: 0 | CB36: 123701.97 | CC36: 123701.9691 | CD36: 0 | CF36: 0 | CH36: 0 | CJ36: 3798.57 | CK36: 3798.568119 | CL36: 0 | CN36: 0 | CP36: 0 | CR36: 0 | CT36: 0 | CV36: 0 | CX36: 0 | CZ36: 0 | DB36: 0 | DD36: 0 | DF36: 0 | DH36: NO | DI36: =IF(ISERROR(VLOOKUP($A36+8860000,'Growth Data'!$A:$F,3,0)),"NO",VLOOKUP($A36+8860000,'Growth Data'!$A:$F,3,0)) -> NO | DJ36: 0 | DL36: 0 | DM36: =IF(DI36="YES",IF(ISERROR(VLOOKUP($A36+8860000,'Growth Data'!$A:$F,6,0)),0,VLOOKUP($A36+8860000,'Growth Data'!$A:$F,6,0)),0) -> 0 | DN36: 0 | DP36: 0 | DQ36: =IF(ISERROR(VLOOKUP($A36+8860000,'Growth Data'!$A:$Z,7,0)),0,VLOOKUP($A36+8860000,'Growth Data'!$A:$Z,7,0)) -> 0 | DR36: 0 | DT36: NO | DU36: =IF(ISERROR(VLOOKUP($A36+8860000,'Growth Data'!$A:$F,4,0)),"NO",VLOOKUP($A36+8860000,'Growth Data'!$A:$F,4,0)) -> NO | DV36: 0 | DX36: 0 | DY36: =IF(ISERROR(VLOOKUP($A36+8860000,'Growth Data'!$A:$Z,8,0)),0,VLOOKUP($A36+8860000,'Growth Data'!$A:$Z,8,0)) -> 0 | DZ36: 0 | EB36: 0 | EC36: =IF(ISERROR(VLOOKUP($A36+8860000,'Growth Data'!$A:$Z,9,0)),0,VLOOKUP($A36+8860000,'Growth Data'!$A:$Z,9,0)) -> 0 | ED36: 0 | EF36: NO | EG36: =IF(ISERROR(VLOOKUP($A36+8860000,'Growth Data'!$A:$Z,5,0)),"NO",VLOOKUP($A36+8860000,'Growth Data'!$A:$Z,5,0)) -> NO | EH36: 0 | EJ36: 0 | EK36: =IF(ISERROR(VLOOKUP($A36+8860000,'Growth Data'!$A:$Z,10,0)),0,VLOOKUP($A36+8860000,'Growth Data'!$A:$Z,10,0)) -> 0 | EL36: 0 | EN36: 0 | EO36: =IF(ISERROR(VLOOKUP($A36+8860000,'Growth Data'!$A:$Z,11,0)),0,VLOOKUP($A36+8860000,'Growth Data'!$A:$Z,11,0)) -> 0 | EP36: 0
A37: 2254 | B37: Canterbury Road Primary School | D37: Canterbury Road Primary School | F37: 1 | H37: 584770.95 | I37: 584770.9529 | J37: -0.002850500983 | L37: 83078.18 | M37: 83078.18103 | N37: -0.001032535889 | P37: 11279.37 | Q37: 11279.36731 | R37: 0.002693181848 | T37: 83943.13 | U37: 83943.13085 | V37: -0.0008529412589 | X37: 120084 | Y37: 120084 | Z37: 0 | AB37: 0 | AC37: 0 | AD37: 0 | AF37: 0 | AG37: 0 | AH37: 0 | AJ37: 0 | AK37: 0 | AL37: 0 | AN37: 29952 | AO37: 29952 | AP37: 0 | AR37: 0 | AS37: 0 | AT37: 0 | AV37: 0 | AW37: 0 | AX37: 0 | AZ37: 0 | BA37: 0 | BB37: 0 | BD37: 913107.63 | BE37: 913107.632 | BF37: -0.00204279623 | BH37: 0 | BI37: 0 | BJ37: 0 | BL37: 913107.63 | BM37: 913107.632 | BN37: -0.00204279623 | BP37: 0 | BR37: 0 | BT37: 3704.23 | BV37: 3704.23 | BX37: 0 | BZ37: 0 | CB37: 171026.29 | CC37: 171026.2915 | CD37: 0 | CF37: 0 | CH37: 0 | CJ37: 4287.16 | CK37: 4287.163262 | CL37: 0 | CN37: 0 | CP37: 0 | CR37: 0 | CT37: 0 | CV37: 0 | CX37: 0 | CZ37: 0 | DB37: 0 | DD37: 0 | DF37: 0 | DH37: NO | DI37: =IF(ISERROR(VLOOKUP($A37+8860000,'Growth Data'!$A:$F,3,0)),"NO",VLOOKUP($A37+8860000,'Growth Data'!$A:$F,3,0)) -> NO | DJ37: 0 | DL37: 0 | DM37: =IF(DI37="YES",IF(ISERROR(VLOOKUP($A37+8860000,'Growth Data'!$A:$F,6,0)),0,VLOOKUP($A37+8860000,'Growth Data'!$A:$F,6,0)),0) -> 0 | DN37: 0 | DP37: 0 | DQ37: =IF(ISERROR(VLOOKUP($A37+8860000,'Growth Data'!$A:$Z,7,0)),0,VLOOKUP($A37+8860000,'Growth Data'!$A:$Z,7,0)) -> 0 | DR37: 0 | DT37: NO | DU37: =IF(ISERROR(VLOOKUP($A37+8860000,'Growth Data'!$A:$F,4,0)),"NO",VLOOKUP($A37+8860000,'Growth Data'!$A:$F,4,0)) -> NO | DV37: 0 | DX37: 0 | DY37: =IF(ISERROR(VLOOKUP($A37+8860000,'Growth Data'!$A:$Z,8,0)),0,VLOOKUP($A37+8860000,'Growth Data'!$A:$Z,8,0)) -> 0 | DZ37: 0 | EB37: 0 | EC37: =IF(ISERROR(VLOOKUP($A37+8860000,'Growth Data'!$A:$Z,9,0)),0,VLOOKUP($A37+8860000,'Growth Data'!$A:$Z,9,0)) -> 0 | ED37: 0 | EF37: NO | EG37: =IF(ISERROR(VLOOKUP($A37+8860000,'Growth Data'!$A:$Z,5,0)),"NO",VLOOKUP($A37+8860000,'Growth Data'!$A:$Z,5,0)) -> NO | EH37: 0 | EJ37: 0 | EK37: =IF(ISERROR(VLOOKUP($A37+8860000,'Growth Data'!$A:$Z,10,0)),0,VLOOKUP($A37+8860000,'Growth Data'!$A:$Z,10,0)) -> 0 | EL37: 0 | EN37: 0 | EO37: =IF(ISERROR(VLOOKUP($A37+8860000,'Growth Data'!$A:$Z,11,0)),0,VLOOKUP($A37+8860000,'Growth Data'!$A:$Z,11,0)) -> 0 | EP37: 0
A38: 2128 | B38: Capel Primary School | D38: Capel Primary School | F38: 1 | H38: 590448.34 | I38: 590448.3407 | J38: -0.0007422533818 | L38: 23119.94 | M38: 23119.94407 | N38: -0.004068571452 | P38: 2474.62 | Q38: 2474.619911 | R38: 8.888889124e-05 | T38: 39268.15 | U38: 39268.15419 | V38: -0.004194285677 | X38: 120084 | Y38: 120084 | Z38: 0 | AB38: 0 | AC38: 0 | AD38: 0 | AF38: 0 | AG38: 0 | AH38: 0 | AJ38: 0 | AK38: 0 | AL38: 0 | AN38: 21457 | AO38: 21457 | AP38: 0 | AR38: 0 | AS38: 0 | AT38: 0 | AV38: 0 | AW38: 0 | AX38: 0 | AZ38: 4604.94 | BA38: 4604.941084 | BB38: -0.001083778511 | BD38: 801457 | BE38: 801457 | BF38: 0 | BH38: 0 | BI38: 0 | BJ38: 0 | BL38: 801457 | BM38: 801457 | BN38: 0 | BP38: 0 | BR38: 0 | BT38: 3750 | BV38: 3750 | BX38: 0 | BZ38: 0 | CB38: 59839.91 | CC38: 59839.90548 | CD38: 0 | CF38: 16.01 | CH38: 16 | CJ38: 3750 | CK38: 3750 | CL38: 0 | CN38: 0 | CP38: 0 | CR38: 0 | CT38: 0 | CV38: 0 | CX38: 0 | CZ38: 0 | DB38: 0 | DD38: 0 | DF38: 0 | DH38: NO | DI38: =IF(ISERROR(VLOOKUP($A38+8860000,'Growth Data'!$A:$F,3,0)),"NO",VLOOKUP($A38+8860000,'Growth Data'!$A:$F,3,0)) -> NO | DJ38: 0 | DL38: 0 | DM38: =IF(DI38="YES",IF(ISERROR(VLOOKUP($A38+8860000,'Growth Data'!$A:$F,6,0)),0,VLOOKUP($A38+8860000,'Growth Data'!$A:$F,6,0)),0) -> 0 | DN38: 0 | DP38: 0 | DQ38: =IF(ISERROR(VLOOKUP($A38+8860000,'Growth Data'!$A:$Z,7,0)),0,VLOOKUP($A38+8860000,'Growth Data'!$A:$Z,7,0)) -> 0 | DR38: 0 | DT38: NO | DU38: =IF(ISERROR(VLOOKUP($A38+8860000,'Growth Data'!$A:$F,4,0)),"NO",VLOOKUP($A38+8860000,'Growth Data'!$A:$F,4,0)) -> NO | DV38: 0 | DX38: 0 | DY38: =IF(ISERROR(VLOOKUP($A38+8860000,'Growth Data'!$A:$Z,8,0)),0,VLOOKUP($A38+8860000,'Growth Data'!$A:$Z,8,0)) -> 0 | DZ38: 0 | EB38: 0 | EC38: =IF(ISERROR(VLOOKUP($A38+8860000,'Growth Data'!$A:$Z,9,0)),0,VLOOKUP($A38+8860000,'Growth Data'!$A:$Z,9,0)) -> 0 | ED38: 0 | EF38: NO | EG38: =IF(ISERROR(VLOOKUP($A38+8860000,'Growth Data'!$A:$Z,5,0)),"NO",VLOOKUP($A38+8860000,'Growth Data'!$A:$Z,5,0)) -> NO | EH38: 0 | EJ38: 0 | EK38: =IF(ISERROR(VLOOKUP($A38+8860000,'Growth Data'!$A:$Z,10,0)),0,VLOOKUP($A38+8860000,'Growth Data'!$A:$Z,10,0)) -> 0 | EL38: 0 | EN38: 0 | EO38: =IF(ISERROR(VLOOKUP($A38+8860000,'Growth Data'!$A:$Z,11,0)),0,VLOOKUP($A38+8860000,'Growth Data'!$A:$Z,11,0)) -> 0 | EP38: 0
A39: 2559 | B39: Capel-le-Ferne Primary School | D39: Capel-le-Ferne Primary School | F39: 1 | H39: 573416.18 | I39: 573416.1771 | J39: 0.00293300394 | L39: 41855.97 | M39: 41855.97099 | N39: -0.0009923076577 | P39: 0 | Q39: 0 | R39: 0 | T39: 51257.28 | U39: 51257.28357 | V39: -0.003571428548 | X39: 120084 | Y39: 120084 | Z39: 0 | AB39: 0 | AC39: 0 | AD39: 0 | AF39: 0 | AG39: 0 | AH39: 0 | AJ39: 0 | AK39: 0 | AL39: 0 | AN39: 19336 | AO39: 19336 | AP39: 0 | AR39: 0 | AS39: 0 | AT39: 0 | AV39: 0 | AW39: 0 | AX39: 0 | AZ39: 0 | BA39: 0 | BB39: 0 | BD39: 805949.43 | BE39: 805949.4316 | BF39: -0.001630732208 | BH39: 0 | BI39: 0 | BJ39: 0 | BL39: 805949.43 | BM39: 805949.4316 | BN39: -0.001630732208 | BP39: 0 | BR39: 0 | BT39: 3299.65 | BV39: 3299.65 | BX39: 0 | BZ39: 0 | CB39: 94394.85 | CC39: 94394.85187 | CD39: 0 | CF39: 0 | CH39: 0 | CJ39: 3894.13 | CK39: 3894.125899 | CL39: 0 | CN39: 0 | CP39: 0 | CR39: 0 | CT39: 0 | CV39: 0 | CX39: 0 | CZ39: 0 | DB39: 0 | DD39: 0 | DF39: 0 | DH39: NO | DI39: =IF(ISERROR(VLOOKUP($A39+8860000,'Growth Data'!$A:$F,3,0)),"NO",VLOOKUP($A39+8860000,'Growth Data'!$A:$F,3,0)) -> NO | DJ39: 0 | DL39: 0 | DM39: =IF(DI39="YES",IF(ISERROR(VLOOKUP($A39+8860000,'Growth Data'!$A:$F,6,0)),0,VLOOKUP($A39+8860000,'Growth Data'!$A:$F,6,0)),0) -> 0 | DN39: 0 | DP39: 0 | DQ39: =IF(ISERROR(VLOOKUP($A39+8860000,'Growth Data'!$A:$Z,7,0)),0,VLOOKUP($A39+8860000,'Growth Data'!$A:$Z,7,0)) -> 0 | DR39: 0 | DT39: NO | DU39: =IF(ISERROR(VLOOKUP($A39+8860000,'Growth Data'!$A:$F,4,0)),"NO",VLOOKUP($A39+8860000,'Growth Data'!$A:$F,4,0)) -> NO | DV39: 0 | DX39: 0 | DY39: =IF(ISERROR(VLOOKUP($A39+8860000,'Growth Data'!$A:$Z,8,0)),0,VLOOKUP($A39+8860000,'Growth Data'!$A:$Z,8,0)) -> 0 | DZ39: 0 | EB39: 0 | EC39: =IF(ISERROR(VLOOKUP($A39+8860000,'Growth Data'!$A:$Z,9,0)),0,VLOOKUP($A39+8860000,'Growth Data'!$A:$Z,9,0)) -> 0 | ED39: 0 | EF39: NO | EG39: =IF(ISERROR(VLOOKUP($A39+8860000,'Growth Data'!$A:$Z,5,0)),"NO",VLOOKUP($A39+8860000,'Growth Data'!$A:$Z,5,0)) -> NO | EH39: 0 | EJ39: 0 | EK39: =IF(ISERROR(VLOOKUP($A39+8860000,'Growth Data'!$A:$Z,10,0)),0,VLOOKUP($A39+8860000,'Growth Data'!$A:$Z,10,0)) -> 0 | EL39: 0 | EN39: 0 | EO39: =IF(ISERROR(VLOOKUP($A39+8860000,'Growth Data'!$A:$Z,11,0)),0,VLOOKUP($A39+8860000,'Growth Data'!$A:$Z,11,0)) -> 0 | EP39: 0
A40: 3904 | B40: Castle Hill Community Primary School | D40: Castle Hill Community Primary School | F40: 1 | H40: 1107090.64 | I40: 1107090.639 | J40: 0.001108274795 | L40: 279123.75 | M40: 279123.7474 | N40: 0.002642487001 | P40: 15535.42 | Q40: 15535.42076 | R40: -0.0007589285706 | T40: 147526.81 | U40: 147526.8076 | V40: 0.002361111197 | X40: 120084 | Y40: 120084 | Z40: 0 | AB40: 0 | AC40: 0 | AD40: 0 | AF40: 0 | AG40: 0 | AH40: 0 | AJ40: 0 | AK40: 0 | AL40: 0 | AN40: 54784 | AO40: 54784 | AP40: 0 | AR40: 0 | AS40: 0 | AT40: 0 | AV40: 0 | AW40: 0 | AX40: 0 | AZ40: 0 | BA40: 0 | BB40: 0 | BD40: 1724144.61 | BE40: 1724144.615 | BF40: -0.004647055408 | BH40: 0 | BI40: 0 | BJ40: 0 | BL40: 1724144.61 | BM40: 1724144.615 | BN40: -0.004647055408 | BP40: 0 | BR40: 0 | BT40: 3972.5 | BV40: 3972.5 | BX40: 0.22 | BZ40: 0.22 | CB40: 372768.12 | CC40: 372768.1181 | CD40: 0 | CF40: 0 | CH40: 0 | CJ40: 4280.41 | CK40: 4280.411832 | CL40: 0 | CN40: 0 | CP40: 0 | CR40: 0 | CT40: 0 | CV40: 0 | CX40: 0 | CZ40: 0 | DB40: 0 | DD40: 0 | DF40: 0 | DH40: NO | DI40: =IF(ISERROR(VLOOKUP($A40+8860000,'Growth Data'!$A:$F,3,0)),"NO",VLOOKUP($A40+8860000,'Growth Data'!$A:$F,3,0)) -> NO | DJ40: 0 | DL40: 0 | DM40: =IF(DI40="YES",IF(ISERROR(VLOOKUP($A40+8860000,'Growth Data'!$A:$F,6,0)),0,VLOOKUP($A40+8860000,'Growth Data'!$A:$F,6,0)),0) -> 0 | DN40: 0 | DP40: 0 | DQ40: =IF(ISERROR(VLOOKUP($A40+8860000,'Growth Data'!$A:$Z,7,0)),0,VLOOKUP($A40+8860000,'Growth Data'!$A:$Z,7,0)) -> 0 | DR40: 0 | DT40: NO | DU40: =IF(ISERROR(VLOOKUP($A40+8860000,'Growth Data'!$A:$F,4,0)),"NO",VLOOKUP($A40+8860000,'Growth Data'!$A:$F,4,0)) -> NO | DV40: 0 | DX40: 0 | DY40: =IF(ISERROR(VLOOKUP($A40+8860000,'Growth Data'!$A:$Z,8,0)),0,VLOOKUP($A40+8860000,'Growth Data'!$A:$Z,8,0)) -> 0 | DZ40: 0 | EB40: 0 | EC40: =IF(ISERROR(VLOOKUP($A40+8860000,'Growth Data'!$A:$Z,9,0)),0,VLOOKUP($A40+8860000,'Growth Data'!$A:$Z,9,0)) -> 0 | ED40: 0 | EF40: NO | EG40: =IF(ISERROR(VLOOKUP($A40+8860000,'Growth Data'!$A:$Z,5,0)),"NO",VLOOKUP($A40+8860000,'Growth Data'!$A:$Z,5,0)) -> NO | EH40: 0 | EJ40: 0 | EK40: =IF(ISERROR(VLOOKUP($A40+8860000,'Growth Data'!$A:$Z,10,0)),0,VLOOKUP($A40+8860000,'Growth Data'!$A:$Z,10,0)) -> 0 | EL40: 0 | EN40: 0 | EO40: =IF(ISERROR(VLOOKUP($A40+8860000,'Growth Data'!$A:$Z,11,0)),0,VLOOKUP($A40+8860000,'Growth Data'!$A:$Z,11,0)) -> 0 | EP40: 0
A41: 2095 | B41: Cecil Road Primary and Nursery School | D41: Cecil Road Primary and Nursery School | F41: 1 | H41: 1067348.92 | I41: 1067348.924 | J41: -0.003649458056 | L41: 90590.64 | M41: 90590.6412 | N41: -0.001197826859 | P41: 50795.53 | Q41: 50795.532 | R41: -0.00200000003 | T41: 103370.53 | U41: 103370.5253 | V41: 0.004687898268 | X41: 120084 | Y41: 120084 | Z41: 0 | AB41: 0 | AC41: 0 | AD41: 0 | AF41: 0 | AG41: 0 | AH41: 0 | AJ41: 0 | AK41: 0 | AL41: 0 | AN41: 34048 | AO41: 34048 | AP41: 0 | AR41: 0 | AS41: 0 | AT41: 0 | AV41: 0 | AW41: 0 | AX41: 0 | AZ41: 0 | BA41: 0 | BB41: 0 | BD41: 1466237.62 | BE41: 1466237.622 | BF41: -0.00215938664 | BH41: 0 | BI41: 0 | BJ41: 0 | BL41: 1466237.62 | BM41: 1466237.622 | BN41: -0.00215938664 | BP41: 0 | BR41: 0 | BT41: 3489.64 | BV41: 3489.64 | BX41: 0 | BZ41: 0 | CB41: 228476.01 | CC41: 228476.0108 | CD41: 0 | CF41: 0 | CH41: 0 | CJ41: 3809.02 | CK41: 3809.014953 | CL41: 0 | CN41: 0 | CP41: 0 | CR41: 0 | CT41: 0 | CV41: 0 | CX41: 0 | CZ41: 0 | DB41: 0 | DD41: 0 | DF41: 0 | DH41: NO | DI41: =IF(ISERROR(VLOOKUP($A41+8860000,'Growth Data'!$A:$F,3,0)),"NO",VLOOKUP($A41+8860000,'Growth Data'!$A:$F,3,0)) -> NO | DJ41: 0 | DL41: 0 | DM41: =IF(DI41="YES",IF(ISERROR(VLOOKUP($A41+8860000,'Growth Data'!$A:$F,6,0)),0,VLOOKUP($A41+8860000,'Growth Data'!$A:$F,6,0)),0) -> 0 | DN41: 0 | DP41: 0 | DQ41: =IF(ISERROR(VLOOKUP($A41+8860000,'Growth Data'!$A:$Z,7,0)),0,VLOOKUP($A41+8860000,'Growth Data'!$A:$Z,7,0)) -> 0 | DR41: 0 | DT41: NO | DU41: =IF(ISERROR(VLOOKUP($A41+8860000,'Growth Data'!$A:$F,4,0)),"NO",VLOOKUP($A41+8860000,'Growth Data'!$A:$F,4,0)) -> NO | DV41: 0 | DX41: 0 | DY41: =IF(ISERROR(VLOOKUP($A41+8860000,'Growth Data'!$A:$Z,8,0)),0,VLOOKUP($A41+8860000,'Growth Data'!$A:$Z,8,0)) -> 0 | DZ41: 0 | EB41: 0 | EC41: =IF(ISERROR(VLOOKUP($A41+8860000,'Growth Data'!$A:$Z,9,0)),0,VLOOKUP($A41+8860000,'Growth Data'!$A:$Z,9,0)) -> 0 | ED41: 0 | EF41: NO | EG41: =IF(ISERROR(VLOOKUP($A41+8860000,'Growth Data'!$A:$Z,5,0)),"NO",VLOOKUP($A41+8860000,'Growth Data'!$A:$Z,5,0)) -> NO | EH41: 0 | EJ41: 0 | EK41: =IF(ISERROR(VLOOKUP($A41+8860000,'Growth Data'!$A:$Z,10,0)),0,VLOOKUP($A41+8860000,'Growth Data'!$A:$Z,10,0)) -> 0 | EL41: 0 | EN41: 0 | EO41: =IF(ISERROR(VLOOKUP($A41+8860000,'Growth Data'!$A:$Z,11,0)),0,VLOOKUP($A41+8860000,'Growth Data'!$A:$Z,11,0)) -> 0 | EP41: 0
A42: 2280 | B42: Challock Primary School | D42: Challock Primary School | F42: 1 | H42: 587609.65 | I42: 587609.6468 | J42: 0.00320362288 | L42: 7944 | M42: 7943.995449 | N42: 0.00455116322 | P42: 1878.35 | Q42: 1878.347822 | R42: 0.0021779661 | T42: 53250.53 | U42: 53250.52516 | V42: 0.00484482749 | X42: 120084 | Y42: 120084 | Z42: 0 | AB42: 0 | AC42: 0 | AD42: 0 | AF42: 0 | AG42: 0 | AH42: 0 | AJ42: 0 | AK42: 0 | AL42: 0 | AN42: 19711 | AO42: 19711 | AP42: 0 | AR42: 0 | AS42: 0 | AT42: 0 | AV42: 0 | AW42: 0 | AX42: 0 | AZ42: 5483.48 | BA42: 5483.484778 | BB42: -0.00477757955 | BD42: 795961 | BE42: 795961 | BF42: 0 | BH42: 0 | BI42: 0 | BJ42: 0 | BL42: 795961 | BM42: 795961 | BN42: 0 | BP42: 0 | BR42: 0 | BT42: 3750 | BV42: 3750 | BX42: 0 | BZ42: 0 | CB42: 66606.04 | CC42: 66606.04073 | CD42: 0 | CF42: 0 | CH42: 0 | CJ42: 3750 | CK42: 3750 | CL42: 0 | CN42: 0 | CP42: 0 | CR42: 0 | CT42: 0 | CV42: 0 | CX42: 0 | CZ42: 0 | DB42: 0 | DD42: 0 | DF42: 0 | DH42: NO | DI42: =IF(ISERROR(VLOOKUP($A42+8860000,'Growth Data'!$A:$F,3,0)),"NO",VLOOKUP($A42+8860000,'Growth Data'!$A:$F,3,0)) -> NO | DJ42: 0 | DL42: 0 | DM42: =IF(DI42="YES",IF(ISERROR(VLOOKUP($A42+8860000,'Growth Data'!$A:$F,6,0)),0,VLOOKUP($A42+8860000,'Growth Data'!$A:$F,6,0)),0) -> 0 | DN42: 0 | DP42: 0 | DQ42: =IF(ISERROR(VLOOKUP($A42+8860000,'Growth Data'!$A:$Z,7,0)),0,VLOOKUP($A42+8860000,'Growth Data'!$A:$Z,7,0)) -> 0 | DR42: 0 | DT42: NO | DU42: =IF(ISERROR(VLOOKUP($A42+8860000,'Growth Data'!$A:$F,4,0)),"NO",VLOOKUP($A42+8860000,'Growth Data'!$A:$F,4,0)) -> NO | DV42: 0 | DX42: 0 | DY42: =IF(ISERROR(VLOOKUP($A42+8860000,'Growth Data'!$A:$Z,8,0)),0,VLOOKUP($A42+8860000,'Growth Data'!$A:$Z,8,0)) -> 0 | DZ42: 0 | EB42: 0 | EC42: =IF(ISERROR(VLOOKUP($A42+8860000,'Growth Data'!$A:$Z,9,0)),0,VLOOKUP($A42+8860000,'Growth Data'!$A:$Z,9,0)) -> 0 | ED42: 0 | EF42: NO | EG42: =IF(ISERROR(VLOOKUP($A42+8860000,'Growth Data'!$A:$Z,5,0)),"NO",VLOOKUP($A42+8860000,'Growth Data'!$A:$Z,5,0)) -> NO | EH42: 0 | EJ42: 0 | EK42: =IF(ISERROR(VLOOKUP($A42+8860000,'Growth Data'!$A:$Z,10,0)),0,VLOOKUP($A42+8860000,'Growth Data'!$A:$Z,10,0)) -> 0 | EL42: 0 | EN42: 0 | EO42: =IF(ISERROR(VLOOKUP($A42+8860000,'Growth Data'!$A:$Z,11,0)),0,VLOOKUP($A42+8860000,'Growth Data'!$A:$Z,11,0)) -> 0 | EP42: 0
A43: 2259 | B43: Chartham Primary School | D43: Chartham Primary School | F43: 1 | H43: 1002058.96 | I43: 1002058.963 | J43: -0.002894305042 | L43: 54970.99 | M43: 54970.99124 | N43: -0.001238461482 | P43: 8878.59 | Q43: 8878.593218 | R43: -0.003218120808 | T43: 90763.51 | U43: 90763.50749 | V43: 0.002505244847 | X43: 120084 | Y43: 120084 | Z43: 0 | AB43: 0 | AC43: 0 | AD43: 0 | AF43: 0 | AG43: 0 | AH43: 0 | AJ43: 0 | AK43: 0 | AL43: 0 | AN43: 32512 | AO43: 32512 | AP43: 0 | AR43: 0 | AS43: 0 | AT43: 0 | AV43: 0 | AW43: 0 | AX43: 0 | AZ43: 46993.95 | BA43: 46993.94515 | BB43: 0.004845642296 | BD43: 1356262 | BE43: 1356262 | BF43: 0 | BH43: 0 | BI43: 0 | BJ43: 0 | BL43: 1356262 | BM43: 1356262 | BN43: 0 | BP43: 0 | BR43: 0 | BT43: 3750 | BV43: 3750 | BX43: 0 | BZ43: 0 | CB43: 134279.57 | CC43: 134279.5693 | CD43: 0 | CF43: 0 | CH43: 0 | CJ43: 3750 | CK43: 3750 | CL43: 0 | CN43: 0 | CP43: 0 | CR43: 0 | CT43: 0 | CV43: 0 | CX43: 0 | CZ43: 0 | DB43: 0 | DD43: 0 | DF43: 0 | DH43: NO | DI43: =IF(ISERROR(VLOOKUP($A43+8860000,'Growth Data'!$A:$F,3,0)),"NO",VLOOKUP($A43+8860000,'Growth Data'!$A:$F,3,0)) -> YES | DJ43: 1 | DL43: 0 | DM43: =IF(DI43="YES",IF(ISERROR(VLOOKUP($A43+8860000,'Growth Data'!$A:$F,6,0)),0,VLOOKUP($A43+8860000,'Growth Data'!$A:$F,6,0)),0) -> 46 | DN43: -46 | DP43: 0 | DQ43: =IF(ISERROR(VLOOKUP($A43+8860000,'Growth Data'!$A:$Z,7,0)),0,VLOOKUP($A43+8860000,'Growth Data'!$A:$Z,7,0)) -> 60 | DR43: 1 | DT43: NO | DU43: =IF(ISERROR(VLOOKUP($A43+8860000,'Growth Data'!$A:$F,4,0)),"NO",VLOOKUP($A43+8860000,'Growth Data'!$A:$F,4,0)) -> YES | DV43: 1 | DX43: 0 | DY43: =IF(ISERROR(VLOOKUP($A43+8860000,'Growth Data'!$A:$Z,8,0)),0,VLOOKUP($A43+8860000,'Growth Data'!$A:$Z,8,0)) -> 46 | DZ43: 1 | EB43: 0 | EC43: =IF(ISERROR(VLOOKUP($A43+8860000,'Growth Data'!$A:$Z,9,0)),0,VLOOKUP($A43+8860000,'Growth Data'!$A:$Z,9,0)) -> 60 | ED43: 1 | EF43: NO | EG43: =IF(ISERROR(VLOOKUP($A43+8860000,'Growth Data'!$A:$Z,5,0)),"NO",VLOOKUP($A43+8860000,'Growth Data'!$A:$Z,5,0)) -> NO | EH43: 0 | EJ43: 0 | EK43: =IF(ISERROR(VLOOKUP($A43+8860000,'Growth Data'!$A:$Z,10,0)),0,VLOOKUP($A43+8860000,'Growth Data'!$A:$Z,10,0)) -> 0 | EL43: 0 | EN43: 0 | EO43: =IF(ISERROR(VLOOKUP($A43+8860000,'Growth Data'!$A:$Z,11,0)),0,VLOOKUP($A43+8860000,'Growth Data'!$A:$Z,11,0)) -> 0 | EP43: 0
A44: 2510 | B44: Cheriton Primary School | D44: Cheriton Primary School | F44: 1 | H44: 1237670.56 | I44: 1237670.56 | J44: -0.0004020310007 | L44: 101490.26 | M44: 101490.2622 | N44: -0.00221057258 | P44: 43653.19 | Q44: 43653.18521 | R44: 0.004794805202 | T44: 116497.22 | U44: 116497.2175 | V44: 0.002495726367 | X44: 120084 | Y44: 120084 | Z44: 0 | AB44: 0 | AC44: 0 | AD44: 0 | AF44: 0 | AG44: 0 | AH44: 0 | AJ44: 0 | AK44: 0 | AL44: 0 | AN44: 8909 | AO44: 8909 | AP44: 0 | AR44: 0 | AS44: 0 | AT44: 0 | AV44: 0 | AW44: 0 | AX44: 0 | AZ44: 15604.77 | BA44: 15604.77468 | BB44: -0.004677927838 | BD44: 1643909 | BE44: 1643909 | BF44: 0 | BH44: 0 | BI44: 0 | BJ44: 0 | BL44: 1643909 | BM44: 1643909 | BN44: 0 | BP44: 0 | BR44: 0 | BT44: 3750 | BV44: 3750 | BX44: 0 | BZ44: 0 | CB44: 235002.73 | CC44: 235002.7322 | CD44: 0 | CF44: 0 | CH44: 0 | CJ44: 3750 | CK44: 3750 | CL44: 0 | CN44: 649500 | CP44: 649500 | CR44: 0 | CT44: 0 | CV44: 0 | CX44: 0 | CZ44: 0 | DB44: 0 | DD44: 0 | DF44: 0 | DH44: NO | DI44: =IF(ISERROR(VLOOKUP($A44+8860000,'Growth Data'!$A:$F,3,0)),"NO",VLOOKUP($A44+8860000,'Growth Data'!$A:$F,3,0)) -> NO | DJ44: 0 | DL44: 0 | DM44: =IF(DI44="YES",IF(ISERROR(VLOOKUP($A44+8860000,'Growth Data'!$A:$F,6,0)),0,VLOOKUP($A44+8860000,'Growth Data'!$A:$F,6,0)),0) -> 0 | DN44: 0 | DP44: 0 | DQ44: =IF(ISERROR(VLOOKUP($A44+8860000,'Growth Data'!$A:$Z,7,0)),0,VLOOKUP($A44+8860000,'Growth Data'!$A:$Z,7,0)) -> 0 | DR44: 0 | DT44: YES | DU44: =IF(ISERROR(VLOOKUP($A44+8860000,'Growth Data'!$A:$F,4,0)),"NO",VLOOKUP($A44+8860000,'Growth Data'!$A:$F,4,0)) -> NO | DV44: 1 | DX44: 64 | DY44: =IF(ISERROR(VLOOKUP($A44+8860000,'Growth Data'!$A:$Z,8,0)),0,VLOOKUP($A44+8860000,'Growth Data'!$A:$Z,8,0)) -> 0 | DZ44: 1 | EB44: 82 | EC44: =IF(ISERROR(VLOOKUP($A44+8860000,'Growth Data'!$A:$Z,9,0)),0,VLOOKUP($A44+8860000,'Growth Data'!$A:$Z,9,0)) -> 0 | ED44: 1 | EF44: YES | EG44: =IF(ISERROR(VLOOKUP($A44+8860000,'Growth Data'!$A:$Z,5,0)),"NO",VLOOKUP($A44+8860000,'Growth Data'!$A:$Z,5,0)) -> NO | EH44: 1 | EJ44: 67 | EK44: =IF(ISERROR(VLOOKUP($A44+8860000,'Growth Data'!$A:$Z,10,0)),0,VLOOKUP($A44+8860000,'Growth Data'!$A:$Z,10,0)) -> 0 | EL44: 1 | EN44: 82 | EO44: =IF(ISERROR(VLOOKUP($A44+8860000,'Growth Data'!$A:$Z,11,0)),0,VLOOKUP($A44+8860000,'Growth Data'!$A:$Z,11,0)) -> 0 | EP44: 1
A45: 3307 | B45: Chevening (St Botolph's) CEP School | D45: Chevening (St Botolph's) CEP School | F45: 1 | H45: 573416.18 | I45: 573416.1771 | J45: 0.00293300394 | L45: 6106.86 | M45: 6106.857176 | N45: 0.002824390245 | P45: 5658.78 | Q45: 5658.783959 | R45: -0.003959302322 | T45: 34129.85 | U45: 34129.84979 | V45: 0.0002073169962 | X45: 120084 | Y45: 120084 | Z45: 0 | AB45: 0 | AC45: 0 | AD45: 0 | AF45: 26914 | AG45: 26914.00232 | AH45: -0.002315003116 | AJ45: 0 | AK45: 0 | AL45: 0 | AN45: 5171 | AO45: 5171 | AP45: 0 | AR45: 0 | AS45: 0 | AT45: 0 | AV45: 0 | AW45: 0 | AX45: 0 | AZ45: 0 | BA45: 0 | BB45: 0 | BD45: 771480.67 | BE45: 771480.6703 | BF45: -0.0003095943248 | BH45: 0 | BI45: 0 | BJ45: 0 | BL45: 771480.67 | BM45: 771480.6703 | BN45: -0.0003095943248 | BP45: 0 | BR45: 0 | BT45: 3177.5 | BV45: 3177.5 | BX45: 0 | BZ45: 0 | CB45: 51227.87 | CC45: 51227.86658 | CD45: 0 | CF45: 877.21 | CH45: 877 | CJ45: 3793.61 | CK45: 3793.612229 | CL45: 0 | CN45: 0 | CP45: 0 | CR45: 0 | CT45: 0 | CV45: 0 | CX45: 0 | CZ45: 0 | DB45: 0 | DD45: 0 | DF45: 0 | DH45: NO | DI45: =IF(ISERROR(VLOOKUP($A45+8860000,'Growth Data'!$A:$F,3,0)),"NO",VLOOKUP($A45+8860000,'Growth Data'!$A:$F,3,0)) -> NO | DJ45: 0 | DL45: 0 | DM45: =IF(DI45="YES",IF(ISERROR(VLOOKUP($A45+8860000,'Growth Data'!$A:$F,6,0)),0,VLOOKUP($A45+8860000,'Growth Data'!$A:$F,6,0)),0) -> 0 | DN45: 0 | DP45: 0 | DQ45: =IF(ISERROR(VLOOKUP($A45+8860000,'Growth Data'!$A:$Z,7,0)),0,VLOOKUP($A45+8860000,'Growth Data'!$A:$Z,7,0)) -> 0 | DR45: 0 | DT45: NO | DU45: =IF(ISERROR(VLOOKUP($A45+8860000,'Growth Data'!$A:$F,4,0)),"NO",VLOOKUP($A45+8860000,'Growth Data'!$A:$F,4,0)) -> NO | DV45: 0 | DX45: 0 | DY45: =IF(ISERROR(VLOOKUP($A45+8860000,'Growth Data'!$A:$Z,8,0)),0,VLOOKUP($A45+8860000,'Growth Data'!$A:$Z,8,0)) -> 0 | DZ45: 0 | EB45: 0 | EC45: =IF(ISERROR(VLOOKUP($A45+8860000,'Growth Data'!$A:$Z,9,0)),0,VLOOKUP($A45+8860000,'Growth Data'!$A:$Z,9,0)) -> 0 | ED45: 0 | EF45: NO | EG45: =IF(ISERROR(VLOOKUP($A45+8860000,'Growth Data'!$A:$Z,5,0)),"NO",VLOOKUP($A45+8860000,'Growth Data'!$A:$Z,5,0)) -> NO | EH45: 0 | EJ45: 0 | EK45: =IF(ISERROR(VLOOKUP($A45+8860000,'Growth Data'!$A:$Z,10,0)),0,VLOOKUP($A45+8860000,'Growth Data'!$A:$Z,10,0)) -> 0 | EL45: 0 | EN45: 0 | EO45: =IF(ISERROR(VLOOKUP($A45+8860000,'Growth Data'!$A:$Z,11,0)),0,VLOOKUP($A45+8860000,'Growth Data'!$A:$Z,11,0)) -> 0 | EP45: 0
A46: 3138 | B46: Chilham St Mary's CEP School | D46: Chilham St Mary's CEP School | F46: 1 | H46: 238450.29 | I46: 238450.2915 | J46: -0.001453602308 | L46: 16787.74 | M46: 16787.7432 | N46: -0.003199999996 | P46: 599.62 | Q46: 599.61944 | R46: 0.0005600000014 | T46: 23300.41 | U46: 23300.40847 | V46: 0.001534246552 | X46: 120084 | Y46: 120084 | Z46: 0 | AB46: 0 | AC46: 0 | AD46: 0 | AF46: 0 | AG46: 0 | AH46: 0 | AJ46: 0 | AK46: 0 | AL46: 0 | AN46: 8358 | AO46: 8358 | AP46: 0 | AR46: 0 | AS46: 0 | AT46: 0 | AV46: 8400 | AW46: 8400 | AX46: 0 | AZ46: 0 | BA46: 0 | BB46: 0 | BD46: 415980.06 | BE46: 415980.0626 | BF46: -0.002559355751 | BH46: 0 | BI46: 0 | BJ46: 0 | BL46: 415980.06 | BM46: 415980.0626 | BN46: -0.002559355751 | BP46: 0 | BR46: 0 | BT46: 3423.07 | BV46: 3423.07 | BX46: 0 | BZ46: 0 | CB46: 37916.53 | CC46: 37916.53341 | CD46: 0 | CF46: 2208.35 | CH46: 2208 | CJ46: 4752.64 | CK46: 4752.643602 | CL46: 0 | CN46: 0 | CP46: 0 | CR46: 0 | CT46: 0 | CV46: 0 | CX46: 0 | CZ46: 0 | DB46: 0 | DD46: 0 | DF46: 0 | DH46: NO | DI46: =IF(ISERROR(VLOOKUP($A46+8860000,'Growth Data'!$A:$F,3,0)),"NO",VLOOKUP($A46+8860000,'Growth Data'!$A:$F,3,0)) -> NO | DJ46: 0 | DL46: 0 | DM46: =IF(DI46="YES",IF(ISERROR(VLOOKUP($A46+8860000,'Growth Data'!$A:$F,6,0)),0,VLOOKUP($A46+8860000,'Growth Data'!$A:$F,6,0)),0) -> 0 | DN46: 0 | DP46: 0 | DQ46: =IF(ISERROR(VLOOKUP($A46+8860000,'Growth Data'!$A:$Z,7,0)),0,VLOOKUP($A46+8860000,'Growth Data'!$A:$Z,7,0)) -> 0 | DR46: 0 | DT46: NO | DU46: =IF(ISERROR(VLOOKUP($A46+8860000,'Growth Data'!$A:$F,4,0)),"NO",VLOOKUP($A46+8860000,'Growth Data'!$A:$F,4,0)) -> NO | DV46: 0 | DX46: 0 | DY46: =IF(ISERROR(VLOOKUP($A46+8860000,'Growth Data'!$A:$Z,8,0)),0,VLOOKUP($A46+8860000,'Growth Data'!$A:$Z,8,0)) -> 0 | DZ46: 0 | EB46: 0 | EC46: =IF(ISERROR(VLOOKUP($A46+8860000,'Growth Data'!$A:$Z,9,0)),0,VLOOKUP($A46+8860000,'Growth Data'!$A:$Z,9,0)) -> 0 | ED46: 0 | EF46: NO | EG46: =IF(ISERROR(VLOOKUP($A46+8860000,'Growth Data'!$A:$Z,5,0)),"NO",VLOOKUP($A46+8860000,'Growth Data'!$A:$Z,5,0)) -> NO | EH46: 0 | EJ46: 0 | EK46: =IF(ISERROR(VLOOKUP($A46+8860000,'Growth Data'!$A:$Z,10,0)),0,VLOOKUP($A46+8860000,'Growth Data'!$A:$Z,10,0)) -> 0 | EL46: 0 | EN46: 0 | EO46: =IF(ISERROR(VLOOKUP($A46+8860000,'Growth Data'!$A:$Z,11,0)),0,VLOOKUP($A46+8860000,'Growth Data'!$A:$Z,11,0)) -> 0 | EP46: 0
A47: 3123 | B47: Chislet CEP School | D47: Chislet CEP School | F47: 1 | H47: 278192.01 | I47: 278192.0067 | J47: 0.003304130631 | L47: 11775.64 | M47: 11775.63718 | N47: 0.002820000005 | P47: 0 | Q47: 0 | R47: 0 | T47: 28597.5 | U47: 28597.50425 | V47: -0.00425000002 | X47: 120084 | Y47: 120084 | Z47: 0 | AB47: 0 | AC47: 0 | AD47: 0 | AF47: 0 | AG47: 0 | AH47: 0 | AJ47: 0 | AK47: 0 | AL47: 0 | AN47: 6113 | AO47: 6113 | AP47: 0 | AR47: 0 | AS47: 0 | AT47: 0 | AV47: 0 | AW47: 0 | AX47: 0 | AZ47: 0 | BA47: 0 | BB47: 0 | BD47: 444762.15 | BE47: 444762.1481 | BF47: 0.001874130627 | BH47: 0 | BI47: 0 | BJ47: 0 | BL47: 444762.15 | BM47: 444762.1481 | BN47: 0.001874130627 | BP47: 0 | BR47: 0 | BT47: 3250.66 | BV47: 3250.66 | BX47: 0 | BZ47: 0 | CB47: 45257.26 | CC47: 45257.25874 | CD47: 0 | CF47: 1474.27 | CH47: 1474 | CJ47: 4476.01 | CK47: 4476.011716 | CL47: 0 | CN47: 0 | CP47: 0 | CR47: 0 | CT47: 0 | CV47: 0 | CX47: 0 | CZ47: 0 | DB47: 0 | DD47: 0 | DF47: 0 | DH47: NO | DI47: =IF(ISERROR(VLOOKUP($A47+8860000,'Growth Data'!$A:$F,3,0)),"NO",VLOOKUP($A47+8860000,'Growth Data'!$A:$F,3,0)) -> NO | DJ47: 0 | DL47: 0 | DM47: =IF(DI47="YES",IF(ISERROR(VLOOKUP($A47+8860000,'Growth Data'!$A:$F,6,0)),0,VLOOKUP($A47+8860000,'Growth Data'!$A:$F,6,0)),0) -> 0 | DN47: 0 | DP47: 0 | DQ47: =IF(ISERROR(VLOOKUP($A47+8860000,'Growth Data'!$A:$Z,7,0)),0,VLOOKUP($A47+8860000,'Growth Data'!$A:$Z,7,0)) -> 0 | DR47: 0 | DT47: NO | DU47: =IF(ISERROR(VLOOKUP($A47+8860000,'Growth Data'!$A:$F,4,0)),"NO",VLOOKUP($A47+8860000,'Growth Data'!$A:$F,4,0)) -> NO | DV47: 0 | DX47: 0 | DY47: =IF(ISERROR(VLOOKUP($A47+8860000,'Growth Data'!$A:$Z,8,0)),0,VLOOKUP($A47+8860000,'Growth Data'!$A:$Z,8,0)) -> 0 | DZ47: 0 | EB47: 0 | EC47: =IF(ISERROR(VLOOKUP($A47+8860000,'Growth Data'!$A:$Z,9,0)),0,VLOOKUP($A47+8860000,'Growth Data'!$A:$Z,9,0)) -> 0 | ED47: 0 | EF47: NO | EG47: =IF(ISERROR(VLOOKUP($A47+8860000,'Growth Data'!$A:$Z,5,0)),"NO",VLOOKUP($A47+8860000,'Growth Data'!$A:$Z,5,0)) -> NO | EH47: 0 | EJ47: 0 | EK47: =IF(ISERROR(VLOOKUP($A47+8860000,'Growth Data'!$A:$Z,10,0)),0,VLOOKUP($A47+8860000,'Growth Data'!$A:$Z,10,0)) -> 0 | EL47: 0 | EN47: 0 | EO47: =IF(ISERROR(VLOOKUP($A47+8860000,'Growth Data'!$A:$Z,11,0)),0,VLOOKUP($A47+8860000,'Growth Data'!$A:$Z,11,0)) -> 0 | EP47: 0
A48: 3055 | B48: Churchill CEP School | D48: Churchill CEP School | F48: 1 | H48: 644383.53 | I48: 644383.5257 | J48: 0.004286098527 | L48: 27888.12 | M48: 27888.11807 | N48: 0.001934362943 | P48: 4407.82 | Q48: 4407.824251 | R48: -0.004251295341 | T48: 42465.42 | U48: 42465.42309 | V48: -0.003087765952 | X48: 120084 | Y48: 120084 | Z48: 0 | AB48: 0 | AC48: 0 | AD48: 0 | AF48: 30547.93 | AG48: 30547.93164 | AH48: -0.001636717021 | AJ48: 0 | AK48: 0 | AL48: 0 | AN48: 28928 | AO48: 28928 | AP48: 0 | AR48: 0 | AS48: 0 | AT48: 0 | AV48: 0 | AW48: 0 | AX48: 0 | AZ48: 0 | BA48: 0 | BB48: 0 | BD48: 898704.82 | BE48: 898704.8228 | BF48: -0.002755316906 | BH48: 0 | BI48: 0 | BJ48: 0 | BL48: 898704.82 | BM48: 898704.8228 | BN48: -0.002755316906 | BP48: 0 | BR48: 0 | BT48: 3283.36 | BV48: 3283.36 | BX48: 0 | BZ48: 0 | CB48: 69943.5 | CC48: 69943.5037 | CD48: 0 | CF48: 0 | CH48: 0 | CJ48: 3831.62 | CK48: 3831.615959 | CL48: 0 | CN48: 0 | CP48: 0 | CR48: 0 | CT48: 0 | CV48: 0 | CX48: 0 | CZ48: 0 | DB48: 0 | DD48: 0 | DF48: 0 | DH48: NO | DI48: =IF(ISERROR(VLOOKUP($A48+8860000,'Growth Data'!$A:$F,3,0)),"NO",VLOOKUP($A48+8860000,'Growth Data'!$A:$F,3,0)) -> NO | DJ48: 0 | DL48: 0 | DM48: =IF(DI48="YES",IF(ISERROR(VLOOKUP($A48+8860000,'Growth Data'!$A:$F,6,0)),0,VLOOKUP($A48+8860000,'Growth Data'!$A:$F,6,0)),0) -> 0 | DN48: 0 | DP48: 0 | DQ48: =IF(ISERROR(VLOOKUP($A48+8860000,'Growth Data'!$A:$Z,7,0)),0,VLOOKUP($A48+8860000,'Growth Data'!$A:$Z,7,0)) -> 0 | DR48: 0 | DT48: NO | DU48: =IF(ISERROR(VLOOKUP($A48+8860000,'Growth Data'!$A:$F,4,0)),"NO",VLOOKUP($A48+8860000,'Growth Data'!$A:$F,4,0)) -> NO | DV48: 0 | DX48: 0 | DY48: =IF(ISERROR(VLOOKUP($A48+8860000,'Growth Data'!$A:$Z,8,0)),0,VLOOKUP($A48+8860000,'Growth Data'!$A:$Z,8,0)) -> 0 | DZ48: 0 | EB48: 0 | EC48: =IF(ISERROR(VLOOKUP($A48+8860000,'Growth Data'!$A:$Z,9,0)),0,VLOOKUP($A48+8860000,'Growth Data'!$A:$Z,9,0)) -> 0 | ED48: 0 | EF48: NO | EG48: =IF(ISERROR(VLOOKUP($A48+8860000,'Growth Data'!$A:$Z,5,0)),"NO",VLOOKUP($A48+8860000,'Growth Data'!$A:$Z,5,0)) -> NO | EH48: 0 | EJ48: 0 | EK48: =IF(ISERROR(VLOOKUP($A48+8860000,'Growth Data'!$A:$Z,10,0)),0,VLOOKUP($A48+8860000,'Growth Data'!$A:$Z,10,0)) -> 0 | EL48: 0 | EN48: 0 | EO48: =IF(ISERROR(VLOOKUP($A48+8860000,'Growth Data'!$A:$Z,11,0)),0,VLOOKUP($A48+8860000,'Growth Data'!$A:$Z,11,0)) -> 0 | EP48: 0
A49: 2692 | B49: Churchill School, The | D49: Churchill School, The | F49: 1 | H49: 1132638.88 | I49: 1132638.884 | J49: -0.004404611187 | L49: 85156 | M49: 85155.99816 | N49: 0.001841605976 | P49: 12276.69 | Q49: 12276.69112 | R49: -0.001120689656 | T49: 92550.59 | U49: 92550.59304 | V49: -0.003038235111 | X49: 120084 | Y49: 120084 | Z49: 0 | AB49: 0 | AC49: 0 | AD49: 0 | AF49: 0 | AG49: 0 | AH49: 0 | AJ49: 0 | AK49: 0 | AL49: 0 | AN49: 12595 | AO49: 12595 | AP49: 0 | AR49: 0 | AS49: 0 | AT49: 0 | AV49: 0 | AW49: 0 | AX49: 0 | AZ49: 53543.83 | BA49: 53543.83328 | BB49: -0.003278069969 | BD49: 1508845 | BE49: 1508845 | BF49: 0 | BH49: 0 | BI49: 0 | BJ49: 0 | BL49: 1508845 | BM49: 1508845 | BN49: 0 | BP49: 0 | BR49: 0 | BT49: 3750 | BV49: 3750 | BX49: 0 | BZ49: 0 | CB49: 171000.7 | CC49: 171000.7046 | CD49: 0 | CF49: 0 | CH49: 0 | CJ49: 3750 | CK49: 3750 | CL49: 0 | CN49: 186000 | CP49: 186000 | CR49: 624.75 | CT49: 625 | CV49: 624.75 | CX49: 625 | CZ49: 624.75 | DB49: 625 | DD49: 624.75 | DF49: 625 | DH49: NO | DI49: =IF(ISERROR(VLOOKUP($A49+8860000,'Growth Data'!$A:$F,3,0)),"NO",VLOOKUP($A49+8860000,'Growth Data'!$A:$F,3,0)) -> NO | DJ49: 0 | DL49: 0 | DM49: =IF(DI49="YES",IF(ISERROR(VLOOKUP($A49+8860000,'Growth Data'!$A:$F,6,0)),0,VLOOKUP($A49+8860000,'Growth Data'!$A:$F,6,0)),0) -> 0 | DN49: 0 | DP49: 0 | DQ49: =IF(ISERROR(VLOOKUP($A49+8860000,'Growth Data'!$A:$Z,7,0)),0,VLOOKUP($A49+8860000,'Growth Data'!$A:$Z,7,0)) -> 0 | DR49: 0 | DT49: NO | DU49: =IF(ISERROR(VLOOKUP($A49+8860000,'Growth Data'!$A:$F,4,0)),"NO",VLOOKUP($A49+8860000,'Growth Data'!$A:$F,4,0)) -> NO | DV49: 0 | DX49: 0 | DY49: =IF(ISERROR(VLOOKUP($A49+8860000,'Growth Data'!$A:$Z,8,0)),0,VLOOKUP($A49+8860000,'Growth Data'!$A:$Z,8,0)) -> 0 | DZ49: 0 | EB49: 0 | EC49: =IF(ISERROR(VLOOKUP($A49+8860000,'Growth Data'!$A:$Z,9,0)),0,VLOOKUP($A49+8860000,'Growth Data'!$A:$Z,9,0)) -> 0 | ED49: 0 | EF49: NO | EG49: =IF(ISERROR(VLOOKUP($A49+8860000,'Growth Data'!$A:$Z,5,0)),"NO",VLOOKUP($A49+8860000,'Growth Data'!$A:$Z,5,0)) -> NO | EH49: 0 | EJ49: 0 | EK49: =IF(ISERROR(VLOOKUP($A49+8860000,'Growth Data'!$A:$Z,10,0)),0,VLOOKUP($A49+8860000,'Growth Data'!$A:$Z,10,0)) -> 0 | EL49: 0 | EN49: 0 | EO49: =IF(ISERROR(VLOOKUP($A49+8860000,'Growth Data'!$A:$Z,11,0)),0,VLOOKUP($A49+8860000,'Growth Data'!$A:$Z,11,0)) -> 0 | EP49: 0
A50: 2465 | B50: Claremont Primary School | D50: Claremont Primary School | F50: 1 | H50: 1231993.17 | I50: 1231993.173 | J50: -0.002510278719 | L50: 9145.18 | M50: 9145.180875 | N50: -0.0008745181985 | P50: 20447.02 | Q50: 20447.0229 | R50: -0.002904000001 | T50: 73498.48 | U50: 73498.48144 | V50: -0.001441095854 | X50: 120084 | Y50: 120084 | Z50: 0 | AB50: 0 | AC50: 0 | AD50: 0 | AF50: 0 | AG50: 0 | AH50: 0 | AJ50: 0 | AK50: 0 | AL50: 0 | AN50: 38656 | AO50: 38656 | AP50: 0 | AR50: 0 | AS50: 0 | AT50: 0 | AV50: 0 | AW50: 0 | AX50: 0 | AZ50: 172332.14 | BA50: 172332.1423 | BB50: -0.002270107274 | BD50: 1666156 | BE50: 1666156 | BF50: 0 | BH50: 0 | BI50: 0 | BJ50: 0 | BL50: 1666156 | BM50: 1666156 | BN50: 0 | BP50: 0 | BR50: 0 | BT50: 3750 | BV50: 3750 | BX50: 0 | BZ50: 0 | CB50: 105723.23 | CC50: 105723.2275 | CD50: 0 | CF50: 0 | CH50: 0 | CJ50: 3750 | CK50: 3750 | CL50: 0 | CN50: 0 | CP50: 0 | CR50: 0 | CT50: 0 | CV50: 0 | CX50: 0 | CZ50: 0 | DB50: 0 | DD50: 0 | DF50: 0 | DH50: NO | DI50: =IF(ISERROR(VLOOKUP($A50+8860000,'Growth Data'!$A:$F,3,0)),"NO",VLOOKUP($A50+8860000,'Growth Data'!$A:$F,3,0)) -> NO | DJ50: 0 | DL50: 0 | DM50: =IF(DI50="YES",IF(ISERROR(VLOOKUP($A50+8860000,'Growth Data'!$A:$F,6,0)),0,VLOOKUP($A50+8860000,'Growth Data'!$A:$F,6,0)),0) -> 0 | DN50: 0 | DP50: 0 | DQ50: =IF(ISERROR(VLOOKUP($A50+8860000,'Growth Data'!$A:$Z,7,0)),0,VLOOKUP($A50+8860000,'Growth Data'!$A:$Z,7,0)) -> 0 | DR50: 0 | DT50: NO | DU50: =IF(ISERROR(VLOOKUP($A50+8860000,'Growth Data'!$A:$F,4,0)),"NO",VLOOKUP($A50+8860000,'Growth Data'!$A:$F,4,0)) -> NO | DV50: 0 | DX50: 0 | DY50: =IF(ISERROR(VLOOKUP($A50+8860000,'Growth Data'!$A:$Z,8,0)),0,VLOOKUP($A50+8860000,'Growth Data'!$A:$Z,8,0)) -> 0 | DZ50: 0 | EB50: 0 | EC50: =IF(ISERROR(VLOOKUP($A50+8860000,'Growth Data'!$A:$Z,9,0)),0,VLOOKUP($A50+8860000,'Growth Data'!$A:$Z,9,0)) -> 0 | ED50: 0 | EF50: NO | EG50: =IF(ISERROR(VLOOKUP($A50+8860000,'Growth Data'!$A:$Z,5,0)),"NO",VLOOKUP($A50+8860000,'Growth Data'!$A:$Z,5,0)) -> NO | EH50: 0 | EJ50: 0 | EK50: =IF(ISERROR(VLOOKUP($A50+8860000,'Growth Data'!$A:$Z,10,0)),0,VLOOKUP($A50+8860000,'Growth Data'!$A:$Z,10,0)) -> 0 | EL50: 0 | EN50: 0 | EO50: =IF(ISERROR(VLOOKUP($A50+8860000,'Growth Data'!$A:$Z,11,0)),0,VLOOKUP($A50+8860000,'Growth Data'!$A:$Z,11,0)) -> 0 | EP50: 0
A51: 2094 | B51: Cobham Primary School | D51: Cobham Primary School | F51: 1 | H51: 618835.28 | I51: 618835.2802 | J51: -0.0002010155004 | L51: 11148.34 | M51: 11148.34384 | N51: -0.003836363636 | P51: 620.81 | Q51: 620.8066011 | R51: 0.00339893617 | T51: 33545.34 | U51: 33545.33697 | V51: 0.003032085537 | X51: 120084 | Y51: 120084 | Z51: 0 | AB51: 0 | AC51: 0 | AD51: 0 | AF51: 0 | AG51: 0 | AH51: 0 | AJ51: 0 | AK51: 0 | AL51: 0 | AN51: 17216 | AO51: 17216 | AP51: 0 | AR51: 0 | AS51: 0 | AT51: 0 | AV51: 0 | AW51: 0 | AX51: 0 | AZ51: 33266.23 | BA51: 33266.23239 | BB51: -0.002393642535 | BD51: 834716 | BE51: 834716 | BF51: 0 | BH51: 0 | BI51: 0 | BJ51: 0 | BL51: 834716 | BM51: 834716 | BN51: 0 | BP51: 0 | BR51: 0 | BT51: 3750 | BV51: 3750 | BX51: 0 | BZ51: 0 | CB51: 47947.03 | CC51: 47947.02971 | CD51: 0 | CF51: 1205.3 | CH51: 1205 | CJ51: 3750 | CK51: 3750 | CL51: 0 | CN51: 0 | CP51: 0 | CR51: 0 | CT51: 0 | CV51: 0 | CX51: 0 | CZ51: 0 | DB51: 0 | DD51: 0 | DF51: 0 | DH51: NO | DI51: =IF(ISERROR(VLOOKUP($A51+8860000,'Growth Data'!$A:$F,3,0)),"NO",VLOOKUP($A51+8860000,'Growth Data'!$A:$F,3,0)) -> NO | DJ51: 0 | DL51: 0 | DM51: =IF(DI51="YES",IF(ISERROR(VLOOKUP($A51+8860000,'Growth Data'!$A:$F,6,0)),0,VLOOKUP($A51+8860000,'Growth Data'!$A:$F,6,0)),0) -> 0 | DN51: 0 | DP51: 0 | DQ51: =IF(ISERROR(VLOOKUP($A51+8860000,'Growth Data'!$A:$Z,7,0)),0,VLOOKUP($A51+8860000,'Growth Data'!$A:$Z,7,0)) -> 0 | DR51: 0 | DT51: NO | DU51: =IF(ISERROR(VLOOKUP($A51+8860000,'Growth Data'!$A:$F,4,0)),"NO",VLOOKUP($A51+8860000,'Growth Data'!$A:$F,4,0)) -> NO | DV51: 0 | DX51: 0 | DY51: =IF(ISERROR(VLOOKUP($A51+8860000,'Growth Data'!$A:$Z,8,0)),0,VLOOKUP($A51+8860000,'Growth Data'!$A:$Z,8,0)) -> 0 | DZ51: 0 | EB51: 0 | EC51: =IF(ISERROR(VLOOKUP($A51+8860000,'Growth Data'!$A:$Z,9,0)),0,VLOOKUP($A51+8860000,'Growth Data'!$A:$Z,9,0)) -> 0 | ED51: 0 | EF51: NO | EG51: =IF(ISERROR(VLOOKUP($A51+8860000,'Growth Data'!$A:$Z,5,0)),"NO",VLOOKUP($A51+8860000,'Growth Data'!$A:$Z,5,0)) -> NO | EH51: 0 | EJ51: 0 | EK51: =IF(ISERROR(VLOOKUP($A51+8860000,'Growth Data'!$A:$Z,10,0)),0,VLOOKUP($A51+8860000,'Growth Data'!$A:$Z,10,0)) -> 0 | EL51: 0 | EN51: 0 | EO51: =IF(ISERROR(VLOOKUP($A51+8860000,'Growth Data'!$A:$Z,11,0)),0,VLOOKUP($A51+8860000,'Growth Data'!$A:$Z,11,0)) -> 0 | EP51: 0
A52: 3308 | B52: Colliers Green CEP School | D52: Colliers Green CEP School | F52: 1 | H52: 303740.25 | I52: 303740.2522 | J52: -0.002208755352 | L52: 2299.61 | M52: 2299.6086 | N52: 0.001400000004 | P52: 1273 | Q52: 1273.001589 | R52: -0.001588888887 | T52: 20272.85 | U52: 20272.84773 | V52: 0.002266666637 | X52: 120084 | Y52: 120084 | Z52: 0 | AB52: 0 | AC52: 0 | AD52: 0 | AF52: 0 | AG52: 0 | AH52: 0 | AJ52: 0 | AK52: 0 | AL52: 0 | AN52: 1894 | AO52: 1894 | AP52: 0 | AR52: 0 | AS52: 0 | AT52: 0 | AV52: 0 | AW52: 0 | AX52: 0 | AZ52: 0 | BA52: 0 | BB52: 0 | BD52: 449563.71 | BE52: 449563.7101 | BF52: -0.0001309775398 | BH52: 0 | BI52: 0 | BJ52: 0 | BL52: 449563.71 | BM52: 449563.7101 | BN52: -0.0001309775398 | BP52: 0 | BR52: 0 | BT52: 3061.55 | BV52: 3061.55 | BX52: 0 | BZ52: 0 | CB52: 29179.89 | CC52: 29179.89023 | CD52: 0 | CF52: 3082.01 | CH52: 3082 | CJ52: 4183.83 | CK52: 4183.829067 | CL52: 0 | CN52: 0 | CP52: 0 | CR52: 0 | CT52: 0 | CV52: 0 | CX52: 0 | CZ52: 0 | DB52: 0 | DD52: 0 | DF52: 0 | DH52: NO | DI52: =IF(ISERROR(VLOOKUP($A52+8860000,'Growth Data'!$A:$F,3,0)),"NO",VLOOKUP($A52+8860000,'Growth Data'!$A:$F,3,0)) -> NO | DJ52: 0 | DL52: 0 | DM52: =IF(DI52="YES",IF(ISERROR(VLOOKUP($A52+8860000,'Growth Data'!$A:$F,6,0)),0,VLOOKUP($A52+8860000,'Growth Data'!$A:$F,6,0)),0) -> 0 | DN52: 0 | DP52: 0 | DQ52: =IF(ISERROR(VLOOKUP($A52+8860000,'Growth Data'!$A:$Z,7,0)),0,VLOOKUP($A52+8860000,'Growth Data'!$A:$Z,7,0)) -> 0 | DR52: 0 | DT52: NO | DU52: =IF(ISERROR(VLOOKUP($A52+8860000,'Growth Data'!$A:$F,4,0)),"NO",VLOOKUP($A52+8860000,'Growth Data'!$A:$F,4,0)) -> NO | DV52: 0 | DX52: 0 | DY52: =IF(ISERROR(VLOOKUP($A52+8860000,'Growth Data'!$A:$Z,8,0)),0,VLOOKUP($A52+8860000,'Growth Data'!$A:$Z,8,0)) -> 0 | DZ52: 0 | EB52: 0 | EC52: =IF(ISERROR(VLOOKUP($A52+8860000,'Growth Data'!$A:$Z,9,0)),0,VLOOKUP($A52+8860000,'Growth Data'!$A:$Z,9,0)) -> 0 | ED52: 0 | EF52: NO | EG52: =IF(ISERROR(VLOOKUP($A52+8860000,'Growth Data'!$A:$Z,5,0)),"NO",VLOOKUP($A52+8860000,'Growth Data'!$A:$Z,5,0)) -> NO | EH52: 0 | EJ52: 0 | EK52: =IF(ISERROR(VLOOKUP($A52+8860000,'Growth Data'!$A:$Z,10,0)),0,VLOOKUP($A52+8860000,'Growth Data'!$A:$Z,10,0)) -> 0 | EL52: 0 | EN52: 0 | EO52: =IF(ISERROR(VLOOKUP($A52+8860000,'Growth Data'!$A:$Z,11,0)),0,VLOOKUP($A52+8860000,'Growth Data'!$A:$Z,11,0)) -> 0 | EP52: 0
A53: 3027 | B53: Cranbrook CEP School | D53: Cranbrook CEP School | F53: 1 | H53: 493932.75 | I53: 493932.7466 | J53: 0.003417538072 | L53: 42558.21 | M53: 42558.21163 | N53: -0.001626993857 | P53: 5139.6 | Q53: 5139.5952 | R53: 0.004800000005 | T53: 42269.35 | U53: 42269.34726 | V53: 0.002742647099 | X53: 120084 | Y53: 120084 | Z53: 0 | AB53: 0 | AC53: 0 | AD53: 0 | AF53: 0 | AG53: 0 | AH53: 0 | AJ53: 0 | AK53: 0 | AL53: 0 | AN53: 26112 | AO53: 26112 | AP53: 0 | AR53: 0 | AS53: 0 | AT53: 0 | AV53: 0 | AW53: 0 | AX53: 0 | AZ53: 0 | BA53: 0 | BB53: 0 | BD53: 730095.9 | BE53: 730095.9007 | BF53: -0.0006668086862 | BH53: 0 | BI53: 0 | BJ53: 0 | BL53: 730095.9 | BM53: 730095.9007 | BN53: -0.0006668086862 | BP53: 0 | BR53: 0 | BT53: 3355.75 | BV53: 3355.75 | BX53: 0 | BZ53: 0 | CB53: 73236.15 | CC53: 73236.15139 | CD53: 0 | CF53: 0 | CH53: 0 | CJ53: 4045.88 | CK53: 4045.884487 | CL53: 0 | CN53: 0 | CP53: 0 | CR53: 0 | CT53: 0 | CV53: 0 | CX53: 0 | CZ53: 0 | DB53: 0 | DD53: 0 | DF53: 0 | DH53: NO | DI53: =IF(ISERROR(VLOOKUP($A53+8860000,'Growth Data'!$A:$F,3,0)),"NO",VLOOKUP($A53+8860000,'Growth Data'!$A:$F,3,0)) -> NO | DJ53: 0 | DL53: 0 | DM53: =IF(DI53="YES",IF(ISERROR(VLOOKUP($A53+8860000,'Growth Data'!$A:$F,6,0)),0,VLOOKUP($A53+8860000,'Growth Data'!$A:$F,6,0)),0) -> 0 | DN53: 0 | DP53: 0 | DQ53: =IF(ISERROR(VLOOKUP($A53+8860000,'Growth Data'!$A:$Z,7,0)),0,VLOOKUP($A53+8860000,'Growth Data'!$A:$Z,7,0)) -> 0 | DR53: 0 | DT53: YES | DU53: =IF(ISERROR(VLOOKUP($A53+8860000,'Growth Data'!$A:$F,4,0)),"NO",VLOOKUP($A53+8860000,'Growth Data'!$A:$F,4,0)) -> NO | DV53: 1 | DX53: 30 | DY53: =IF(ISERROR(VLOOKUP($A53+8860000,'Growth Data'!$A:$Z,8,0)),0,VLOOKUP($A53+8860000,'Growth Data'!$A:$Z,8,0)) -> 0 | DZ53: 1 | EB53: 60 | EC53: =IF(ISERROR(VLOOKUP($A53+8860000,'Growth Data'!$A:$Z,9,0)),0,VLOOKUP($A53+8860000,'Growth Data'!$A:$Z,9,0)) -> 0 | ED53: 1 | EF53: YES | EG53: =IF(ISERROR(VLOOKUP($A53+8860000,'Growth Data'!$A:$Z,5,0)),"NO",VLOOKUP($A53+8860000,'Growth Data'!$A:$Z,5,0)) -> NO | EH53: 1 | EJ53: 30 | EK53: =IF(ISERROR(VLOOKUP($A53+8860000,'Growth Data'!$A:$Z,10,0)),0,VLOOKUP($A53+8860000,'Growth Data'!$A:$Z,10,0)) -> 0 | EL53: 1 | EN53: 60 | EO53: =IF(ISERROR(VLOOKUP($A53+8860000,'Growth Data'!$A:$Z,11,0)),0,VLOOKUP($A53+8860000,'Growth Data'!$A:$Z,11,0)) -> 0 | EP53: 1
A54: 2689 | B54: Craylands School, The | D54: Craylands School, The | F54: 1 | H54: 939607.7 | I54: 939607.6961 | J54: 0.003914971719 | L54: 91160.02 | M54: 91160.01654 | N54: 0.003456146238 | P54: 12516.62 | Q54: 12516.61796 | R54: 0.002042750923 | T54: 103441.42 | U54: 103441.4185 | V54: 0.001507518755 | X54: 120084 | Y54: 120084 | Z54: 0 | AB54: 0 | AC54: 0 | AD54: 0 | AF54: 46111.87 | AG54: 46111.87487 | AH54: -0.004866461473 | AJ54: 0 | AK54: 0 | AL54: 0 | AN54: 61952 | AO54: 61952 | AP54: 0 | AR54: 76874.99 | AS54: 76874.98553 | AT54: 0.004467199993 | AV54: 0 | AW54: 0 | AX54: 0 | AZ54: 0 | BA54: 0 | BB54: 0 | BD54: 1451748.61 | BE54: 1451748.609 | BF54: 0.0005221264437 | BH54: 0 | BI54: 0 | BJ54: 0 | BL54: 1451748.61 | BM54: 1451748.609 | BN54: 0.0005221264437 | BP54: 0 | BR54: 0 | BT54: 3590.53 | BV54: 3590.53 | BX54: 0 | BZ54: 0 | CB54: 198717.26 | CC54: 198717.2583 | CD54: 0 | CF54: 0 | CH54: 0 | CJ54: 3966.53 | CK54: 3966.530586 | CL54: 0 | CN54: 0 | CP54: 0 | CR54: 0 | CT54: 0 | CV54: 0 | CX54: 0 | CZ54: 0 | DB54: 0 | DD54: 0 | DF54: 0 | DH54: NO | DI54: =IF(ISERROR(VLOOKUP($A54+8860000,'Growth Data'!$A:$F,3,0)),"NO",VLOOKUP($A54+8860000,'Growth Data'!$A:$F,3,0)) -> YES | DJ54: 1 | DL54: 0 | DM54: =IF(DI54="YES",IF(ISERROR(VLOOKUP($A54+8860000,'Growth Data'!$A:$F,6,0)),0,VLOOKUP($A54+8860000,'Growth Data'!$A:$F,6,0)),0) -> 30 | DN54: -30 | DP54: 0 | DQ54: =IF(ISERROR(VLOOKUP($A54+8860000,'Growth Data'!$A:$Z,7,0)),0,VLOOKUP($A54+8860000,'Growth Data'!$A:$Z,7,0)) -> 60 | DR54: 1 | DT54: NO | DU54: =IF(ISERROR(VLOOKUP($A54+8860000,'Growth Data'!$A:$F,4,0)),"NO",VLOOKUP($A54+8860000,'Growth Data'!$A:$F,4,0)) -> YES | DV54: 1 | DX54: 0 | DY54: =IF(ISERROR(VLOOKUP($A54+8860000,'Growth Data'!$A:$Z,8,0)),0,VLOOKUP($A54+8860000,'Growth Data'!$A:$Z,8,0)) -> 31 | DZ54: 1 | EB54: 0 | EC54: =IF(ISERROR(VLOOKUP($A54+8860000,'Growth Data'!$A:$Z,9,0)),0,VLOOKUP($A54+8860000,'Growth Data'!$A:$Z,9,0)) -> 60 | ED54: 1 | EF54: NO | EG54: =IF(ISERROR(VLOOKUP($A54+8860000,'Growth Data'!$A:$Z,5,0)),"NO",VLOOKUP($A54+8860000,'Growth Data'!$A:$Z,5,0)) -> YES | EH54: 1 | EJ54: 0 | EK54: =IF(ISERROR(VLOOKUP($A54+8860000,'Growth Data'!$A:$Z,10,0)),0,VLOOKUP($A54+8860000,'Growth Data'!$A:$Z,10,0)) -> 30 | EL54: 1 | EN54: 0 | EO54: =IF(ISERROR(VLOOKUP($A54+8860000,'Growth Data'!$A:$Z,11,0)),0,VLOOKUP($A54+8860000,'Growth Data'!$A:$Z,11,0)) -> 60 | EP54: 1
A55: 2088 | B55: Crockenhill Primary School | D55: Crockenhill Primary School | F55: 1 | H55: 587609.65 | I55: 587609.6468 | J55: 0.00320362288 | L55: 39330.51 | M55: 39330.5121 | N55: -0.002099999932 | P55: 1252.23 | Q55: 1252.231881 | R55: -0.001881355934 | T55: 36350.4 | U55: 36350.39907 | V55: 0.000928977337 | X55: 120084 | Y55: 120084 | Z55: 0 | AB55: 0 | AC55: 0 | AD55: 0 | AF55: 28560.42 | AG55: 28560.41515 | AH55: 0.004849505302 | AJ55: 0 | AK55: 0 | AL55: 0 | AN55: 24116 | AO55: 24116 | AP55: 0 | AR55: 0 | AS55: 0 | AT55: 0 | AV55: 0 | AW55: 0 | AX55: 0 | AZ55: 0 | BA55: 0 | BB55: 0 | BD55: 837303.21 | BE55: 837303.205 | BF55: 0.005000749603 | BH55: 0 | BI55: 0 | BJ55: 0 | BL55: 837303.21 | BM55: 837303.205 | BN55: 0.005000749603 | BP55: 0 | BR55: 0 | BT55: 3327.21 | BV55: 3327.21 | BX55: 0 | BZ55: 0 | CB55: 71260.92 | CC55: 71260.92112 | CD55: 0 | CF55: 0 | CH55: 0 | CJ55: 3928.44 | CK55: 3928.440604 | CL55: 0 | CN55: 0 | CP55: 0 | CR55: 0 | CT55: 0 | CV55: 0 | CX55: 0 | CZ55: 0 | DB55: 0 | DD55: 0 | DF55: 0 | DH55: NO | DI55: =IF(ISERROR(VLOOKUP($A55+8860000,'Growth Data'!$A:$F,3,0)),"NO",VLOOKUP($A55+8860000,'Growth Data'!$A:$F,3,0)) -> NO | DJ55: 0 | DL55: 0 | DM55: =IF(DI55="YES",IF(ISERROR(VLOOKUP($A55+8860000,'Growth Data'!$A:$F,6,0)),0,VLOOKUP($A55+8860000,'Growth Data'!$A:$F,6,0)),0) -> 0 | DN55: 0 | DP55: 0 | DQ55: =IF(ISERROR(VLOOKUP($A55+8860000,'Growth Data'!$A:$Z,7,0)),0,VLOOKUP($A55+8860000,'Growth Data'!$A:$Z,7,0)) -> 0 | DR55: 0 | DT55: NO | DU55: =IF(ISERROR(VLOOKUP($A55+8860000,'Growth Data'!$A:$F,4,0)),"NO",VLOOKUP($A55+8860000,'Growth Data'!$A:$F,4,0)) -> NO | DV55: 0 | DX55: 0 | DY55: =IF(ISERROR(VLOOKUP($A55+8860000,'Growth Data'!$A:$Z,8,0)),0,VLOOKUP($A55+8860000,'Growth Data'!$A:$Z,8,0)) -> 0 | DZ55: 0 | EB55: 0 | EC55: =IF(ISERROR(VLOOKUP($A55+8860000,'Growth Data'!$A:$Z,9,0)),0,VLOOKUP($A55+8860000,'Growth Data'!$A:$Z,9,0)) -> 0 | ED55: 0 | EF55: NO | EG55: =IF(ISERROR(VLOOKUP($A55+8860000,'Growth Data'!$A:$Z,5,0)),"NO",VLOOKUP($A55+8860000,'Growth Data'!$A:$Z,5,0)) -> NO | EH55: 0 | EJ55: 0 | EK55: =IF(ISERROR(VLOOKUP($A55+8860000,'Growth Data'!$A:$Z,10,0)),0,VLOOKUP($A55+8860000,'Growth Data'!$A:$Z,10,0)) -> 0 | EL55: 0 | EN55: 0 | EO55: =IF(ISERROR(VLOOKUP($A55+8860000,'Growth Data'!$A:$Z,11,0)),0,VLOOKUP($A55+8860000,'Growth Data'!$A:$Z,11,0)) -> 0 | EP55: 0
A56: 3054 | B56: Crockham Hill CEP School | D56: Crockham Hill CEP School | F56: 1 | H56: 405933.23 | I56: 405933.2343 | J56: -0.004260299203 | L56: 8191.04 | M56: 8191.040062 | N56: -6.206896705e-05 | P56: 627.53 | Q56: 627.529127 | R56: 0.0008729508196 | T56: 35560.37 | U56: 35560.37485 | V56: -0.004849999947 | X56: 120084 | Y56: 120084 | Z56: 0 | AB56: 0 | AC56: 0 | AD56: 0 | AF56: 20762.42 | AG56: 20762.42089 | AH56: -0.0008900987814 | AJ56: 0 | AK56: 0 | AL56: 0 | AN56: 17964 | AO56: 17964 | AP56: 0 | AR56: 0 | AS56: 0 | AT56: 0 | AV56: 12500 | AW56: 12500 | AX56: 0 | AZ56: 0 | BA56: 0 | BB56: 0 | BD56: 621622.6 | BE56: 621622.5992 | BF56: 0.0008104839362 | BH56: 0 | BI56: 0 | BJ56: 0 | BL56: 621622.6 | BM56: 621622.5992 | BN56: 0.0008104839362 | BP56: 0 | BR56: 0 | BT56: 3351.07 | BV56: 3351.07 | BX56: 0 | BZ56: 0 | CB56: 51056.24 | CC56: 51056.23678 | CD56: 0 | CF56: 894.38 | CH56: 894 | CJ56: 4133.98 | CK56: 4133.976218 | CL56: 0 | CN56: 0 | CP56: 0 | CR56: 0 | CT56: 0 | CV56: 0 | CX56: 0 | CZ56: 0 | DB56: 0 | DD56: 0 | DF56: 0 | DH56: NO | DI56: =IF(ISERROR(VLOOKUP($A56+8860000,'Growth Data'!$A:$F,3,0)),"NO",VLOOKUP($A56+8860000,'Growth Data'!$A:$F,3,0)) -> NO | DJ56: 0 | DL56: 0 | DM56: =IF(DI56="YES",IF(ISERROR(VLOOKUP($A56+8860000,'Growth Data'!$A:$F,6,0)),0,VLOOKUP($A56+8860000,'Growth Data'!$A:$F,6,0)),0) -> 0 | DN56: 0 | DP56: 0 | DQ56: =IF(ISERROR(VLOOKUP($A56+8860000,'Growth Data'!$A:$Z,7,0)),0,VLOOKUP($A56+8860000,'Growth Data'!$A:$Z,7,0)) -> 0 | DR56: 0 | DT56: YES | DU56: =IF(ISERROR(VLOOKUP($A56+8860000,'Growth Data'!$A:$F,4,0)),"NO",VLOOKUP($A56+8860000,'Growth Data'!$A:$F,4,0)) -> NO | DV56: 1 | DX56: 44 | DY56: =IF(ISERROR(VLOOKUP($A56+8860000,'Growth Data'!$A:$Z,8,0)),0,VLOOKUP($A56+8860000,'Growth Data'!$A:$Z,8,0)) -> 0 | DZ56: 1 | EB56: 60 | EC56: =IF(ISERROR(VLOOKUP($A56+8860000,'Growth Data'!$A:$Z,9,0)),0,VLOOKUP($A56+8860000,'Growth Data'!$A:$Z,9,0)) -> 0 | ED56: 1 | EF56: YES | EG56: =IF(ISERROR(VLOOKUP($A56+8860000,'Growth Data'!$A:$Z,5,0)),"NO",VLOOKUP($A56+8860000,'Growth Data'!$A:$Z,5,0)) -> NO | EH56: 1 | EJ56: 31 | EK56: =IF(ISERROR(VLOOKUP($A56+8860000,'Growth Data'!$A:$Z,10,0)),0,VLOOKUP($A56+8860000,'Growth Data'!$A:$Z,10,0)) -> 0 | EL56: 1 | EN56: 60 | EO56: =IF(ISERROR(VLOOKUP($A56+8860000,'Growth Data'!$A:$Z,11,0)),0,VLOOKUP($A56+8860000,'Growth Data'!$A:$Z,11,0)) -> 0 | EP56: 1
A57: 4026 | B57: Dartford Science and Technology College | D57: Dartford Science and Technology College | F57: 1 | H57: 3061959.16 | I57: 3061959.162 | J57: -0.002224877477 | L57: 248799.62 | M57: 248799.6169 | N57: 0.003147368436 | P57: 36025.2 | Q57: 36025.2 | R57: 0 | T57: 258808.78 | U57: 258808.7778 | V57: 0.002249591373 | X57: 114480.08 | Y57: 114480.08 | Z57: 0 | AB57: 0 | AC57: 0 | AD57: 0 | AF57: 135410.65 | AG57: 135410.6513 | AH57: -0.001260536199 | AJ57: 0 | AK57: 0 | AL57: 0 | AN57: 131328 | AO57: 131328 | AP57: 0 | AR57: 0 | AS57: 0 | AT57: 0 | AV57: 0 | AW57: 0 | AX57: 0 | AZ57: 0 | BA57: 0 | BB57: 0 | BD57: 3986811.49 | BE57: 3986811.488 | BF57: 0.001911545638 | BH57: 0 | BI57: 0 | BJ57: 0 | BL57: 3986811.49 | BM57: 3986811.488 | BN57: 0.001911545638 | BP57: 0 | BR57: 0 | BT57: 5125.98 | BV57: 5125.98 | BX57: 0 | BZ57: 0 | CB57: 523664.62 | CC57: 523664.6188 | CD57: 0 | CF57: 0 | CH57: 0 | CJ57: 5288.73 | CK57: 5288.729065 | CL57: 0 | CN57: 0 | CP57: 0 | CR57: 0 | CT57: 0 | CV57: 0 | CX57: 0 | CZ57: 0 | DB57: 0 | DD57: 0 | DF57: 0 | DH57: NO | DI57: =IF(ISERROR(VLOOKUP($A57+8860000,'Growth Data'!$A:$F,3,0)),"NO",VLOOKUP($A57+8860000,'Growth Data'!$A:$F,3,0)) -> NO | DJ57: 0 | DL57: 0 | DM57: =IF(DI57="YES",IF(ISERROR(VLOOKUP($A57+8860000,'Growth Data'!$A:$F,6,0)),0,VLOOKUP($A57+8860000,'Growth Data'!$A:$F,6,0)),0) -> 0 | DN57: 0 | DP57: 0 | DQ57: =IF(ISERROR(VLOOKUP($A57+8860000,'Growth Data'!$A:$Z,7,0)),0,VLOOKUP($A57+8860000,'Growth Data'!$A:$Z,7,0)) -> 0 | DR57: 0 | DT57: NO | DU57: =IF(ISERROR(VLOOKUP($A57+8860000,'Growth Data'!$A:$F,4,0)),"NO",VLOOKUP($A57+8860000,'Growth Data'!$A:$F,4,0)) -> NO | DV57: 0 | DX57: 0 | DY57: =IF(ISERROR(VLOOKUP($A57+8860000,'Growth Data'!$A:$Z,8,0)),0,VLOOKUP($A57+8860000,'Growth Data'!$A:$Z,8,0)) -> 0 | DZ57: 0 | EB57: 0 | EC57: =IF(ISERROR(VLOOKUP($A57+8860000,'Growth Data'!$A:$Z,9,0)),0,VLOOKUP($A57+8860000,'Growth Data'!$A:$Z,9,0)) -> 0 | ED57: 0 | EF57: NO | EG57: =IF(ISERROR(VLOOKUP($A57+8860000,'Growth Data'!$A:$Z,5,0)),"NO",VLOOKUP($A57+8860000,'Growth Data'!$A:$Z,5,0)) -> NO | EH57: 0 | EJ57: 0 | EK57: =IF(ISERROR(VLOOKUP($A57+8860000,'Growth Data'!$A:$Z,10,0)),0,VLOOKUP($A57+8860000,'Growth Data'!$A:$Z,10,0)) -> 0 | EL57: 0 | EN57: 0 | EO57: =IF(ISERROR(VLOOKUP($A57+8860000,'Growth Data'!$A:$Z,11,0)),0,VLOOKUP($A57+8860000,'Growth Data'!$A:$Z,11,0)) -> 0 | EP57: 0
A58: 2228 | B58: Davington Primary School | D58: Davington Primary School | F58: 1 | H58: 1166703.21 | I58: 1166703.212 | J58: -0.001755125588 | L58: 129568.37 | M58: 129568.3729 | N58: -0.002915738514 | P58: 3740.04 | Q58: 3740.038292 | R58: 0.001708215297 | T58: 130017.88 | U58: 130017.8797 | V58: 0.0003126802039 | X58: 120084 | Y58: 120084 | Z58: 0 | AB58: 0 | AC58: 0 | AD58: 0 | AF58: 0 | AG58: 0 | AH58: 0 | AJ58: 0 | AK58: 0 | AL58: 0 | AN58: 39424 | AO58: 39424 | AP58: 0 | AR58: 0 | AS58: 0 | AT58: 0 | AV58: 0 | AW58: 0 | AX58: 0 | AZ58: 0 | BA58: 0 | BB58: 0 | BD58: 1589537.5 | BE58: 1589537.503 | BF58: -0.00264996849 | BH58: 0 | BI58: 0 | BJ58: 0 | BL58: 1589537.5 | BM58: 1589537.503 | BN58: -0.00264996849 | BP58: 0 | BR58: 0 | BT58: 3479.39 | BV58: 3479.39 | BX58: 0 | BZ58: 0 | CB58: 247946.23 | CC58: 247946.2332 | CD58: 0 | CF58: 0 | CH58: 0 | CJ58: 3771.57 | CK58: 3771.5657 | CL58: 0 | CN58: 0 | CP58: 0 | CR58: 0 | CT58: 0 | CV58: 0 | CX58: 0 | CZ58: 0 | DB58: 0 | DD58: 0 | DF58: 0 | DH58: NO | DI58: =IF(ISERROR(VLOOKUP($A58+8860000,'Growth Data'!$A:$F,3,0)),"NO",VLOOKUP($A58+8860000,'Growth Data'!$A:$F,3,0)) -> NO | DJ58: 0 | DL58: 0 | DM58: =IF(DI58="YES",IF(ISERROR(VLOOKUP($A58+8860000,'Growth Data'!$A:$F,6,0)),0,VLOOKUP($A58+8860000,'Growth Data'!$A:$F,6,0)),0) -> 0 | DN58: 0 | DP58: 0 | DQ58: =IF(ISERROR(VLOOKUP($A58+8860000,'Growth Data'!$A:$Z,7,0)),0,VLOOKUP($A58+8860000,'Growth Data'!$A:$Z,7,0)) -> 0 | DR58: 0 | DT58: NO | DU58: =IF(ISERROR(VLOOKUP($A58+8860000,'Growth Data'!$A:$F,4,0)),"NO",VLOOKUP($A58+8860000,'Growth Data'!$A:$F,4,0)) -> NO | DV58: 0 | DX58: 0 | DY58: =IF(ISERROR(VLOOKUP($A58+8860000,'Growth Data'!$A:$Z,8,0)),0,VLOOKUP($A58+8860000,'Growth Data'!$A:$Z,8,0)) -> 0 | DZ58: 0 | EB58: 0 | EC58: =IF(ISERROR(VLOOKUP($A58+8860000,'Growth Data'!$A:$Z,9,0)),0,VLOOKUP($A58+8860000,'Growth Data'!$A:$Z,9,0)) -> 0 | ED58: 0 | EF58: NO | EG58: =IF(ISERROR(VLOOKUP($A58+8860000,'Growth Data'!$A:$Z,5,0)),"NO",VLOOKUP($A58+8860000,'Growth Data'!$A:$Z,5,0)) -> NO | EH58: 0 | EJ58: 0 | EK58: =IF(ISERROR(VLOOKUP($A58+8860000,'Growth Data'!$A:$Z,10,0)),0,VLOOKUP($A58+8860000,'Growth Data'!$A:$Z,10,0)) -> 0 | EL58: 0 | EN58: 0 | EO58: =IF(ISERROR(VLOOKUP($A58+8860000,'Growth Data'!$A:$Z,11,0)),0,VLOOKUP($A58+8860000,'Growth Data'!$A:$Z,11,0)) -> 0 | EP58: 0
A59: 2065 | B59: Discovery School, The | D59: Discovery School, The | F59: 1 | H59: 1725925.92 | I59: 1725925.919 | J59: 0.0009072592948 | L59: 25054.8 | M59: 25054.79588 | N59: 0.004121163165 | P59: 14602.21 | Q59: 14602.2144 | R59: -0.004399999983 | T59: 119040.54 | U59: 119040.5428 | V59: -0.002818181674 | X59: 120084 | Y59: 120084 | Z59: 0 | AB59: 0 | AC59: 0 | AD59: 0 | AF59: 0 | AG59: 0 | AH59: 0 | AJ59: 0 | AK59: 0 | AL59: 0 | AN59: 75264 | AO59: 75264 | AP59: 0 | AR59: 0 | AS59: 0 | AT59: 0 | AV59: 0 | AW59: 0 | AX59: 0 | AZ59: 275292.53 | BA59: 275292.5278 | BB59: 0.002189759165 | BD59: 2355264 | BE59: 2355264 | BF59: 0 | BH59: 0 | BI59: 0 | BJ59: 0 | BL59: 2355264 | BM59: 2355264 | BN59: 0 | BP59: 0 | BR59: 0 | BT59: 3750 | BV59: 3750 | BX59: 0 | BZ59: 0 | CB59: 154575.37 | CC59: 154575.3704 | CD59: 0 | CF59: 0 | CH59: 0 | CJ59: 3750 | CK59: 3750 | CL59: 0 | CN59: 0 | CP59: 0 | CR59: 0 | CT59: 0 | CV59: 0 | CX59: 0 | CZ59: 0 | DB59: 0 | DD59: 0 | DF59: 0 | DH59: NO | DI59: =IF(ISERROR(VLOOKUP($A59+8860000,'Growth Data'!$A:$F,3,0)),"NO",VLOOKUP($A59+8860000,'Growth Data'!$A:$F,3,0)) -> NO | DJ59: 0 | DL59: 0 | DM59: =IF(DI59="YES",IF(ISERROR(VLOOKUP($A59+8860000,'Growth Data'!$A:$F,6,0)),0,VLOOKUP($A59+8860000,'Growth Data'!$A:$F,6,0)),0) -> 0 | DN59: 0 | DP59: 0 | DQ59: =IF(ISERROR(VLOOKUP($A59+8860000,'Growth Data'!$A:$Z,7,0)),0,VLOOKUP($A59+8860000,'Growth Data'!$A:$Z,7,0)) -> 0 | DR59: 0 | DT59: NO | DU59: =IF(ISERROR(VLOOKUP($A59+8860000,'Growth Data'!$A:$F,4,0)),"NO",VLOOKUP($A59+8860000,'Growth Data'!$A:$F,4,0)) -> NO | DV59: 0 | DX59: 0 | DY59: =IF(ISERROR(VLOOKUP($A59+8860000,'Growth Data'!$A:$Z,8,0)),0,VLOOKUP($A59+8860000,'Growth Data'!$A:$Z,8,0)) -> 0 | DZ59: 0 | EB59: 0 | EC59: =IF(ISERROR(VLOOKUP($A59+8860000,'Growth Data'!$A:$Z,9,0)),0,VLOOKUP($A59+8860000,'Growth Data'!$A:$Z,9,0)) -> 0 | ED59: 0 | EF59: NO | EG59: =IF(ISERROR(VLOOKUP($A59+8860000,'Growth Data'!$A:$Z,5,0)),"NO",VLOOKUP($A59+8860000,'Growth Data'!$A:$Z,5,0)) -> NO | EH59: 0 | EJ59: 0 | EK59: =IF(ISERROR(VLOOKUP($A59+8860000,'Growth Data'!$A:$Z,10,0)),0,VLOOKUP($A59+8860000,'Growth Data'!$A:$Z,10,0)) -> 0 | EL59: 0 | EN59: 0 | EO59: =IF(ISERROR(VLOOKUP($A59+8860000,'Growth Data'!$A:$Z,11,0)),0,VLOOKUP($A59+8860000,'Growth Data'!$A:$Z,11,0)) -> 0 | EP59: 0
A60: 5208 | B60: Ditton CEJ School | D60: Ditton CEJ School | F60: 1 | H60: 630190.06 | I60: 630190.056 | J60: 0.004015479586 | L60: 53024.91 | M60: 53024.90965 | N60: 0.0003454545295 | P60: 2141.5 | Q60: 2141.498 | R60: 0.002000000002 | T60: 64926.21 | U60: 64926.20725 | V60: 0.002748837156 | X60: 120084 | Y60: 120084 | Z60: 0 | AB60: 0 | AC60: 0 | AD60: 0 | AF60: 0 | AG60: 0 | AH60: 0 | AJ60: 0 | AK60: 0 | AL60: 0 | AN60: 4864 | AO60: 4864 | AP60: 0 | AR60: 0 | AS60: 0 | AT60: 0 | AV60: 0 | AW60: 0 | AX60: 0 | AZ60: 0 | BA60: 0 | BB60: 0 | BD60: 875230.67 | BE60: 875230.6709 | BF60: -0.0008902287809 | BH60: 0 | BI60: 0 | BJ60: 0 | BL60: 875230.67 | BM60: 875230.6709 | BN60: -0.0008902287809 | BP60: 0 | BR60: 0 | BT60: 3379.65 | BV60: 3379.65 | BX60: 0 | BZ60: 0 | CB60: 112818.23 | CC60: 112818.2272 | CD60: 0 | CF60: 0 | CH60: 0 | CJ60: 3920.57 | CK60: 3920.57059 | CL60: 0 | CN60: 0 | CP60: 0 | CR60: 0 | CT60: 0 | CV60: 0 | CX60: 0 | CZ60: 0 | DB60: 0 | DD60: 0 | DF60: 0 | DH60: NO | DI60: =IF(ISERROR(VLOOKUP($A60+8860000,'Growth Data'!$A:$F,3,0)),"NO",VLOOKUP($A60+8860000,'Growth Data'!$A:$F,3,0)) -> NO | DJ60: 0 | DL60: 0 | DM60: =IF(DI60="YES",IF(ISERROR(VLOOKUP($A60+8860000,'Growth Data'!$A:$F,6,0)),0,VLOOKUP($A60+8860000,'Growth Data'!$A:$F,6,0)),0) -> 0 | DN60: 0 | DP60: 0 | DQ60: =IF(ISERROR(VLOOKUP($A60+8860000,'Growth Data'!$A:$Z,7,0)),0,VLOOKUP($A60+8860000,'Growth Data'!$A:$Z,7,0)) -> 0 | DR60: 0 | DT60: NO | DU60: =IF(ISERROR(VLOOKUP($A60+8860000,'Growth Data'!$A:$F,4,0)),"NO",VLOOKUP($A60+8860000,'Growth Data'!$A:$F,4,0)) -> NO | DV60: 0 | DX60: 0 | DY60: =IF(ISERROR(VLOOKUP($A60+8860000,'Growth Data'!$A:$Z,8,0)),0,VLOOKUP($A60+8860000,'Growth Data'!$A:$Z,8,0)) -> 0 | DZ60: 0 | EB60: 0 | EC60: =IF(ISERROR(VLOOKUP($A60+8860000,'Growth Data'!$A:$Z,9,0)),0,VLOOKUP($A60+8860000,'Growth Data'!$A:$Z,9,0)) -> 0 | ED60: 0 | EF60: NO | EG60: =IF(ISERROR(VLOOKUP($A60+8860000,'Growth Data'!$A:$Z,5,0)),"NO",VLOOKUP($A60+8860000,'Growth Data'!$A:$Z,5,0)) -> NO | EH60: 0 | EJ60: 0 | EK60: =IF(ISERROR(VLOOKUP($A60+8860000,'Growth Data'!$A:$Z,10,0)),0,VLOOKUP($A60+8860000,'Growth Data'!$A:$Z,10,0)) -> 0 | EL60: 0 | EN60: 0 | EO60: =IF(ISERROR(VLOOKUP($A60+8860000,'Growth Data'!$A:$Z,11,0)),0,VLOOKUP($A60+8860000,'Growth Data'!$A:$Z,11,0)) -> 0 | EP60: 0
A61: 5212 | B61: Ditton Infant School | D61: Ditton Infant School | F61: 1 | H61: 451352.34 | I61: 451352.3374 | J61: 0.002605681366 | L61: 37257.41 | M61: 37257.41195 | N61: -0.001945000011 | P61: 5621.43 | Q61: 5621.43225 | R61: -0.00225 | T61: 32587.22 | U61: 32587.21817 | V61: 0.00182692313 | X61: 120084 | Y61: 120084 | Z61: 0 | AB61: 0 | AC61: 0 | AD61: 0 | AF61: 0 | AG61: 0 | AH61: 0 | AJ61: 0 | AK61: 0 | AL61: 0 | AN61: 3942 | AO61: 3942 | AP61: 0 | AR61: 0 | AS61: 0 | AT61: 0 | AV61: 0 | AW61: 0 | AX61: 0 | AZ61: 0 | BA61: 0 | BB61: 0 | BD61: 650844.4 | BE61: 650844.3998 | BF61: 0.0002376044868 | BH61: 0 | BI61: 0 | BJ61: 0 | BL61: 650844.4 | BM61: 650844.3998 | BN61: 0.0002376044868 | BP61: 0 | BR61: 0 | BT61: 3313.32 | BV61: 3313.32 | BX61: 0 | BZ61: 0 | CB61: 71794.19 | CC61: 71794.19468 | CD61: 0 | CF61: 0 | CH61: 0 | CJ61: 4068.57 | CK61: 4068.568552 | CL61: 0 | CN61: 31000 | CP61: 31000 | CR61: 695.13 | CT61: 695 | CV61: 695.13 | CX61: 695 | CZ61: 695.13 | DB61: 695 | DD61: 695.13 | DF61: 695 | DH61: NO | DI61: =IF(ISERROR(VLOOKUP($A61+8860000,'Growth Data'!$A:$F,3,0)),"NO",VLOOKUP($A61+8860000,'Growth Data'!$A:$F,3,0)) -> NO | DJ61: 0 | DL61: 0 | DM61: =IF(DI61="YES",IF(ISERROR(VLOOKUP($A61+8860000,'Growth Data'!$A:$F,6,0)),0,VLOOKUP($A61+8860000,'Growth Data'!$A:$F,6,0)),0) -> 0 | DN61: 0 | DP61: 0 | DQ61: =IF(ISERROR(VLOOKUP($A61+8860000,'Growth Data'!$A:$Z,7,0)),0,VLOOKUP($A61+8860000,'Growth Data'!$A:$Z,7,0)) -> 0 | DR61: 0 | DT61: NO | DU61: =IF(ISERROR(VLOOKUP($A61+8860000,'Growth Data'!$A:$F,4,0)),"NO",VLOOKUP($A61+8860000,'Growth Data'!$A:$F,4,0)) -> NO | DV61: 0 | DX61: 0 | DY61: =IF(ISERROR(VLOOKUP($A61+8860000,'Growth Data'!$A:$Z,8,0)),0,VLOOKUP($A61+8860000,'Growth Data'!$A:$Z,8,0)) -> 0 | DZ61: 0 | EB61: 0 | EC61: =IF(ISERROR(VLOOKUP($A61+8860000,'Growth Data'!$A:$Z,9,0)),0,VLOOKUP($A61+8860000,'Growth Data'!$A:$Z,9,0)) -> 0 | ED61: 0 | EF61: NO | EG61: =IF(ISERROR(VLOOKUP($A61+8860000,'Growth Data'!$A:$Z,5,0)),"NO",VLOOKUP($A61+8860000,'Growth Data'!$A:$Z,5,0)) -> NO | EH61: 0 | EJ61: 0 | EK61: =IF(ISERROR(VLOOKUP($A61+8860000,'Growth Data'!$A:$Z,10,0)),0,VLOOKUP($A61+8860000,'Growth Data'!$A:$Z,10,0)) -> 0 | EL61: 0 | EN61: 0 | EO61: =IF(ISERROR(VLOOKUP($A61+8860000,'Growth Data'!$A:$Z,11,0)),0,VLOOKUP($A61+8860000,'Growth Data'!$A:$Z,11,0)) -> 0 | EP61: 0
A62: 5459 | B62: Dover Grammar School for Boys | D62: Dover Grammar School for Boys | F62: 1 | H62: 2749807.16 | I62: 2749807.155 | J62: 0.004602635279 | L62: 233805.81 | M62: 233805.8102 | N62: -0.0001585900609 | P62: 1447.64 | Q62: 1447.638405 | R62: 0.001595092028 | T62: 40170.52 | U62: 40170.52131 | V62: -0.001313862318 | X62: 114480.08 | Y62: 114480.08 | Z62: 0 | AB62: 0 | AC62: 0 | AD62: 0 | AF62: 0 | AG62: 0 | AH62: 0 | AJ62: 0 | AK62: 0 | AL62: 0 | AN62: 17818 | AO62: 17818 | AP62: 0 | AR62: 0 | AS62: 0 | AT62: 0 | AV62: 0 | AW62: 0 | AX62: 0 | AZ62: 135288.79 | BA62: 135288.7947 | BB62: -0.004725274659 | BD62: 3292818 | BE62: 3292818 | BF62: 0 | BH62: 0 | BI62: 0 | BJ62: 0 | BL62: 3292818 | BM62: 3292818 | BN62: 0 | BP62: 0 | BR62: 0 | BT62: 5000 | BV62: 5000 | BX62: 0 | BZ62: 0 | CB62: 254625.35 | CC62: 254625.353 | CD62: 0 | CF62: 0 | CH62: 0 | CJ62: 5000 | CK62: 5000 | CL62: 0 | CN62: 0 | CP62: 0 | CR62: 0 | CT62: 0 | CV62: 0 | CX62: 0 | CZ62: 0 | DB62: 0 | DD62: 0 | DF62: 0 | DH62: NO | DI62: =IF(ISERROR(VLOOKUP($A62+8860000,'Growth Data'!$A:$F,3,0)),"NO",VLOOKUP($A62+8860000,'Growth Data'!$A:$F,3,0)) -> NO | DJ62: 0 | DL62: 0 | DM62: =IF(DI62="YES",IF(ISERROR(VLOOKUP($A62+8860000,'Growth Data'!$A:$F,6,0)),0,VLOOKUP($A62+8860000,'Growth Data'!$A:$F,6,0)),0) -> 0 | DN62: 0 | DP62: 0 | DQ62: =IF(ISERROR(VLOOKUP($A62+8860000,'Growth Data'!$A:$Z,7,0)),0,VLOOKUP($A62+8860000,'Growth Data'!$A:$Z,7,0)) -> 0 | DR62: 0 | DT62: NO | DU62: =IF(ISERROR(VLOOKUP($A62+8860000,'Growth Data'!$A:$F,4,0)),"NO",VLOOKUP($A62+8860000,'Growth Data'!$A:$F,4,0)) -> NO | DV62: 0 | DX62: 0 | DY62: =IF(ISERROR(VLOOKUP($A62+8860000,'Growth Data'!$A:$Z,8,0)),0,VLOOKUP($A62+8860000,'Growth Data'!$A:$Z,8,0)) -> 0 | DZ62: 0 | EB62: 0 | EC62: =IF(ISERROR(VLOOKUP($A62+8860000,'Growth Data'!$A:$Z,9,0)),0,VLOOKUP($A62+8860000,'Growth Data'!$A:$Z,9,0)) -> 0 | ED62: 0 | EF62: NO | EG62: =IF(ISERROR(VLOOKUP($A62+8860000,'Growth Data'!$A:$Z,5,0)),"NO",VLOOKUP($A62+8860000,'Growth Data'!$A:$Z,5,0)) -> NO | EH62: 0 | EJ62: 0 | EK62: =IF(ISERROR(VLOOKUP($A62+8860000,'Growth Data'!$A:$Z,10,0)),0,VLOOKUP($A62+8860000,'Growth Data'!$A:$Z,10,0)) -> 0 | EL62: 0 | EN62: 0 | EO62: =IF(ISERROR(VLOOKUP($A62+8860000,'Growth Data'!$A:$Z,11,0)),0,VLOOKUP($A62+8860000,'Growth Data'!$A:$Z,11,0)) -> 0 | EP62: 0
A63: 4109 | B63: Dover Grammar School for Girls | D63: Dover Grammar School for Girls | F63: 1 | H63: 2880580.83 | I63: 2880580.827 | J63: 0.002542995382 | L63: 224015.61 | M63: 224015.6138 | N63: -0.003813632007 | P63: 1441.01 | Q63: 1441.008 | R63: 0.001999999996 | T63: 23568.15 | U63: 23568.14808 | V63: 0.001922498337 | X63: 114480.08 | Y63: 114480.08 | Z63: 0 | AB63: 0 | AC63: 0 | AD63: 0 | AF63: 0 | AG63: 0 | AH63: 0 | AJ63: 0 | AK63: 0 | AL63: 0 | AN63: 69632 | AO63: 69632 | AP63: 0 | AR63: 0 | AS63: 0 | AT63: 0 | AV63: 0 | AW63: 0 | AX63: 0 | AZ63: 185914.32 | BA63: 185914.3227 | BB63: -0.002651861694 | BD63: 3499632 | BE63: 3499632 | BF63: 0 | BH63: 0 | BI63: 0 | BJ63: 0 | BL63: 3499632 | BM63: 3499632 | BN63: 0 | BP63: 0 | BR63: 0 | BT63: 5000 | BV63: 5000 | BX63: 0 | BZ63: 0 | CB63: 229577.1 | CC63: 229577.0981 | CD63: 0 | CF63: 0 | CH63: 0 | CJ63: 5000 | CK63: 5000 | CL63: 0 | CN63: 48000 | CP63: 48000 | CR63: 686.56 | CT63: 687 | CV63: 686.56 | CX63: 687 | CZ63: 686.56 | DB63: 687 | DD63: 686.56 | DF63: 687 | DH63: NO | DI63: =IF(ISERROR(VLOOKUP($A63+8860000,'Growth Data'!$A:$F,3,0)),"NO",VLOOKUP($A63+8860000,'Growth Data'!$A:$F,3,0)) -> NO | DJ63: 0 | DL63: 0 | DM63: =IF(DI63="YES",IF(ISERROR(VLOOKUP($A63+8860000,'Growth Data'!$A:$F,6,0)),0,VLOOKUP($A63+8860000,'Growth Data'!$A:$F,6,0)),0) -> 0 | DN63: 0 | DP63: 0 | DQ63: =IF(ISERROR(VLOOKUP($A63+8860000,'Growth Data'!$A:$Z,7,0)),0,VLOOKUP($A63+8860000,'Growth Data'!$A:$Z,7,0)) -> 0 | DR63: 0 | DT63: NO | DU63: =IF(ISERROR(VLOOKUP($A63+8860000,'Growth Data'!$A:$F,4,0)),"NO",VLOOKUP($A63+8860000,'Growth Data'!$A:$F,4,0)) -> NO | DV63: 0 | DX63: 0 | DY63: =IF(ISERROR(VLOOKUP($A63+8860000,'Growth Data'!$A:$Z,8,0)),0,VLOOKUP($A63+8860000,'Growth Data'!$A:$Z,8,0)) -> 0 | DZ63: 0 | EB63: 0 | EC63: =IF(ISERROR(VLOOKUP($A63+8860000,'Growth Data'!$A:$Z,9,0)),0,VLOOKUP($A63+8860000,'Growth Data'!$A:$Z,9,0)) -> 0 | ED63: 0 | EF63: NO | EG63: =IF(ISERROR(VLOOKUP($A63+8860000,'Growth Data'!$A:$Z,5,0)),"NO",VLOOKUP($A63+8860000,'Growth Data'!$A:$Z,5,0)) -> NO | EH63: 0 | EJ63: 0 | EK63: =IF(ISERROR(VLOOKUP($A63+8860000,'Growth Data'!$A:$Z,10,0)),0,VLOOKUP($A63+8860000,'Growth Data'!$A:$Z,10,0)) -> 0 | EL63: 0 | EN63: 0 | EO63: =IF(ISERROR(VLOOKUP($A63+8860000,'Growth Data'!$A:$Z,11,0)),0,VLOOKUP($A63+8860000,'Growth Data'!$A:$Z,11,0)) -> 0 | EP63: 0
A64: 2574 | B64: Downs View Infant School | D64: Downs View Infant School | F64: 1 | H64: 743737.81 | I64: 743737.8138 | J64: -0.00381956913 | L64: 64154.77 | M64: 64154.76965 | N64: 0.0003547892557 | P64: 10601.66 | Q64: 10601.66016 | R64: -0.0001569767446 | T64: 62614.16 | U64: 62614.16289 | V64: -0.002890909018 | X64: 120084 | Y64: 120084 | Z64: 0 | AB64: 0 | AC64: 0 | AD64: 0 | AF64: 0 | AG64: 0 | AH64: 0 | AJ64: 0 | AK64: 0 | AL64: 0 | AN64: 27648 | AO64: 27648 | AP64: 0 | AR64: 0 | AS64: 0 | AT64: 0 | AV64: 0 | AW64: 0 | AX64: 0 | AZ64: 0 | BA64: 0 | BB64: 0 | BD64: 1028840.41 | BE64: 1028840.407 | BF64: 0.003487334354 | BH64: 0 | BI64: 0 | BJ64: 0 | BL64: 1028840.41 | BM64: 1028840.407 | BN64: 0.003487334354 | BP64: 0 | BR64: 0 | BT64: 3363.01 | BV64: 3363.01 | BX64: 0 | BZ64: 0 | CB64: 121990.54 | CC64: 121990.535 | CD64: 0 | CF64: 0 | CH64: 0 | CJ64: 3821.35 | CK64: 3821.345063 | CL64: 0 | CN64: 0 | CP64: 0 | CR64: 0 | CT64: 0 | CV64: 0 | CX64: 0 | CZ64: 0 | DB64: 0 | DD64: 0 | DF64: 0 | DH64: NO | DI64: =IF(ISERROR(VLOOKUP($A64+8860000,'Growth Data'!$A:$F,3,0)),"NO",VLOOKUP($A64+8860000,'Growth Data'!$A:$F,3,0)) -> NO | DJ64: 0 | DL64: 0 | DM64: =IF(DI64="YES",IF(ISERROR(VLOOKUP($A64+8860000,'Growth Data'!$A:$F,6,0)),0,VLOOKUP($A64+8860000,'Growth Data'!$A:$F,6,0)),0) -> 0 | DN64: 0 | DP64: 0 | DQ64: =IF(ISERROR(VLOOKUP($A64+8860000,'Growth Data'!$A:$Z,7,0)),0,VLOOKUP($A64+8860000,'Growth Data'!$A:$Z,7,0)) -> 0 | DR64: 0 | DT64: NO | DU64: =IF(ISERROR(VLOOKUP($A64+8860000,'Growth Data'!$A:$F,4,0)),"NO",VLOOKUP($A64+8860000,'Growth Data'!$A:$F,4,0)) -> NO | DV64: 0 | DX64: 0 | DY64: =IF(ISERROR(VLOOKUP($A64+8860000,'Growth Data'!$A:$Z,8,0)),0,VLOOKUP($A64+8860000,'Growth Data'!$A:$Z,8,0)) -> 0 | DZ64: 0 | EB64: 0 | EC64: =IF(ISERROR(VLOOKUP($A64+8860000,'Growth Data'!$A:$Z,9,0)),0,VLOOKUP($A64+8860000,'Growth Data'!$A:$Z,9,0)) -> 0 | ED64: 0 | EF64: NO | EG64: =IF(ISERROR(VLOOKUP($A64+8860000,'Growth Data'!$A:$Z,5,0)),"NO",VLOOKUP($A64+8860000,'Growth Data'!$A:$Z,5,0)) -> NO | EH64: 0 | EJ64: 0 | EK64: =IF(ISERROR(VLOOKUP($A64+8860000,'Growth Data'!$A:$Z,10,0)),0,VLOOKUP($A64+8860000,'Growth Data'!$A:$Z,10,0)) -> 0 | EL64: 0 | EN64: 0 | EO64: =IF(ISERROR(VLOOKUP($A64+8860000,'Growth Data'!$A:$Z,11,0)),0,VLOOKUP($A64+8860000,'Growth Data'!$A:$Z,11,0)) -> 0 | EP64: 0
A65: 3896 | B65: Downsview Primary | D65: Downsview Primary | F65: 1 | H65: 573416.18 | I65: 573416.1771 | J65: 0.00293300394 | L65: 66657.58 | M65: 66657.58151 | N65: -0.001513846131 | P65: 1843.39 | Q65: 1843.391744 | R65: -0.001744318177 | T65: 77448.51 | U65: 77448.5053 | V65: 0.004701219426 | X65: 120084 | Y65: 120084 | Z65: 0 | AB65: 0 | AC65: 0 | AD65: 0 | AF65: 30555.97 | AG65: 30555.96746 | AH65: 0.00253528856 | AJ65: 0 | AK65: 0 | AL65: 0 | AN65: 20334 | AO65: 20334 | AP65: 0 | AR65: 0 | AS65: 0 | AT65: 0 | AV65: 0 | AW65: 0 | AX65: 0 | AZ65: 0 | BA65: 0 | BB65: 0 | BD65: 890339.62 | BE65: 890339.6231 | BF65: -0.003088652389 | BH65: 0 | BI65: 0 | BJ65: 0 | BL65: 890339.62 | BM65: 890339.6231 | BN65: -0.003088652389 | BP65: 0 | BR65: 0 | BT65: 3690.84 | BV65: 3690.84 | BX65: 0 | BZ65: 0 | CB65: 139055.8 | CC65: 139055.7995 | CD65: 0 | CF65: 0 | CH65: 0 | CJ65: 4306.96 | CK65: 4306.95853 | CL65: 0 | CN65: 0 | CP65: 0 | CR65: 0 | CT65: 0 | CV65: 0 | CX65: 0 | CZ65: 0 | DB65: 0 | DD65: 0 | DF65: 0 | DH65: NO | DI65: =IF(ISERROR(VLOOKUP($A65+8860000,'Growth Data'!$A:$F,3,0)),"NO",VLOOKUP($A65+8860000,'Growth Data'!$A:$F,3,0)) -> NO | DJ65: 0 | DL65: 0 | DM65: =IF(DI65="YES",IF(ISERROR(VLOOKUP($A65+8860000,'Growth Data'!$A:$F,6,0)),0,VLOOKUP($A65+8860000,'Growth Data'!$A:$F,6,0)),0) -> 0 | DN65: 0 | DP65: 0 | DQ65: =IF(ISERROR(VLOOKUP($A65+8860000,'Growth Data'!$A:$Z,7,0)),0,VLOOKUP($A65+8860000,'Growth Data'!$A:$Z,7,0)) -> 0 | DR65: 0 | DT65: NO | DU65: =IF(ISERROR(VLOOKUP($A65+8860000,'Growth Data'!$A:$F,4,0)),"NO",VLOOKUP($A65+8860000,'Growth Data'!$A:$F,4,0)) -> NO | DV65: 0 | DX65: 0 | DY65: =IF(ISERROR(VLOOKUP($A65+8860000,'Growth Data'!$A:$Z,8,0)),0,VLOOKUP($A65+8860000,'Growth Data'!$A:$Z,8,0)) -> 0 | DZ65: 0 | EB65: 0 | EC65: =IF(ISERROR(VLOOKUP($A65+8860000,'Growth Data'!$A:$Z,9,0)),0,VLOOKUP($A65+8860000,'Growth Data'!$A:$Z,9,0)) -> 0 | ED65: 0 | EF65: NO | EG65: =IF(ISERROR(VLOOKUP($A65+8860000,'Growth Data'!$A:$Z,5,0)),"NO",VLOOKUP($A65+8860000,'Growth Data'!$A:$Z,5,0)) -> NO | EH65: 0 | EJ65: 0 | EK65: =IF(ISERROR(VLOOKUP($A65+8860000,'Growth Data'!$A:$Z,10,0)),0,VLOOKUP($A65+8860000,'Growth Data'!$A:$Z,10,0)) -> 0 | EL65: 0 | EN65: 0 | EO65: =IF(ISERROR(VLOOKUP($A65+8860000,'Growth Data'!$A:$Z,11,0)),0,VLOOKUP($A65+8860000,'Growth Data'!$A:$Z,11,0)) -> 0 | EP65: 0
A66: 2130 | B66: Dunton Green Primary School | D66: Dunton Green Primary School | F66: =IF(E66=D66,0,1) -> 1 | H66: 451352.34 | I66: 451352.3374 | J66: =H66-I66 -> 0.002605681366 | L66: 31924.76 | M66: 31924.76284 | N66: =L66-M66 -> -0.002839520959 | P66: 8258.35 | Q66: 8258.351429 | R66: =P66-Q66 -> -0.001429104475 | T66: 41039.53 | U66: 41039.52789 | V66: =T66-U66 -> 0.002113281247 | X66: 120084 | Y66: 120084 | Z66: =X66-Y66 -> 0 | AB66: 0 | AC66: 0 | AD66: =AB66-AC66 -> 0 | AF66: 23756.79 | AG66: 23756.78686 | AH66: =AF66-AG66 -> 0.003144392282 | AJ66: 0 | AK66: 0 | AL66: =AJ66-AK66 -> 0 | AN66: 24576 | AO66: 24576 | AP66: =AN66-AO66 -> 0 | AR66: 0 | AS66: 0 | AT66: =AR66-AS66 -> 0 | AV66: 0 | AW66: 0 | AX66: =AV66-AW66 -> 0 | AZ66: 0 | BA66: 0 | BB66: =AZ66-BA66 -> 0 | BD66: 700991.77 | BE66: 700991.7664 | BF66: =BD66-BE66 -> 0.003594729467 | BH66: 0 | BI66: 0 | BJ66: =BH66-BI66 -> 0 | BL66: 700991.77 | BM66: 700991.7664 | BN66: =BL66-BM66 -> 0.003594729467 | BP66: 0 | BR66: =BP66-BQ66 -> 0 | BT66: 3471.45 | BV66: =BT66-BU66 -> 3471.45 | BX66: 0 | BZ66: =BX66-BY66 -> 0 | CB66: 74306.44 | CC66: 74306.43859 | CD66: =ROUND(CB66-CC66,0) -> 0 | CF66: 0 | CH66: =ROUND(CF66-CG66,0) -> 0 | CJ66: 4254.19 | CK66: 4254.18721 | CL66: =ROUND(CJ66-CK66,0) -> 0 | CN66: 0 | CP66: =ROUND(CN66-CO66,0) -> 0 | CR66: 0 | CT66: =ROUND(CR66-CS66,0) -> 0 | CV66: 0 | CX66: =ROUND(CV66-CW66,0) -> 0 | CZ66: 0 | DB66: =ROUND(CZ66-DA66,0) -> 0 | DD66: 0 | DF66: =ROUND(DD66-DE66,0) -> 0 | DH66: NO | DI66: =IF(ISERROR(VLOOKUP($A66+8860000,'Growth Data'!$A:$F,3,0)),"NO",VLOOKUP($A66+8860000,'Growth Data'!$A:$F,3,0)) -> NO | DJ66: =IF(DH66=DI66,0,1) -> 0 | DL66: 0 | DM66: =IF(DI66="YES",IF(ISERROR(VLOOKUP($A66+8860000,'Growth Data'!$A:$F,6,0)),0,VLOOKUP($A66+8860000,'Growth Data'!$A:$F,6,0)),0) -> 0 | DN66: =ROUND(DL66-DM66,0) -> 0 | DP66: 0 | DQ66: =IF(ISERROR(VLOOKUP($A66+8860000,'Growth Data'!$A:$Z,7,0)),0,VLOOKUP($A66+8860000,'Growth Data'!$A:$Z,7,0)) -> 0 | DR66: =IF(DP66=DQ66,0,1) -> 0 | DT66: NO | DU66: =IF(ISERROR(VLOOKUP($A66+8860000,'Growth Data'!$A:$F,4,0)),"NO",VLOOKUP($A66+8860000,'Growth Data'!$A:$F,4,0)) -> NO | DV66: =IF(DT66=DU66,0,1) -> 0 | DX66: 0 | DY66: =IF(ISERROR(VLOOKUP($A66+8860000,'Growth Data'!$A:$Z,8,0)),0,VLOOKUP($A66+8860000,'Growth Data'!$A:$Z,8,0)) -> 0 | DZ66: =IF(DX66=DY66,0,1) -> 0 | EB66: 0 | EC66: =IF(ISERROR(VLOOKUP($A66+8860000,'Growth Data'!$A:$Z,9,0)),0,VLOOKUP($A66+8860000,'Growth Data'!$A:$Z,9,0)) -> 0 | ED66: =IF(EB66=EC66,0,1) -> 0 | EF66: NO | EG66: =IF(ISERROR(VLOOKUP($A66+8860000,'Growth Data'!$A:$Z,5,0)),"NO",VLOOKUP($A66+8860000,'Growth Data'!$A:$Z,5,0)) -> NO | EH66: =IF(EF66=EG66,0,1) -> 0 | EJ66: 0 | EK66: =IF(ISERROR(VLOOKUP($A66+8860000,'Growth Data'!$A:$Z,10,0)),0,VLOOKUP($A66+8860000,'Growth Data'!$A:$Z,10,0)) -> 0 | EL66: =IF(EJ66=EK66,0,1) -> 0 | EN66: 0 | EO66: =IF(ISERROR(VLOOKUP($A66+8860000,'Growth Data'!$A:$Z,11,0)),0,VLOOKUP($A66+8860000,'Growth Data'!$A:$Z,11,0)) -> 0 | EP66: =IF(EN66=EO66,0,1) -> 0
A67: 2163 | B67: East Farleigh Primary School | D67: East Farleigh Primary School | F67: 1 | H67: 590448.34 | I67: 590448.3407 | J67: -0.0007422533818 | L67: 15930.37 | M67: 15930.36959 | N67: 0.0004110552927 | P67: 3110.56 | Q67: 3110.555754 | R67: 0.004245810062 | T67: 43587.79 | U67: 43587.79348 | V67: -0.003483146051 | X67: 120084 | Y67: 120084 | Z67: 0 | AB67: 0 | AC67: 0 | AD67: 0 | AF67: 0 | AG67: 0 | AH67: 0 | AJ67: 0 | AK67: 0 | AL67: 0 | AN67: 16717 | AO67: 16717 | AP67: 0 | AR67: 0 | AS67: 0 | AT67: 0 | AV67: 0 | AW67: 0 | AX67: 0 | AZ67: 6838.94 | BA67: 6838.940431 | BB67: -0.0004314659773 | BD67: 796717 | BE67: 796717 | BF67: 0 | BH67: 0 | BI67: 0 | BJ67: 0 | BL67: 796717 | BM67: 796717 | BN67: 0 | BP67: 0 | BR67: 0 | BT67: 3750 | BV67: 3750 | BX67: 0 | BZ67: 0 | CB67: 65261.26 | CC67: 65261.26113 | CD67: 0 | CF67: 0 | CH67: 0 | CJ67: 3750 | CK67: 3750 | CL67: 0 | CN67: 30000 | CP67: 30000 | CR67: 985.74 | CT67: 986 | CV67: 985.74 | CX67: 986 | CZ67: 985.74 | DB67: 986 | DD67: 985.74 | DF67: 986 | DH67: YES | DI67: =IF(ISERROR(VLOOKUP($A67+8860000,'Growth Data'!$A:$F,3,0)),"NO",VLOOKUP($A67+8860000,'Growth Data'!$A:$F,3,0)) -> NO | DJ67: 1 | DL67: 46 | DM67: =IF(DI67="YES",IF(ISERROR(VLOOKUP($A67+8860000,'Growth Data'!$A:$F,6,0)),0,VLOOKUP($A67+8860000,'Growth Data'!$A:$F,6,0)),0) -> 0 | DN67: 46 | DP67: 60 | DQ67: =IF(ISERROR(VLOOKUP($A67+8860000,'Growth Data'!$A:$Z,7,0)),0,VLOOKUP($A67+8860000,'Growth Data'!$A:$Z,7,0)) -> 0 | DR67: 1 | DT67: YES | DU67: =IF(ISERROR(VLOOKUP($A67+8860000,'Growth Data'!$A:$F,4,0)),"NO",VLOOKUP($A67+8860000,'Growth Data'!$A:$F,4,0)) -> NO | DV67: 1 | DX67: 46 | DY67: =IF(ISERROR(VLOOKUP($A67+8860000,'Growth Data'!$A:$Z,8,0)),0,VLOOKUP($A67+8860000,'Growth Data'!$A:$Z,8,0)) -> 0 | DZ67: 1 | EB67: 60 | EC67: =IF(ISERROR(VLOOKUP($A67+8860000,'Growth Data'!$A:$Z,9,0)),0,VLOOKUP($A67+8860000,'Growth Data'!$A:$Z,9,0)) -> 0 | ED67: 1 | EF67: YES | EG67: =IF(ISERROR(VLOOKUP($A67+8860000,'Growth Data'!$A:$Z,5,0)),"NO",VLOOKUP($A67+8860000,'Growth Data'!$A:$Z,5,0)) -> NO | EH67: 1 | EJ67: 47 | EK67: =IF(ISERROR(VLOOKUP($A67+8860000,'Growth Data'!$A:$Z,10,0)),0,VLOOKUP($A67+8860000,'Growth Data'!$A:$Z,10,0)) -> 0 | EL67: 1 | EN67: 60 | EO67: =IF(ISERROR(VLOOKUP($A67+8860000,'Growth Data'!$A:$Z,11,0)),0,VLOOKUP($A67+8860000,'Growth Data'!$A:$Z,11,0)) -> 0 | EP67: 1
